Workbook

Sheet StrataCorners (hidden)
A1: This worksheet contains a list of the corners (vertices) of polygons enclosing each stratum. Strata from multiple blocks (or crop plans) may be included. Strata names must be unique.
A2: Strata may be in any order, but within a strarum the corners must be in a rational order - i.e. sequenced as if you are traversing clockwise or anticlockwise around each stratum boundary.
A3: The starting corner of each stratum should be repeated as the last corner, to close each polygon (this is the Arc GIS output default). Strata that share a boundary will need separate corner coordinates for each stratum.
A4: X and Y coordinates can be relative to a single location in the entire block, or UTM coordinates from a GPS or GIS coverage.
A5: We recommend you view the strata across the entire block with a Visualize event to ensure you have entered the strata corners and treelists correctly.
A6: strataname | B6: xeast | C6: ynorth | E6: Empty (blank) rows are ignored | I6: Stands workbook: MGM Stands.xlsx

Sheet SpeciesList (hidden)
A1: Species Codes by Region
A2: Notes | B2: On establishment a tree should receive an mgmspp and trspp index. These should not change even if region changes
A6: VBAIndex | B6: shtIndex | C6: IndexMGM | D6: SppGrp | E6: MGM | F6: AB | G6: BC | H6: SK | I6: MB | J6: Utilized | K6: Common Name | L6: Latin Name
A7: 0 | B7: 1 | C7: 1 | D7: Con | E7: Sw | F7: Sw | G7: Sw | H7: wS | I7: WS | K7: White spruce | L7: P. glauca
A8: 1 | B8: 2 | C8: 2 | D8: Con | E8: Pl | F8: Pl | G8: Pl | H8: lP | I8: LP | K8: Lodgepole pine | L8: P. contorta
A9: 2 | B9: 3 | C9: 3 | D9: Dec | E9: Aw | F9: Aw | G9: At | H9: tA | I9: TA | K9: Aspen | L9: P. tremuloides
A10: 3 | B10: 4 | C10: 4 | D10: Con | E10: Sb | F10: Sb | G10: Sb | H10: bS | I10: BS | K10: Black spruce | L10: P. mariana
A11: 4 | B11: 5 | C11: 3 | D11: Dec | E11: Aw | F11: Bw | G11: Ep | H11: wB | I11: WB | K11: Paper (White) Birch | L11: B. papyrifera
A12: 5 | B12: 6 | C12: 3 | D12: Dec | E12: Aw | F12: Pb | G12: Ac | H12: bP | I12: BA | K12: Balsam Poplar/Black Cottonwood | L12: P. balsamifera
A13: 6 | B13: 7 | C13: 3 | D13: Dec | E13: Aw | F13: Pb | G13: Acb | H13: bP | I13: BA | K13: Balsam Poplar | L13: P. balsamifera ssp. balsamifera
A14: 7 | B14: 8 | C14: 3 | D14: Dec | E14: Aw | F14: NA | G14: Act | H14: NA | I14: NA | K14: Black cottonwood | L14: P. balsamifera ssp. trichocarpa
A15: 8 | B15: 9 | C15: 2 | D15: Con | E15: Pl | F15: Pj | G15: Pj | H15: jP | I15: JP | K15: Jack pine | L15: P. banksiana
A16: 9 | B16: 10 | C16: 1 | D16: Con | E16: Sw | F16: Fa | G16: Bg | H16: NA | I16: NA | K16: Sub-alpine fir | L16: A. lasiocarpa
A17: 10 | B17: 11 | C17: 4 | D17: Con | E17: Sb | F17: Lt | G17: Lt | H17: tL | I17: TL | K17: Tamarack | L17: L. Laricina
A18: 11 | B18: 12 | C18: 4 | D18: Con | E18: Sb | F18: La | G18: La | H18: NA | I18: NA | K18: Subalpine Larch | L18: L. Lyallii
A19: 12 | B19: 13 | C19: 4 | D19: Con | E19: Sb | F19: Lw | G19: Lw | H19: NA | I19: NA | K19: Western larch | L19: L. occidentalis
A20: 13 | B20: 14 | C20: 2 | D20: Con | E20: Pl | F20: Pf | G20: Pf | H20: NA | I20: NA | K20: Limber pine | L20: P. flexilis
A21: 14 | B21: 15 | C21: 2 | D21: Con | E21: Pl | F21: NA | G21: Py | H21: NA | I21: NA | K21: Ponderosa pine | L21: P. ponderosa
A22: 15 | B22: 16 | C22: 2 | D22: Con | E22: Pl | F22: Pw | G22: Pa | H22: NA | I22: NA | K22: Whitebark pine | L22: P. albicaulis
A23: 16 | B23: 17 | C23: 1 | D23: Con | E23: Sw | F23: Se | G23: Se | H23: NA | I23: NA | K23: Engelmann spruce | L23: P. engelmannii
A24: 17 | B24: 18 | C24: 1 | D24: Con | E24: Sw | F24: NA | G24: Sx | H24: NA | I24: NA | K24: Spruce hybrid | L24: Picea crosses
A25: 18 | B25: 19 | C25: 1 | D25: Con | E25: Sw | F25: NA | G25: Fd | H25: NA | I25: NA | K25: Douglasfir | L25: P. menziesii
A26: 19 | B26: 20 | C26: 1 | D26: Con | E26: Sw | F26: Fd | G26: Fdi | H26: NA | I26: NA | K26: Douglasfir – Interior | L26: P. menziesii var glauca
A27: 20 | B27: 21 | C27: 1 | D27: Con | E27: Sw | F27: Fb | G27: Bb | H27: bF | I27: BF | K27: Balsam fir | L27: A. balsamea
A28: 21 | B28: 22 | C28: 3 | D28: Dec | E28: Aw | F28: NA | G28: NA | H28: mM | I28: MM | K28: Manitoba maple | L28: A. negundo
A29: 22 | B29: 23 | C29: 3 | D29: Dec | E29: Aw | F29: NA | G29: NA | H29: bO | I29: BO | K29: Bur oak | L29: Q. macrocarpa
A30: 23 | B30: 24 | C30: 3 | D30: Dec | E30: Aw | F30: NA | G30: NA | H30: wE | I30: WE | K30: White elm | L30: U. americana
A32: Count of species codes (except NA) | E32: =COUNTA(E7:E30)-COUNTIF(E7:E30,"NA") -> 24 | F32: =COUNTA(F7:F30)-COUNTIF(F7:F30,"NA") -> 17 | G32: =COUNTA(G7:G30)-COUNTIF(G7:G30,"NA") -> 21 | H32: =COUNTA(H7:H30)-COUNTIF(H7:H30,"NA") -> 13 | I32: =COUNTA(I7:I30)-COUNTIF(I7:I30,"NA") -> 13
A34: Lookup test formulas
E35: Region | F35: 1 | G35: 2 | H35: 3 | I35: 4
E36: Spp | F36: fb | G36: sx | H36: jp | I36: wb
E37: SppIndex | F37: =CHOOSE(F35,MATCH(F36,$F$7:$F$30,0),MATCH(F36,$G$7:$G$30,0),MATCH(F36,$H$7:$H$30,0),MATCH(F36,$I$7:$I$30,0)) -> 21 | G37: =CHOOSE(G35,MATCH(G36,$F$7:$F$30,0),MATCH(G36,$G$7:$G$30,0),MATCH(G36,$H$7:$H$30,0),MATCH(G36,$I$7:$I$30,0)) -> 18 | H37: =CHOOSE(H35,MATCH(H36,$F$7:$F$30,0),MATCH(H36,$G$7:$G$30,0),MATCH(H36,$H$7:$H$30,0),MATCH(H36,$I$7:$I$30,0)) -> 9 | I37: =CHOOSE(I35,MATCH(I36,$F$7:$F$30,0),MATCH(I36,$G$7:$G$30,0),MATCH(I36,$H$7:$H$30,0),MATCH(I36,$I$7:$I$30,0)) -> 5
E38: SppMGM | F38: =IF(F36="NA",-1,INDEX($E$7:$E$30,CHOOSE(F35,MATCH(F36,$F$7:$F$30,0),MATCH(F36,$G$7:$G$30,0),MATCH(F36,$H$7:$H$30,0),MATCH(F36,$I$7:$I$30,0)))) -> Sw | G38: =INDEX($E$7:$E$30,CHOOSE(G35,MATCH(G36,$F$7:$F$30,0),MATCH(G36,$G$7:$G$30,0),MATCH(G36,$H$7:$H$30,0),MATCH(G36,$I$7:$I$30,0))) -> Sw | H38: =INDEX($E$7:$E$30,CHOOSE(H35,MATCH(H36,$F$7:$F$30,0),MATCH(H36,$G$7:$G$30,0),MATCH(H36,$H$7:$H$30,0),MATCH(H36,$I$7:$I$30,0))) -> Pl | I38: =INDEX($E$7:$E$30,CHOOSE(I35,MATCH(I36,$F$7:$F$30,0),MATCH(I36,$G$7:$G$30,0),MATCH(I36,$H$7:$H$30,0),MATCH(I36,$I$7:$I$30,0))) -> Aw
E39: SppIndexMGM | F39: =IF(F36="NA",-1,INDEX($C$7:$H$30,CHOOSE(F35,MATCH(F36,$F$7:$F$30,0),MATCH(F36,$G$7:$G$30,0),MATCH(F36,$H$7:$H$30,0),MATCH(F36,$I$7:$I$30,0)),1)) -> 1 | G39: =IF(G36="NA",-1,INDEX($C$7:$H$30,CHOOSE(G35,MATCH(G36,$F$7:$F$30,0),MATCH(G36,$G$7:$G$30,0),MATCH(G36,$H$7:$H$30,0),MATCH(G36,$I$7:$I$30,0)),1)) -> 1 | H39: =IF(H36="NA",-1,INDEX($C$7:$H$30,CHOOSE(H35,MATCH(H36,$F$7:$F$30,0),MATCH(H36,$G$7:$G$30,0),MATCH(H36,$H$7:$H$30,0),MATCH(H36,$I$7:$I$30,0)),1)) -> 2 | I39: =IF(I36="NA",-1,INDEX($C$7:$H$30,CHOOSE(I35,MATCH(I36,$F$7:$F$30,0),MATCH(I36,$G$7:$G$30,0),MATCH(I36,$H$7:$H$30,0),MATCH(I36,$I$7:$I$30,0)),1)) -> 3
E40: Sppgrp | F40: =INDEX(SppGrp,MATCH("AW",AB,0)) -> Dec
A43: Summary of Groupings | E43: Sw | F43: Sw Se Fd Fb Fa | G43: S Se Sx Sw Fdi Bb Bg | H43: wS bF | I43: WS BF
E44: Pl | F44: Pl Pj Pf Pw | G44: Pl Pj Pf Py Pa | H44: lp jP | I44: LP JP
E45: Aw | F45: Aw Pb Bw | G45: At Ac Ep | H45: wB tA bP mM bM wE | I45: TA BA WB
E46: Sb | F46: Sb Lt Lw La | G46: Sb Lt Lw La | H46: bS tL | I46: BS TL
F48: LFS groups (VSR): Sw Se, Sb, Fb, Pl Pj Pw Pf, Aw, Bw, Lt Lw La Fa, Fd, Pb
F49: LFS groups (ECO): Aw, Bw, Fb, Fd, Lt, Pb, Pj, Pl, Sb, Se, Sw

Sheet QuickHelp (hidden)
A1: Topic | B1: HelpEntry | D1: This input dialog window is not modal; can view and move between worksheets.
A2: About MGM Tips and Tricks | B2: This dialog shows many useful tips and tricks. It is activated from the MGM controls group within the MGM tab. While active you may use the Basic User Interface (BUI) or the Advanced User Interface (AUI). However, be careful not to accidentally hide Tips dialog window behind the BUI dialog window. | D2: Selected Profile row: | E2: 4
A3: Installation | B3: Essential MGM template files are installed before you work with MGM. If access to the Excel templates directory is denied, the files are created in the MGM workbook directory. After installation is completed, the original downloaded MGM workbook closes automatically aad A COPY of the MGM workbook is created in the MGM workbook directory with a name ending with '- My Working Copy'. USE THIS COPY to complete your analyses. Leave the original downloaded MGM workbook as a backup. A NEW MGM workbook can also be created directly from the Excel 'My Templates' directory.
A4: Getting hints using "mouse-over" | B4: Moving the mouse over a control (button or menu item) without clicking the mouse will display information about the control and it's use. You may need to pause a few seconds before the information appears. | D4: Default | E4: Options | F4: Region := 1 | G4: SubRegion := 7 | H4: StandsWbkName := | I4: _MinDbh := 0 | J4: _topdib := 0 | K4: _StumpHt := 0 | L4: _VolumeLoss := 0 | M4: AllowIngrowth := False | N4: Default_Sindex := 16 18 18 10 | O4: YearsToBH := 15 10 2 20 | P4: MaxDenAdj := 1 1 1 1 | Q4: SppUtilStr := 111111111111111111111111 | R4: MAFlag := False | S4: FlagABnewSI := False | T4: FlagHDSMooth := False | U4: FlagVSTO := True | V4: FlagMSLight := False
A5: MGM Ribbon | B5: When the MGM workbook is opened, the MGM Ribbon is created. It contains controls (buttons and menus) that allow you to interact with MGM to make growth projections. The Basic User Interface BUI) consists of one group of controls while the Advanced User Interface (AUI) includes several additional groups of controls. Since MGM settings are saved with the MGM workbook, you can determine how MGM will behave on startup; you can have the workbook begin with either the Basic or Advanced User Interface. | D5: DMI | E5: Options | F5: Region := 1 | G5: SubRegion := 15 | H5: StandsWbkName := | I5: _MinDbh := 0 | J5: _topdib := 0 | K5: _StumpHt := 0 | L5: _VolumeLoss := 0 | M5: AllowIngrowth := False | N5: Default_Sindex := 16 18 18 10 | O5: YearsToBH := 15 10 2 20 | P5: MaxDenAdj := 1 1 1 1 | Q5: SppUtilStr := 111111111111111111111111 | R5: MAFlag := False | S5: FlagABnewSI := False | T5: FlagHDSMooth := False | U5: FlagVSTO := True | V5: FlagMSLight := False
A6: MGM button group | B6: This group of controls is located in the MGM Ribbon. It allows access to 1) Preferences for the MGM Basic and Advanced User Interface, 2) MGM help information, and 3) a few MGM tools. Other settings may also appear in this group of controls. | D6: ALP | E6: Options | F6: Region := 1 | G6: SubRegion := 7 | H6: StandsWbkName := | I6: _MinDbh := 0 | J6: _topdib := 0 | K6: _StumpHt := 0 | L6: _VolumeLoss := 0 | M6: AllowIngrowth := False | N6: Default_Sindex := 16 18 18 10 | O6: YearsToBH := 15 10 2 20 | P6: MaxDenAdj := 1 1 1 1 | Q6: SppUtilStr := 111111111111111111111111 | R6: MAFlag := False | S6: FlagABnewSI := False | T6: FlagHDSMooth := False | U6: FlagVSTO := True | V6: FlagMSLight := False
A7: Preferences menu | B7: This menu contains controls that allow you to start the Basic User Interface (BUI). When the workbook is saved, the current BUI Preferences are saved. If BUI is active(visible) when the workbook is saved, the next session will automatically start BUI. Other user preference settings may also appear on the Preferences menu. | D7: WGP | E7: Options | F7: Region := 1 | G7: SubRegion := 11 | H7: StandsWbkName := | I7: _MinDbh := 0 | J7: _topdib := 0 | K7: _StumpHt := 0 | L7: _VolumeLoss := 0 | M7: AllowIngrowth := False | N7: Default_Sindex := 16 18 18 10 | O7: YearsToBH := 15 10 2 20 | P7: MaxDenAdj := 1 1 1 1 | Q7: SppUtilStr := 111111111111111111111111 | R7: MAFlag := False | S7: FlagABnewSI := False | T7: FlagHDSMooth := False | U7: FlagVSTO := True | V7: FlagMSLight := False
A8: Help menu | B8: This menu allows access to several sources of intormation about MGM. | D8: SRD | E8: Options | F8: Region := 1 | G8: SubRegion := 7 | H8: StandsWbkName := | I8: _MinDbh := 0 | J8: _topdib := 0 | K8: _StumpHt := 0 | L8: _VolumeLoss := 0 | M8: AllowIngrowth := False | N8: Default_Sindex := 16 18 18 10 | O8: YearsToBH := 15 10 2 20 | P8: MaxDenAdj := 1 1 1 1 | Q8: SppUtilStr := 111111111111111111111111 | R8: MAFlag := False | S8: FlagABnewSI := False | T8: FlagHDSMooth := False | U8: FlagVSTO := True | V8: FlagMSLight := False
A9: MGM Tools menu | B9: This menu allows access to a few tools useful in using MGM. | D9: NWT | E9: Options | F9: Region := 1 | G9: SubRegion := 7 | H9: StandsWbkName := | I9: _MinDbh := 0 | J9: _topdib := 0 | K9: _StumpHt := 0 | L9: _VolumeLoss := 0 | M9: AllowIngrowth := False | N9: Default_Sindex := 16 18 18 10 | O9: YearsToBH := 15 10 2 20 | P9: MaxDenAdj := 1 1 1 1 | Q9: SppUtilStr := 111111111111111111111111 | R9: MAFlag := False | S9: FlagABnewSI := False | T9: FlagHDSMooth := False | U9: FlagVSTO := True | V9: FlagMSLight := False
A10: Basic User Interface (BUI) | B10: The Basic User Interface (BUI) is is a useful learning and analysis tool for MGM. It shows a simple dialog that can make and summarize MGM growth projection 'Runs' (Crop Plans) subject to a number of limitations. For some users the BUI may be all that is required. BUI permits access to the MGM controls group and gives access to MGM Help as well the selected other MGM controls. The entire set of growth runs may be made visible or hidden, charts may be viewed and runs may be added (at the end of the sequence) or deleted. To view various results, switch between worksheets using the tabs at the bottom of the MGM window. If you need to make more complex projections with greater control of the Crop Plan, the migration to using the Advanced User Interface (AUI) will be easier after some experience using BUI. If the MGM workbook is saved and closed while BUI is active, then the next session begins in BUI. From the AUI, the BUI is activated using a button in the MGM Preferences menu in the MGM controls group. | D10: SSK | E10: Options | F10: Region := 1 | G10: SubRegion := 7 | H10: StandsWbkName := | I10: _MinDbh := 0 | J10: _topdib := 0 | K10: _StumpHt := 0 | L10: _VolumeLoss := 0 | M10: AllowIngrowth := False | N10: Default_Sindex := 16 18 18 10 | O10: YearsToBH := 15 10 2 20 | P10: MaxDenAdj := 1 1 1 1 | Q10: SppUtilStr := 111111111111111111111111 | R10: MAFlag := False | S10: FlagABnewSI := False | T10: FlagHDSMooth := False | U10: FlagMSLight := False
A11: Advanced User Interface (AUI) | B11: This set of tools appears as other groups of controls in the MGM ribbon. It provides the greatest flexibility for analysts, but also requires greater effort and care in learning and using these controls. If AUI is active and the workbook is saved, it will be active when the next session begins. | D11: LPSR | E11: Options | F11: Region := 1 | G11: SubRegion := 7 | H11: StandsWbkName := | I11: _MinDbh := 0 | J11: _topdib := 0 | K11: _StumpHt := 0 | L11: _VolumeLoss := 0 | M11: AllowIngrowth := False | N11: Default_Sindex := 16 18 18 10 | O11: YearsToBH := 15 10 2 20 | P11: MaxDenAdj := 1 1 1 1 | Q11: SppUtilStr := 111111111111111111111111 | R11: MAFlag := False | S11: FlagABnewSI := False | T11: FlagHDSMooth := False | U11: FlagMSLight := False
A12: About Crop Plans (CP) | B12: A crop plan consist of a sequence of CP events that govern the projection of a stand using MGM. The purpose of the BUI is to ease the transition from basic projections to using the greater flexibility available with Crop Plans and the AUI. | D12: LPDC | E12: Options | F12: Region := 1 | G12: SubRegion := 7 | H12: StandsWbkName := | I12: _MinDbh := 0 | J12: _topdib := 0 | K12: _StumpHt := 0 | L12: _VolumeLoss := 0 | M12: AllowIngrowth := False | N12: Default_Sindex := 16 18 18 10 | O12: YearsToBH := 15 10 2 20 | P12: MaxDenAdj := 1 1 1 1 | Q12: SppUtilStr := 111111111111111111111111 | R12: MAFlag := False | S12: FlagABnewSI := False | T12: FlagHDSMooth := False | U12: FlagMSLight := False
A13: About Crop Plans worksheet Shortcut Menu | B13: The CP shortcut menu menu provides quick access to buttons (tools) for managing CP events and projecting growth. It is ONLY available within the Crop Plans worksheet. To activate the menu simply right-click on any CP event row. The right-click action immediately selects the same row as the active (highlighted) event. DO NOT USE THE CP SHORTCUT MENU WHILE BUI IS ACTIVE. | D13: CFS | E13: Options | F13: Region := 1 | G13: SubRegion := 7 | H13: StandsWbkName := | I13: _MinDbh := 0 | J13: _topdib := 0 | K13: _StumpHt := 0 | L13: _VolumeLoss := 0 | M13: AllowIngrowth := False | N13: Default_Sindex := 16 18 18 10 | O13: YearsToBH := 15 10 2 20 | P13: MaxDenAdj := 1 1 1 1 | Q13: SppUtilStr := 111111111111111111111111 | R13: MAFlag := False | S13: FlagABnewSI := False | T13: FlagHDSMooth := False | U13: FlagMSLight := False
A14: Set Workbook Names | B14: When Setting workbook names (Crop Plans, Stands, Records), workbooks located in a subdirectory of the MGM workbook directory can be accessed by including the path name in front the workbook name. The backslash (\) directory separater is required between the path and workbook name but must NOT appear before the path name. For example: 'MySubdiretory\MyWorkbook.xlsx' (entered without the single quotes). The Stands workbook name can be set using the Set Workbook Names dialog OR the Options event--Other Settings tab. Using the options event setting allows use of several Stands workbooks without using the Set Workbook Names dialog. Remember that the name remains in effect until it is changed by another Options event or the set names dialog. | D14: CFR | E14: Options | F14: Region := 1 | G14: SubRegion := 7 | H14: StandsWbkName := | I14: _MinDbh := 0 | J14: _topdib := 0 | K14: _StumpHt := 0 | L14: _VolumeLoss := 0 | M14: AllowIngrowth := False | N14: Default_Sindex := 16 18 18 10 | O14: YearsToBH := 15 10 2 20 | P14: MaxDenAdj := 1 1 1 1 | Q14: SppUtilStr := 111111111111111111111111 | R14: MAFlag := False | S14: FlagABnewSI := False | T14: FlagHDSMooth := False | U14: FlagMSLight := False
A15: Crop Plans (CP) workbook | B15: The CP workbook provides a repository for a collection of CP worksheets. These can easily be saved, retrieved, and executed to project stand growth under a variety of scenarios. | D15: WFR | E15: Options | F15: Region := 1 | G15: SubRegion := 7 | H15: StandsWbkName := | I15: _MinDbh := 0 | J15: _topdib := 0 | K15: _StumpHt := 0 | L15: _VolumeLoss := 0 | M15: AllowIngrowth := False | N15: Default_Sindex := 16 18 18 10 | O15: YearsToBH := 15 10 2 20 | P15: MaxDenAdj := 1 1 1 1 | Q15: SppUtilStr := 111111111111111111111111 | R15: MAFlag := False | S15: FlagABnewSI := False | T15: FlagHDSMooth := False | U15: FlagMSLight := False
A16: Stands workbook | B16: The Stands workbook provides a primary means to incorporate real tree data into a CP. Use the Establish event to specify which stand from the Stands workbook is to be established. The Stands workbook name can be set using the Set Workbook Nnames dialog or the Options event--Other Settings tab. Using the options event setting allows use of several Stands workbooks without using the Set Workbook Names dialog. Remember that the name remains in effect until it is changed by another Options event or the set names dialog.
A17: The Records workbook | B17: The Records workbook is a repository for results of projecting stand growth for all or part of the active CP worksheet. The current Records worksheet can be saved into the MGM Records workbook. Variations of the same CP can be saved with different names; simply append or change the name in cell C2 (keep it short and simple) before clicking the save button on the MGM tab.
A18: Crop Plans (CP) worksheet | B18: One or more Crop Plans (CP) may be created and placed into the CP worksheet. An entire CP is easily selected using the CP shortcut menu; it can then be copied, pasted and modified to create other CP on the CP worksheet. The Crop Plans worksheet can be saved by clicking the Save Worksheet button. A shortcut menu is available and is accessed by right-clicking on any CP event.
A19: Stand worksheet | B19: The Stand worksheet has many comments that can viewed by moving the cursor onto the cell with a red triangle symbol in the upper right corner. Worksheet comments can be displayed (or hidden) by selecting the 'Comments' item on the View menu.
A20: Record worksheet | B20: This worksheet provides a log of projection as well a tabulation of all results. Error messages, if any, appear here
A21: Yields worksheet | B21: This worksheet shows the stand yields at the most recent reporting age (usually the last event executed). Worksheet comments can be displayed (or hidden) by selecting the 'Comments' item on the View menu.
A22: Charts, MyCharts, and Graphs worksheets | B22: These worksheets provide graphic summaries of the Yields for all CP projections. MyCharts can be customized by the user. Charts can easily be copied and pasted as pictures into other documents for reporting purposes.
A23: Edit event settings (Options) | B23: Select a Region and subRegion. Review and revise merchantability, species and other settings as desired. Setting Allow Ingrowth increases the time for a growth projection substantially.
A24: Edit event settings (Establish) | B24: Select an establishment method and make appropriate settings for retrieving or simulating tree data. See the web Help files for additional notes on setting the values for each cohort of trees to be simulated.
A25: Edit event settings (Grow) | B25: Age must be greater than the event stand age and separated by spaces. Multi-event growth schedules place each reporting age into a separate event row. This facilitates inserting other actions like thinning or removal.
A26: Edit event settings (Thin) | B26: Select a tree removal rule, removal amount rule, and a removal amount. Amounts should be greater than 0 and <= all trees.
A27: Save CP, Stands and Records worksheets | B27: While the BUI is active you my save CP, Records and YieldTables worksheets (for some users this button may be disabled in the BUI Preferences). The CP and Records worksheets are saved to corresponding workbooks while the YieldTables worksheet is saved to a new workbook. While the AUI is active you may save your CP, Records, and Stands worksheets for future reference, retrieval and analysis using the 'Save Worksheet' button found in the 'Crop Plans (CP)' group. The ACTIVE worksheet (ONLY CP, Stand or Record) is saved to the corresponding workbook (Crop Plans, Stands, or Record).
A31: Topic or Menu item | B31: Developer Tip
A32: The MGM Developer Group | B32: These buttons provide tools for the developer; they are normally visible in Author and Alpha workbooks but not in Beta and Distribution workbooks; in Author and Alpha workbooks the MGM Developer group can be set to hidden or visible from the MGM Tools menu in the MGM group.
A33: Developer Tips | B33: This button invokes the series of topics for the Developer button group
A34: Developer Diary | B34: Invokes a dialog to place information in the diary about changes to the workbook.
A35: Execute Validation Workbook | B35: dialog for setting inputs for MB validation runs
A36: Basic User Interface (BUI) | B36: This interface provides a simplified user dialog for making MGM growth projections. Several limitations are imposed along with a few assumptions (mainly the coefficient of variation for simulation of trees and restriction to two cohorts of trees) about input parameters for stand simulation.
A37: If MGM Crashes (hopefully rarely) | B37: MGM internals and ribbon tab destroyed on 'VBA loss of state' error. If MGM crashes the VBA 'state' is lost. All memory values and the MGM tab ribbon are destroyed. The ribbon may still be visible, but will not function correctly. I found a workaround on the internet and this new button does very well to recover and restore the ribbon. However, the user must click the button for it to work. Before I found this workaround, the ribbon could only be restored by exiting and reopening the workbook. Hopefully in the distribution version this 'loss of state' will rarely occur. I have integrated this code into the basic MGM button group.
A38: More Tools | B38: A sub-menu that contains a collection of other useful tools and procedures; items in the following rows are found in this menu.
A39: Make workbook summary lists | B39: These information buttons create lists of formulas, names, and VBA calls that are then placed in new worksheets; these are mainly documentation tools
A40: Manage Worksheets | B40: Dialog to show, hide, or delete worksheets
A41: Protect Workbook structure | B41: Toggle between protected and unprotected workbook structure; normally unprotected for Author and Alpha versions; protected for Beta and Distribution versions
A42: Protect Worksheets | B42: Toggles worksheet protection; Normally protected for all user levels; available if manual changes for testing are needed, particularly in the Stand worksheet
A43: Show Merchantable Stand Summary | B43: Toggle between Total and Merchantable stand summary characteristics; Total: Most Stand Summary Statistics include all trees with HT > 1.3 m; these values are used for internal growth and survival functions Merchantable: Most Stand Summary Statistics include merchantable trees of utilized species; these values appear in the Yields worksheet
A44: Delete chart objects in active worksheet | B44: The title tells it all but remember it is the ACTIVE worksheet
A45: Execute only the current event | B45: Useful for stepping through a CP
A46: Execute selected CP rows | B46: Useful for executing some but not all events in a CP sequence; normally starts with the stand as of last executed CP event
A47: Execute one year projection | B47: Projects current stand for one year; beware that this takes the current stand configuration (after last executed CP event)
A48: Set User Level | B48: Dialog to set user level; may be used for testing; not normally needed
A49: Update Version ID | B49: When the MGM workbook is saved and userLevel = user.Author, the Revision number is automatically increased by 1; btnUpdateVersionID may also be called manually from VBA immediate window or from Developer Tools menu when special updates are needed for a Distribution copy of the workbook; this is usually required when addressing last minute fixes or special tests; special labeling of versionID can be added by setting Global variable VersionIDSpecialMsg found in mdl_Initialize.
A50: Save MGM Template files | B50: Two template files are created in the Excel templates directory; one for the MGM workbook and one for the MGM Stand worksheet; this button allows for manually saving these during development; normally they are created during when a new alpha, beta, or distribution workbook is first opened by the user.
A51: Make alpha, beta, or distribution worknbook | B51: Dialogs to create user ready workbooks; alpha ONLY for developers testing; beta for trusted other testers (22 Feb 2011 no difference between beta and distrution copies); Distribution copy for cleaning and distribution

Sheet Set-MGM (hidden)
A2: Worksheet Defined Name | B2: Value (additional values may extend into cells to the right)
A3: MGMVersion | B3: MGM21A Dist Beta VS39 (Rev 6426) 17:39 30 Mar 2024
A4: MGMInstallationFlag | B4: FALSE
A5: FlagStartup | B5: FALSE
A6: MyRibbonPtr | B6: 2000552851840
A7: MGMCropPlansDBName | B7: MGM Crop Plans.xlsx
A8: MGMStandsDBName | B8: MGM Stands.xlsx
A9: MGMRecordsDBName | B9: MGM Records.xlsx
A10: SVSexeFullName | B10: C:\Program Files (x86)\SVS\winsvs.exe
A11: txtMGMNotes
A12: chkMGMNotes | B12: FALSE
A13: UserLevel | B13: 0
A14: speakON | B14: FALSE
A15: AdvMGMTab | B15: TRUE
A16: HideNavBtns | B16: FALSE
A17: BUIShowCPBtn | B17: TRUE
A18: BUIShowAUIBtn | B18: TRUE
A19: BUISaveWorksheetsBtn | B19: TRUE
A20: BUIShowGrowthInfoMsg | B20: TRUE
A21: TempCells
A22: Region | B22: 1
A23: SubRegion | B23: 1
A24: minDBH | B24: 0
A25: topDIB | B25: 0
A26: stumpHT | B26: 0
A27: VolumeLoss | B27: 0
A28: AllowIngrowth | B28: FALSE
A29: SIDefaultStr | B29: 19.0 19.3 21.1 15.7
A30: YearsToBHstr | B30: 12 8 4 15
A31: MaxDenAdjstr | B31: 1 1 1 1
A32: SppUtilStr | B32: 111111111111111111111111
A33: SImodCurveSet | B33: 0
A34: FlagAgeSolver | B34: TRUE
A35: FlagSImod | B35: FALSE
A36: FlagMA | B36: FALSE
A37: FlagABnewSI | B37: TRUE
A38: FlagHDSmooth | B38: FALSE
A39: FlagVSTO | B39: TRUE
A40: FlagMSLight | B40: FALSE
A41: FlagMSS | B41: FALSE
A42: FlagSbNewGrowth | B42: TRUE
A43: FlagNewMaxDen | B43: TRUE
A44: FlagNewGMort | B44: TRUE
A45: FlagSwRResp | B45: TRUE
A46: FlagMGM10 | B46: FALSE
A47: flagMGM18 | B47: FALSE
A48: FlagTestTrAgeInStdWs | B48: FALSE
A50: Range name: SimJuvTreesTbl1 -- Weibull CDF coeff lookup for use in SimJuvTrees
A51: lookupSpp | B51: Sw
A52: lookupyear | B52: 6
A53: B | B53: =VLOOKUP($B$51&$B$52,$A$56:$E$74,4,FALSE) -> 6.40163 | C53: =INDEX($D$56:$D$74,MATCH($B$51&$B$52,$B$56:$B$74&$C$56:$C$74,0)) -> 6.40163
A54: C | B54: =VLOOKUP($B$51&$B$52,$A$56:$E$74,5,FALSE) -> 2.75369 | C54: =INDEX($E$56:$E$74,MATCH($B$51&$B$52,$B$56:$B$74&$C$56:$C$74,0)) -> 2.75369
A56: key | B56: spp | C56: year | D56: B | E56: C
A57: =B57&C57 -> Pl2 | B57: Pl | C57: 2 | D57: 1.79337 | E57: 3.98457
A58: Pl4 | B58: Pl | C58: 4 | D58: 3.81702 | E58: 7.76479
A59: Pl6 | B59: Pl | C59: 6 | D59: 5.65936 | E59: 10.5716
A60: Pl8 | B60: Pl | C60: 8 | D60: 7.7 | E60: 16.7
A61: Pl10 | B61: Pl | C61: 10 | D61: 7.60083 | E61: 11.3599
A62: Pl12 | B62: Pl | C62: 12 | D62: 7.60083 | E62: 11.3599
A63: Aw2 | B63: Aw | C63: 2 | D63: 3.0119 | E63: 3.1785
A64: Aw4 | B64: Aw | C64: 4 | D64: 3.7467 | E64: 2.27215
A65: Aw6 | B65: Aw | C65: 6 | D65: 5.63708 | E65: 3.44888
A66: Aw8 | B66: Aw | C66: 8 | D66: 7.22481 | E66: 4.17321
A67: Aw10 | B67: Aw | C67: 10 | D67: 8.00813 | E67: 5.0195
A68: Aw12 | B68: Aw | C68: 12 | D68: 9.00065 | E68: 2.07986
A69: Sw2 | B69: Sw | C69: 2 | D69: 2.68804 | E69: 2.59713
A70: Sw4 | B70: Sw | C70: 4 | D70: 4.79948 | E70: 4.85798
A71: Sw6 | B71: Sw | C71: 6 | D71: 6.40163 | E71: 2.75369
A72: Sw8 | B72: Sw | C72: 8 | D72: 7.66578 | E72: 2.3486
A73: Sw10 | B73: Sw | C73: 10 | D73: 8.7508 | E73: 2.85402
A74: Sw12 | B74: Sw | C74: 12 | D74: 13.4851 | E74: 3.20553
A76: Range name: StandParTbl
A77: Spp | B77: Sw
A78: Age | B78: 17
A79: Vbl | B79: Height | C79: Dbh | D79: Stems/ha
A80: Site | B80: 24 | E80: =MATCH(B80,A83:L83,0) -> 11
B81: =VLOOKUP($B$77&FLOOR($B$78,4)&$B$79,$A$83:$L$146,MATCH(FLOOR($B$80,2),$A$83:$L$83,FALSE),FALSE) -> 6.1 | C81: =VLOOKUP($B$77&FLOOR($B$78,4)&$C$79,$A$83:$L$146,MATCH(FLOOR($B$80,2),$A$83:$L$83,FALSE),FALSE) -> 7.4 | D81: =VLOOKUP($B$77&FLOOR($B$78,4)&$D$79,$A$83:$L$146,MATCH(FLOOR($B$80,2),$A$83:$L$83,FALSE),FALSE) -> 800
B82: Table 1. Approximate Stand Attributes for Components in Mixedwood Stands(columns are site index values)
A83: Key | B83: Spp | C83: Age | D83: Variable | E83: 12 | F83: 14 | G83: 16 | H83: 18 | I83: 20 | J83: 22 | K83: 24 | L83: 26
A84: =B84&C84&D84 -> Aw8Dbh | B84: Aw | C84: 8 | D84: Dbh | E84: 0 | F84: 0 | G84: 0.5 | H84: 1.6 | I84: 3 | J84: 4.2 | K84: 6.8 | L84: 8
A85: Aw8Height | B85: Aw | C85: 8 | D85: Height | E85: 0.7 | F85: 1.2 | G85: 1.5 | H85: 2.1 | I85: 3.4 | J85: 4.6 | K85: 5.5 | L85: 6.7
A86: Aw8Stems/ha | B86: Aw | C86: 8 | D86: Stems/ha | E86: 5320 | F86: 4910 | G86: 4460 | H86: 3970 | I86: 3450 | J86: 2900 | K86: 2310 | L86: 1710
A87: Aw12Dbh | B87: Aw | C87: 12 | D87: Dbh | E87: 0.6 | F87: 0.9 | G87: 1.3 | H87: 2.7 | I87: 4.5 | J87: 6.5 | K87: 8.9 | L87: 10.3
A88: Aw12Height | B88: Aw | C88: 12 | D88: Height | E88: 1.5 | F88: 1.8 | G88: 2.7 | H88: 3.8 | I88: 5.1 | J88: 6.3 | K88: 7.4 | L88: 8.5
A89: Aw12Stems/ha | B89: Aw | C89: 12 | D89: Stems/ha | E89: 4280 | F89: 3940 | G89: 3580 | H89: 3190 | I89: 2770 | J89: 2330 | K89: 1860 | L89: 1370
A90: Aw16Dbh | B90: Aw | C90: 16 | D90: Dbh | E90: 2.1 | F90: 3 | G90: 4.4 | H90: 5.6 | I90: 7.5 | J90: 9.5 | K90: 11.2 | L90: 13.5
A91: Aw16Height | B91: Aw | C91: 16 | D91: Height | E91: 2.2 | F91: 3.2 | G91: 4.5 | H91: 5.6 | I91: 6.8 | J91: 8.1 | K91: 9.3 | L91: 10.2
A92: Aw16Stems/ha | B92: Aw | C92: 16 | D92: Stems/ha | E92: 3660 | F92: 3380 | G92: 3070 | H92: 2730 | I92: 2370 | J92: 1990 | K92: 1590 | L92: 1180
A93: Aw20Dbh | B93: Aw | C93: 20 | D93: Dbh | E93: 3.8 | F93: 5.1 | G93: 6.9 | H93: 8.5 | I93: 10.2 | J93: 12.6 | K93: 14.3 | L93: 15.7
A94: Aw20Height | B94: Aw | C94: 20 | D94: Height | E94: 3.6 | F94: 4.8 | G94: 6.1 | H94: 7.3 | I94: 8.6 | J94: 9.8 | K94: 10.9 | L94: 12
A95: Aw20Stems/ha | B95: Aw | C95: 20 | D95: Stems/ha | E95: 3250 | F95: 2990 | G95: 2720 | H95: 2420 | I95: 2110 | J95: 1770 | K95: 1410 | L95: 1040
A96: Aw24Dbh | B96: Aw | C96: 24 | D96: Dbh | E96: 5.2 | F96: 6.8 | G96: 8.6 | H96: 10.3 | I96: 12.5 | J96: 15.4 | K96: 16.9 | L96: 18.4
A97: Aw24Height | B97: Aw | C97: 24 | D97: Height | E97: 4.8 | F97: 6.1 | G97: 7.4 | H97: 9 | I97: 10.3 | J97: 11.6 | K97: 12.5 | L97: 13.7
A98: Aw24Stems/ha | B98: Aw | C98: 24 | D98: Stems/ha | E98: 2940 | F98: 2710 | G98: 2460 | H98: 2200 | I98: 1910 | J98: 1600 | K98: 1280 | L98: 940
A99: Aw28Dbh | B99: Aw | C99: 28 | D99: Dbh | E99: 6.8 | F99: 8.9 | G99: 10.8 | H99: 13.1 | I99: 15.1 | J99: 17.4 | K99: 18.9 | L99: 20.5
A100: Aw28Height | B100: Aw | C100: 28 | D100: Height | E100: 6.2 | F100: 7.9 | G100: 9.5 | H100: 10.7 | I100: 12 | J100: 13.3 | K100: 14.6 | L100: 15.5
A101: Aw28Stems/ha | B101: Aw | C101: 28 | D101: Stems/ha | E101: 2710 | F101: 2500 | G101: 2270 | H101: 2020 | I101: 1760 | J101: 1470 | K101: 1170 | L101: 870
A102: Aw32Dbh | B102: Aw | C102: 32 | D102: Dbh | E102: 8.6 | F102: 11 | G102: 12.9 | H102: 14.7 | I102: 17.5 | J102: 20.2 | K102: 22.5 | L102: 24
A103: Aw32Height | B103: Aw | C103: 32 | D103: Height | E103: 8.4 | F103: 9.8 | G103: 11.2 | H103: 12.4 | I103: 13.7 | J103: 15 | K103: 16.2 | L103: 17.2
A104: Aw32Stems/ha | B104: Aw | C104: 32 | D104: Stems/ha | E104: 2520 | F104: 2320 | G104: 2110 | H104: 1880 | I104: 1630 | J104: 1370 | K104: 1100 | L104: 810
A105: Sw8Dbh | B105: Sw | C105: 8 | D105: Dbh | E105: 0 | F105: 0 | G105: 0 | H105: 0.8 | I105: 2.3 | J105: 3.4 | K105: 4.4 | L105: 5.3
A106: Sw8Height | B106: Sw | C106: 8 | D106: Height | E106: 0.3 | F106: 0.4 | G106: 0.8 | H106: 1.1 | I106: 1.5 | J106: 2.1 | K106: 2.7 | L106: 3.5
A107: Sw8Stems/ha | B107: Sw | C107: 8 | D107: Stems/ha | E107: 4000 | F107: 3600 | G107: 3300 | H107: 2800 | I107: 2500 | J107: 2100 | K107: 1800 | L107: 1400
A108: Sw12Dbh | B108: Sw | C108: 12 | D108: Dbh | E108: 0 | F108: 0 | G108: 1.1 | H108: 2.4 | I108: 3.8 | J108: 4.6 | K108: 5.7 | L108: 7.1
A109: Sw12Height | B109: Sw | C109: 12 | D109: Height | E109: 0.5 | F109: 0.6 | G109: 1.3 | H109: 1.7 | I109: 2.3 | J109: 3.2 | K109: 4.5 | L109: 5.7
A110: Sw12Stems/ha | B110: Sw | C110: 12 | D110: Stems/ha | E110: 3400 | F110: 2900 | G110: 2600 | H110: 2200 | I110: 1900 | J110: 1500 | K110: 1200 | L110: 900
A111: Sw16Dbh | B111: Sw | C111: 16 | D111: Dbh | E111: 0 | F111: 0.8 | G111: 2.1 | H111: 3.5 | I111: 5.1 | J111: 6.2 | K111: 7.4 | L111: 9.1
A112: Sw16Height | B112: Sw | C112: 16 | D112: Height | E112: 0.7 | F112: 1.5 | G112: 2.2 | H112: 2.4 | I112: 3.3 | J112: 4.8 | K112: 6.1 | L112: 7.3
A113: Sw16Stems/ha | B113: Sw | C113: 16 | D113: Stems/ha | E113: 2800 | F113: 2400 | G113: 2000 | H113: 1800 | I113: 1500 | J113: 1100 | K113: 800 | L113: 700
A114: Sw20Dbh | B114: Sw | C114: 20 | D114: Dbh | E114: 0.8 | F114: 2.1 | G114: 3.9 | H114: 5.2 | I114: 6.2 | J114: 7.4 | K114: 9.1 | L114: 10.6
A115: Sw20Height | B115: Sw | C115: 20 | D115: Height | E115: 1.4 | F115: 2.4 | G115: 3.1 | H115: 3.8 | I115: 4.7 | J115: 6.2 | K115: 7.6 | L115: 9.1
A116: =B116&C116&D116 -> Sw20Stems/ha | B116: Sw | C116: 20 | D116: Stems/ha | E116: 2200 | F116: 1900 | G116: 1600 | H116: 1400 | I116: 1200 | J116: 900 | K116: 700 | L116: 600
A117: Sw24Dbh | B117: Sw | C117: 24 | D117: Dbh | E117: 1.9 | F117: 3.2 | G117: 4.8 | H117: 6.6 | I117: 8.1 | J117: 9.5 | K117: 11 | L117: 12.4
A118: Sw24Height | B118: Sw | C118: 24 | D118: Height | E118: 2.1 | F118: 3.3 | G118: 4.5 | H118: 5.3 | I118: 6.3 | J118: 7.8 | K118: 9.3 | L118: 10.4
A119: Sw24Stems/ha | B119: Sw | C119: 24 | D119: Stems/ha | E119: 1800 | F119: 1500 | G119: 1300 | H119: 1100 | I119: 900 | J119: 800 | K119: 600 | L119: 500
A120: Sw28Dbh | B120: Sw | C120: 28 | D120: Dbh | E120: 3.2 | F120: 4.8 | G120: 6.3 | H120: 7.8 | I120: 9.8 | J120: 11.7 | K120: 13.6 | L120: 15
A121: Sw28Height | B121: Sw | C121: 28 | D121: Height | E121: 3.2 | F121: 4.2 | G121: 5.6 | H121: 6.5 | I121: 8.1 | J121: 9.9 | K121: 11.5 | L121: 12.6
A122: Sw28Stems/ha | B122: Sw | C122: 28 | D122: Stems/ha | E122: 1400 | F122: 1200 | G122: 1100 | H122: 900 | I122: 800 | J122: 600 | K122: 500 | L122: 400
A123: Sw32Dbh | B123: Sw | C123: 32 | D123: Dbh | E123: 4.8 | F123: 6.7 | G123: 8.1 | H123: 9.7 | I123: 11.6 | J123: 13.5 | K123: 15.8 | L123: 17.5
A124: Sw32Height | B124: Sw | C124: 32 | D124: Height | E124: 4.2 | F124: 5.3 | G124: 6.9 | H124: 8.4 | I124: 10.3 | J124: 12.2 | K124: 13.7 | L124: 14.8
A125: Sw32Stems/ha | B125: Sw | C125: 32 | D125: Stems/ha | E125: 1050 | F125: 950 | G125: 850 | H125: 750 | I125: 650 | J125: 550 | K125: 450 | L125: 250
A126: Pl8Dbh | B126: Pl | C126: 8 | D126: Dbh | E126: 0 | F126: 0.5 | G126: 1.5 | H126: 2.4 | I126: 3.4 | J126: 4.5 | K126: 5.8 | L126: 7.3
A127: Pl8Height | B127: Pl | C127: 8 | D127: Height | E127: 1 | F127: 1.4 | G127: 2 | H127: 2.6 | I127: 3.2 | J127: 4 | K127: 4.8 | L127: 5.7
A128: Pl8Stems/ha | B128: Pl | C128: 8 | D128: Stems/ha | E128: 5600 | F128: 5200 | G128: 4800 | H128: 4400 | I128: 4000 | J128: 3600 | K128: 3200 | L128: 2800
A129: Pl12Dbh | B129: Pl | C129: 12 | D129: Dbh | E129: 0.9 | F129: 1.8 | G129: 3 | H129: 4.2 | I129: 5.6 | J129: 6.8 | K129: 8.2 | L129: 9.7
A130: Pl12Height | B130: Pl | C130: 12 | D130: Height | E130: 1.8 | F130: 2.3 | G130: 2.8 | H130: 3.4 | I130: 4.1 | J130: 4.8 | K130: 5.7 | L130: 6.6
A131: Pl12Stems/ha | B131: Pl | C131: 12 | D131: Stems/ha | E131: 5200 | F131: 4800 | G131: 4400 | H131: 4000 | I131: 3600 | J131: 3200 | K131: 2800 | L131: 2400
A132: Pl16Dbh | B132: Pl | C132: 16 | D132: Dbh | E132: 2.1 | F132: 3.4 | G132: 4.7 | H132: 5.9 | I132: 7.4 | J132: 9.2 | K132: 10.1 | L132: 12.3
A133: Pl16Height | B133: Pl | C133: 16 | D133: Height | E133: 3 | F133: 3.4 | G133: 4 | H133: 4.6 | I133: 5.3 | J133: 6 | K133: 6.8 | L133: 7.7
A134: Pl16Stems/ha | B134: Pl | C134: 16 | D134: Stems/ha | E134: 4800 | F134: 4400 | G134: 4000 | H134: 3600 | I134: 3200 | J134: 2800 | K134: 2400 | L134: 2000
A135: Pl20Dbh | B135: Pl | C135: 20 | D135: Dbh | E135: 3.7 | F135: 4.9 | G135: 6.7 | H135: 7.7 | I135: 9.7 | J135: 11.5 | K135: 12.9 | L135: 14.7
A136: Pl20Height | B136: Pl | C136: 20 | D136: Height | E136: 4.5 | F136: 5 | G136: 5.5 | H136: 6.1 | I136: 6.8 | J136: 7.5 | K136: 8.4 | L136: 9.2
A137: Pl20Stems/ha | B137: Pl | C137: 20 | D137: Stems/ha | E137: 4400 | F137: 4000 | G137: 3600 | H137: 3300 | I137: 2900 | J137: 2500 | K137: 2100 | L137: 1700
A138: Pl24Dbh | B138: Pl | C138: 24 | D138: Dbh | E138: 5.3 | F138: 6.7 | G138: 8.4 | H138: 9.5 | I138: 11.4 | J138: 13.5 | K138: 14.6 | L138: 16.5
A139: Pl24Height | B139: Pl | C139: 24 | D139: Height | E139: 6.3 | F139: 6.8 | G139: 7.3 | H139: 8 | I139: 8.6 | J139: 9.4 | K139: 10.2 | L139: 11.1
A140: Pl24Stems/ha | B140: Pl | C140: 24 | D140: Stems/ha | E140: 4000 | F140: 3600 | G140: 3300 | H140: 2900 | I140: 2500 | J140: 2100 | K140: 1700 | L140: 1400
A141: Pl28Dbh | B141: Pl | C141: 28 | D141: Dbh | E141: 7.1 | F141: 8.9 | G141: 10.9 | H141: 11.9 | I141: 13.9 | J141: 15.8 | K141: 17.5 | L141: 19.5
A142: Pl28Height | B142: Pl | C142: 28 | D142: Height | E142: 8.5 | F142: 9 | G142: 9.5 | H142: 10.1 | I142: 10.8 | J142: 11.6 | K142: 12.4 | L142: 13.3
A143: Pl28Stems/ha | B143: Pl | C143: 28 | D143: Stems/ha | E143: 3500 | F143: 3200 | G143: 2900 | H143: 2600 | I143: 2200 | J143: 1800 | K143: 1400 | L143: 1000
A144: Pl32Dbh | B144: Pl | C144: 32 | D144: Dbh | E144: 9.5 | F144: 11.1 | G144: 12.9 | H144: 14.6 | I144: 16.5 | J144: 18.1 | K144: 20.5 | L144: 22.5
A145: Pl32Height | B145: Pl | C145: 32 | D145: Height | E145: 11.1 | F145: 11.5 | G145: 12.1 | H145: 12.7 | I145: 13.3 | J145: 14.1 | K145: 14.9 | L145: 15.8
A146: Pl32Stems/ha | B146: Pl | C146: 32 | D146: Stems/ha | E146: 3100 | F146: 2800 | G146: 2500 | H146: 2100 | I146: 1800 | J146: 1400 | K146: 1000 | L146: 600
A148: Range name: tblGammaFNS | B148: GammaLN and GammaDist functions
A149: x-input | B149: 1e-05
A150: GammaLN result | B150: =GAMMALN(B149) -> 11.51291969
A151: alpha | B151: 4
A152: beta | B152: 1
A153: GammaDIST result | B153: =GAMMADIST(B149,B151,B152,) -> 1.66665e-16
A156: ASRD EcoRegion/subRegion Tree volume functions coefficients list | B156: Spp | C156: subRegionGrp
A157: Key | B157: AW | C157: 0 | D157: 0.790406 | E157: 1.026943 | F157: 0.997524 | G157: 0.600584 | H157: -0.06568 | I157: -0.17381 | J157: 0.121363 | K157: 0.063253 | M157: 25.6614 | N157: -0.06834 | O157: 1.1394 | Q157: -0.33057 | R157: 1.106639 | S157: 0.000986 | U157: 0.091433 | V157: 1.077082
A158: =B157&C157 -> AW0 | B158: AW | C158: 1 | D158: 0.944522 | E158: 0.93803 | F158: 1.001644 | G158: 0.695363 | H158: -0.06785 | I158: 0.050603 | J158: -0.01633 | K158: 0.116432 | M158: 26.5484 | N158: -0.05699 | O158: 0.9846 | Q158: 0.114041 | R158: 1.016604 | S158: 0.003272 | U158: 0.024127 | V158: 1.081189
A159: AW1 | B159: AW | C159: 2 | D159: 0.905615 | E159: 0.964894 | F159: 1.000054 | G159: 0.553236 | H159: -0.04974 | I159: -0.28077 | J159: 0.170687 | K159: 0.075789 | M159: 25.6731 | N159: -0.07367 | O159: 1.2608 | Q159: -0.09361 | R159: 1.083466 | S159: 0.00127 | U159: 0.135261 | V159: 1.072734
A160: AW2 | B160: AW | C160: 3 | D160: 0.588838 | E160: 1.161895 | F160: 0.992096 | G160: 0.7093 | H160: -0.07545 | I160: -0.11604 | J160: 0.040949 | K160: 0.113638 | M160: 28.075 | N160: -0.0486 | O160: 1.2173 | Q160: -1.64652 | R160: 1.239705 | S160: -0.00172 | U160: 0.21134 | V160: 1.073573
A161: AW3 | B161: AW | C161: 4 | D161: 0.841897 | E161: 0.997064 | F161: 0.998713 | G161: 0.536865 | H161: -0.06402 | I161: -0.23447 | J161: 0.179963 | K161: 0.03155 | M161: 24.8408 | N161: -0.08081 | O161: 1.2405 | Q161: -0.05203 | R161: 1.076457 | S161: 0.001805 | U161: 0.061755 | V161: 1.079512
A162: AW4 | B162: BW | C162: 0 | D162: 0.894358 | E162: 1.007721 | F162: 0.991384 | G162: -0.48307 | H162: 0.155593 | I162: -2.27312 | J162: 1.326501 | K162: 0.168897 | M162: 27.9727 | N162: -0.03522 | O162: 0.8695 | Q162: 0.300399 | R162: 1.157729 | S162: -0.0019 | U162: 0.077197 | V162: 1.062798
A163: BW0 | B163: FB | C163: 0 | D163: 1.002016 | E163: 0.944076 | F163: 0.999921 | G163: 1.33633 | H163: -0.32035 | I163: 2.839497 | J163: -1.32482 | K163: 0.077452 | M163: 24.7532 | N163: -0.06615 | O163: 1.5695 | Q163: 1.028869 | R163: 0.979696 | S163: 0.003078 | U163: 0.28994 | V163: 1.051003
A164: FB0 | B164: FB | C164: 1 | D164: 0.918647 | E164: 0.990225 | F164: 0.997292 | G164: 1.568514 | H164: -0.38426 | I164: 3.503466 | J164: -1.67719 | K164: 0.128169 | M164: 28.6319 | N164: -0.05226 | O164: 1.4467 | Q164: 0.664028 | R164: 1.01972 | S164: 0.002754 | U164: 0.249035 | V164: 1.050236
A165: FB1 | B165: FB | C165: 2 | D165: 1.108006 | E165: 0.89838 | F165: 1.001816 | G165: 1.338336 | H165: -0.30463 | I165: 2.694363 | J165: -1.27762 | K165: 0.087438 | M165: 24.3383 | N165: -0.06707 | O165: 1.5909 | Q165: 1.265808 | R165: 0.952207 | S165: 0.003527 | U165: 0.323616 | V165: 1.050716
A166: FB2 | B166: FD | C166: 0 | D166: 0.913153 | E166: 0.964386 | F166: 0.998391 | G166: 1.386315 | H166: -0.2865 | I166: 1.783899 | J166: -0.91693 | K166: 0.05883 | M166: 21.3299 | N166: -0.0609 | O166: 1.5973 | Q166: -1.68956 | R166: 1.380771 | S166: -0.0047 | U166: -0.09525 | V166: 1.123153
A167: FD0 | B167: LT | C167: 0 | D167: 0.933517 | E167: 0.965471 | F167: 0.998393 | G167: 2.079455 | H167: -0.46203 | I167: 3.732057 | J167: -1.95019 | K167: 0.190425 | M167: 26.3266 | N167: -0.05375 | O167: 1.4026 | Q167: 0.499971 | R167: 1.065686 | S167: 0.002899 | U167: 0.37887 | V167: 1.034008
A168: LT0 | B168: PB | C168: 0 | D168: 0.861179 | E168: 0.951483 | F168: 1.000957 | G168: 0.752581 | H168: -0.16731 | I168: 0.693611 | J168: -0.22414 | K168: 0.008214 | M168: 25.57 | N168: -0.0505 | O168: 0.9865 | Q168: 0.671062 | R168: 1.037718 | S168: 0.002077 | U168: 0.149322 | V168: 1.117988
A169: PB0 | B169: PB | C169: 1 | D169: 0.913329 | E169: 0.92259 | F169: 1.002574 | G169: 0.308448 | H169: -0.06567 | I169: -0.10213 | J169: 0.226336 | K169: 0.023148 | M169: 25.1413 | N169: -0.06488 | O169: 1.3192 | Q169: 0.587071 | R169: 1.070632 | S169: 0.000464 | U169: 0.257085 | V169: 1.10315
A170: PB1 | B170: PB | C170: 2 | D170: 0.80437 | E170: 0.982874 | F170: 0.999527 | G170: 0.996958 | H170: -0.22325 | I170: 1.106731 | J170: -0.45982 | K170: -0.00339 | M170: 25.381 | N170: -0.0501 | O170: 0.927 | Q170: 0.762353 | R170: 1.017031 | S170: 0.002918 | U170: 0.109731 | V170: 1.12512
A171: PB2 | B171: PJ | C171: 0 | D171: 0.940832 | E171: 0.955575 | F171: 0.999333 | G171: 0.116311 | H171: -0.02817 | I171: -0.38443 | J171: 0.304055 | K171: 0.072192 | M171: 31.4263 | N171: -0.03888 | O171: 1.1279 | Q171: 0.21102 | R171: 1.144627 | S171: -0.00161 | U171: 0.161727 | V171: 1.045672
A172: PJ0 | B172: PL | C172: 0 | D172: 0.897617 | E172: 0.988518 | F172: 0.998735 | G172: 0.675759 | H172: -0.13031 | I172: 0.570634 | J172: -0.27546 | K172: 0.105403 | M172: 29.0075 | N172: -0.04859 | O172: 1.1782 | Q172: -0.24529 | R172: 1.088419 | S172: 0.000993 | U172: 0.283173 | V172: 1.025305
A173: PL0 | B173: PL | C173: 1 | D173: 0.800648 | E173: 1.053544 | F173: 0.995568 | G173: 0.568347 | H173: -0.12511 | I173: 0.610085 | J173: -0.23844 | K173: 0.045398 | M173: 24.4114 | N173: -0.03555 | O173: 0.7846 | Q173: -0.15974 | R173: 1.04616 | S173: 0.001804 | U173: 0.240347 | V173: 1.020105
A174: PL1 | B174: PL | C174: 2 | D174: 0.957164 | E174: 0.959992 | F174: 0.999774 | G174: 0.766747 | H174: -0.14076 | I174: 0.666037 | J174: -0.35505 | K174: 0.13214 | M174: 29.6276 | N174: -0.05461 | O174: 1.2997 | Q174: 0.582463 | R174: 1.034249 | S174: 0.00197 | U174: 0.294015 | V174: 1.024582
A175: PL2 | B175: PL | C175: 3 | D175: 0.828665 | E175: 1.024196 | F175: 0.997492 | G175: 0.596193 | H175: -0.11878 | I175: 0.465591 | J175: -0.19618 | K175: 0.083094 | M175: 24.8398 | N175: -0.06468 | O175: 1.2937 | Q175: -0.48717 | R175: 1.112282 | S175: 0.000347 | U175: 0.308258 | V175: 1.024549
A176: PL3 | B176: PL | C176: 4 | D176: 1.033572 | E176: 0.913621 | F176: 1.000765 | G176: 0.256633 | H176: -0.04909 | I176: -0.25212 | J176: 0.174267 | K176: 0.123722 | M176: 23.9518 | N176: -0.07865 | O176: 1.4813 | Q176: -0.32153 | R176: 1.175896 | S176: -0.00165 | U176: 0.189744 | V176: 1.04681
A177: PL4 | B177: SB | C177: 0 | D177: 0.940695 | E177: 0.957211 | F177: 0.99964 | G177: 1.395784 | H177: -0.34467 | I177: 2.835917 | J177: -1.39646 | K177: 0.152487 | M177: 24.5751 | N177: -0.05432 | O177: 1.2243 | Q177: 0.536125 | R177: 0.996309 | S177: 0.004617 | U177: 0.382746 | V177: 1.033405
A178: SB0 | B178: SB | C178: 1 | D178: 0.957624 | E178: 0.94674 | F178: 1.000452 | G178: 1.430462 | H178: -0.3567 | I178: 2.950725 | J178: -1.45547 | K178: 0.154263 | M178: 24.9305 | N178: -0.05281 | O178: 1.2552 | Q178: 0.982793 | R178: 0.943279 | S178: 0.006344 | U178: 0.414614 | V178: 1.030781
A179: SB1 | B179: SB | C179: 2 | D179: 0.929037 | E179: 0.967718 | F179: 0.998511 | G179: 1.236597 | H179: -0.3082 | I179: 2.535507 | J179: -1.22206 | K179: 0.146243 | M179: 24.3666 | N179: -0.05775 | O179: 1.2313 | Q179: 0.125198 | R179: 1.058588 | S179: 0.002137 | U179: 0.349765 | V179: 1.036689
A180: SB2 | B180: SE | C180: 0 | D180: 1.072576 | E180: 0.897766 | F180: 1.001919 | G180: 1.301834 | H180: -0.30544 | I180: 2.265717 | J180: -1.11967 | K180: 0.123519 | M180: 36.3184 | N180: -0.02604 | O180: 1.093 | Q180: -0.10751 | R180: 1.101339 | S180: 0.001312 | U180: 0.46127 | V180: 1.023752
A181: SE0 | B181: SW | C181: 0 | D181: 0.860438 | E181: 0.995406 | F181: 0.998493 | G181: 1.040218 | H181: -0.25239 | I181: 1.842818 | J181: -0.85223 | K181: 0.110359 | M181: 32.1261 | N181: -0.04633 | O181: 1.3032 | Q181: -0.56778 | R181: 1.142153 | S181: 0.000429 | U181: 0.484768 | V181: 1.024893
A182: SW0 | B182: SW | C182: 1 | D182: 0.713393 | E182: 1.071533 | F182: 0.996067 | G182: 1.153679 | H182: -0.28381 | I182: 2.022713 | J182: -0.95378 | K182: 0.101608 | M182: 38.3117 | N182: -0.02635 | O182: 1.1152 | Q182: -2.11219 | R182: 1.275528 | S182: -0.00156 | U182: 0.521645 | V182: 1.024172
A183: SW1 | B183: SW | C183: 2 | D183: 0.903528 | E183: 0.975136 | F183: 0.999018 | G183: 0.846981 | H183: -0.24497 | I183: 1.783097 | J183: -0.73024 | K183: 0.040997 | M183: 29.8812 | N183: -0.05557 | O183: 1.3911 | Q183: -0.58252 | R183: 1.156757 | S183: -0.00027 | U183: 0.413577 | V183: 1.028342
A184: SW2 | B184: SW | C184: 3 | D184: 0.862685 | E184: 0.993148 | F184: 0.998773 | G184: 1.135018 | H184: -0.25238 | I184: 1.885321 | J184: -0.92144 | K184: 0.150228 | M184: 32.4278 | N184: -0.05055 | O184: 1.394 | Q184: 0.190577 | R184: 1.069563 | S184: 0.001822 | U184: 0.536767 | V184: 1.0227
A185: SW3
A189: BC BEC tree taper volume and diameter-height coefficients | B189: BEC | C189: Equation# | D189: A0 | E189: A1 | F189: A2 | G189: A3 | H189: A4 | I189: A5 | J189: A6 | K189: A7 | L189: A8 | M189: A9 | N189: ER | O189: Dhc0 | P189: Dhc1 | Q189: Dhc2
A190: Species
B191: BWBS | C191: 65 | D191: 1.146634 | E191: 1.01509 | F191: 0.99917 | G191: 50.5519 | H191: -164.683 | I191: 166.169 | J191: -51.1605 | K191: -23.3535 | L191: -0.493395 | M191: 0.00156087 | N191: 0.007161 | O191: 38.705 | P191: -0.039 | Q191: 1.276
A192: Sw | B192: BWBS | C192: 50 | D192: 0.974504 | E192: 1.07714 | F192: 0.996946 | G192: 169.168 | H192: -464.65 | I192: 457.974 | J192: -161.678 | K192: -90.6445 | L192: -0.422518 | M192: 0.00158735 | N192: 0.006078 | O192: 29.0075 | P192: -0.04859 | Q192: 1.1782
A193: Pl | B193: BWBS | C193: 6 | D193: 0.984285 | E193: 1.0262 | F193: 1.000662 | G193: 244.333 | H193: -634.98 | I193: 615.071 | J193: -223.241 | K193: -134.011 | L193: -0.579394 | M193: -0.0017905 | N193: 0.009733 | O193: 33.889 | P193: -0.035 | Q193: 0.907
A194: At | B194: BWBS | C194: 1 | D194: 0.926472 | E194: 1.0234 | F194: 0.999683 | G194: 121.365 | H194: -272.245 | I194: 245.769 | J194: -93.7767 | K194: -68.6078 | L194: -0.501805 | M194: -0.000626 | N194: 0.008962 | O194: 35.256 | P194: 0.035 | Q194: 1
A195: Ac | B195: BWBS | C195: 26 | D195: 2.332067 | E195: 0.844348 | F195: 1.000894 | G195: 44.7028 | H195: -149.679 | I195: 145.1 | J195: -38.9891 | K195: -17.7856 | L195: -0.646637 | M195: -0.0017023 | N195: 0.012871 | O195: 19.031 | P195: 0.109 | Q195: 1.167
A196: Ep | B196: BWBS | C196: 11 | D196: 0.704739 | E196: 1.20819 | F196: 0.992804 | G196: 29.7369 | H196: -113.372 | I196: 116.252 | J196: -31.6991 | K196: -11.5688 | L196: -0.579792 | M196: 0.00173412 | N196: 0.006106 | O196: 18.6 | P196: 0.084 | Q196: 1.564
A197: Bg | B197: BWBS | C197: 43 | D197: 1.579174 | E197: 0.881474 | F197: 1.006172 | G197: 25.6735 | H197: -82.2106 | I197: 76.4257 | J197: -18.8039 | K197: -9.5302 | L197: -0.767254 | M197: 0.00222098 | N197: 0.006458 | O197: 22.283 | P197: 0.2 | Q197: 6.478
A198: Lt | B198: BWBS | C198: 49 | D198: 1.675228 | E198: 0.912974 | F198: 1.001646 | G198: 78.6212 | H198: -147.295 | I198: 113.1747 | J198: -43.4938 | K198: -43.7179 | L198: -0.423541 | M198: -0.0019912 | N198: 0.00857 | O198: 38.705 | P198: -0.039 | Q198: 1.276
A199: Pa | B199: BWBS | C199: 31 | D199: 1.25302 | E199: 0.956041 | F199: 0.99978 | G199: 100.448 | H199: -248.13 | I199: 230.785 | J199: -82.0716 | K199: -53.9661 | L199: -0.544236 | M199: -0.0023286 | N199: 0.011528 | O199: 38.705 | P199: -0.039 | Q199: 1.276
A200: Fd | B200: SBS | C200: 72 | D200: 1.231969 | E200: 0.998729 | F200: 0.998974 | G200: 64.8908 | H200: -215.764 | I200: 219.274 | J200: -67.5065 | K200: -30.0137 | L200: -0.399236 | M200: -0.0003619 | N200: 0.010112 | O200: 38.705 | P200: -0.039 | Q200: 1.276
A201: Sw | B201: SBS | C201: 57 | D201: 1.011506 | E201: 1.05571 | F201: 0.996782 | G201: 93.9356 | H201: -244.593 | I201: 234.778 | J201: -83.3503 | K201: -50.4453 | L201: -0.3566 | M201: 0.00037252 | N201: 0.008504 | O201: 29.0075 | P201: -0.04859 | Q201: 1.1782
A202: Pl | B202: SBS | C202: 9 | D202: 1.144134 | E202: 0.993345 | F202: 0.999225 | G202: 257.022 | H202: -704.738 | I202: 696.002 | J202: -247.255 | K202: -138.822 | L202: -0.264349 | M202: -0.0029968 | N202: 0.010204 | O202: 33.889 | P202: -0.035 | Q202: 0.907
A203: At | B203: SBS | C203: 5 | D203: 0.866667 | E203: 1.04901 | F203: 0.99911 | G203: 121.991 | H203: -272.272 | I203: 244.953 | J203: -93.5542 | K203: -68.9797 | L203: -0.515927 | M203: -0.0004639 | N203: 0.009579 | O203: 35.256 | P203: 0.035 | Q203: 1
A204: Ac | B204: SBS | C204: 29 | D204: 0.340047 | E204: 1.5252 | F204: 0.982712 | G204: 131.079 | H204: -321.202 | I204: 300.105 | J204: -108.547 | K204: -71.288 | L204: -0.923509 | M204: -0.0019895 | N204: 0.021031 | O204: 19.031 | P204: 0.109 | Q204: 1.167
A205: Ep | B205: SBS | C205: 18 | D205: 1.226561 | E205: 0.978191 | F205: 0.998981 | G205: 16.9721 | H205: -48.9832 | I205: 42.582 | J205: -9.71468 | K205: -6.79131 | L205: -0.379613 | M205: 0.00066221 | N205: 0.012063 | O205: 18.6 | P205: 0.084 | Q205: 1.564
A206: Bg | B206: SBS | C206: 47 | D206: 1.032756 | E206: 1.00546 | F206: 0.998124 | G206: 8.79223 | H206: 49.3231 | I206: -81.7216 | J206: 24.39769 | K206: -6.82167 | L206: -0.328126 | M206: 0.00073275 | N206: 0.01231 | O206: 22.283 | P206: 0.2 | Q206: 6.478
A207: Lt | B207: SBS | C207: 49 | D207: 1.675228 | E207: 0.912974 | F207: 1.001646 | G207: 78.6212 | H207: -147.295 | I207: 113.1747 | J207: -43.4938 | K207: -43.7179 | L207: -0.423541 | M207: -0.0019912 | N207: 0.00857 | O207: 38.705 | P207: -0.039 | Q207: 1.276
A208: Pa

Sheet NLRYields (hidden)
B1: Uses Excel Solver to fit a non-linear regression function; for more information see Usage Notes near cell V4
B3: Model:
B5: Model: y=a_*(x^b_)*EXP(-c_*x)
B7: Data | C7: Scenario A (15:24 29 May 2012)
B8: Age | C8: St_TBa | M8: Yield Table
B9: x | C9: y | E9: Pred | F9: Resid | H9: Equation coefficients | K9: known solution | M9: =B8 -> Age | N9: =C8 -> St_TBa | O9: MAI
B11: 15 | C11: 25.3394108 | E11: =a_*(X^b_)*EXP(-c_*X) -> 67.00443065 | F11: =C11-E11 -> -41.66501985 | H11: a_ | I11: 258.9999996 | K11: 0.01008865748 | M11: 10 | N11: =a_*(M11^b_)*EXP(-c_*M11) -> 73.90624071 | O11: =N11/M11 -> 7.390624071
B12: 20 | C12: 22.46210625 | E12: =a_*(X^b_)*EXP(-c_*X) -> 66.03980339 | F12: =C12-E12 -> -43.57769714 | H12: b_ | I12: -0.7092483334 | K12: 2.583700573 | M12: 20 | N12: 66.03980339 | O12: =N12/M12 -> 3.301990169
B13: 25 | C13: 20.03757223 | E13: =a_*(X^b_)*EXP(-c_*X) -> 68.13768081 | F13: =C13-E13 -> -48.10010859 | H13: c_ | I13: -0.03790738521 | K13: 0.02769100878 | M13: 30 | N13: 72.36740869 | O13: 2.412246956
B14: 30 | C14: 19.39873416 | E14: =a_*(X^b_)*EXP(-c_*X) -> 72.36740869 | F14: =C14-E14 -> -52.96867453 | M14: 40 | N14: 86.21048995 | O14: 2.155262249
H15: SSerror | I15: =SUMPRODUCT((Y-Pred)^2) -> 8754.290494 | K15: 204843.8896 | M15: 50 | N15: 107.5118983 | O15: 2.150237967
H16: SStotal | I16: =(COUNT(Y)-1)*VAR(Y) -> 21.83768515 | K16: 214771.8065 | M16: 60 | N16: 138.0152402 | O16: 2.300254004
M17: 70 | N17: 180.7485529 | O17: 2.582122184
H18: approximate R2 | I18: =1-(SSerror/SStotal) -> -399.8799666 | M18: 80 | N18: 240.2004514 | O18: 3.002505643
H19: errorVariance | I19: =SSerror/(COUNT(Y)-3) -> 8754.290494 | M19: 90 | N19: 322.792667 | O19: 3.586585189
H20: stdErrorOfEstimate | I20: =SQRT(I19) -> 93.56436552 | M20: 100 | N20: 437.6227778 | O20: 4.376227778
M21: 110 | N21: 597.5467762 | O21: 5.43224342
M22: 120 | N22: 820.7296364 | O22: 6.839413637
M23: 130 | N23: 1132.856321 | O23: 8.714279393
M24: 140 | N24: 1570.281743 | O24: 11.21629817
M25: 150 | N25: 2184.519357 | O25: 14.56346238
M26: 160 | N26: 3048.640776 | O26: 19.05400485
M27: 170 | N27: 4266.405989 | O27: 25.09650582
M28: 180 | N28: 5985.297985 | O28: 33.25165547
M29: 190 | N29: 8415.143597 | O29: 44.29022946
K31: Max MAI | M31: =INDEX(M11:M29,MATCH(N31,N11:N29,0)) -> 190 | N31: =INDEX(N11:N29,MATCH(O31,O11:O29,0)) -> 8415.143597 | O31: =MAX(O11:O29) -> 44.29022946

Sheet UserWorkArea

Sheet Crop Plans
A1: Crop Plans | C1: Distribution Example CP | E1: Saved: 1840 Mar 30 2021
B2: Stand Age | C2: Year | D2: Event | E2: Settings
D3: Crop Plans | E3: CropPlansID := Distribution Example CP | F3: Notes :=
D5: Notes
D6: Crop Plan | E6: CropPlanID := Distribution Example CP | F6: Notes :=
D7: Options | E7: Region := 1 | F7: SubRegion := 1 | G7: StandsWbkName := MGM Stands.xlsx | H7: _MinDbh := 0 | I7: _topdib := 0 | J7: _StumpHt := 0 | K7: _VolumeLoss := 0 | L7: Default_Sindex := 19.0 19.3 21.1 15.7 | M7: SppUtilStr := 111111111111111111111111
B8: 13 | C8: 2004 | D8: Establish | E8: StandID := MED-1-5-M12-SW13-AW13 | F8: StandWT := 1 | G8: SourceIndex := 2 | H8: CMI := 6.5 | I8: StandParsListSILV := [AW_TendedAllTrees 1A 24.33 None None AW 4425 13 7.69 1.24 10.17 5.12 1.23,PerfSurveyAllTrees 1A 20.56 None None SW 975 13 2.03 0.42 3.59 1.34 0.45]
B9: 13 | C9: 2004 | D9: Record | E9: Sheet := Stand
B10: 13 | C10: 2004 | D10: Grow | E10: Schedule := 7 10 10 10 10 10 10 10 10 10 10 10 10 10 10 10 10 10 10
B11: 200 | C11: 2191 | D11: End

Sheet Record
A1: RECORD | B1: 155 | C1: NOTE: This worksheet can be saved into the MGM Records workbook; if a special name is desired, append or change the name in cell C2 (keep it short and simple) before clicking the save button on the MGMToolbar.
A2: Crop Plans Worksheet Name | C2: Distribution Example CP
A3: Record Date: | C3: 12:52 18 Dec 2024
A4: MGM Version | C4: MGM21A Dist Beta VS39 (Rev 6426) 17:39 30 Mar 2024
A6: Crop Plans | B6: 11 | C6: Distribution Example CP | E6: Saved: 1840 Mar 30 2021
B7: Stand Age | C7: Year | D7: Event | E7: Settings
D8: Crop Plans | E8: CropPlansID := Distribution Example CP | F8: Notes :=
D10: Notes
D11: Crop Plan | E11: CropPlanID := Distribution Example CP | F11: Notes :=
D12: Options | E12: Region := 1 | F12: SubRegion := 1 | G12: StandsWbkName := MGM Stands.xlsx | H12: _MinDbh := 0 | I12: _topdib := 0 | J12: _StumpHt := 0 | K12: _VolumeLoss := 0 | L12: Default_Sindex := 19.0 19.3 21.1 15.7 | M12: SppUtilStr := 111111111111111111111111
B13: 13 | C13: 2004 | D13: Establish | E13: StandID := MED-1-5-M12-SW13-AW13 | F13: StandWT := 1 | G13: SourceIndex := 2 | H13: CMI := 6.5 | I13: StandParsListSILV := [AW_TendedAllTrees 1A 24.33 None None AW 4425 13 7.69 1.24 10.17 5.12 1.23,PerfSurveyAllTrees 1A 20.56 None None SW 975 13 2.03 0.42 3.59 1.34 0.45]
B14: 13 | C14: 2004 | D14: Record | E14: Sheet := Stand
B15: 13 | C15: 2004 | D15: Grow | E15: Schedule := 7 10 10 10 10 10 10 10 10 10 10 10 10 10 10 10 10 10 10
B16: 200 | C16: 2191 | D16: End
A19: Note
A21: Crop Plan | B21: 1 | C21: Distribution Example CP | F21: 12:52 18 Dec 2024
A23: Options event has been executed | D23: Options | E23: Region := 1 | F23: SubRegion := 1 | G23: StandsWbkName := MGM Stands.xlsx | H23: _MinDbh := 0 | I23: _topdib := 0 | J23: _StumpHt := 0 | K23: _VolumeLoss := 0 | L23: Default_Sindex := 19.0 19.3 21.1 15.7 | M23: SppUtilStr := 111111111111111111111111
A25: STAND | B25: 100 | C25: Distribution Example CP | F25: 12:52 18 Dec 2024
A26: STAND | B26: Stand ID | C26: MED-1-5-M12-SW13-AW13 | D26: Stand WT | E26: 1
B27: DateRun | C27: 12:52 18 Dec 2024 | D27: Gap Area PC | E27: 0 | AA27: Temporary range: accumulated (summed) annual changes between Yield reports
B28: standAge | C28: 13 | D28: TopLight | E28: -1 | AB28: stDenDead | AC28: stBaDead | AD28: stVolDead | AE28: StBaSurvGrowth | AF28: StVolSurvGrowth
B29: Year | C29: 2004 | D29: CMI | E29: 6.5 | AA29: All | AB29: 0 | AC29: 0 | AD29: 0 | AE29: 0 | AF29: 0
B30: Region | C30: 1 | AA30: Con | AB30: 0 | AC30: 0 | AD30: 0 | AE30: 0 | AF30: 0
B31: SubRegion | C31: 1 | AA31: Dec | AB31: 0 | AC31: 0 | AD31: 0 | AE31: 0 | AF31: 0
B32: CropPlanID | C32: Distribution Example CP
B33: CropPlansID | C33: Distribution Example CP
A35: YearsToBH | B35: Stand summary | C35: Site | D35: stAvD | E35: stQMD | F35: stmaxD | G35: stAvDIncr | H35: stAvH | I35: stTopH | J35: stTopHIncr | K35: stmaxH | L35: stAvAge | M35: stAvBHAge | N35: stBa | O35: stDen | P35: stNuDen | Q35: stTotDen | R35: strelBa | S35: strelDen | T35: strelTotDen | U35: stSF | V35: stVol | W35: stGrVol | X35: stMatDen | Y35: stJuvDen | Z35: stAvJvHt | AA35: stTopD | AB35: stDenDead | AC35: stBaDead | AD35: stVolDead | AE35: stBaSurvGrowth | AF35: stVolSurvGrowth | AG35: stMAI | AH35: stMaxMAI | AI35: stBWood | AJ35: stBBark | AK35: stBBranch | AL35: stBFoliage | AM35: stBTotal | AN35: stCC
B36: All | D36: 4.225633389 | E36: 4.722734713 | F36: 7.658152103 | G36: 0 | H36: 6.352818943 | I36: 10.04491043 | J36: 0 | K36: 10.04491043 | L36: -1 | M36: -1 | N36: 9.331457641 | O36: 5326.875 | P36: 73.125 | Q36: 5400 | R36: 1 | S36: 1 | T36: 1 | U36: 0.2156737398 | V36: 33.31251368 | W36: 33.31251368 | X36: 2986.875 | Y36: 2413.125 | Z36: 4.053744321 | AA36: 7.658152103 | AB36: 0 | AC36: 0 | AD36: 0 | AE36: 0 | AF36: 0 | AG36: 2.562501053 | AH36: 0 | AI36: 13771.15513 | AJ36: 2760.639027 | AK36: 3798.019109 | AL36: 7186.231894 | AM36: 27516.04516 | AN36: 100
B37: Con | D37: 1.150938851 | E37: 1.387228227 | F37: 2.365408182 | G37: 0 | H37: 2.003041902 | I37: 2.637344426 | J37: 0 | K37: 2.93372345 | L37: -1 | M37: -1 | N37: 0.1363113642 | O37: 901.875 | P37: 73.125 | Q37: 975 | R37: 0.01460772469 | S37: 0.1693065822 | T37: 0.1693065822 | U37: 1.662404827 | V37: 0.1515307035 | W37: 0.1515307035 | X37: 0 | Y37: 975 | Z37: 2.003041902 | AA37: 2.086782802 | AB37: 0 | AC37: 0 | AD37: 0 | AE37: 0 | AF37: 0 | AG37: 0.01165620796 | AH37: 0 | AI37: 104.3871418 | AJ37: 33.38595346 | AK37: 36.26667157 | AL37: 66.89188728 | AM37: 240.9316542 | AN37: 100
B38: Dec | D38: 4.903108457 | E38: 5.143725015 | F38: 7.658152103 | G38: 0 | H38: 7.311244392 | I38: 10.04491043 | J38: 0 | K38: 10.04491043 | L38: -1 | M38: -1 | N38: 9.195146277 | O38: 4425 | P38: 0 | Q38: 4425 | R38: 0.9853922753 | S38: 0.8306934178 | T38: 0.8306934178 | U38: 0.2056137061 | V38: 33.16098298 | W38: 33.16098298 | X38: 2986.875 | Y38: 1438.125 | Z38: 5.444051046 | AA38: 7.658152103 | AB38: 0 | AC38: 0 | AD38: 0 | AE38: 0 | AF38: 0 | AG38: 2.550844845 | AH38: 0 | AI38: 13666.76799 | AJ38: 2727.253073 | AK38: 3761.752437 | AL38: 7119.340007 | AM38: 27275.1135 | AN38: 100
A39: 6.662660626 | B39: Sw | C39: 20.55999947 | D39: 1.150938851 | E39: 1.387228227 | F39: 2.365408182 | G39: 0 | H39: 2.003041902 | I39: 2.637344426 | J39: 0 | K39: 2.93372345 | L39: -1 | M39: -1 | N39: 0.1363113642 | O39: 901.875 | P39: 73.125 | Q39: 975 | R39: 0.01460772469 | S39: 0.1693065822 | T39: 0.1805555556 | U39: 1.662404827 | V39: 0.1515307035 | W39: 0.1515307035 | X39: 0 | Y39: 975 | Z39: 2.003041902 | AA39: 2.086782802 | AB39: 0 | AC39: 0 | AD39: 0 | AE39: 0 | AF39: 0 | AG39: 0.01165620796 | AH39: 0 | AI39: 104.3871418 | AJ39: 33.38595346 | AK39: 36.26667157 | AL39: 66.89188728 | AM39: 240.9316542 | AN39: 100
A40: 8 | B40: Pl | C40: 19.29999924 | D40: 0 | E40: 0 | F40: 0 | G40: 0 | H40: 0 | I40: 0 | J40: 0 | K40: 0 | L40: 0 | M40: 0 | N40: 0 | O40: 0 | P40: 0 | Q40: 0 | R40: 0 | S40: 0 | T40: 0 | U40: 1 | V40: 0 | W40: 0 | X40: 0 | Y40: 0 | Z40: 0 | AA40: 0 | AB40: 0 | AC40: 0 | AD40: 0 | AE40: 0 | AF40: 0 | AG40: 0 | AH40: 0 | AI40: 0 | AJ40: 0 | AK40: 0 | AL40: 0 | AM40: 0 | AN40: 0
A41: 1.956647027 | B41: Aw | C41: 24.32999992 | D41: 4.903108457 | E41: 5.143725015 | F41: 7.658152103 | G41: 0 | H41: 7.311244392 | I41: 10.04491043 | J41: 0 | K41: 10.04491043 | L41: -1 | M41: -1 | N41: 9.195146277 | O41: 4425 | P41: 0 | Q41: 4425 | R41: 0.9853922753 | S41: 0.8306934178 | T41: 0.8194444444 | U41: 0.2056137061 | V41: 33.16098298 | W41: 33.16098298 | X41: 2986.875 | Y41: 1438.125 | Z41: 5.444051046 | AA41: 7.658152103 | AB41: 0 | AC41: 0 | AD41: 0 | AE41: 0 | AF41: 0 | AG41: 2.550844845 | AH41: 0 | AI41: 13666.76799 | AJ41: 2727.253073 | AK41: 3761.752437 | AL41: 7119.340007 | AM41: 27275.1135 | AN41: 100
A42: 15 | B42: Sb | C42: 15.69999981 | D42: 0 | E42: 0 | F42: 0 | G42: 0 | H42: 0 | I42: 0 | J42: 0 | K42: 0 | L42: 0 | M42: 0 | N42: 0 | O42: 0 | P42: 0 | Q42: 0 | R42: 0 | S42: 0 | T42: 0 | U42: 1 | V42: 0 | W42: 0 | X42: 0 | Y42: 0 | Z42: 0 | AA42: 0 | AB42: 0 | AC42: 0 | AD42: 0 | AE42: 0 | AF42: 0 | AG42: 0 | AH42: 0 | AI42: 0 | AJ42: 0 | AK42: 0 | AL42: 0 | AM42: 0 | AN42: 0
A45: trNum | B45: trSpp | C45: trDbh | D45: trPha | E45: trHt | F45: trAge | G45: trBHAge | H45: trCratio | I45: trCwidth | J45: x | K45: y | L45: trDbhIncr | M45: trHtIncr | N45: trPsurv | O45: trSppIdx | P45: trMGMSppIdx | Q45: trBWood | R45: trBBark | S45: trBBranch | T45: trBFoliage | U45: trBTotal | V45: HIDIratio | W45: Hdratio | X45: trBaHa | Y45: stBagt | Z45: stCbagt | AA45: stDbagt | AB45: trSppgrp | AC45: trMGMspp | AD45: PctRank | AE45: trVol | AF45: trUtil | AG45: trVRF | AH45: trJuv | AI45: trSWGGR | AJ45: trPLGGR | AK45: trDECDBHGR | AL45: trSWDBHGR | AM45: trPLDBHGR | AN45: trSBDBHGR | AO45: trVolSurvGrth | AP45: trChar01 | AQ45: trChar02 | AR45: trChar03 | AS45: trChar04 | AT45: trChar05 | AU45: trChar06 | AV45: trChar07 | AW45: trChar08 | AX45: trChar09 | AY45: trChar10 | AZ45: trChar11 | BA45: trChar12 | BB45: trChar13 | BC45: trChar14 | BD45: trChar15 | BE45: trChar16 | BF45: trChar17 | BG45: trChar18 | BH45: trChar19 | BI45: tmpKey
A46: 34 | B46: AW | C46: 7.658152103 | D46: 110.625 | E46: 10.04491043 | F46: -1 | G46: -1 | H46: 0.4555775533 | I46: 1.659866298 | J46: 94 | K46: 4 | L46: -1 | M46: -1 | N46: -1 | O46: 3 | P46: 3 | Q46: 7.976731457 | R46: 1.471272519 | S46: 1.934063702 | T46: 2.933416723 | U46: 14.3154844 | V46: -1 | W46: 1.311662434 | X46: 0.5095550861 | Y46: 0 | Z46: 0 | AA46: 0 | AB46: Dec | AC46: Aw | AD46: 1 | AE46: 0.02042815735 | AF46: TRUE | AG46: 1 | AH46: FALSE | AI46: 0 | AJ46: 0 | AK46: 0 | AL46: 0 | AM46: 0 | AN46: 0 | AO46: 0 | AP46: -1 | AQ46: -1 | AR46: -1 | AS46: -1 | AT46: -1 | AU46: -1 | AV46: -1 | AW46: -1 | AX46: -1 | AY46: -1 | AZ46: -1 | BA46: -1 | BB46: -1 | BC46: -1 | BD46: -1 | BE46: -1 | BF46: -1 | BG46: -1 | BH46: -1 | BI46: 34
A47: 3 | B47: AW | C47: 7.143832207 | D47: 110.625 | E47: 9.278077126 | F47: -1 | G47: -1 | H47: 0.4699910778 | I47: 1.611520227 | J47: 99 | K47: 64 | L47: -1 | M47: -1 | N47: -1 | O47: 3 | P47: 3 | Q47: 6.697292729 | R47: 1.258849527 | S47: 1.673216421 | T47: 2.658717338 | U47: 12.28807601 | V47: -1 | W47: 1.298753506 | X47: 0.4434101761 | Y47: 0.5095550861 | Z47: 0 | AA47: 0.5095550861 | AB47: Dec | AC47: Aw | AD47: 0.987 | AE47: 0.01644629152 | AF47: TRUE | AG47: 1 | AH47: FALSE | AI47: 0 | AJ47: 0 | AK47: 847.1830764 | AL47: 0 | AM47: 0 | AN47: 0 | AO47: 0 | AP47: -1 | AQ47: -1 | AR47: -1 | AS47: -1 | AT47: -1 | AU47: -1 | AV47: -1 | AW47: -1 | AX47: -1 | AY47: -1 | AZ47: -1 | BA47: -1 | BB47: -1 | BC47: -1 | BD47: -1 | BE47: -1 | BF47: -1 | BG47: -1 | BH47: -1 | BI47: 3
A48: 25 | B48: AW | C48: 6.995443821 | D48: 110.625 | E48: 8.436626434 | F48: -1 | G48: -1 | H48: 0.5094791742 | I48: 1.597571719 | J48: 95 | K48: 80 | L48: -1 | M48: -1 | N48: -1 | O48: 3 | P48: 3 | Q48: 6.352948673 | R48: 1.200957413 | S48: 1.601604734 | T48: 2.580949151 | U48: 11.73645997 | V48: -1 | W48: 1.206017324 | X48: 0.4251808653 | Y48: 0.9529652622 | Z48: 0 | AA48: 0.9529652622 | AB48: Dec | AC48: Aw | AD48: 0.974 | AE48: 0.0143368245 | AF48: TRUE | AG48: 1 | AH48: FALSE | AI48: 0 | AJ48: 0 | AK48: 1637.469514 | AL48: 0 | AM48: 0 | AN48: 0 | AO48: 0 | AP48: -1 | AQ48: -1 | AR48: -1 | AS48: -1 | AT48: -1 | AU48: -1 | AV48: -1 | AW48: -1 | AX48: -1 | AY48: -1 | AZ48: -1 | BA48: -1 | BB48: -1 | BC48: -1 | BD48: -1 | BE48: -1 | BF48: -1 | BG48: -1 | BH48: -1 | BI48: 25
A49: 17 | B49: AW | C49: 6.864721298 | D49: 110.625 | E49: 7.835174084 | F49: -1 | G49: -1 | H49: 0.5415749393 | I49: 1.585283802 | J49: 79 | K49: 42 | L49: -1 | M49: -1 | N49: -1 | O49: 3 | P49: 3 | Q49: 6.058624137 | R49: 1.151205764 | S49: 1.539867234 | T49: 2.513002895 | U49: 11.26270003 | V49: -1 | W49: 1.141368126 | X49: 0.4094387899 | Y49: 1.378146128 | Z49: 0 | AA49: 1.378146128 | AB49: Dec | AC49: Aw | AD49: 0.962 | AE49: 0.01282020657 | AF49: TRUE | AG49: 1 | AH49: FALSE | AI49: 0 | AJ49: 0 | AK49: 2411.340487 | AL49: 0 | AM49: 0 | AN49: 0 | AO49: 0 | AP49: -1 | AQ49: -1 | AR49: -1 | AS49: -1 | AT49: -1 | AU49: -1 | AV49: -1 | AW49: -1 | AX49: -1 | AY49: -1 | AZ49: -1 | BA49: -1 | BB49: -1 | BC49: -1 | BD49: -1 | BE49: -1 | BF49: -1 | BG49: -1 | BH49: -1 | BI49: 17
A50: 38 | B50: AW | C50: 6.747941017 | D50: 110.625 | E50: 8.635530472 | F50: -1 | G50: -1 | H50: 0.4856920589 | I50: 1.574306456 | J50: 37 | K50: 68 | L50: -1 | M50: -1 | N50: -1 | O50: 3 | P50: 3 | Q50: 5.802770458 | R50: 1.107744723 | S50: 1.485781073 | T50: 2.452754864 | U50: 10.84905112 | V50: -1 | W50: 1.279728209 | X50: 0.3956268159 | Y50: 1.787584917 | Z50: 0 | AA50: 1.787584917 | AB50: Dec | AC50: Aw | AD50: 0.949 | AE50: 0.01367434678 | AF50: TRUE | AG50: 1 | AH50: FALSE | AI50: 0 | AJ50: 0 | AK50: 3170.750281 | AL50: 0 | AM50: 0 | AN50: 0 | AO50: 0 | AP50: -1 | AQ50: -1 | AR50: -1 | AS50: -1 | AT50: -1 | AU50: -1 | AV50: -1 | AW50: -1 | AX50: -1 | AY50: -1 | AZ50: -1 | BA50: -1 | BB50: -1 | BC50: -1 | BD50: -1 | BE50: -1 | BF50: -1 | BG50: -1 | BH50: -1 | BI50: 38
A51: 40 | B51: AW | C51: 6.713162422 | D51: 110.625 | E51: 8.931781769 | F51: -1 | G51: -1 | H51: 0.4679438243 | I51: 1.571037268 | J51: 18 | K51: 94 | L51: -1 | M51: -1 | N51: -1 | O51: 3 | P51: 3 | Q51: 5.727856057 | R51: 1.094980403 | S51: 1.469867861 | T51: 2.43489525 | U51: 10.72759957 | V51: -1 | W51: 1.330487959 | X51: 0.3915592382 | Y51: 2.183211733 | Z51: 0 | AA51: 2.183211733 | AB51: Dec | AC51: Aw | AD51: 0.936 | AE51: 0.01400482928 | AF51: TRUE | AG51: 1 | AH51: FALSE | AI51: 0 | AJ51: 0 | AK51: 3917.241256 | AL51: 0 | AM51: 0 | AN51: 0 | AO51: 0 | AP51: -1 | AQ51: -1 | AR51: -1 | AS51: -1 | AT51: -1 | AU51: -1 | AV51: -1 | AW51: -1 | AX51: -1 | AY51: -1 | AZ51: -1 | BA51: -1 | BB51: -1 | BC51: -1 | BD51: -1 | BE51: -1 | BF51: -1 | BG51: -1 | BH51: -1 | BI51: 40
A52: 14 | B52: AW | C52: 6.707633018 | D52: 110.625 | E52: 9.140954018 | F52: -1 | G52: -1 | H52: 0.4569812748 | I52: 1.570517504 | J52: 74 | K52: 97 | L52: -1 | M52: -1 | N52: -1 | O52: 3 | P52: 3 | Q52: 5.715999503 | R52: 1.092958571 | S52: 1.46734605 | T52: 2.432059299 | U52: 10.70836342 | V52: -1 | W52: 1.362768952 | X52: 0.3909144757 | Y52: 2.574770971 | Z52: 0 | AA52: 2.574770971 | AB52: Dec | AC52: Aw | AD52: 0.924 | AE52: 0.01431260092 | AF52: TRUE | AG52: 1 | AH52: FALSE | AI52: 0 | AJ52: 0 | AK52: 4659.884849 | AL52: 0 | AM52: 0 | AN52: 0 | AO52: 0 | AP52: -1 | AQ52: -1 | AR52: -1 | AS52: -1 | AT52: -1 | AU52: -1 | AV52: -1 | AW52: -1 | AX52: -1 | AY52: -1 | AZ52: -1 | BA52: -1 | BB52: -1 | BC52: -1 | BD52: -1 | BE52: -1 | BF52: -1 | BG52: -1 | BH52: -1 | BI52: 14
A53: 15 | B53: AW | C53: 6.491990089 | D53: 110.625 | E53: 8.91827774 | F53: -1 | G53: -1 | H53: 0.4582078138 | I53: 1.550247068 | J53: 24 | K53: 44 | L53: -1 | M53: -1 | N53: -1 | O53: 3 | P53: 3 | Q53: 5.26507975 | R53: 1.015719304 | S53: 1.370752333 | T53: 2.322219128 | U53: 9.973770515 | V53: -1 | W53: 1.373735575 | X53: 0.3661835759 | Y53: 2.965685447 | Z53: 0 | AA53: 2.965685447 | AB53: Dec | AC53: Aw | AD53: 0.911 | AE53: 0.01309124352 | AF53: TRUE | AG53: 1 | AH53: FALSE | AI53: 0 | AJ53: 0 | AK53: 5401.916751 | AL53: 0 | AM53: 0 | AN53: 0 | AO53: 0 | AP53: -1 | AQ53: -1 | AR53: -1 | AS53: -1 | AT53: -1 | AU53: -1 | AV53: -1 | AW53: -1 | AX53: -1 | AY53: -1 | AZ53: -1 | BA53: -1 | BB53: -1 | BC53: -1 | BD53: -1 | BE53: -1 | BF53: -1 | BG53: -1 | BH53: -1 | BI53: 15
A54: 29 | B54: AW | C54: 6.470695496 | D54: 110.625 | E54: 8.537069321 | F54: -1 | G54: -1 | H54: 0.4776170719 | I54: 1.548245377 | J54: 6 | K54: 70 | L54: -1 | M54: -1 | N54: -1 | O54: 3 | P54: 3 | Q54: 5.221758295 | R54: 1.008261874 | S54: 1.361399251 | T54: 2.311453463 | U54: 9.902872883 | V54: -1 | W54: 1.319343388 | X54: 0.3637852538 | Y54: 3.331869023 | Z54: 0 | AA54: 3.331869023 | AB54: Dec | AC54: Aw | AD54: 0.898 | AE54: 0.01244593194 | AF54: TRUE | AG54: 1 | AH54: FALSE | AI54: 0 | AJ54: 0 | AK54: 6120.093155 | AL54: 0 | AM54: 0 | AN54: 0 | AO54: 0 | AP54: -1 | AQ54: -1 | AR54: -1 | AS54: -1 | AT54: -1 | AU54: -1 | AV54: -1 | AW54: -1 | AX54: -1 | AY54: -1 | AZ54: -1 | BA54: -1 | BB54: -1 | BC54: -1 | BD54: -1 | BE54: -1 | BF54: -1 | BG54: -1 | BH54: -1 | BI54: 29
A55: 21 | B55: AW | C55: 6.35730648 | D55: 110.625 | E55: 9.006622314 | F55: -1 | G55: -1 | H55: 0.4474090704 | I55: 1.537586809 | J55: 91 | K55: 55 | L55: -1 | M55: -1 | N55: -1 | O55: 3 | P55: 3 | Q55: 4.994699524 | R55: 0.9690647059 | S55: 1.312156726 | T55: 2.254376361 | U55: 9.530297316 | V55: -1 | W55: 1.416735585 | X55: 0.3511474047 | Y55: 3.695654277 | Z55: 0 | AA55: 3.695654277 | AB55: Dec | AC55: Aw | AD55: 0.886 | AE55: 0.01268745333 | AF55: TRUE | AG55: 1 | AH55: FALSE | AI55: 0 | AJ55: 0 | AK55: 6835.913844 | AL55: 0 | AM55: 0 | AN55: 0 | AO55: 0 | AP55: -1 | AQ55: -1 | AR55: -1 | AS55: -1 | AT55: -1 | AU55: -1 | AV55: -1 | AW55: -1 | AX55: -1 | AY55: -1 | AZ55: -1 | BA55: -1 | BB55: -1 | BC55: -1 | BD55: -1 | BE55: -1 | BF55: -1 | BG55: -1 | BH55: -1 | BI55: 21
A56: 8 | B56: AW | C56: 6.341187 | D56: 110.625 | E56: 8.795854568 | F56: -1 | G56: -1 | H56: 0.4573570316 | I56: 1.536071578 | J56: 46 | K56: 90 | L56: -1 | M56: -1 | N56: -1 | O56: 3 | P56: 3 | Q56: 4.962913295 | R56: 0.9635622593 | S56: 1.305232945 | T56: 2.246296246 | U56: 9.478004745 | V56: -1 | W56: 1.387099066 | X56: 0.3493689353 | Y56: 4.046801682 | Z56: 0 | AA56: 4.046801682 | AB56: Dec | AC56: Aw | AD56: 0.873 | AE56: 0.01232620504 | AF56: TRUE | AG56: 1 | AH56: FALSE | AI56: 0 | AJ56: 0 | AK56: 7539.190874 | AL56: 0 | AM56: 0 | AN56: 0 | AO56: 0 | AP56: -1 | AQ56: -1 | AR56: -1 | AS56: -1 | AT56: -1 | AU56: -1 | AV56: -1 | AW56: -1 | AX56: -1 | AY56: -1 | AZ56: -1 | BA56: -1 | BB56: -1 | BC56: -1 | BD56: -1 | BE56: -1 | BF56: -1 | BG56: -1 | BH56: -1 | BI56: 8
A57: 9 | B57: AW | C57: 6.235123634 | D57: 110.625 | E57: 8.042737007 | F57: -1 | G57: -1 | H57: 0.4946197923 | I57: 1.526101622 | J57: 2 | K57: 70 | L57: -1 | M57: -1 | N57: -1 | O57: 3 | P57: 3 | Q57: 4.756804197 | R57: 0.9277894653 | S57: 1.260150558 | T57: 2.193343182 | U57: 9.138087402 | V57: -1 | W57: 1.289908184 | X57: 0.3377795119 | Y57: 4.396170617 | Z57: 0 | AA57: 4.396170617 | AB57: Dec | AC57: Aw | AD57: 0.86 | AE57: 0.01089373808 | AF57: TRUE | AG57: 1 | AH57: FALSE | AI57: 0 | AJ57: 0 | AK57: 8240.684685 | AL57: 0 | AM57: 0 | AN57: 0 | AO57: 0 | AP57: -1 | AQ57: -1 | AR57: -1 | AS57: -1 | AT57: -1 | AU57: -1 | AV57: -1 | AW57: -1 | AX57: -1 | AY57: -1 | AZ57: -1 | BA57: -1 | BB57: -1 | BC57: -1 | BD57: -1 | BE57: -1 | BF57: -1 | BG57: -1 | BH57: -1 | BI57: 9
A58: 22 | B58: AW | C58: 5.898850441 | D58: 110.625 | E58: 8.470686913 | F58: -1 | G58: -1 | H58: 0.4528607843 | I58: 1.494491941 | J58: 34 | K58: 56 | L58: -1 | M58: -1 | N58: -1 | O58: 3 | P58: 3 | Q58: 4.137777395 | R58: 0.8193049885 | S58: 1.122656642 | T58: 2.027932617 | U58: 8.107671642 | V58: -1 | W58: 1.435989435 | X58: 0.3023276968 | Y58: 4.733950129 | Z58: 0 | AA58: 4.733950129 | AB58: Dec | AC58: Aw | AD58: 0.848 | AE58: 0.01029138623 | AF58: TRUE | AG58: 1 | AH58: FALSE | AI58: 0 | AJ58: 0 | AK58: 8930.445237 | AL58: 0 | AM58: 0 | AN58: 0 | AO58: 0 | AP58: -1 | AQ58: -1 | AR58: -1 | AS58: -1 | AT58: -1 | AU58: -1 | AV58: -1 | AW58: -1 | AX58: -1 | AY58: -1 | AZ58: -1 | BA58: -1 | BB58: -1 | BC58: -1 | BD58: -1 | BE58: -1 | BF58: -1 | BG58: -1 | BH58: -1 | BI58: 22
A59: 28 | B59: AW | C59: 5.700149536 | D59: 110.625 | E59: 8.455958366 | F59: -1 | G59: -1 | H59: 0.4437078731 | I59: 1.475814056 | J59: 24 | K59: 38 | L59: -1 | M59: -1 | N59: -1 | O59: 3 | P59: 3 | Q59: 3.796168921 | R59: 0.7586975797 | S59: 1.045288446 | T59: 1.932000032 | U59: 7.53215498 | V59: -1 | W59: 1.48346255 | X59: 0.2823031103 | Y59: 5.036277826 | Z59: 0 | AA59: 5.036277826 | AB59: Dec | AC59: Aw | AD59: 0.835 | AE59: 0.009602508749 | AF59: TRUE | AG59: 1 | AH59: FALSE | AI59: 0 | AJ59: 0 | AK59: 9583.005567 | AL59: 0 | AM59: 0 | AN59: 0 | AO59: 0 | AP59: -1 | AQ59: -1 | AR59: -1 | AS59: -1 | AT59: -1 | AU59: -1 | AV59: -1 | AW59: -1 | AX59: -1 | AY59: -1 | AZ59: -1 | BA59: -1 | BB59: -1 | BC59: -1 | BD59: -1 | BE59: -1 | BF59: -1 | BG59: -1 | BH59: -1 | BI59: 28
A60: 35 | B60: AW | C60: 5.664032936 | D60: 110.625 | E60: 9.094347 | F60: -1 | G60: -1 | H60: 0.4108799532 | I60: 1.472419096 | J60: 45 | K60: 84 | L60: -1 | M60: -1 | N60: -1 | O60: 3 | P60: 3 | Q60: 3.735973208 | R60: 0.7479580153 | S60: 1.031534098 | T60: 1.914709905 | U60: 7.430175226 | V60: -1 | W60: 1.605631023 | X60: 0.2787370538 | Y60: 5.318580936 | Z60: 0 | AA60: 5.318580936 | AB60: Dec | AC60: Aw | AD60: 0.822 | AE60: 0.01020479915 | AF60: TRUE | AG60: 1 | AH60: FALSE | AI60: 0 | AJ60: 0 | AK60: 10213.58461 | AL60: 0 | AM60: 0 | AN60: 0 | AO60: 0 | AP60: -1 | AQ60: -1 | AR60: -1 | AS60: -1 | AT60: -1 | AU60: -1 | AV60: -1 | AW60: -1 | AX60: -1 | AY60: -1 | AZ60: -1 | BA60: -1 | BB60: -1 | BC60: -1 | BD60: -1 | BE60: -1 | BF60: -1 | BG60: -1 | BH60: -1 | BI60: 35
A61: 26 | B61: AW | C61: 5.563932419 | D61: 110.625 | E61: 8.390010834 | F61: -1 | G61: -1 | H61: 0.44032001 | I61: 1.463009647 | J61: 74 | K61: 20 | L61: -1 | M61: -1 | N61: -1 | O61: 3 | P61: 3 | Q61: 3.57215346 | R61: 0.7186350146 | S61: 0.9939076318 | T61: 1.867027662 | U61: 7.151723768 | V61: -1 | W61: 1.507928243 | X61: 0.2689718671 | Y61: 5.59731799 | Z61: 0 | AA61: 5.59731799 | AB61: Dec | AC61: Aw | AD61: 0.81 | AE61: 0.009083396303 | AF61: TRUE | AG61: 1 | AH61: FALSE | AI61: 0 | AJ61: 0 | AK61: 10840.16825 | AL61: 0 | AM61: 0 | AN61: 0 | AO61: 0 | AP61: -1 | AQ61: -1 | AR61: -1 | AS61: -1 | AT61: -1 | AU61: -1 | AV61: -1 | AW61: -1 | AX61: -1 | AY61: -1 | AZ61: -1 | BA61: -1 | BB61: -1 | BC61: -1 | BD61: -1 | BE61: -1 | BF61: -1 | BG61: -1 | BH61: -1 | BI61: 26
A62: 16 | B62: AW | C62: 5.451244354 | D62: 110.625 | E62: 9.252938271 | F62: -1 | G62: -1 | H62: 0.3940947619 | I62: 1.452416969 | J62: 32 | K62: 33 | L62: -1 | M62: -1 | N62: -1 | O62: 3 | P62: 3 | Q62: 3.393001017 | R62: 0.6864003937 | S62: 0.952419066 | T62: 1.813773302 | U62: 6.845593779 | V62: -1 | W62: 1.697399285 | X62: 0.2581870556 | Y62: 5.866289857 | Z62: 0 | AA62: 5.866289857 | AB62: Dec | AC62: Aw | AD62: 0.797 | AE62: 0.009628742372 | AF62: TRUE | AG62: 1 | AH62: FALSE | AI62: 0 | AJ62: 0 | AK62: 11455.67828 | AL62: 0 | AM62: 0 | AN62: 0 | AO62: 0 | AP62: -1 | AQ62: -1 | AR62: -1 | AS62: -1 | AT62: -1 | AU62: -1 | AV62: -1 | AW62: -1 | AX62: -1 | AY62: -1 | AZ62: -1 | BA62: -1 | BB62: -1 | BC62: -1 | BD62: -1 | BE62: -1 | BF62: -1 | BG62: -1 | BH62: -1 | BI62: 16
A63: 2 | B63: AW | C63: 5.434617043 | D63: 110.625 | E63: 8.274457932 | F63: -1 | G63: -1 | H63: 0.4398458005 | I63: 1.450854002 | J63: 44 | K63: 18 | L63: -1 | M63: -1 | N63: -1 | O63: 3 | P63: 3 | Q63: 3.367035757 | R63: 0.6817134469 | S63: 0.9463752268 | T63: 1.805953851 | U63: 6.801078281 | V63: -1 | W63: 1.522546643 | X63: 0.2566144204 | Y63: 6.124476912 | Z63: 0 | AA63: 6.124476912 | AB63: Dec | AC63: Aw | AD63: 0.784 | AE63: 0.008551420604 | AF63: TRUE | AG63: 1 | AH63: FALSE | AI63: 0 | AJ63: 0 | AK63: 12058.72218 | AL63: 0 | AM63: 0 | AN63: 0 | AO63: 0 | AP63: -1 | AQ63: -1 | AR63: -1 | AS63: -1 | AT63: -1 | AU63: -1 | AV63: -1 | AW63: -1 | AX63: -1 | AY63: -1 | AZ63: -1 | BA63: -1 | BB63: -1 | BC63: -1 | BD63: -1 | BE63: -1 | BF63: -1 | BG63: -1 | BH63: -1 | BI63: 2
A64: 6 | B64: AW | C64: 5.401471615 | D64: 110.625 | E64: 7.561341763 | F64: -1 | G64: -1 | H64: 0.479469403 | I64: 1.447738332 | J64: 39 | K64: 77 | L64: -1 | M64: -1 | N64: -1 | O64: 3 | P64: 3 | Q64: 3.315633755 | R64: 0.6724233962 | S64: 0.934386935 | T64: 1.790395872 | U64: 6.712839958 | V64: -1 | W64: 1.399866981 | X64: 0.2534938115 | Y64: 6.381091333 | Z64: 0 | AA64: 6.381091333 | AB64: Dec | AC64: Aw | AD64: 0.772 | AE64: 0.007714869152 | AF64: TRUE | AG64: 1 | AH64: FALSE | AI64: 0 | AJ64: 0 | AK64: 12659.92669 | AL64: 0 | AM64: 0 | AN64: 0 | AO64: 0 | AP64: -1 | AQ64: -1 | AR64: -1 | AS64: -1 | AT64: -1 | AU64: -1 | AV64: -1 | AW64: -1 | AX64: -1 | AY64: -1 | AZ64: -1 | BA64: -1 | BB64: -1 | BC64: -1 | BD64: -1 | BE64: -1 | BF64: -1 | BG64: -1 | BH64: -1 | BI64: 6
A65: 19 | B65: AW | C65: 5.058652401 | D65: 110.625 | E65: 7.010599136 | F65: -1 | G65: -1 | H65: 0.4963802771 | I65: 1.415513326 | J65: 87 | K65: 88 | L65: -1 | M65: -1 | N65: -1 | O65: 3 | P65: 3 | Q65: 2.811608109 | R65: 0.5804584929 | S65: 0.8150476428 | T65: 1.631825364 | U65: 5.838939609 | V65: -1 | W65: 1.385862989 | X65: 0.2223375634 | Y65: 6.634585144 | Z65: 0 | AA65: 6.634585144 | AB65: Dec | AC65: Aw | AD65: 0.759 | AE65: 0.0062811982 | AF65: TRUE | AG65: 1 | AH65: FALSE | AI65: 0 | AJ65: 0 | AK65: 13257.46449 | AL65: 0 | AM65: 0 | AN65: 0 | AO65: 0 | AP65: -1 | AQ65: -1 | AR65: -1 | AS65: -1 | AT65: -1 | AU65: -1 | AV65: -1 | AW65: -1 | AX65: -1 | AY65: -1 | AZ65: -1 | BA65: -1 | BB65: -1 | BC65: -1 | BD65: -1 | BE65: -1 | BF65: -1 | BG65: -1 | BH65: -1 | BI65: 19
A66: 1 | B66: AW | C66: 4.966460228 | D66: 110.625 | E66: 7.328676224 | F66: -1 | G66: -1 | H66: 0.4694905522 | I66: 1.406847261 | J66: 71 | K66: 92 | L66: -1 | M66: -1 | N66: -1 | O66: 3 | P66: 3 | Q66: 2.684526369 | R66: 0.5569999571 | S66: 0.7843990516 | T66: 1.589924222 | U66: 5.615849599 | V66: -1 | W66: 1.475633729 | X66: 0.2143073613 | Y66: 6.856922708 | Z66: 0 | AA66: 6.856922708 | AB66: Dec | AC66: Aw | AD66: 0.746 | AE66: 0.006334637375 | AF66: TRUE | AG66: 1 | AH66: FALSE | AI66: 0 | AJ66: 0 | AK66: 13817.07791 | AL66: 0 | AM66: 0 | AN66: 0 | AO66: 0 | AP66: -1 | AQ66: -1 | AR66: -1 | AS66: -1 | AT66: -1 | AU66: -1 | AV66: -1 | AW66: -1 | AX66: -1 | AY66: -1 | AZ66: -1 | BA66: -1 | BB66: -1 | BC66: -1 | BD66: -1 | BE66: -1 | BF66: -1 | BG66: -1 | BH66: -1 | BI66: 1
A67: 18 | B67: AW | C67: 4.615238667 | D67: 110.625 | E67: 7.067444801 | F67: -1 | G67: -1 | H67: 0.4656985482 | I67: 1.373832435 | J67: 61 | K67: 57 | L67: -1 | M67: -1 | N67: -1 | O67: 3 | P67: 3 | Q67: 2.232376512 | R67: 0.4725116518 | S67: 0.6732231093 | T67: 1.433266711 | U67: 4.811377985 | V67: -1 | W67: 1.531328131 | X67: 0.1850680692 | Y67: 7.071230069 | Z67: 0 | AA67: 7.071230069 | AB67: Dec | AC67: Aw | AD67: 0.734 | AE67: 0.005284027935 | AF67: TRUE | AG67: 1 | AH67: FALSE | AI67: 0 | AJ67: 0 | AK67: 14366.49258 | AL67: 0 | AM67: 0 | AN67: 0 | AO67: 0 | AP67: -1 | AQ67: -1 | AR67: -1 | AS67: -1 | AT67: -1 | AU67: -1 | AV67: -1 | AW67: -1 | AX67: -1 | AY67: -1 | AZ67: -1 | BA67: -1 | BB67: -1 | BC67: -1 | BD67: -1 | BE67: -1 | BF67: -1 | BG67: -1 | BH67: -1 | BI67: 18
A68: 27 | B68: AW | C68: 4.557450294 | D68: 110.625 | E68: 7.264050961 | F68: -1 | G68: -1 | H68: 0.4497051814 | I68: 1.368400328 | J68: 90 | K68: 27 | L68: -1 | M68: -1 | N68: -1 | O68: 3 | P68: 3 | Q68: 2.162750611 | R68: 0.4593448713 | S68: 0.6557758941 | T68: 1.407951349 | U68: 4.685822725 | V68: -1 | W68: 1.593884846 | X68: 0.180462532 | Y68: 7.256298138 | Z68: 0 | AA68: 7.256298138 | AB68: Dec | AC68: Aw | AD68: 0.721 | AE68: 0.005298727926 | AF68: TRUE | AG68: 1 | AH68: FALSE | AI68: 0 | AJ68: 0 | AK68: 14877.05335 | AL68: 0 | AM68: 0 | AN68: 0 | AO68: 0 | AP68: -1 | AQ68: -1 | AR68: -1 | AS68: -1 | AT68: -1 | AU68: -1 | AV68: -1 | AW68: -1 | AX68: -1 | AY68: -1 | AZ68: -1 | BA68: -1 | BB68: -1 | BC68: -1 | BD68: -1 | BE68: -1 | BF68: -1 | BG68: -1 | BH68: -1 | BI68: 27
A69: 30 | B69: AW | C69: 4.229939461 | D69: 110.625 | E69: 6.463554859 | F69: -1 | G69: -1 | H69: 0.4837914657 | I69: 1.337614309 | J69: 15 | K69: 19 | L69: -1 | M69: -1 | N69: -1 | O69: 3 | P69: 3 | Q69: 1.792919829 | R69: 0.3885941871 | S69: 0.5613872369 | T69: 1.267014538 | U69: 4.009915792 | V69: -1 | W69: 1.528049023 | X69: 0.1554574246 | Y69: 7.43676067 | Z69: 0 | AA69: 7.43676067 | AB69: Dec | AC69: Aw | AD69: 0.708 | AE69: 0.004065368143 | AF69: TRUE | AG69: 1 | AH69: FALSE | AI69: 0 | AJ69: 0 | AK69: 15381.22129 | AL69: 0 | AM69: 0 | AN69: 0 | AO69: 0 | AP69: -1 | AQ69: -1 | AR69: -1 | AS69: -1 | AT69: -1 | AU69: -1 | AV69: -1 | AW69: -1 | AX69: -1 | AY69: -1 | AZ69: -1 | BA69: -1 | BB69: -1 | BC69: -1 | BD69: -1 | BE69: -1 | BF69: -1 | BG69: -1 | BH69: -1 | BI69: 30
A70: 33 | B70: AW | C70: 4.225375175 | D70: 110.625 | E70: 6.970650673 | F70: -1 | G70: -1 | H70: 0.448317459 | I70: 1.337185266 | J70: 38 | K70: 71 | L70: -1 | M70: -1 | N70: -1 | O70: 3 | P70: 3 | Q70: 1.788058773 | R70: 0.3876543479 | S70: 0.5601256302 | T70: 1.265081392 | U70: 4.000920143 | V70: -1 | W70: 1.649711655 | X70: 0.1551221152 | Y70: 7.592218095 | Z70: 0 | AA70: 7.592218095 | AB70: Dec | AC70: Aw | AD70: 0.696 | AE70: 0.004377553518 | AF70: TRUE | AG70: 1 | AH70: FALSE | AI70: 0 | AJ70: 0 | AK70: 15849.15835 | AL70: 0 | AM70: 0 | AN70: 0 | AO70: 0 | AP70: -1 | AQ70: -1 | AR70: -1 | AS70: -1 | AT70: -1 | AU70: -1 | AV70: -1 | AW70: -1 | AX70: -1 | AY70: -1 | AZ70: -1 | BA70: -1 | BB70: -1 | BC70: -1 | BD70: -1 | BE70: -1 | BF70: -1 | BG70: -1 | BH70: -1 | BI70: 33
A71: 7 | B71: AW | C71: 4.197098255 | D71: 110.625 | E71: 6.857034683 | F71: -1 | G71: -1 | H71: 0.4539853334 | I71: 1.334527236 | J71: 67 | K71: 12 | L71: -1 | M71: -1 | N71: -1 | O71: 3 | P71: 3 | Q71: 1.758120233 | R71: 0.3818598948 | S71: 0.5523425505 | T71: 1.253124355 | U71: 3.945447034 | V71: -1 | W71: 1.633756054 | X71: 0.1530528559 | Y71: 7.74734021 | Z71: 0 | AA71: 7.74734021 | AB71: Dec | AC71: Aw | AD71: 0.683 | AE71: 0.004248924944 | AF71: TRUE | AG71: 1 | AH71: FALSE | AI71: 0 | AJ71: 0 | AK71: 16316.59047 | AL71: 0 | AM71: 0 | AN71: 0 | AO71: 0 | AP71: -1 | AQ71: -1 | AR71: -1 | AS71: -1 | AT71: -1 | AU71: -1 | AV71: -1 | AW71: -1 | AX71: -1 | AY71: -1 | AZ71: -1 | BA71: -1 | BB71: -1 | BC71: -1 | BD71: -1 | BE71: -1 | BF71: -1 | BG71: -1 | BH71: -1 | BI71: 7
A72: 39 | B72: AW | C72: 4.174472332 | D72: 110.625 | E72: 7.611744404 | F72: -1 | G72: -1 | H72: 0.4077032519 | I72: 1.332400399 | J72: 62 | K72: 2 | L72: -1 | M72: -1 | N72: -1 | O72: 3 | P72: 3 | Q72: 1.734383726 | R72: 0.3772582364 | S72: 0.5461556653 | T72: 1.243580867 | U72: 3.901378495 | V72: -1 | W72: 1.823402768 | X72: 0.1514071341 | Y72: 7.900393066 | Z72: 0 | AA72: 7.900393066 | AB72: Dec | AC72: Aw | AD72: 0.67 | AE72: 0.004669979069 | AF72: TRUE | AG72: 1 | AH72: FALSE | AI72: 0 | AJ72: 0 | AK72: 16780.89447 | AL72: 0 | AM72: 0 | AN72: 0 | AO72: 0 | AP72: -1 | AQ72: -1 | AR72: -1 | AS72: -1 | AT72: -1 | AU72: -1 | AV72: -1 | AW72: -1 | AX72: -1 | AY72: -1 | AZ72: -1 | BA72: -1 | BB72: -1 | BC72: -1 | BD72: -1 | BE72: -1 | BF72: -1 | BG72: -1 | BH72: -1 | BI72: 39
A73: 20 | B73: AW | C73: 3.978884459 | D73: 110.625 | E73: 6.501514435 | F73: -1 | G73: -1 | H73: 0.464472503 | I73: 1.314015139 | J73: 96 | K73: 60 | L73: -1 | M73: -1 | N73: -1 | O73: 3 | P73: 3 | Q73: 1.537227661 | R73: 0.3387631117 | S73: 0.4941825742 | T73: 1.161982677 | U73: 3.532156024 | V73: -1 | W73: 1.63400433 | X73: 0.1375516553 | Y73: 8.0518002 | Z73: 0 | AA73: 8.0518002 | AB73: Dec | AC73: Aw | AD73: 0.658 | AE73: 0.003623784645 | AF73: TRUE | AG73: 1 | AH73: TRUE | AI73: 0 | AJ73: 0 | AK73: 17242.69547 | AL73: 0 | AM73: 0 | AN73: 0 | AO73: 0 | AP73: -1 | AQ73: -1 | AR73: -1 | AS73: -1 | AT73: -1 | AU73: -1 | AV73: -1 | AW73: -1 | AX73: -1 | AY73: -1 | AZ73: -1 | BA73: -1 | BB73: -1 | BC73: -1 | BD73: -1 | BE73: -1 | BF73: -1 | BG73: -1 | BH73: -1 | BI73: 20
A74: 31 | B74: AW | C74: 3.973494291 | D74: 110.625 | E74: 6.38275671 | F74: -1 | G74: -1 | H74: 0.4727535067 | I74: 1.313508463 | J74: 86 | K74: 44 | L74: -1 | M74: -1 | N74: -1 | O74: 3 | P74: 3 | Q74: 1.531996241 | R74: 0.3377346664 | S74: 0.4927884989 | T74: 1.15975701 | U74: 3.522276416 | V74: -1 | W74: 1.606333429 | X74: 0.1371792272 | Y74: 8.189351855 | Z74: 0 | AA74: 8.189351855 | AB74: Dec | AC74: Aw | AD74: 0.645 | AE74: 0.003547573346 | AF74: TRUE | AG74: 1 | AH74: TRUE | AI74: 0 | AJ74: 0 | AK74: 17682.85956 | AL74: 0 | AM74: 0 | AN74: 0 | AO74: 0 | AP74: -1 | AQ74: -1 | AR74: -1 | AS74: -1 | AT74: -1 | AU74: -1 | AV74: -1 | AW74: -1 | AX74: -1 | AY74: -1 | AZ74: -1 | BA74: -1 | BB74: -1 | BC74: -1 | BD74: -1 | BE74: -1 | BF74: -1 | BG74: -1 | BH74: -1 | BI74: 31
A75: 32 | B75: AW | C75: 3.732879639 | D75: 110.625 | E75: 6.292889118 | F75: -1 | G75: -1 | H75: 0.463149291 | I75: 1.290890686 | J75: 98 | K75: 95 | L75: -1 | M75: -1 | N75: -1 | O75: 3 | P75: 3 | Q75: 1.309294649 | R75: 0.2935816379 | S75: 0.4326405882 | T75: 1.061693157 | U75: 3.097210032 | V75: -1 | W75: 1.685800167 | X75: 0.1210684937 | Y75: 8.326531082 | Z75: 0 | AA75: 8.326531082 | AB75: Dec | AC75: Aw | AD75: 0.632 | AE75: 0.003091025479 | AF75: TRUE | AG75: 1 | AH75: TRUE | AI75: 0 | AJ75: 0 | AK75: 18122.42737 | AL75: 0 | AM75: 0 | AN75: 0 | AO75: 0 | AP75: -1 | AQ75: -1 | AR75: -1 | AS75: -1 | AT75: -1 | AU75: -1 | AV75: -1 | AW75: -1 | AX75: -1 | AY75: -1 | AZ75: -1 | BA75: -1 | BB75: -1 | BC75: -1 | BD75: -1 | BE75: -1 | BF75: -1 | BG75: -1 | BH75: -1 | BI75: 32
A76: 13 | B76: AW | C76: 3.724738121 | D76: 110.625 | E76: 6.201503754 | F76: -1 | G76: -1 | H76: 0.4694123015 | I76: 1.290125383 | J76: 63 | K76: 38 | L76: -1 | M76: -1 | N76: -1 | O76: 3 | P76: 3 | Q76: 1.302125506 | R76: 0.2921474329 | S76: 0.430676541 | T76: 1.058419708 | U76: 3.083369188 | V76: -1 | W76: 1.664950274 | X76: 0.1205409619 | Y76: 8.447599576 | Z76: 0 | AA76: 8.447599576 | AB76: Dec | AC76: Aw | AD76: 0.62 | AE76: 0.00303268724 | AF76: TRUE | AG76: 1 | AH76: TRUE | AI76: 0 | AJ76: 0 | AK76: 18535.37718 | AL76: 0 | AM76: 0 | AN76: 0 | AO76: 0 | AP76: -1 | AQ76: -1 | AR76: -1 | AS76: -1 | AT76: -1 | AU76: -1 | AV76: -1 | AW76: -1 | AX76: -1 | AY76: -1 | AZ76: -1 | BA76: -1 | BB76: -1 | BC76: -1 | BD76: -1 | BE76: -1 | BF76: -1 | BG76: -1 | BH76: -1 | BI76: 13
A77: 36 | B77: AW | C77: 3.465608597 | D77: 110.625 | E77: 5.903712273 | F77: -1 | G77: -1 | H77: 0.4742877525 | I77: 1.265767208 | J77: 14 | K77: 54 | L77: -1 | M77: -1 | N77: -1 | O77: 3 | P77: 3 | Q77: 1.086180292 | R77: 0.2485208892 | S77: 0.3705879737 | T77: 0.9558007601 | U77: 2.661089915 | V77: -1 | W77: 1.703513858 | X77: 0.1043523394 | Y77: 8.568140538 | Z77: 0 | AA77: 8.568140538 | AB77: Dec | AC77: Aw | AD77: 0.607 | AE77: 0.002502479143 | AF77: TRUE | AG77: 1 | AH77: TRUE | AI77: 0 | AJ77: 0 | AK77: 18947.42633 | AL77: 0 | AM77: 0 | AN77: 0 | AO77: 0 | AP77: -1 | AQ77: -1 | AR77: -1 | AS77: -1 | AT77: -1 | AU77: -1 | AV77: -1 | AW77: -1 | AX77: -1 | AY77: -1 | AZ77: -1 | BA77: -1 | BB77: -1 | BC77: -1 | BD77: -1 | BE77: -1 | BF77: -1 | BG77: -1 | BH77: -1 | BI77: 36
A78: 5 | B78: AW | C78: 3.350537062 | D78: 110.625 | E78: 4.876263618 | F78: -1 | G78: -1 | H78: 0.5641026804 | I78: 1.254950484 | J78: 75 | K78: 8 | L78: -1 | M78: -1 | N78: -1 | O78: 3 | P78: 3 | Q78: 0.9977543425 | R78: 0.2303936883 | S78: 0.345406693 | T78: 0.9112269177 | U78: 2.484781642 | V78: -1 | W78: 1.45536776 | X78: 0.09753758929 | Y78: 8.672492877 | Z78: 0 | AA78: 8.672492877 | AB78: Dec | AC78: Aw | AD78: 0.594 | AE78: 0.001930541295 | AF78: TRUE | AG78: 1 | AH78: TRUE | AI78: 0 | AJ78: 0 | AK78: 19330.80929 | AL78: 0 | AM78: 0 | AN78: 0 | AO78: 0 | AP78: -1 | AQ78: -1 | AR78: -1 | AS78: -1 | AT78: -1 | AU78: -1 | AV78: -1 | AW78: -1 | AX78: -1 | AY78: -1 | AZ78: -1 | BA78: -1 | BB78: -1 | BC78: -1 | BD78: -1 | BE78: -1 | BF78: -1 | BG78: -1 | BH78: -1 | BI78: 5
A79: 10 | B79: AW | C79: 3.256486177 | D79: 110.625 | E79: 5.955644131 | F79: -1 | G79: -1 | H79: 0.4550907941 | I79: 1.246109701 | J79: 14 | K79: 85 | L79: -1 | M79: -1 | N79: -1 | O79: 3 | P79: 3 | Q79: 0.9288142945 | R79: 0.2161407724 | S79: 0.3255089508 | T79: 0.8752627708 | U79: 2.345726789 | V79: -1 | W79: 1.828855953 | X79: 0.09213860725 | Y79: 8.770030467 | Z79: 0 | AA79: 8.770030467 | AB79: Dec | AC79: Aw | AD79: 0.582 | AE79: 0.002232152221 | AF79: TRUE | AG79: 1 | AH79: TRUE | AI79: 0 | AJ79: 0 | AK79: 19701.46245 | AL79: 0 | AM79: 0 | AN79: 0 | AO79: 0 | AP79: -1 | AQ79: -1 | AR79: -1 | AS79: -1 | AT79: -1 | AU79: -1 | AV79: -1 | AW79: -1 | AX79: -1 | AY79: -1 | AZ79: -1 | BA79: -1 | BB79: -1 | BC79: -1 | BD79: -1 | BE79: -1 | BF79: -1 | BG79: -1 | BH79: -1 | BI79: 10
A80: 4 | B80: AW | C80: 2.979774237 | D80: 110.625 | E80: 4.96937418 | F80: -1 | G80: -1 | H80: 0.5214955409 | I80: 1.220098778 | J80: 63 | K80: 16 | L80: -1 | M80: -1 | N80: -1 | O80: 3 | P80: 3 | Q80: 0.7429289409 | R80: 0.1771076379 | S80: 0.270517585 | T80: 0.7719598884 | U80: 1.962514052 | V80: -1 | W80: 1.667701572 | X80: 0.07714537365 | Y80: 8.862169074 | Z80: 0 | AA80: 8.862169074 | AB80: Dec | AC80: Aw | AD80: 0.569 | AE80: 0.00156032574 | AF80: TRUE | AG80: 1 | AH80: TRUE | AI80: 0 | AJ80: 0 | AK80: 20061.71123 | AL80: 0 | AM80: 0 | AN80: 0 | AO80: 0 | AP80: -1 | AQ80: -1 | AR80: -1 | AS80: -1 | AT80: -1 | AU80: -1 | AV80: -1 | AW80: -1 | AX80: -1 | AY80: -1 | AZ80: -1 | BA80: -1 | BB80: -1 | BC80: -1 | BD80: -1 | BE80: -1 | BF80: -1 | BG80: -1 | BH80: -1 | BI80: 4
A81: 11 | B81: AW | C81: 2.95010972 | D81: 110.625 | E81: 4.835178852 | F81: -1 | G81: -1 | H81: 0.5333317029 | I81: 1.217310314 | J81: 42 | K81: 92 | L81: -1 | M81: -1 | N81: -1 | O81: 3 | P81: 3 | Q81: 0.7244700253 | R81: 0.1731774973 | S81: 0.2649357439 | T81: 0.7611133316 | U81: 1.923696598 | V81: -1 | W81: 1.638982719 | X81: 0.07561701023 | Y81: 8.939314447 | Z81: 0 | AA81: 8.939314447 | AB81: Dec | AC81: Aw | AD81: 0.556 | AE81: 0.001488119407 | AF81: TRUE | AG81: 1 | AH81: TRUE | AI81: 0 | AJ81: 0 | AK81: 20391.34876 | AL81: 0 | AM81: 0 | AN81: 0 | AO81: 0 | AP81: -1 | AQ81: -1 | AR81: -1 | AS81: -1 | AT81: -1 | AU81: -1 | AV81: -1 | AW81: -1 | AX81: -1 | AY81: -1 | AZ81: -1 | BA81: -1 | BB81: -1 | BC81: -1 | BD81: -1 | BE81: -1 | BF81: -1 | BG81: -1 | BH81: -1 | BI81: 11
A82: 24 | B82: AW | C82: 2.81286335 | D82: 110.625 | E82: 4.693282127 | F82: -1 | G82: -1 | H82: 0.5368794322 | I82: 1.204409155 | J82: 29 | K82: 48 | L82: -1 | M82: -1 | N82: -1 | O82: 3 | P82: 3 | Q82: 0.6426765448 | R82: 0.1556277014 | S82: 0.239897452 | T82: 0.7115216531 | U82: 1.749723351 | V82: -1 | W82: 1.668506978 | X82: 0.068744892 | Y82: 9.014931458 | Z82: 0 | AA82: 9.014931458 | AB82: Dec | AC82: Aw | AD82: 0.544 | AE82: 0.001314183631 | AF82: TRUE | AG82: 1 | AH82: TRUE | AI82: 0 | AJ82: 0 | AK82: 20717.70464 | AL82: 0 | AM82: 0 | AN82: 0 | AO82: 0 | AP82: -1 | AQ82: -1 | AR82: -1 | AS82: -1 | AT82: -1 | AU82: -1 | AV82: -1 | AW82: -1 | AX82: -1 | AY82: -1 | AZ82: -1 | BA82: -1 | BB82: -1 | BC82: -1 | BD82: -1 | BE82: -1 | BF82: -1 | BG82: -1 | BH82: -1 | BI82: 24
A83: 23 | B83: AW | C83: 2.679751396 | D83: 110.625 | E83: 5.909458637 | F83: -1 | G83: -1 | H83: 0.4166936822 | I83: 1.191896631 | J83: 3 | K83: 53 | L83: -1 | M83: -1 | N83: -1 | O83: 3 | P83: 3 | Q83: 0.5689153254 | R83: 0.1395933077 | S83: 0.216845761 | T83: 0.6643719177 | U83: 1.589726312 | V83: -1 | W83: 2.205226442 | X83: 0.0623924697 | Y83: 9.08367635 | Z83: 0 | AA83: 9.08367635 | AB83: Dec | AC83: Aw | AD83: 0.531 | AE83: 0.001505509906 | AF83: TRUE | AG83: 1 | AH83: TRUE | AI83: 0 | AJ83: 0 | AK83: 21028.87765 | AL83: 0 | AM83: 0 | AN83: 0 | AO83: 0 | AP83: -1 | AQ83: -1 | AR83: -1 | AS83: -1 | AT83: -1 | AU83: -1 | AV83: -1 | AW83: -1 | AX83: -1 | AY83: -1 | AZ83: -1 | BA83: -1 | BB83: -1 | BC83: -1 | BD83: -1 | BE83: -1 | BF83: -1 | BG83: -1 | BH83: -1 | BI83: 23
A84: 73 | B84: SW | C84: 2.365408182 | D84: 24.375 | E84: 2.93372345 | F84: -1 | G84: -1 | H84: 0.7931794624 | I84: 1.162348369 | J84: 1 | K84: 22 | L84: -1 | M84: -1 | N84: -1 | O84: 1 | P84: 1 | Q84: 0.4244226404 | R84: 0.1115576496 | S84: 0.1237653556 | T84: 0.1893786207 | U84: 0.8491242663 | V84: -1 | W84: 1.240260971 | X84: 0.01071141129 | Y84: 9.146068819 | Z84: 0 | AA84: 9.146068819 | AB84: Con | AC84: Sw | AD84: 0.518 | AE84: 0.0006215070375 | AF84: TRUE | AG84: 1 | AH84: TRUE | AI84: 0 | AJ84: 0 | AK84: 21325.32515 | AL84: 0 | AM84: 0 | AN84: 0 | AO84: 0 | AP84: -1 | AQ84: -1 | AR84: -1 | AS84: -1 | AT84: -1 | AU84: -1 | AV84: -1 | AW84: -1 | AX84: -1 | AY84: -1 | AZ84: -1 | BA84: -1 | BB84: -1 | BC84: -1 | BD84: -1 | BE84: -1 | BF84: -1 | BG84: -1 | BH84: -1 | BI84: 73
A85: 62 | B85: SW | C85: 2.110795498 | D85: 24.375 | E85: 2.781105995 | F85: -1 | G85: -1 | H85: 0.7971904297 | I85: 1.138414777 | J85: 29 | K85: 31 | L85: -1 | M85: -1 | N85: -1 | O85: 1 | P85: 1 | Q85: 0.3176781206 | R85: 0.08802135862 | S85: 0.09712113058 | T85: 0.1557499887 | U85: 0.6585705985 | V85: -1 | W85: 1.317562975 | X85: 0.008529563842 | Y85: 9.156780231 | Z85: 0.01071141129 | AA85: 9.146068819 | AB85: Con | AC85: Sw | AD85: 0.506 | AE85: 0.0004723509454 | AF85: TRUE | AG85: 1 | AH85: TRUE | AI85: 0.01071141129 | AJ85: 0 | AK85: 21325.32515 | AL85: 57.65682444 | AM85: 0 | AN85: 0 | AO85: 0 | AP85: -1 | AQ85: -1 | AR85: -1 | AS85: -1 | AT85: -1 | AU85: -1 | AV85: -1 | AW85: -1 | AX85: -1 | AY85: -1 | AZ85: -1 | BA85: -1 | BB85: -1 | BC85: -1 | BD85: -1 | BE85: -1 | BF85: -1 | BG85: -1 | BH85: -1 | BI85: 62
A86: 72 | B86: SW | C86: 2.000168562 | D86: 24.375 | E86: 2.469489098 | F86: -1 | G86: -1 | H86: 0.8784298155 | I86: 1.128015845 | J86: 31 | K86: 100 | L86: -1 | M86: -1 | N86: -1 | O86: 1 | P86: 1 | Q86: 0.2770235639 | R86: 0.07869410716 | S86: 0.08660553623 | T86: 0.1420020673 | U86: 0.5843252746 | V86: -1 | W86: 1.234640492 | X86: 0.007658922933 | Y86: 9.165309795 | Z86: 0.01924097513 | AA86: 9.146068819 | AB86: Con | AC86: Sw | AD86: 0.493 | AE86: 0.0003774578708 | AF86: TRUE | AG86: 1 | AH86: TRUE | AI86: 0.01924097513 | AJ86: 0 | AK86: 21325.32515 | AL86: 109.1074647 | AM86: 0 | AN86: 0 | AO86: 0 | AP86: -1 | AQ86: -1 | AR86: -1 | AS86: -1 | AT86: -1 | AU86: -1 | AV86: -1 | AW86: -1 | AX86: -1 | AY86: -1 | AZ86: -1 | BA86: -1 | BB86: -1 | BC86: -1 | BD86: -1 | BE86: -1 | BF86: -1 | BG86: -1 | BH86: -1 | BI86: 72
A87: 44 | B87: SW | C87: 1.896855235 | D87: 24.375 | E87: 2.393736839 | F87: -1 | G87: -1 | H87: 0.8875696071 | I87: 1.118304392 | J87: 8 | K87: 37 | L87: -1 | M87: -1 | N87: -1 | O87: 1 | P87: 1 | Q87: 0.2420634242 | R87: 0.07047233771 | S87: 0.07736001855 | T87: 0.1296454361 | U87: 0.5195412166 | V87: -1 | W87: 1.261950198 | X87: 0.006888154517 | Y87: 9.172968717 | Z87: 0.02689989806 | AA87: 9.146068819 | AB87: Con | AC87: Sw | AD87: 0.481 | AE87: 0.0003300682898 | AF87: TRUE | AG87: 1 | AH87: TRUE | AI87: 0.02689989806 | AJ87: 0 | AK87: 21325.32515 | AL87: 157.8615734 | AM87: 0 | AN87: 0 | AO87: 0 | AP87: -1 | AQ87: -1 | AR87: -1 | AS87: -1 | AT87: -1 | AU87: -1 | AV87: -1 | AW87: -1 | AX87: -1 | AY87: -1 | AZ87: -1 | BA87: -1 | BB87: -1 | BC87: -1 | BD87: -1 | BE87: -1 | BF87: -1 | BG87: -1 | BH87: -1 | BI87: 44
A88: 50 | B88: SW | C88: 1.832344174 | D88: 24.375 | E88: 2.357737064 | F88: -1 | G88: -1 | H88: 0.8892872126 | I88: 1.112240352 | J88: 69 | K88: 79 | L88: -1 | M88: -1 | N88: -1 | O88: 1 | P88: 1 | Q88: 0.2216688393 | R88: 0.06557702597 | S88: 0.07186679897 | T88: 0.122169178 | U88: 0.4812818422 | V88: -1 | W88: 1.286732644 | X88: 0.006427596554 | Y88: 9.179856872 | Z88: 0.03378805258 | AA88: 9.146068819 | AB88: Con | AC88: Sw | AD88: 0.468 | AE88: 0.0003039875368 | AF88: TRUE | AG88: 1 | AH88: TRUE | AI88: 0.03378805258 | AJ88: 0 | AK88: 21325.32515 | AL88: 204.0974198 | AM88: 0 | AN88: 0 | AO88: 0 | AP88: -1 | AQ88: -1 | AR88: -1 | AS88: -1 | AT88: -1 | AU88: -1 | AV88: -1 | AW88: -1 | AX88: -1 | AY88: -1 | AZ88: -1 | BA88: -1 | BB88: -1 | BC88: -1 | BD88: -1 | BE88: -1 | BF88: -1 | BG88: -1 | BH88: -1 | BI88: 50
A89: 12 | B89: AW | C89: 1.793019176 | D89: 110.625 | E89: 3.946275711 | F89: -1 | G89: -1 | H89: 0.5270010589 | I89: 1.108543802 | J89: 80 | K89: 24 | L89: -1 | M89: -1 | N89: -1 | O89: 3 | P89: 3 | Q89: 0.2071135025 | R89: 0.05668355497 | S89: 0.09386213753 | T89: 0.376359064 | U89: 0.7340182589 | V89: -1 | W89: 2.200911047 | X89: 0.02793270749 | Y89: 9.186284469 | Z89: 0.04021564913 | AA89: 9.146068819 | AB89: Dec | AC89: Aw | AD89: 0.455 | AE89: 0.0004521847931 | AF89: TRUE | AG89: 1 | AH89: TRUE | AI89: 0.04021564913 | AJ89: 0 | AK89: 21325.32515 | AL89: 248.760809 | AM89: 0 | AN89: 0 | AO89: 0 | AP89: -1 | AQ89: -1 | AR89: -1 | AS89: -1 | AT89: -1 | AU89: -1 | AV89: -1 | AW89: -1 | AX89: -1 | AY89: -1 | AZ89: -1 | BA89: -1 | BB89: -1 | BC89: -1 | BD89: -1 | BE89: -1 | BF89: -1 | BG89: -1 | BH89: -1 | BI89: 12
A90: 74 | B90: SW | C90: 1.761389732 | D90: 24.375 | E90: 2.595226765 | F90: -1 | G90: -1 | H90: 0.7960785349 | I90: 1.105570635 | J90: 93 | K90: 52 | L90: -1 | M90: -1 | N90: -1 | O90: 1 | P90: 1 | Q90: 0.2004823499 | R90: 0.06040381943 | S90: 0.0660720389 | T90: 0.1141613853 | U90: 0.4411195936 | V90: -1 | W90: 1.473397237 | X90: 0.005939439002 | Y90: 9.214217176 | Z90: 0.04021564913 | AA90: 9.174001527 | AB90: Con | AC90: Sw | AD90: 0.443 | AE90: 0.0003102407986 | AF90: TRUE | AG90: 1 | AH90: TRUE | AI90: 0.04021564913 | AJ90: 0 | AK90: 21523.6779 | AL90: 248.760809 | AM90: 0 | AN90: 0 | AO90: 0 | AP90: -1 | AQ90: -1 | AR90: -1 | AS90: -1 | AT90: -1 | AU90: -1 | AV90: -1 | AW90: -1 | AX90: -1 | AY90: -1 | AZ90: -1 | BA90: -1 | BB90: -1 | BC90: -1 | BD90: -1 | BE90: -1 | BF90: -1 | BG90: -1 | BH90: -1 | BI90: 74
A91: 59 | B91: SW | C91: 1.614947438 | D91: 24.375 | E91: 2.200368404 | F91: -1 | G91: -1 | H91: 0.9101213961 | I91: 1.091805059 | J91: 68 | K91: 95 | L91: -1 | M91: -1 | N91: -1 | O91: 1 | P91: 1 | Q91: 0.1607630034 | R91: 0.05042293371 | S91: 0.05492523947 | T91: 0.0983577176 | U91: 0.3644688942 | V91: -1 | W91: 1.36250156 | X91: 0.004992881854 | Y91: 9.220156615 | Z91: 0.04615508813 | AA91: 9.174001527 | AB91: Con | AC91: Sw | AD91: 0.43 | AE91: 0.0002219796642 | AF91: TRUE | AG91: 1 | AH91: TRUE | AI91: 0.04615508813 | AJ91: 0 | AK91: 21523.6779 | AL91: 291.6946837 | AM91: 0 | AN91: 0 | AO91: 0 | AP91: -1 | AQ91: -1 | AR91: -1 | AS91: -1 | AT91: -1 | AU91: -1 | AV91: -1 | AW91: -1 | AX91: -1 | AY91: -1 | AZ91: -1 | BA91: -1 | BB91: -1 | BC91: -1 | BD91: -1 | BE91: -1 | BF91: -1 | BG91: -1 | BH91: -1 | BI91: 59
A92: 78 | B92: SW | C92: 1.613149166 | D92: 24.375 | E92: 2.378385782 | F92: -1 | G92: -1 | H92: 0.8416731635 | I92: 1.091636022 | J92: 17 | K92: 78 | L92: -1 | M92: -1 | N92: -1 | O92: 1 | P92: 1 | Q92: 0.1603080408 | R92: 0.05030617932 | S92: 0.05479512954 | T92: 0.09816978538 | U92: 0.363579135 | V92: -1 | W92: 1.474374368 | X92: 0.004981768723 | Y92: 9.225149497 | Z92: 0.05114796999 | AA92: 9.174001527 | AB92: Con | AC92: Sw | AD92: 0.417 | AE92: 0.0002395916865 | AF92: TRUE | AG92: 1 | AH92: TRUE | AI92: 0.05114796999 | AJ92: 0 | AK92: 21523.6779 | AL92: 331.0590275 | AM92: 0 | AN92: 0 | AO92: 0 | AP92: -1 | AQ92: -1 | AR92: -1 | AS92: -1 | AT92: -1 | AU92: -1 | AV92: -1 | AW92: -1 | AX92: -1 | AY92: -1 | AZ92: -1 | BA92: -1 | BB92: -1 | BC92: -1 | BD92: -1 | BE92: -1 | BF92: -1 | BG92: -1 | BH92: -1 | BI92: 78
A93: 79 | B93: SW | C93: 1.59978652 | D93: 24.375 | E93: 2.118757486 | F93: -1 | G93: -1 | H93: 0.9420783369 | I93: 1.090379933 | J93: 2 | K93: 43 | L93: -1 | M93: -1 | N93: -1 | O93: 1 | P93: 1 | Q93: 0.1569517647 | R93: 0.04944300026 | S93: 0.05383342854 | T93: 0.09677799776 | U93: 0.3570061913 | V93: -1 | W93: 1.324400137 | X93: 0.004899576826 | Y93: 9.230131266 | Z93: 0.05612973871 | AA93: 9.174001527 | AB93: Con | AC93: Sw | AD93: 0.405 | AE93: 0.0002097996182 | AF93: TRUE | AG93: 1 | AH93: TRUE | AI93: 0.05612973871 | AJ93: 0 | AK93: 21523.6779 | AL93: 370.3795385 | AM93: 0 | AN93: 0 | AO93: 0 | AP93: -1 | AQ93: -1 | AR93: -1 | AS93: -1 | AT93: -1 | AU93: -1 | AV93: -1 | AW93: -1 | AX93: -1 | AY93: -1 | AZ93: -1 | BA93: -1 | BB93: -1 | BC93: -1 | BD93: -1 | BE93: -1 | BF93: -1 | BG93: -1 | BH93: -1 | BI93: 79
A94: 48 | B94: SW | C94: 1.581410289 | D94: 24.375 | E94: 2.163338661 | F94: -1 | G94: -1 | H94: 0.9189847626 | I94: 1.088652567 | J94: 29 | K94: 70 | L94: -1 | M94: -1 | N94: -1 | O94: 1 | P94: 1 | Q94: 0.1524064183 | R94: 0.04826862864 | S94: 0.05252563908 | T94: 0.09487758869 | U94: 0.3480782748 | V94: -1 | W94: 1.367980641 | X94: 0.00478766358 | Y94: 9.235030842 | Z94: 0.06102931554 | AA94: 9.174001527 | AB94: Con | AC94: Sw | AD94: 0.392 | AE94: 0.0002095139605 | AF94: TRUE | AG94: 1 | AH94: TRUE | AI94: 0.06102931554 | AJ94: 0 | AK94: 21523.6779 | AL94: 409.3743349 | AM94: 0 | AN94: 0 | AO94: 0 | AP94: -1 | AQ94: -1 | AR94: -1 | AS94: -1 | AT94: -1 | AU94: -1 | AV94: -1 | AW94: -1 | AX94: -1 | AY94: -1 | AZ94: -1 | BA94: -1 | BB94: -1 | BC94: -1 | BD94: -1 | BE94: -1 | BF94: -1 | BG94: -1 | BH94: -1 | BI94: 48
A95: 56 | B95: SW | C95: 1.57049489 | D95: 24.375 | E95: 2.241875172 | F95: -1 | G95: -1 | H95: 0.8846819605 | I95: 1.08762652 | J95: 86 | K95: 9 | L95: -1 | M95: -1 | N95: -1 | O95: 1 | P95: 1 | Q95: 0.1497447914 | R95: 0.04757799621 | S95: 0.05175688696 | T95: 0.09375621155 | U95: 0.3428358861 | V95: -1 | W95: 1.427495999 | X95: 0.00472179971 | Y95: 9.239818506 | Z95: 0.06581697912 | AA95: 9.174001527 | AB95: Con | AC95: Sw | AD95: 0.379 | AE95: 0.0002142960589 | AF95: TRUE | AG95: 1 | AH95: TRUE | AI95: 0.06581697912 | AJ95: 0 | AK95: 21523.6779 | AL95: 447.9212107 | AM95: 0 | AN95: 0 | AO95: 0 | AP95: -1 | AQ95: -1 | AR95: -1 | AS95: -1 | AT95: -1 | AU95: -1 | AV95: -1 | AW95: -1 | AX95: -1 | AY95: -1 | AZ95: -1 | BA95: -1 | BB95: -1 | BC95: -1 | BD95: -1 | BE95: -1 | BF95: -1 | BG95: -1 | BH95: -1 | BI95: 56
A96: 37 | B96: AW | C96: 1.560018301 | D96: 110.625 | E96: 4.304810047 | F96: -1 | G96: -1 | H96: 0.459673618 | I96: 1.08664172 | J96: 24 | K96: 84 | L96: -1 | M96: -1 | N96: -1 | O96: 3 | P96: 3 | Q96: 0.1459424453 | R96: 0.0414822228 | S96: 0.07022758978 | T96: 0.3091010871 | U96: 0.5667533449 | V96: -1 | W96: 2.759461248 | X96: 0.02114474984 | Y96: 9.244540306 | Z96: 0.07053877883 | AA96: 9.174001527 | AB96: Dec | AC96: Aw | AD96: 0.367 | AE96: 0.0003743627794 | AF96: TRUE | AG96: 1 | AH96: TRUE | AI96: 0.07053877883 | AJ96: 0 | AK96: 21523.6779 | AL96: 486.2020236 | AM96: 0 | AN96: 0 | AO96: 0 | AP96: -1 | AQ96: -1 | AR96: -1 | AS96: -1 | AT96: -1 | AU96: -1 | AV96: -1 | AW96: -1 | AX96: -1 | AY96: -1 | AZ96: -1 | BA96: -1 | BB96: -1 | BC96: -1 | BD96: -1 | BE96: -1 | BF96: -1 | BG96: -1 | BH96: -1 | BI96: 37
A97: 64 | B97: SW | C97: 1.508921266 | D97: 24.375 | E97: 2.327161551 | F97: -1 | G97: -1 | H97: 0.8407952514 | I97: 1.081838599 | J97: 9 | K97: 2 | L97: -1 | M97: -1 | N97: -1 | O97: 1 | P97: 1 | Q97: 0.1352595029 | R97: 0.04377886476 | S97: 0.04753272771 | T97: 0.08753521377 | U97: 0.3141063092 | V97: -1 | W97: 1.542268376 | X97: 0.004358807246 | Y97: 9.265685056 | Z97: 0.07053877883 | AA97: 9.195146277 | AB97: Con | AC97: Sw | AD97: 0.354 | AE97: 0.0002059211109 | AF97: TRUE | AG97: 1 | AH97: TRUE | AI97: 0.07053877883 | AJ97: 0 | AK97: 21696.25492 | AL97: 486.2020236 | AM97: 0 | AN97: 0 | AO97: 0 | AP97: -1 | AQ97: -1 | AR97: -1 | AS97: -1 | AT97: -1 | AU97: -1 | AV97: -1 | AW97: -1 | AX97: -1 | AY97: -1 | AZ97: -1 | BA97: -1 | BB97: -1 | BC97: -1 | BD97: -1 | BE97: -1 | BF97: -1 | BG97: -1 | BH97: -1 | BI97: 64
A98: 55 | B98: SW | C98: 1.479896069 | D98: 24.375 | E98: 1.965237856 | F98: -1 | G98: -1 | H98: 0.9892372393 | I98: 1.07911023 | J98: 89 | K98: 30 | L98: -1 | M98: -1 | N98: -1 | O98: 1 | P98: 1 | Q98: 0.1287391848 | R98: 0.04204487216 | S98: 0.04560751196 | T98: 0.08466475442 | U98: 0.3010563234 | V98: -1 | W98: 1.327956671 | X98: 0.004192730412 | Y98: 9.270043863 | Z98: 0.07489758607 | AA98: 9.195146277 | AB98: Con | AC98: Sw | AD98: 0.341 | AE98: 0.0001672140986 | AF98: TRUE | AG98: 1 | AH98: TRUE | AI98: 0.07489758607 | AJ98: 0 | AK98: 21696.25492 | AL98: 522.9819795 | AM98: 0 | AN98: 0 | AO98: 0 | AP98: -1 | AQ98: -1 | AR98: -1 | AS98: -1 | AT98: -1 | AU98: -1 | AV98: -1 | AW98: -1 | AX98: -1 | AY98: -1 | AZ98: -1 | BA98: -1 | BB98: -1 | BC98: -1 | BD98: -1 | BE98: -1 | BF98: -1 | BG98: -1 | BH98: -1 | BI98: 55
A99: 43 | B99: SW | C99: 1.46996057 | D99: 24.375 | E99: 1.998009682 | F99: -1 | G99: -1 | H99: 0.9708560705 | I99: 1.078176294 | J99: 24 | K99: 86 | L99: -1 | M99: -1 | N99: -1 | O99: 1 | P99: 1 | Q99: 0.1265520201 | R99: 0.04145967412 | S99: 0.04495818842 | T99: 0.08369137182 | U99: 0.2966612544 | V99: -1 | W99: 1.359226718 | X99: 0.004136622376 | Y99: 9.274236593 | Z99: 0.07909031648 | AA99: 9.195146277 | AB99: Con | AC99: Sw | AD99: 0.329 | AE99: 0.000167824475 | AF99: TRUE | AG99: 1 | AH99: TRUE | AI99: 0.07909031648 | AJ99: 0 | AK99: 21696.25492 | AL99: 559.0544461 | AM99: 0 | AN99: 0 | AO99: 0 | AP99: -1 | AQ99: -1 | AR99: -1 | AS99: -1 | AT99: -1 | AU99: -1 | AV99: -1 | AW99: -1 | AX99: -1 | AY99: -1 | AZ99: -1 | BA99: -1 | BB99: -1 | BC99: -1 | BD99: -1 | BE99: -1 | BF99: -1 | BG99: -1 | BH99: -1 | BI99: 43
A100: 68 | B100: SW | C100: 1.441157579 | D100: 24.375 | E100: 2.069668531 | F100: -1 | G100: -1 | H100: 0.9312087954 | I100: 1.075468812 | J100: 99 | K100: 16 | L100: -1 | M100: -1 | N100: -1 | O100: 1 | P100: 1 | Q100: 0.1203394372 | R100: 0.03978724793 | S100: 0.04310367473 | T100: 0.08089615061 | U100: 0.2841265105 | V100: -1 | W100: 1.436115357 | X100: 0.003976101351 | Y100: 9.278373216 | Z100: 0.08322693886 | AA100: 9.195146277 | AB100: Con | AC100: Sw | AD100: 0.316 | AE100: 0.0001673569026 | AF100: TRUE | AG100: 1 | AH100: TRUE | AI100: 0.08322693886 | AJ100: 0 | AK100: 21696.25492 | AL100: 594.884735 | AM100: 0 | AN100: 0 | AO100: 0 | AP100: -1 | AQ100: -1 | AR100: -1 | AS100: -1 | AT100: -1 | AU100: -1 | AV100: -1 | AW100: -1 | AX100: -1 | AY100: -1 | AZ100: -1 | BA100: -1 | BB100: -1 | BC100: -1 | BD100: -1 | BE100: -1 | BF100: -1 | BG100: -1 | BH100: -1 | BI100: 68
A101: 60 | B101: SW | C101: 1.43405354 | D101: 24.375 | E101: 2.282428741 | F101: -1 | G101: -1 | H101: 0.8430552729 | I101: 1.074801033 | J101: 12 | K101: 82 | L101: -1 | M101: -1 | N101: -1 | O101: 1 | P101: 1 | Q101: 0.1188362479 | R101: 0.03938025293 | S101: 0.04265263682 | T101: 0.08021283278 | U101: 0.2810819704 | V101: -1 | W101: 1.591592418 | X101: 0.003936998394 | Y101: 9.282349317 | Z101: 0.08720304021 | AA101: 9.195146277 | AB101: Con | AC101: Sw | AD101: 0.303 | AE101: 0.0001829559246 | AF101: TRUE | AG101: 1 | AH101: TRUE | AI101: 0.08720304021 | AJ101: 0 | AK101: 21696.25492 | AL101: 630.012951 | AM101: 0 | AN101: 0 | AO101: 0 | AP101: -1 | AQ101: -1 | AR101: -1 | AS101: -1 | AT101: -1 | AU101: -1 | AV101: -1 | AW101: -1 | AX101: -1 | AY101: -1 | AZ101: -1 | BA101: -1 | BB101: -1 | BC101: -1 | BD101: -1 | BE101: -1 | BF101: -1 | BG101: -1 | BH101: -1 | BI101: 60
A102: 57 | B102: SW | C102: 1.403273225 | D102: 24.375 | E102: 2.389185667 | F102: -1 | G102: -1 | H102: 0.7997986154 | I102: 1.071907683 | J102: 86 | K102: 83 | L102: -1 | M102: -1 | N102: -1 | O102: 1 | P102: 1 | Q102: 0.112455143 | R102: 0.03764192286 | S102: 0.04072741761 | T102: 0.07728017802 | U102: 0.2681046615 | V102: -1 | W102: 1.702580527 | X102: 0.003769805843 | Y102: 9.286286315 | Z102: 0.09114003861 | AA102: 9.195146277 | AB102: Con | AC102: Sw | AD102: 0.291 | AE102: 0.0001836885218 | AF102: TRUE | AG102: 1 | AH102: TRUE | AI102: 0.09114003861 | AJ102: 0 | AK102: 21696.25492 | AL102: 664.9680061 | AM102: 0 | AN102: 0 | AO102: 0 | AP102: -1 | AQ102: -1 | AR102: -1 | AS102: -1 | AT102: -1 | AU102: -1 | AV102: -1 | AW102: -1 | AX102: -1 | AY102: -1 | AZ102: -1 | BA102: -1 | BB102: -1 | BC102: -1 | BD102: -1 | BE102: -1 | BF102: -1 | BG102: -1 | BH102: -1 | BI102: 57
A103: 49 | B103: SW | C103: 1.358988285 | D103: 24.375 | E103: 2.389940023 | F103: -1 | G103: -1 | H103: 0.7915100978 | I103: 1.067744899 | J103: 33 | K103: 25 | L103: -1 | M103: -1 | N103: -1 | O103: 1 | P103: 1 | Q103: 0.1036464469 | R103: 0.03521233932 | S103: 0.03804008498 | T103: 0.0731411593 | U103: 0.2500400305 | V103: -1 | W103: 1.75861709 | X103: 0.003535622848 | Y103: 9.290056121 | Z103: 0.09490984445 | AA103: 9.195146277 | AB103: Con | AC103: Sw | AD103: 0.278 | AE103: 0.0001726648468 | AF103: TRUE | AG103: 1 | AH103: TRUE | AI103: 0.09490984445 | AJ103: 0 | AK103: 21696.25492 | AL103: 699.1727909 | AM103: 0 | AN103: 0 | AO103: 0 | AP103: -1 | AQ103: -1 | AR103: -1 | AS103: -1 | AT103: -1 | AU103: -1 | AV103: -1 | AW103: -1 | AX103: -1 | AY103: -1 | AZ103: -1 | BA103: -1 | BB103: -1 | BC103: -1 | BD103: -1 | BE103: -1 | BF103: -1 | BG103: -1 | BH103: -1 | BI103: 49
A104: 75 | B104: SW | C104: 1.356276989 | D104: 24.375 | E104: 1.911074519 | F104: -1 | G104: -1 | H104: 0.9892265532 | I104: 1.067490037 | J104: 72 | K104: 6 | L104: -1 | M104: -1 | N104: -1 | O104: 1 | P104: 1 | Q104: 0.1031212617 | R104: 0.03506632442 | S104: 0.03787871307 | T104: 0.07289084737 | U104: 0.2489571466 | V104: -1 | W104: 1.409059163 | X104: 0.00352152919 | Y104: 9.293591744 | Z104: 0.0984454673 | AA104: 9.195146277 | AB104: Con | AC104: Sw | AD104: 0.265 | AE104: 0.000137278444 | AF104: TRUE | AG104: 1 | AH104: TRUE | AI104: 0.0984454673 | AJ104: 0 | AK104: 21696.25492 | AL104: 732.2981304 | AM104: 0 | AN104: 0 | AO104: 0 | AP104: -1 | AQ104: -1 | AR104: -1 | AS104: -1 | AT104: -1 | AU104: -1 | AV104: -1 | AW104: -1 | AX104: -1 | AY104: -1 | AZ104: -1 | BA104: -1 | BB104: -1 | BC104: -1 | BD104: -1 | BE104: -1 | BF104: -1 | BG104: -1 | BH104: -1 | BI104: 75
A105: 67 | B105: SW | C105: 1.231074452 | D105: 24.375 | E105: 1.909158349 | F105: -1 | G105: -1 | H105: 0.9617645825 | I105: 1.055720999 | J105: 45 | K105: 65 | L105: -1 | M105: -1 | N105: -1 | O105: 1 | P105: 1 | Q105: 0.08060274482 | R105: 0.02866602837 | S105: 0.03082147508 | T105: 0.0617256694 | U105: 0.2018159177 | V105: -1 | W105: 1.55080657 | X105: 0.002901370182 | Y105: 9.297113273 | Z105: 0.1019669965 | AA105: 9.195146277 | AB105: Con | AC105: Sw | AD105: 0.253 | AE105: 0.0001136591092 | AF105: TRUE | AG105: 1 | AH105: TRUE | AI105: 0.1019669965 | AJ105: 0 | AK105: 21696.25492 | AL105: 765.357382 | AM105: 0 | AN105: 0 | AO105: 0 | AP105: -1 | AQ105: -1 | AR105: -1 | AS105: -1 | AT105: -1 | AU105: -1 | AV105: -1 | AW105: -1 | AX105: -1 | AY105: -1 | AZ105: -1 | BA105: -1 | BB105: -1 | BC105: -1 | BD105: -1 | BE105: -1 | BF105: -1 | BG105: -1 | BH105: -1 | BI105: 67
A106: 69 | B106: SW | C106: 1.184993863 | D106: 24.375 | E106: 1.758440852 | F106: -1 | G106: -1 | H106: 0.6 | I106: 1.051389423 | J106: 24 | K106: 28 | L106: -1 | M106: -1 | N106: -1 | O106: 1 | P106: 1 | Q106: 0.07314847161 | R106: 0.02647854007 | S106: 0.02841742058 | T106: 0.05781290682 | U106: 0.1858573391 | V106: -1 | W106: 1.483924016 | X106: 0.002688231763 | Y106: 9.300014643 | Z106: 0.1048683667 | AA106: 9.195146277 | AB106: Con | AC106: Sw | AD106: 0.24 | AE106: 9.715203983e-05 | AF106: TRUE | AG106: 1 | AH106: TRUE | AI106: 0.1048683667 | AJ106: 0 | AK106: 21696.25492 | AL106: 795.3648218 | AM106: 0 | AN106: 0 | AO106: 0 | AP106: -1 | AQ106: -1 | AR106: -1 | AS106: -1 | AT106: -1 | AU106: -1 | AV106: -1 | AW106: -1 | AX106: -1 | AY106: -1 | AZ106: -1 | BA106: -1 | BB106: -1 | BC106: -1 | BD106: -1 | BE106: -1 | BF106: -1 | BG106: -1 | BH106: -1 | BI106: 69
A107: 63 | B107: SW | C107: 1.152022004 | D107: 24.375 | E107: 1.85012424 | F107: -1 | G107: -1 | H107: 0.9739027203 | I107: 1.048290068 | J107: 7 | K107: 99 | L107: -1 | M107: -1 | N107: -1 | O107: 1 | P107: 1 | Q107: 0.06808185518 | R107: 0.02496861067 | S107: 0.0267606551 | T107: 0.05507916048 | U107: 0.1748902814 | V107: -1 | W107: 1.605979949 | X107: 0.002540715602 | Y107: 9.302702875 | Z107: 0.1075565984 | AA107: 9.195146277 | AB107: Con | AC107: Sw | AD107: 0.227 | AE107: 9.681510204e-05 | AF107: TRUE | AG107: 1 | AH107: TRUE | AI107: 0.1075565984 | AJ107: 0 | AK107: 21696.25492 | AL107: 824.2490472 | AM107: 0 | AN107: 0 | AO107: 0 | AP107: -1 | AQ107: -1 | AR107: -1 | AS107: -1 | AT107: -1 | AU107: -1 | AV107: -1 | AW107: -1 | AX107: -1 | AY107: -1 | AZ107: -1 | BA107: -1 | BB107: -1 | BC107: -1 | BD107: -1 | BE107: -1 | BF107: -1 | BG107: -1 | BH107: -1 | BI107: 63
A108: 80 | B108: SW | C108: 1.112082481 | D108: 24.375 | E108: 2.224648714 | F108: -1 | G108: -1 | H108: 0.8021473054 | I108: 1.044535753 | J108: 49 | K108: 59 | L108: -1 | M108: -1 | N108: -1 | O108: 1 | P108: 1 | Q108: 0.0622375223 | R108: 0.0232011867 | S108: 0.02482430056 | T108: 0.05184209218 | U108: 0.1621051017 | V108: -1 | W108: 2.000434996 | X108: 0.002367600944 | Y108: 9.305243591 | Z108: 0.110097314 | AA108: 9.195146277 | AB108: Con | AC108: Sw | AD108: 0.215 | AE108: 0.0001088577728 | AF108: TRUE | AG108: 1 | AH108: TRUE | AI108: 0.110097314 | AJ108: 0 | AK108: 21696.25492 | AL108: 852.3295835 | AM108: 0 | AN108: 0 | AO108: 0 | AP108: -1 | AQ108: -1 | AR108: -1 | AS108: -1 | AT108: -1 | AU108: -1 | AV108: -1 | AW108: -1 | AX108: -1 | AY108: -1 | AZ108: -1 | BA108: -1 | BB108: -1 | BC108: -1 | BD108: -1 | BE108: -1 | BF108: -1 | BG108: -1 | BH108: -1 | BI108: 80
A109: 54 | B109: SW | C109: 1.110001564 | D109: 24.375 | E109: 2.077318907 | F109: -1 | G109: -1 | H109: 0.8586029586 | I109: 1.044340147 | J109: 31 | K109: 65 | L109: -1 | M109: -1 | N109: -1 | O109: 1 | P109: 1 | Q109: 0.06194171524 | R109: 0.02311094688 | S109: 0.02472552477 | T109: 0.05167568267 | U109: 0.1614538696 | V109: -1 | W109: 1.871455838 | X109: 0.002358748773 | Y109: 9.307611192 | Z109: 0.112464915 | AA109: 9.195146277 | AB109: Con | AC109: Sw | AD109: 0.202 | AE109: 0.0001012317654 | AF109: TRUE | AG109: 1 | AH109: TRUE | AI109: 0.112464915 | AJ109: 0 | AK109: 21696.25492 | AL109: 879.436594 | AM109: 0 | AN109: 0 | AO109: 0 | AP109: -1 | AQ109: -1 | AR109: -1 | AS109: -1 | AT109: -1 | AU109: -1 | AV109: -1 | AW109: -1 | AX109: -1 | AY109: -1 | AZ109: -1 | BA109: -1 | BB109: -1 | BC109: -1 | BD109: -1 | BE109: -1 | BF109: -1 | BG109: -1 | BH109: -1 | BI109: 54
A110: 52 | B110: SW | C110: 1.106329322 | D110: 24.375 | E110: 1.75743854 | F110: -1 | G110: -1 | H110: 0.6 | I110: 1.043994956 | J110: 85 | K110: 98 | L110: -1 | M110: -1 | N110: -1 | O110: 1 | P110: 1 | Q110: 0.06142178258 | R110: 0.02295214416 | S110: 0.0245517222 | T110: 0.05138256109 | U110: 0.16030821 | V110: -1 | W110: 1.588531105 | X110: 0.00234316759 | Y110: 9.30996994 | Z110: 0.1148236637 | AA110: 9.195146277 | AB110: Con | AC110: Sw | AD110: 0.189 | AE110: 8.498527343e-05 | AF110: TRUE | AG110: 1 | AH110: TRUE | AI110: 0.1148236637 | AJ110: 0 | AK110: 21696.25492 | AL110: 906.4928821 | AM110: 0 | AN110: 0 | AO110: 0 | AP110: -1 | AQ110: -1 | AR110: -1 | AS110: -1 | AT110: -1 | AU110: -1 | AV110: -1 | AW110: -1 | AX110: -1 | AY110: -1 | AZ110: -1 | BA110: -1 | BB110: -1 | BC110: -1 | BD110: -1 | BE110: -1 | BF110: -1 | BG110: -1 | BH110: -1 | BI110: 52
A111: 71 | B111: SW | C111: 1.096188307 | D111: 24.375 | E111: 2.246431828 | F111: -1 | G111: -1 | H111: 0.7912959181 | I111: 1.043041701 | J111: 52 | K111: 31 | L111: -1 | M111: -1 | N111: -1 | O111: 1 | P111: 1 | Q111: 0.05999975873 | R111: 0.02251655823 | S111: 0.02407513556 | T111: 0.05057671536 | U111: 0.1571681679 | V111: -1 | W111: 2.049311978 | X111: 0.002300407823 | Y111: 9.312313108 | Z111: 0.1171668313 | AA111: 9.195146277 | AB111: Con | AC111: Sw | AD111: 0.177 | AE111: 0.0001069009112 | AF111: TRUE | AG111: 1 | AH111: TRUE | AI111: 0.1171668313 | AJ111: 0 | AK111: 21696.25492 | AL111: 933.4596594 | AM111: 0 | AN111: 0 | AO111: 0 | AP111: -1 | AQ111: -1 | AR111: -1 | AS111: -1 | AT111: -1 | AU111: -1 | AV111: -1 | AW111: -1 | AX111: -1 | AY111: -1 | AZ111: -1 | BA111: -1 | BB111: -1 | BC111: -1 | BD111: -1 | BE111: -1 | BF111: -1 | BG111: -1 | BH111: -1 | BI111: 71
A112: 58 | B112: SW | C112: 1.073413849 | D112: 24.375 | E112: 1.434460282 | F112: -1 | G112: -1 | H112: 0.6 | I112: 1.040900902 | J112: 13 | K112: 7 | L112: -1 | M112: -1 | N112: -1 | O112: 1 | P112: 1 | Q112: 0.05687954601 | R112: 0.02155411745 | S112: 0.02302286232 | T112: 0.04878639326 | U112: 0.150242919 | V112: -1 | W112: 1.336353433 | X112: 0.002205814026 | Y112: 9.314613516 | Z112: 0.1194672392 | AA112: 9.195146277 | AB112: Con | AC112: Sw | AD112: 0.164 | AE112: 6.530205977e-05 | AF112: TRUE | AG112: 1 | AH112: TRUE | AI112: 0.1194672392 | AJ112: 0 | AK112: 21696.25492 | AL112: 960.1792493 | AM112: 0 | AN112: 0 | AO112: 0 | AP112: -1 | AQ112: -1 | AR112: -1 | AS112: -1 | AT112: -1 | AU112: -1 | AV112: -1 | AW112: -1 | AX112: -1 | AY112: -1 | AZ112: -1 | BA112: -1 | BB112: -1 | BC112: -1 | BD112: -1 | BE112: -1 | BF112: -1 | BG112: -1 | BH112: -1 | BI112: 58
A113: 53 | B113: SW | C113: 1.058350086 | D113: 24.375 | E113: 1.984288692 | F113: -1 | G113: -1 | H113: 0.8875497141 | I113: 1.039484908 | J113: 88 | K113: 48 | L113: -1 | M113: -1 | N113: -1 | O113: 1 | P113: 1 | Q113: 0.05487105191 | R113: 0.02092951824 | S113: 0.02234054104 | T113: 0.04761705022 | U113: 0.1457581614 | V113: -1 | W113: 1.874888771 | X113: 0.002144337817 | Y113: 9.31681933 | Z113: 0.1216730532 | AA113: 9.195146277 | AB113: Con | AC113: Sw | AD113: 0.151 | AE113: 8.812696874e-05 | AF113: TRUE | AG113: 1 | AH113: TRUE | AI113: 0.1216730532 | AJ113: 0 | AK113: 21696.25492 | AL113: 986.3437119 | AM113: 0 | AN113: 0 | AO113: 0 | AP113: -1 | AQ113: -1 | AR113: -1 | AS113: -1 | AT113: -1 | AU113: -1 | AV113: -1 | AW113: -1 | AX113: -1 | AY113: -1 | AZ113: -1 | BA113: -1 | BB113: -1 | BC113: -1 | BD113: -1 | BE113: -1 | BF113: -1 | BG113: -1 | BH113: -1 | BI113: 53
A114: 51 | B114: SW | C114: 1.026781797 | D114: 24.375 | E114: 1.6030159 | F114: -1 | G114: -1 | H114: 0.6 | I114: 1.036517489 | J114: 35 | K114: 63 | L114: -1 | M114: -1 | N114: -1 | O114: 1 | P114: 1 | Q114: 0.05080314609 | R114: 0.01965149313 | S114: 0.02094588677 | T114: 0.04520507124 | U114: 0.1366055972 | V114: -1 | W114: 1.561204049 | X114: 0.002018323736 | Y114: 9.318963668 | Z114: 0.123817391 | AA114: 9.195146277 | AB114: Con | AC114: Sw | AD114: 0.139 | AE114: 6.702015912e-05 | AF114: TRUE | AG114: 1 | AH114: TRUE | AI114: 0.123817391 | AJ114: 0 | AK114: 21696.25492 | AL114: 1012.140995 | AM114: 0 | AN114: 0 | AO114: 0 | AP114: -1 | AQ114: -1 | AR114: -1 | AS114: -1 | AT114: -1 | AU114: -1 | AV114: -1 | AW114: -1 | AX114: -1 | AY114: -1 | AZ114: -1 | BA114: -1 | BB114: -1 | BC114: -1 | BD114: -1 | BE114: -1 | BF114: -1 | BG114: -1 | BH114: -1 | BI114: 51
A115: 70 | B115: SW | C115: 1.022343874 | D115: 24.375 | E115: 2.10921073 | F115: -1 | G115: -1 | H115: 0.8275655078 | I115: 1.036100324 | J115: 23 | K115: 24 | L115: -1 | M115: -1 | N115: -1 | O115: 1 | P115: 1 | Q115: 0.05024646301 | R115: 0.01947517729 | S115: 0.02075364205 | T115: 0.04487019483 | U115: 0.1353454772 | V115: -1 | W115: 2.063112797 | X115: 0.002000914372 | Y115: 9.320981991 | Z115: 0.1258357147 | AA115: 9.195146277 | AB115: Con | AC115: Sw | AD115: 0.126 | AE115: 8.762338069e-05 | AF115: TRUE | AG115: 1 | AH115: TRUE | AI115: 0.1258357147 | AJ115: 0 | AK115: 21696.25492 | AL115: 1037.168802 | AM115: 0 | AN115: 0 | AO115: 0 | AP115: -1 | AQ115: -1 | AR115: -1 | AS115: -1 | AT115: -1 | AU115: -1 | AV115: -1 | AW115: -1 | AX115: -1 | AY115: -1 | AZ115: -1 | BA115: -1 | BB115: -1 | BC115: -1 | BD115: -1 | BE115: -1 | BF115: -1 | BG115: -1 | BH115: -1 | BI115: 70
A116: 46 | B116: SW | C116: 0.9793156385 | D116: 24.375 | E116: 2.100515366 | F116: -1 | G116: -1 | H116: 0.8220887556 | I116: 1.03205567 | J116: 1 | K116: 58 | L116: -1 | M116: -1 | N116: -1 | O116: 1 | P116: 1 | Q116: 0.04504054693 | R116: 0.0178084362 | S116: 0.01893835791 | T116: 0.04167749768 | U116: 0.1234648387 | V116: -1 | W116: 2.144880857 | X116: 0.001836030474 | Y116: 9.322982906 | Z116: 0.1278366291 | AA116: 9.195146277 | AB116: Con | AC116: Sw | AD116: 0.113 | AE116: 8.026948035e-05 | AF116: TRUE | AG116: 1 | AH116: TRUE | AI116: 0.1278366291 | AJ116: 0 | AK116: 21696.25492 | AL116: 1062.088434 | AM116: 0 | AN116: 0 | AO116: 0 | AP116: -1 | AQ116: -1 | AR116: -1 | AS116: -1 | AT116: -1 | AU116: -1 | AV116: -1 | AW116: -1 | AX116: -1 | AY116: -1 | AZ116: -1 | BA116: -1 | BB116: -1 | BC116: -1 | BD116: -1 | BE116: -1 | BF116: -1 | BG116: -1 | BH116: -1 | BI116: 46
A117: 65 | B117: SW | C117: 0.9072216749 | D117: 24.375 | E117: 1.330785275 | F117: -1 | G117: -1 | H117: 0.6 | I117: 1.025278837 | J117: 71 | K117: 79 | L117: -1 | M117: -1 | N117: -1 | O117: 1 | P117: 1 | Q117: 0.03707910391 | R117: 0.01518893251 | S117: 0.01609347176 | T117: 0.03655060749 | U117: 0.1049121157 | V117: -1 | W117: 1.466879938 | X117: 0.001575655759 | Y117: 9.324818936 | Z117: 0.1296726596 | AA117: 9.195146277 | AB117: Con | AC117: Sw | AD117: 0.101 | AE117: 4.369060847e-05 | AF117: TRUE | AG117: 1 | AH117: TRUE | AI117: 0.1296726596 | AJ117: 0 | AK117: 21696.25492 | AL117: 1085.959252 | AM117: 0 | AN117: 0 | AO117: 0 | AP117: -1 | AQ117: -1 | AR117: -1 | AS117: -1 | AT117: -1 | AU117: -1 | AV117: -1 | AW117: -1 | AX117: -1 | AY117: -1 | AZ117: -1 | BA117: -1 | BB117: -1 | BC117: -1 | BD117: -1 | BE117: -1 | BF117: -1 | BG117: -1 | BH117: -1 | BI117: 65
A118: 47 | B118: SW | C118: 0.8481929302 | D118: 24.375 | E118: 1.630055308 | F118: -1 | G118: -1 | H118: 0.6 | I118: 1.019730135 | J118: 78 | K118: 35 | L118: -1 | M118: -1 | N118: -1 | O118: 1 | P118: 1 | Q118: 0.03124679271 | R118: 0.0132047979 | S118: 0.01394606702 | T118: 0.03256399355 | U118: 0.09096165118 | V118: -1 | W118: 1.921797801 | X118: 0.001377284951 | Y118: 9.326394592 | Z118: 0.1312483153 | AA118: 9.195146277 | AB118: Con | AC118: Sw | AD118: 0.088 | AE118: 4.704053166e-05 | AF118: TRUE | AG118: 1 | AH118: TRUE | AI118: 0.1312483153 | AJ118: 0 | AK118: 21696.25492 | AL118: 1108.072781 | AM118: 0 | AN118: 0 | AO118: 0 | AP118: -1 | AQ118: -1 | AR118: -1 | AS118: -1 | AT118: -1 | AU118: -1 | AV118: -1 | AW118: -1 | AX118: -1 | AY118: -1 | AZ118: -1 | BA118: -1 | BB118: -1 | BC118: -1 | BD118: -1 | BE118: -1 | BF118: -1 | BG118: -1 | BH118: -1 | BI118: 47
A119: 61 | B119: SW | C119: 0.8180037141 | D119: 24.375 | E119: 1.77935636 | F119: -1 | G119: -1 | H119: 0.9310471493 | I119: 1.016892349 | J119: 69 | K119: 95 | L119: -1 | M119: -1 | N119: -1 | O119: 1 | P119: 1 | Q119: 0.02849503561 | R119: 0.0122456783 | S119: 0.01291062733 | T119: 0.03059986094 | U119: 0.08425120218 | V119: -1 | W119: 2.175242398 | X119: 0.001280987987 | Y119: 9.327771877 | Z119: 0.1326256003 | AA119: 9.195146277 | AB119: Con | AC119: Sw | AD119: 0.075 | AE119: 4.788676572e-05 | AF119: TRUE | AG119: 1 | AH119: TRUE | AI119: 0.1326256003 | AJ119: 0 | AK119: 21696.25492 | AL119: 1128.747483 | AM119: 0 | AN119: 0 | AO119: 0 | AP119: -1 | AQ119: -1 | AR119: -1 | AS119: -1 | AT119: -1 | AU119: -1 | AV119: -1 | AW119: -1 | AX119: -1 | AY119: -1 | AZ119: -1 | BA119: -1 | BB119: -1 | BC119: -1 | BD119: -1 | BE119: -1 | BF119: -1 | BG119: -1 | BH119: -1 | BI119: 61
A120: 42 | B120: SW | C120: 0.7324953675 | D120: 24.375 | E120: 1.677169204 | F120: -1 | G120: -1 | H120: 0.9655892874 | I120: 1.008854565 | J120: 61 | K120: 33 | L120: -1 | M120: -1 | N120: -1 | O120: 1 | P120: 1 | Q120: 0.02151779616 | R120: 0.009732232222 | S120: 0.01020646483 | T120: 0.02531674155 | U120: 0.06677323477 | V120: -1 | W120: 2.28966527 | X120: 0.001027174598 | Y120: 9.329052865 | Z120: 0.1339065883 | AA120: 9.195146277 | AB120: Con | AC120: Sw | AD120: 0.063 | AE120: 3.641000258e-05 | AF120: TRUE | AG120: 1 | AH120: TRUE | AI120: 0.1339065883 | AJ120: 0 | AK120: 21696.25492 | AL120: 1148.686324 | AM120: 0 | AN120: 0 | AO120: 0 | AP120: -1 | AQ120: -1 | AR120: -1 | AS120: -1 | AT120: -1 | AU120: -1 | AV120: -1 | AW120: -1 | AX120: -1 | AY120: -1 | AZ120: -1 | BA120: -1 | BB120: -1 | BC120: -1 | BD120: -1 | BE120: -1 | BF120: -1 | BG120: -1 | BH120: -1 | BI120: 42
A121: 66 | B121: SW | C121: 0.6993380785 | D121: 24.375 | E121: 1.739015579 | F121: -1 | G121: -1 | H121: 0.9229496682 | I121: 1.005737779 | J121: 38 | K121: 30 | L121: -1 | M121: -1 | N121: -1 | O121: 1 | P121: 1 | Q121: 0.01912601002 | R121: 0.008837990923 | S121: 0.009248063044 | T121: 0.02338157451 | U121: 0.0605936385 | V121: -1 | W121: 2.486659361 | X121: 0.0009362867072 | Y121: 9.33008004 | Z121: 0.1349337629 | AA121: 9.195146277 | AB121: Con | AC121: Sw | AD121: 0.05 | AE121: 3.450993807e-05 | AF121: TRUE | AG121: 1 | AH121: TRUE | AI121: 0.1349337629 | AJ121: 0 | AK121: 21696.25492 | AL121: 1166.540898 | AM121: 0 | AN121: 0 | AO121: 0 | AP121: -1 | AQ121: -1 | AR121: -1 | AS121: -1 | AT121: -1 | AU121: -1 | AV121: -1 | AW121: -1 | AX121: -1 | AY121: -1 | AZ121: -1 | BA121: -1 | BB121: -1 | BC121: -1 | BD121: -1 | BE121: -1 | BF121: -1 | BG121: -1 | BH121: -1 | BI121: 66
A122: 41 | B122: SW | C122: 0.4801278412 | D122: 24.375 | E122: 1.4110322 | F122: -1 | G122: -1 | H122: 0.6 | I122: 0.9851320171 | J122: 41 | K122: 64 | L122: -1 | M122: -1 | N122: -1 | O122: 1 | P122: 1 | Q122: 0.007347864368 | R122: 0.004041217506 | S122: 0.004153073358 | T122: 0.01226029682 | U122: 0.02780245205 | V122: -1 | W122: 2.93886769 | X122: 0.0004413145905 | Y122: 9.331016326 | Z122: 0.1358700496 | AA122: 9.195146277 | AB122: Con | AC122: Sw | AD122: 0.037 | AE122: 1.346458378e-05 | AF122: TRUE | AG122: 1 | AH122: TRUE | AI122: 0.1358700496 | AJ122: 0 | AK122: 21696.25492 | AL122: 1183.587264 | AM122: 0 | AN122: 0 | AO122: 0 | AP122: -1 | AQ122: -1 | AR122: -1 | AS122: -1 | AT122: -1 | AU122: -1 | AV122: -1 | AW122: -1 | AX122: -1 | AY122: -1 | AZ122: -1 | BA122: -1 | BB122: -1 | BC122: -1 | BD122: -1 | BE122: -1 | BF122: -1 | BG122: -1 | BH122: -1 | BI122: 41
A123: 45 | B123: SW | C123: -1 | D123: 24.375 | E123: 1.062616587 | F123: -1 | G123: -1 | H123: 0.6 | I123: -1 | J123: 82 | K123: 34 | L123: -1 | M123: -1 | N123: -1 | O123: 1 | P123: 1 | Q123: -1 | R123: -1 | S123: -1 | T123: -1 | U123: -1 | V123: -1 | W123: -1 | X123: -1 | Y123: -1 | Z123: -1 | AA123: -1 | AB123: Con | AC123: Sw | AD123: -1 | AE123: -1 | AF123: FALSE | AG123: 1 | AH123: TRUE | AI123: 0.1363113642 | AJ123: 0 | AK123: 21696.25492 | AL123: 1195.29038 | AM123: 0 | AN123: 0 | AO123: 0 | AP123: -1 | AQ123: -1 | AR123: -1 | AS123: -1 | AT123: -1 | AU123: -1 | AV123: -1 | AW123: -1 | AX123: -1 | AY123: -1 | AZ123: -1 | BA123: -1 | BB123: -1 | BC123: -1 | BD123: -1 | BE123: -1 | BF123: -1 | BG123: -1 | BH123: -1 | BI123: 45
A124: 76 | B124: SW | C124: -1 | D124: 24.375 | E124: 1.193331122 | F124: -1 | G124: -1 | H124: 0.6 | I124: -1 | J124: 41 | K124: 60 | L124: -1 | M124: -1 | N124: -1 | O124: 1 | P124: 1 | Q124: -1 | R124: -1 | S124: -1 | T124: -1 | U124: -1 | V124: -1 | W124: -1 | X124: -1 | Y124: -1 | Z124: -1 | AA124: -1 | AB124: Con | AC124: Sw | AD124: -1 | AE124: -1 | AF124: FALSE | AG124: 1 | AH124: TRUE | AI124: 0.1363113642 | AJ124: 0 | AK124: 21696.25492 | AL124: 1195.29038 | AM124: 0 | AN124: 0 | AO124: 0 | AP124: -1 | AQ124: -1 | AR124: -1 | AS124: -1 | AT124: -1 | AU124: -1 | AV124: -1 | AW124: -1 | AX124: -1 | AY124: -1 | AZ124: -1 | BA124: -1 | BB124: -1 | BC124: -1 | BD124: -1 | BE124: -1 | BF124: -1 | BG124: -1 | BH124: -1 | BI124: 76
A125: 77 | B125: SW | C125: -1 | D125: 24.375 | E125: 1.276810765 | F125: -1 | G125: -1 | H125: 0.6 | I125: -1 | J125: 71 | K125: 45 | L125: -1 | M125: -1 | N125: -1 | O125: 1 | P125: 1 | Q125: -1 | R125: -1 | S125: -1 | T125: -1 | U125: -1 | V125: -1 | W125: -1 | X125: -1 | Y125: -1 | Z125: -1 | AA125: -1 | AB125: Con | AC125: Sw | AD125: -1 | AE125: -1 | AF125: FALSE | AG125: 1 | AH125: TRUE | AI125: 0.1363113642 | AJ125: 0 | AK125: 21696.25492 | AL125: 1195.29038 | AM125: 0 | AN125: 0 | AO125: 0 | AP125: -1 | AQ125: -1 | AR125: -1 | AS125: -1 | AT125: -1 | AU125: -1 | AV125: -1 | AW125: -1 | AX125: -1 | AY125: -1 | AZ125: -1 | BA125: -1 | BB125: -1 | BC125: -1 | BD125: -1 | BE125: -1 | BF125: -1 | BG125: -1 | BH125: -1 | BI125: 77
A128: YIELDS | B128: 22 | C128: Distribution Example CP | F128: 12:52 18 Dec 2024
A129: YIELDS | C129: Distribution Example CP | E129: 12:52 18 Dec 2024 | G129: Distribution Example CP | BF129: Taper | BH129: Vol/tree | BJ129: Volume Mai | BL129: Spacing (m) | BN129: Trees/Vol
A130: stID | B130: stWT | C130: Age | D130: C_Den | E130: D_Den | F130: C_AvDbh | G130: D_AvDbh | H130: C_AvHt | I130: D_AvHt | J130: C_Ba | K130: D_Ba | L130: C_Vol | M130: D_Vol | N130: C_Slndr | O130: D_Slndr | P130: stQMD | Q130: StVol | R130: stBa | S130: stDensity | T130: stavHt | U130: stavDbh | V130: C_Tden | W130: D_Tden | X130: C_TopHt | Y130: D_TopHt | Z130: stDenDead | AA130: C_DenDead | AB130: D_DenDead | AC130: stBaDead | AD130: C_BaDead | AE130: D_BaDead | AF130: stVolDead | AG130: C_VolDead | AH130: D_VolDead | AI130: stBaSurvGrowth | AJ130: C_BaSurvGrowth | AK130: D_BaSurvGrowth | AL130: stVolSurvGrowth | AM130: C_VolSurvGrowth | AN130: D_VolSurvGrowth | AO130: stBWood | AP130: stBBark | AQ130: stBBranch | AR130: stBFoliage | AS130: stBTotal | AT130: C_stBWood | AU130: D_stBWood | AV130: C_stBBark | AW130: D_stBBark | AX130: C_stBBranch | AY130: D_stBBranch | AZ130: C_stBFoliage | BA130: D_stBFoliage | BB130: C_stBTotal | BC130: D_stBTotal | BD130: stCC | BE130: Age2 | BF130: C_Tapr | BG130: D_Tapr | BH130: C_VPT | BI130: D_VPT | BJ130: C_Mai | BK130: D_Mai | BL130: C_space | BM130: D_space | BN130: C_TPM | BO130: D_TPM | BP130: C_netvalue | BQ130: D_netvalue | BR130: C_NPV | BS130: D_NPV | BT130: stNPV | BU130: SF | BV130: st_TDen | BW130: stMAI | BX130: stSlndr
A131: MED-1-5-M12-SW13-AW13 | B131: 1 | C131: 13 | D131: 901.875 | E131: 4425 | F131: 1.150938851 | G131: 4.903108457 | H131: 2.003041902 | I131: 7.311244392 | J131: 0.1363113642 | K131: 9.195146277 | L131: 0.1515307035 | M131: 33.16098298 | N131: 1.740354755 | O131: 1.491144742 | P131: 4.722734713 | Q131: 33.31251368 | R131: 9.331457641 | S131: 5326.875 | T131: 6.352818943 | U131: 4.225633389 | V131: 975 | W131: 4425 | X131: 2.637344426 | Y131: 10.04491043 | Z131: 0 | AA131: 0 | AB131: 0 | AC131: 0 | AD131: 0 | AE131: 0 | AF131: 0 | AG131: 0 | AH131: 0 | AI131: 0 | AJ131: 0 | AK131: 0 | AL131: 0 | AM131: 0 | AN131: 0 | AO131: 13771.15513 | AP131: 2760.639027 | AQ131: 3798.019109 | AR131: 7186.231894 | AS131: 27516.04516 | AT131: 104.3871418 | AU131: 13666.76799 | AV131: 33.38595346 | AW131: 2727.253073 | AX131: 36.26667157 | AY131: 3761.752437 | AZ131: 66.89188728 | BA131: 7119.340007 | BB131: 240.9316542 | BC131: 27275.1135 | BD131: 100 | BE131: 13 | BF131: 1.740354755 | BG131: 1.491144742 | BH131: 0.000168017412 | BI131: 0.007494007453 | BJ131: 0.01165620796 | BK131: 2.550844845 | BL131: 3.329866527 | BM131: 1.503292056 | BN131: 5951.764094 | BO131: 133.4399527 | BP131: -2.544892279 | BQ131: -225.8571764 | BR131: -1.349610711 | BS131: -119.7768828 | BT131: -121.1264935 | BU131: 0.2156737398 | BV131: 5400 | BW131: 2.562501053 | BX131: 1.503400404
A132: MED-1-5-M12-SW13-AW13 | B132: 1 | C132: 20 | D132: 860.5489684 | E132: 3294.285046 | F132: 4.929938636 | G132: 8.488926103 | H132: 4.26246193 | I132: 11.0703095 | J132: 1.659480171 | K132: 20.03259772 | L132: 3.32485845 | M132: 104.80576 | N132: 0.8646075021 | O132: 1.304088334 | P132: 8.153213178 | Q132: 108.1306185 | R132: 21.6920779 | S132: 4154.834014 | T132: 9.660268524 | U132: 7.751788835 | V132: 860.5489684 | W132: 3294.285046 | X132: 5.114021509 | Y132: 14.11435091 | Z132: 1245.083742 | AA132: 114.3687883 | AB132: 1130.714954 | AC132: 3.964461398 | AD132: 0.1068997766 | AE132: 3.857561621 | AF132: 17.43276065 | AG132: 0.1861454475 | AH132: 17.2466152 | AI132: 15.78488362 | AJ132: 1.598987693 | AK132: 14.18589593 | AL132: 89.26756113 | AM132: 3.301991538 | AN132: 85.9655696 | AO132: 46903.58939 | AP132: 10819.05618 | AQ132: 7289.385553 | AR132: 4355.837183 | AS132: 69367.86831 | AT132: 1924.721345 | AU132: 44978.86805 | AV132: 398.8490922 | AW132: 10420.20709 | AX132: 682.6947929 | AY132: 6606.69076 | AZ132: 1435.918103 | BA132: 2919.919079 | BB132: 4442.183334 | BC132: 64925.68497 | BD132: 100 | BE132: 20 | BF132: 0.8646075021 | BG132: 1.304088334 | BH132: 0.003863648174 | BI132: 0.03181441756 | BJ132: 0.1662429225 | BK132: 5.240288 | BL132: 3.408883865 | BM132: 1.742285862 | BN132: 258.8227383 | BO132: 31.43229004 | BP132: -28.43581805 | BQ132: -315.4832084 | BR132: -10.71716076 | BS132: -118.9023033 | BT132: -129.619464 | BU132: 0.1605957183 | BV132: 4154.834014 | BW132: 5.406530923 | BX132: 1.246198617
A133: MED-1-5-M12-SW13-AW13 | B133: 1 | C133: 30 | D133: 736.4860258 | E133: 2000.097118 | F133: 8.191391316 | G133: 13.32780066 | H133: 7.425318796 | I133: 15.16144063 | J133: 3.893122475 | K133: 29.08023376 | L133: 12.99100067 | M133: 201.5024783 | N133: 0.9064783392 | O133: 1.137580086 | P133: 12.38603528 | Q133: 214.493479 | R133: 32.97335623 | S133: 2736.583144 | T133: 13.07944811 | U133: 11.9454587 | V133: 736.4860258 | W133: 2000.097118 | X133: 8.318394099 | Y133: 18.36826366 | Z133: 1418.25087 | AA133: 124.0629426 | AB133: 1294.187928 | AC133: 8.924219281 | AD133: 0.4543994106 | AE133: 8.46981987 | AF133: 48.66223625 | AG133: 1.27590961 | AH133: 47.38632664 | AI133: 19.59282465 | AJ133: 2.646590791 | AK133: 16.94623386 | AL133: 150.7548856 | AM133: 10.77475869 | AN133: 139.9801269 | AO133: 85202.57765 | AP133: 18849.76434 | AQ133: 13519.42173 | AR133: 6219.748758 | AS133: 123791.5125 | AT133: 6013.414456 | AU133: 79189.1632 | AV133: 1087.273559 | AW133: 17762.49078 | AX133: 1668.518566 | AY133: 11850.90317 | AZ133: 2581.720904 | BA133: 3638.027854 | BB133: 11350.92749 | BC133: 112440.585 | BD133: 100 | BE133: 30 | BF133: 0.9064783392 | BG133: 1.137580086 | BH133: 0.01763916791 | BI133: 0.100746347 | BJ133: 0.4330333557 | BK133: 6.716749278 | BL133: 3.684832445 | BM133: 2.236013689 | BN133: 56.69201661 | BO133: 9.925918205 | BP133: -59.24715626 | BQ133: 4.032351474 | BR133: -13.70845586 | BS133: 0.932995196 | BT133: -12.77546066 | BU133: 0.1461525028 | BV133: 2736.583144 | BW133: 7.149782634 | BX133: 1.094930587
A134: MED-1-5-M12-SW13-AW13 | B134: 1 | C134: 40 | D134: 638.7952036 | E134: 1437.811663 | F134: 10.56486735 | G134: 17.11631353 | H134: 10.2499429 | I134: 18.23169634 | J134: 5.615397862 | K134: 34.27607031 | L134: 25.39722188 | M134: 279.9641796 | N134: 0.9701913487 | O134: 1.065164897 | P134: 15.63932219 | Q134: 305.3614015 | R134: 39.89146817 | S134: 2076.606866 | T134: 15.77639009 | U134: 15.1009911 | V134: 638.7952036 | W134: 1437.811663 | X134: 10.98196811 | Y134: 21.47115151 | Z134: 659.9762779 | AA134: 97.69082223 | AB134: 562.2854557 | AC134: 8.687267631 | AD134: 0.6947798271 | AE134: 7.992487804 | AF134: 58.34516812 | AG134: 2.793817253 | AH134: 55.55135086 | AI134: 15.25944249 | AJ134: 2.38302182 | AK134: 12.87642067 | AL134: 146.1421005 | AM134: 14.98688169 | AN134: 131.1552188 | AO134: 114737.2323 | AP134: 24727.26 | AQ134: 18301.42056 | AR134: 7171.922539 | AS134: 164937.8354 | AT134: 10043.78706 | AU134: 104693.4453 | AV134: 1693.385677 | AW134: 23033.87432 | AX134: 2457.495147 | AY134: 15843.92542 | AZ134: 3252.178253 | BA134: 3919.744285 | BB134: 17446.84614 | BC134: 147490.9893 | BD134: 100 | BE134: 40 | BF134: 0.9701913487 | BG134: 1.065164897 | BH134: 0.03975800341 | BI134: 0.1947154742 | BJ134: 0.634930547 | BK134: 6.999104491 | BL134: 3.956572943 | BM134: 2.637236021 | BN134: 25.15216848 | BO134: 5.135698661 | BP134: -61.56878564 | BQ134: 490.5576201 | BR134: -8.745580164 | BS134: 69.68159185 | BT134: 60.93601169 | BU134: 0.1390961857 | BV134: 2076.606866 | BW134: 7.634035038 | BX134: 1.044725475
A135: MED-1-5-M12-SW13-AW13 | B135: 1 | C135: 50 | D135: 559.3886636 | E135: 1135.598471 | F135: 12.49803819 | G135: 20.15553283 | H135: 12.67909319 | I135: 20.50581868 | J135: 6.8827144 | K135: 37.57523846 | L135: 38.04628509 | M135: 341.2049324 | N135: 1.014486674 | O135: 1.017379141 | P135: 18.27454559 | Q135: 379.2512175 | R135: 44.45795286 | S135: 1694.987135 | T135: 17.92280113 | U135: 17.62836575 | V135: 559.3886636 | W135: 1135.598471 | X135: 13.51731623 | Y135: 23.82505649 | Z135: 381.6197314 | AA135: 79.40654 | AB135: 302.2131914 | AC135: 7.892638662 | AD135: 0.8423594251 | AE135: 7.050279237 | AF135: 61.71877181 | AG135: 4.286944675 | AH135: 57.43182713 | AI135: 12.23946741 | AJ135: 2.08200571 | AK135: 10.1574617 | AL135: 133.3234689 | AM135: 16.71449751 | AN135: 116.6089714 | AO135: 137711.4722 | AP135: 29137.39481 | AQ135: 21986.5455 | AR135: 7687.402396 | AS135: 196522.8149 | AT135: 13567.40908 | AU135: 124144.0631 | AV135: 2183.862696 | AW135: 26953.53211 | AX135: 3054.127528 | AY135: 18932.41797 | AZ135: 3644.257486 | BA135: 4043.14491 | BB135: 22449.65679 | BC135: 174073.1581 | BD135: 100 | BE135: 50 | BF135: 1.014486674 | BG135: 1.017379141 | BH135: 0.06801404384 | BI135: 0.3004626556 | BJ135: 0.7609257017 | BK135: 6.824098647 | BL135: 4.228079742 | BM135: 2.967478632 | BN135: 14.70284582 | BO135: 3.328200631 | BP135: -38.53412825 | BQ135: 986.9513943 | BR135: -3.360319599 | BS135: 86.06583992 | BT135: 82.70552033 | BU135: 0.135522346 | BV135: 1694.987135 | BW135: 7.585024349 | BX135: 1.016702364
A136: MED-1-5-M12-SW13-AW13 | B136: 1 | C136: 60 | D136: 493.5361102 | E136: 942.0353589 | F136: 14.15332184 | G136: 22.67036341 | H136: 14.7426691 | I136: 22.21176413 | J136: 7.789654037 | K136: 39.56161539 | L136: 49.61100629 | M136: 386.4417058 | N136: 1.041640207 | O136: 0.979770978 | P136: 20.49313794 | Q136: 436.0527121 | R136: 47.35126943 | S136: 1435.571469 | T136: 19.64395877 | U136: 19.74228379 | V136: 493.5361102 | W136: 942.0353589 | X136: 15.70340745 | Y136: 25.67136902 | Z136: 259.4156657 | AA136: 65.8525534 | AB136: 193.5631123 | AC136: 7.351347432 | AD136: 0.9268872641 | AE136: 6.424460167 | AF136: 64.18742012 | AG136: 5.554483311 | AH136: 58.63293681 | AI136: 10.08915027 | AJ136: 1.811163912 | AK136: 8.277986357 | AL136: 119.1887625 | AM136: 16.90811659 | AN136: 102.2806459 | AO136: 155069.6777 | AP136: 32355.44734 | AQ136: 24745.65605 | AR136: 7928.75848 | AS136: 220099.5395 | AT136: 16503.4278 | AU136: 138566.2499 | AV136: 2566.65538 | AW136: 29788.79196 | AX136: 3492.258648 | AY136: 21253.3974 | AZ136: 3859.203352 | BA136: 4069.555129 | BB136: 26421.54518 | BC136: 193677.9943 | BD136: 100 | BE136: 60 | BF136: 1.041640207 | BG136: 0.979770978 | BH136: 0.1005215328 | BI136: 0.4102199584 | BJ136: 0.8268501049 | BK136: 6.440695096 | BL136: 4.501326684 | BM136: 3.258114915 | BN136: 9.948117304 | BO136: 2.437716594 | BP136: 0.7014368537 | BQ136: 1434.114847 | BR136: 0.03755178934 | BS136: 76.77608944 | BT136: 76.81364123 | BU136: 0.1343564675 | BV136: 1435.571469 | BW136: 7.267545201 | BX136: 0.9950195724
A137: MED-1-5-M12-SW13-AW13 | B137: 1 | C137: 70 | D137: 438.3430011 | E137: 785.5472693 | F137: 15.62600682 | G137: 24.96651452 | H137: 16.50163964 | I137: 23.68419565 | J137: 8.43599722 | K137: 40.10895836 | L137: 59.68346117 | M137: 414.42157 | N137: 1.05603689 | O137: 0.9486384505 | P137: 22.47273198 | Q137: 474.1050312 | R137: 48.54495558 | S137: 1223.89027 | T137: 21.11172389 | U137: 21.62116055 | V137: 438.3430011 | W137: 785.5472693 | X137: 17.52020203 | Y137: 27.15702891 | Z137: 211.6807669 | AA137: 55.19310908 | AB137: 156.4876578 | AC137: 7.368707109 | AD137: 0.9661230416 | AE137: 6.402584068 | AF137: 68.76579709 | AG137: 6.52246674 | AH137: 62.24333035 | AI137: 8.437726082 | AJ137: 1.593623632 | AK137: 6.84410245 | AL137: 105.2882455 | AM137: 16.40137776 | AN137: 88.88686777 | AO137: 166280.5417 | AP137: 34286.7712 | AQ137: 26519.84903 | AR137: 7940.460547 | AS137: 235027.6225 | AT137: 18930.72641 | AU137: 147349.8153 | AV137: 2864.50101 | AW137: 31422.27019 | AX137: 3813.124079 | AY137: 22706.72495 | AZ137: 3963.764892 | BA137: 3976.695655 | BB137: 29572.11639 | BC137: 205455.5061 | BD137: 100 | BE137: 70 | BF137: 1.05603689 | BG137: 0.9486384505 | BH137: 0.1361569844 | BI137: 0.5275577756 | BJ137: 0.8526208739 | BK137: 5.920308143 | BL137: 4.776315008 | BM137: 3.567909569 | BN137: 7.344463483 | BO137: 1.895526985 | BP137: 48.45179491 | BQ137: 1812.012965 | BR137: 1.59242481 | BS137: 59.55392172 | BT137: 61.14634653 | BU137: 0.1353957591 | BV137: 1223.89027 | BW137: 6.772929017 | BX137: 0.9764380521
A138: MED-1-5-M12-SW13-AW13 | B138: 1 | C138: 80 | D138: 391.8288629 | E138: 659.2074498 | F138: 16.97916203 | G138: 27.06993761 | H138: 18.01533134 | I138: 24.95619705 | J138: 8.906803687 | K138: 39.64740723 | L138: 68.34117784 | M138: 428.1206173 | N138: 1.061025939 | O138: 0.9219155735 | P138: 24.25267512 | Q138: 496.4617952 | R138: 48.55421092 | S138: 1051.036313 | T138: 22.36862564 | U138: 23.30807222 | V138: 391.8288629 | W138: 659.2074498 | X138: 19.05020778 | Y138: 28.36419017 | Z138: 172.8536018 | AA138: 46.51413822 | AB138: 126.3394636 | AC138: 7.209657927 | AD138: 0.9736421086 | AE138: 6.236015819 | AF138: 71.25187781 | AG138: 7.197381761 | AH138: 64.05449605 | AI138: 7.116801366 | AJ138: 1.428505784 | AK138: 5.688295583 | AL138: 92.29785811 | AM138: 15.680393 | AN138: 76.61746511 | AO138: 172569.0167 | AP138: 35210.82379 | AQ138: 27505.87324 | AR138: 7814.305839 | AS138: 243100.0196 | AT138: 20977.50138 | AU138: 151591.5154 | AV138: 3101.824442 | AW138: 32108.99935 | AX138: 4053.740143 | AY138: 23452.1331 | AZ138: 4002.759282 | BA138: 3811.546557 | BB138: 32135.82524 | BC138: 210964.1944 | BD138: 100 | BE138: 80 | BF138: 1.061025939 | BG138: 0.9219155735 | BH138: 0.1744158849 | BI138: 0.6494474805 | BJ138: 0.8542647229 | BK138: 5.351507717 | BL138: 5.0518656 | BM138: 3.894833947 | BN138: 5.733422737 | BO138: 1.53977039 | BP138: 99.96901049 | BQ138: 2105.849266 | BR138: 2.017072311 | BS138: 42.4896698 | BT138: 44.50674211 | BU138: 0.1378960539 | BV138: 1051.036313 | BW138: 6.20577244 | BX138: 0.9596943679
A139: MED-1-5-M12-SW13-AW13 | B139: 1 | C139: 90 | D139: 352.3972491 | E139: 549.0174871 | F139: 18.25408076 | G139: 29.14505363 | H139: 19.32938984 | I139: 26.15605029 | J139: 9.262853853 | K139: 38.33288047 | L139: 75.80340067 | M139: 429.4885782 | N139: 1.058907874 | O139: 0.8974438897 | P139: 25.92846152 | Q139: 505.2919788 | R139: 47.59573433 | S139: 901.4147361 | T139: 23.4872495 | U139: 24.88735878 | V139: 352.3972491 | W139: 549.0174871 | X139: 20.35051267 | Y139: 29.37854082 | Z139: 149.6212389 | AA139: 39.43161382 | AB139: 110.1896251 | AC139: 7.225744919 | AD139: 0.9620157011 | AE139: 6.263729218 | AF139: 74.34963361 | AG139: 7.636328814 | AH139: 66.7133048 | AI139: 6.178056189 | AJ139: 1.304335222 | AK139: 4.873720967 | AL139: 82.00470728 | AM139: 14.94148326 | AN139: 67.06322403 | AO139: 174732.6612 | AP139: 35291.29262 | AQ139: 27836.29793 | AR139: 7587.392164 | AS139: 245447.6439 | AT139: 22758.35568 | AU139: 151974.3055 | AV139: 3297.932362 | AW139: 31993.36026 | AX139: 4241.230854 | AY139: 23595.06708 | AZ139: 4003.979547 | BA139: 3583.412617 | BB139: 34301.49844 | BC139: 211146.1455 | BD139: 100 | BE139: 90 | BF139: 1.058907874 | BG139: 0.8974438897 | BH139: 0.2151078105 | BI139: 0.7822857892 | BJ139: 0.8422600074 | BK139: 4.772095313 | BL139: 5.32701286 | BM139: 4.267828028 | BN139: 4.648831661 | BO139: 1.27830521 | BP139: 152.6713871 | BQ139: 2322.690211 | BR139: 1.891127174 | BS139: 28.77096133 | BT139: 30.66208851 | BU139: 0.1418095608 | BV139: 901.4147361 | BW139: 5.61435532 | BX139: 0.9437421507
A140: MED-1-5-M12-SW13-AW13 | B140: 1 | C140: 100 | D140: 318.7304859 | E140: 457.578591 | F140: 19.48390133 | G140: 31.27116586 | H140: 20.48020065 | I140: 27.20403875 | J140: 9.550293669 | K140: 36.89432682 | L140: 82.35074992 | M140: 425.72705 | N140: 1.051134488 | O140: 0.869940023 | P140: 27.59976832 | Q140: 508.0777999 | R140: 46.44462049 | S140: 776.3090769 | T140: 24.44342156 | U140: 26.43164941 | V140: 318.7304859 | W140: 457.578591 | X140: 21.52254629 | Y140: 30.24032549 | Z140: 125.1052087 | AA140: 33.6667632 | AB140: 91.43844554 | AC140: 7.111892478 | AD140: 0.9410396833 | AE140: 6.170852794 | AF140: 76.44816548 | AG140: 7.910603429 | AH140: 68.53756206 | AI140: 5.875043269 | AJ140: 1.216391161 | AK140: 4.658652108 | AL140: 78.09407173 | AM140: 14.31582691 | AN140: 63.77824482 | AO140: 175993.2244 | AP140: 35192.68771 | AQ140: 28019.1145 | AR140: 7341.074234 | AS140: 246546.1009 | AT140: 24379.34683 | AU140: 151613.8776 | AV140: 3468.924454 | AW140: 31723.76326 | AX140: 4396.689391 | AY140: 23622.42511 | AZ140: 3985.728553 | BA140: 3355.34568 | BB140: 36230.68923 | BC140: 210315.4116 | BD140: 100 | BE140: 100 | BF140: 1.051134488 | BG140: 0.869940023 | BH140: 0.2583711116 | BI140: 0.9303911029 | BJ140: 0.8235074992 | BK140: 4.2572705 | BL140: 5.601291797 | BM140: 4.674844308 | BN140: 3.870401741 | BO140: 1.074816813 | BP140: 205.5303159 | BQ140: 2496.391664 | BR140: 1.562953232 | BS140: 18.98378544 | BT140: 20.54673867 | BU140: 0.146831985 | BV140: 776.3090769 | BW140: 5.080777999 | BX140: 0.9247785177
A141: MED-1-5-M12-SW13-AW13 | B141: 1 | C141: 110 | D141: 289.7589142 | E141: 386.8794161 | F141: 20.69842165 | G141: 33.06014705 | H141: 21.4942712 | I141: 27.97536841 | J141: 9.805859616 | K141: 34.9787764 | L141: 88.27302341 | M141: 412.4948179 | N141: 1.038449769 | O141: 0.8461961276 | P141: 29.02961564 | Q141: 500.7678413 | R141: 44.78463601 | S141: 676.6383303 | T141: 25.19994821 | U141: 27.76644734 | V141: 289.7589142 | W141: 386.8794161 | X141: 22.51492986 | Y141: 30.95913587 | Z141: 99.67074661 | AA141: 28.97157165 | AB141: 70.69917496 | AC141: 6.853984303 | AD141: 0.917105126 | AE141: 5.936879177 | AF141: 77.04376304 | AG141: 8.079631895 | AH141: 68.96413115 | AI141: 5.118329138 | AJ141: 1.161754076 | AK141: 3.956575062 | AL141: 68.70791061 | AM141: 13.87161981 | AN141: 54.8362908 | AO141: 173890.2377 | AP141: 34434.44312 | AQ141: 27654.21457 | AR141: 7072.235472 | AS141: 243051.1309 | AT141: 25941.83934 | AU141: 147948.3984 | AV141: 3628.825717 | AW141: 30805.61741 | AX141: 4537.308237 | AY141: 23116.90633 | AZ141: 3960.594141 | BA141: 3111.641331 | BB141: 38068.56744 | BC141: 204982.5635 | BD141: 100 | BE141: 110 | BF141: 1.038449769 | BG141: 0.8461961276 | BH141: 0.3046429949 | BI141: 1.066210299 | BJ141: 0.802482031 | BK141: 3.74995289 | BL141: 5.874644588 | BM141: 5.084077804 | BN141: 3.282530755 | BO141: 0.937901276 | BP141: 258.5401823 | BQ141: 2566.556743 | BR141: 1.206994116 | BS141: 11.98196296 | BT141: 13.18895707 | BU141: 0.1525534571 | BV141: 676.6383303 | BW141: 4.552434921 | BX141: 0.9075683286
A142: MED-1-5-M12-SW13-AW13 | B142: 1 | C142: 120 | D142: 264.7459895 | E142: 326.1032735 | F142: 21.88244548 | G142: 34.59288523 | H142: 22.39427042 | I142: 28.61327059 | J142: 10.01958237 | K142: 32.35395109 | L142: 93.49114131 | M142: 388.2385668 | N142: 1.023389751 | O142: 0.8271432233 | P142: 30.21788406 | Q142: 481.7297081 | R142: 42.37353345 | S142: 590.849263 | T142: 25.8266794 | U142: 28.89762899 | V142: 264.7459895 | W142: 326.1032735 | X142: 23.41207147 | Y142: 31.57143373 | Z142: 85.78906728 | AA142: 25.01292468 | AB142: 60.7761426 | AC142: 6.789655982 | AD142: 0.8886287944 | AE142: 5.901027188 | AF142: 78.43072375 | AG142: 8.139212191 | AH142: 70.29151156 | AI142: 4.312391022 | AJ142: 1.092623312 | AK142: 3.21976771 | AL142: 58.48200731 | AM142: 13.23956766 | AN142: 45.24243965 | AO142: 167441.859 | AP142: 32819.25633 | AQ142: 26590.95886 | AR142: 6754.555947 | AS142: 233606.6301 | AT142: 27388.86098 | AU142: 140052.998 | AV142: 3771.861656 | AW142: 29047.39467 | AX142: 4657.816217 | AY142: 21933.14264 | AZ142: 3927.185044 | BA142: 2827.370903 | BB142: 39745.7239 | BC142: 193860.9062 | BD142: 100 | BE142: 120 | BF142: 1.023389751 | BG142: 0.8271432233 | BH142: 0.3531352504 | BI142: 1.190538699 | BJ142: 0.7790928442 | BK142: 3.23532139 | BL142: 6.145897388 | BM142: 5.537610696 | BN142: 2.831776207 | BO142: 0.8399558966 | BP142: 310.1261187 | BQ142: 2528.201087 | BR142: 0.8888376767 | BS142: 7.245956549 | BT142: 8.134794225 | BU142: 0.1592916752 | BV142: 590.849263 | BW142: 4.014414234 | BX142: 0.8937300496
A143: MED-1-5-M12-SW13-AW13 | B143: 1 | C143: 130 | D143: 243.0770836 | E143: 273.3363591 | F143: 22.99726329 | G143: 35.87136082 | H143: 23.19877481 | I143: 29.14515163 | J143: 10.16235369 | K143: 29.19661317 | L143: 97.75286839 | M143: 355.3426693 | N143: 1.008762413 | O143: 0.8124908274 | P143: 31.15144057 | Q143: 453.0955377 | R143: 39.35896686 | S143: 516.4134426 | T143: 26.34617737 | U143: 29.8114913 | V143: 243.0770836 | W143: 273.3363591 | X143: 24.19912677 | Y143: 32.06834092 | Z143: 74.43582036 | AA143: 21.66890595 | AB143: 52.76691441 | AC143: 6.621202788 | AD143: 0.8548727315 | AE143: 5.766330057 | AF143: 78.10790499 | AG143: 8.090931074 | AH143: 70.01697392 | AI143: 3.550235923 | AJ143: 0.9892841579 | AK143: 2.560951765 | AL143: 48.6859376 | AM143: 12.249364 | AN143: 36.4365736 | AO143: 157291.0732 | AP143: 30494.48323 | AQ143: 24934.55367 | AR143: 6394.643248 | AS143: 219114.7533 | AT143: 28592.25021 | AU143: 128698.823 | AV143: 3883.78209 | AW143: 26610.70113 | AX143: 4743.637928 | AY143: 20190.91574 | AZ143: 3878.634113 | BA143: 2516.009135 | BB143: 41098.30434 | BC143: 178016.449 | BD143: 100 | BE143: 130 | BF143: 1.008762413 | BG143: 0.8124908274 | BH143: 0.4021476108 | BI143: 1.300019765 | BJ143: 0.7519451415 | BK143: 2.733405148 | BL143: 6.413985761 | BM143: 6.048550311 | BN143: 2.486649114 | BO143: 0.7692190742 | BP143: 357.6612514 | BQ143: 2396.162019 | BR143: 0.6293076521 | BS143: 4.216065029 | BT143: 4.845372681 | BU143: 0.1670258226 | BV143: 516.4134426 | BW143: 3.48535029 | BX143: 0.8837591218
A144: MED-1-5-M12-SW13-AW13 | B144: 1 | C144: 140 | D144: 224.2033732 | E144: 227.8710821 | F144: 24.01501481 | G144: 36.87180402 | H144: 23.9222195 | I144: 29.58042593 | J144: 10.22076147 | K144: 25.73706524 | L144: 100.9351735 | M144: 316.8731752 | N144: 0.9961359462 | O144: 0.8022505737 | P144: 31.82341578 | Q144: 417.8083487 | R144: 35.9578267 | S144: 452.0744554 | T144: 26.77427541 | U144: 30.49556339 | V144: 224.2033732 | W144: 227.8710821 | X144: 24.86939579 | Y144: 32.42185526 | Z144: 64.33898728 | AA144: 18.87371034 | AB144: 45.46527694 | AC144: 6.297010831 | AD144: 0.8168466004 | AE144: 5.48016423 | AF144: 75.54897392 | AG144: 7.951853654 | AH144: 67.59712027 | AI144: 2.84928373 | AJ144: 0.8682934901 | AK144: 1.98099024 | AL144: 39.60079342 | AM144: 11.04584474 | AN144: 28.55494868 | AO144: 144495.9692 | AP144: 27683.25211 | AQ144: 22855.98305 | AR144: 6006.674201 | AS144: 201041.8786 | AT144: 29483.13248 | AU144: 115012.8368 | AV144: 3957.450104 | AW144: 23725.80201 | AX144: 4787.902626 | AY144: 18068.08042 | AZ144: 3812.052152 | BA144: 2194.622049 | BB144: 42040.53736 | BC144: 159001.3412 | BD144: 100 | BE144: 140 | BF144: 0.9961359462 | BG144: 0.8022505737 | BH144: 0.4501947141 | BI144: 1.390580903 | BJ144: 0.7209655251 | BK144: 2.263379823 | BL144: 6.678499976 | BM144: 6.624534903 | BN144: 2.221261087 | BO144: 0.7191239271 | BP144: 399.2511176 | BQ144: 2192.848587 | BR144: 0.4312650566 | BS144: 2.368682085 | BT144: 2.799947142 | BU144: 0.1756617843 | BV144: 452.0744554 | BW144: 2.984345348 | BX144: 0.8779728076
A145: MED-1-5-M12-SW13-AW13 | B145: 1 | C145: 150 | D145: 207.6425282 | E145: 189.0650162 | F145: 24.93672767 | G145: 37.66034215 | H145: 24.57588542 | I145: 29.92808346 | J145: 10.2051632 | K145: 22.2785573 | L145: 103.1289669 | M145: 276.8186974 | N145: 0.985529687 | O145: 0.7946843218 | P145: 32.28886 | Q145: 379.9476643 | R145: 32.4837205 | S145: 396.7075444 | T145: 27.12666476 | U145: 31.00061633 | V145: 207.6425282 | W145: 189.0650162 | X145: 25.460553 | Y145: 32.55929168 | Z145: 55.36691096 | AA145: 16.56084505 | AB145: 38.80606592 | AC145: 5.843795196 | AD145: 0.777074467 | AE145: 5.066720729 | AF145: 71.06251975 | AG145: 7.752862334 | AH145: 63.30965741 | AI145: 2.330866188 | AJ145: 0.7557172951 | AK145: 1.575148893 | AL145: 32.64620409 | AM145: 9.871641443 | AN145: 22.77456265 | AO145: 130656.1668 | AP145: 24708.08562 | AQ145: 20610.96851 | AR145: 5615.709276 | AS145: 181590.9302 | AT145: 30081.84019 | AU145: 100574.3266 | AV145: 3996.409753 | AW145: 20711.67587 | AX145: 4795.366089 | AY145: 15815.60242 | AZ145: 3730.875154 | BA145: 1884.834122 | BB145: 42604.49118 | BC145: 138986.439 | BD145: 100 | BE145: 150 | BF145: 0.985529687 | BG145: 0.7946843218 | BH145: 0.4966659179 | BI145: 1.464145525 | BJ145: 0.6875264457 | BK145: 1.845457983 | BL145: 6.939718367 | BM145: 7.272678877 | BN145: 2.013425854 | BO145: 0.6829922183 | BP145: 434.5614081 | BQ145: 1953.173861 | BR145: 0.2881749955 | BS145: 1.295227459 | BT145: 1.583402455 | BU145: 0.1850837839 | BV145: 396.7075444 | BW145: 2.532984428 | BX145: 0.8750363049
A146: MED-1-5-M12-SW13-AW13 | B146: 1 | C146: 160 | D146: 192.9894127 | E146: 156.2740715 | F146: 25.75638675 | G146: 38.23086564 | H146: 25.16892558 | I146: 30.1973014 | J146: 10.11764426 | K146: 18.97030971 | L146: 104.3534506 | M146: 237.4167604 | N146: 0.977191631 | O146: 0.7898670588 | P146: 32.56379825 | Q146: 341.7702109 | R146: 29.08795397 | S146: 349.2634841 | T146: 27.41881656 | U146: 31.33795395 | V146: 192.9894127 | W146: 156.2740715 | X146: 26.00478888 | Y146: 32.39479802 | Z146: 47.44406027 | AA146: 14.65311553 | AB146: 32.79094474 | AC146: 5.300577638 | AD146: 0.7374432332 | AE146: 4.563134405 | AF146: 65.13873761 | AG146: 7.518651935 | AH146: 57.62008568 | AI146: 1.873224476 | AJ146: 0.645232091 | AK146: 1.227992385 | AL146: 26.50515253 | AM146: 8.680185352 | AN146: 17.82496718 | AO146: 116622.3212 | AP146: 21739.55231 | AQ146: 18337.57785 | AR146: 5232.208287 | AS146: 161931.6596 | AT146: 30382.63004 | AU146: 86239.69113 | AV146: 4000.828326 | AW146: 17738.72398 | AX146: 4766.844964 | AY146: 13570.73288 | AZ146: 3635.932889 | BA146: 1596.275398 | BB146: 42786.23621 | BC146: 119145.4234 | BD146: 100 | BE146: 160 | BF146: 0.977191631 | BG146: 0.7898670588 | BH146: 0.5407211158 | BI146: 1.519233217 | BJ146: 0.652209066 | BK146: 1.483854752 | BL146: 7.198354949 | BM146: 7.999383842 | BN146: 1.849382187 | BO146: 0.6582267875 | BP146: 463.0348385 | BQ146: 1698.213422 | BR146: 0.1885062774 | BS146: 0.6913602688 | BT146: 0.8798665463 | BU146: 0.1951527623 | BV146: 349.2634841 | BW146: 2.136063818 | BX146: 0.8749395894
A147: MED-1-5-M12-SW13-AW13 | B147: 1 | C147: 170 | D147: 179.9173322 | E147: 128.8893123 | F147: 26.48259216 | G147: 38.59947886 | H147: 25.70891969 | I147: 30.39844244 | J147: 9.970692993 | K147: 15.93566815 | L147: 104.730933 | M147: 200.5437629 | N147: 0.9707856214 | O147: 0.7875350482 | P147: 32.68247585 | Q147: 305.2746959 | R147: 25.90636115 | S147: 308.8066445 | T147: 27.66622655 | U147: 31.53992244 | V147: 179.9173322 | W147: 128.8893123 | X147: 26.48562825 | Y147: 31.91511772 | Z147: 40.45683961 | AA147: 13.07208041 | AB147: 27.38475921 | AC147: 4.693579454 | AD147: 0.6986451141 | AE147: 3.99493434 | AF147: 58.14165123 | AG147: 7.262096691 | AH147: 50.87955453 | AI147: 1.486983316 | AJ147: 0.5478737064 | AK147: 0.9391096095 | AL147: 21.28168597 | AM147: 7.586816043 | AN147: 13.69486992 | AO147: 103159.5263 | AP147: 18926.91698 | AQ147: 16158.71284 | AR147: 4867.329264 | AS147: 143112.4854 | AT147: 30422.80263 | AU147: 72736.72371 | AV147: 3975.785598 | AW147: 14951.13138 | AX147: 4708.311081 | AY147: 11450.40176 | AZ147: 3530.65147 | BA147: 1336.677794 | BB147: 42637.55078 | BC147: 100474.9346 | BD147: 100 | BE147: 170 | BF147: 0.9707856214 | BG147: 0.7875350482 | BH147: 0.5821058576 | BI147: 1.555937877 | BJ147: 0.6160643117 | BK147: 1.179669193 | BL147: 7.455272095 | BM147: 8.808288826 | BN147: 1.717900596 | BO147: 0.6426991816 | BP147: 485.0140337 | BQ147: 1447.050787 | BR147: 0.1212197721 | BS147: 0.3616620435 | BT147: 0.4828818156 | BU147: 0.2056869569 | BV147: 308.8066445 | BW147: 1.795733505 | BX147: 0.8771811852
A148: MED-1-5-M12-SW13-AW13 | B148: 1 | C148: 180 | D148: 168.1588104 | E148: 106.284663 | F148: 27.13091648 | G148: 38.81655027 | H148: 26.20205404 | I148: 30.54346141 | J148: 9.779989382 | K148: 13.26922201 | L148: 104.423365 | M148: 167.6661289 | N148: 0.9657636911 | O148: 0.786866973 | P148: 32.70066927 | Q148: 272.0894938 | R148: 23.0492114 | S148: 274.4434733 | T148: 27.88336573 | U148: 31.65645186 | V148: 168.1588104 | W148: 106.284663 | X148: 26.90749105 | Y148: 30.97661785 | Z148: 34.36317116 | AA148: 11.75852187 | AB148: 22.60464929 | AC148: 4.066048982 | AD148: 0.6620718576 | AE148: 3.403977124 | AF148: 50.65454356 | AG148: 7.002278981 | AH148: 43.65226458 | AI148: 1.189316299 | AJ148: 0.4682206253 | AK148: 0.7210956734 | AL148: 17.18193089 | AM148: 6.650114794 | AN148: 10.5318161 | AO148: 90922.18321 | AP148: 16394.53161 | AQ148: 14178.81643 | AR148: 4530.455333 | AS148: 126025.9866 | AT148: 30257.69142 | AU148: 60664.49179 | AV148: 3928.164964 | AW148: 12466.36665 | AX148: 4627.404093 | AY148: 9551.412337 | AZ148: 3418.979701 | BA148: 1111.475632 | BB148: 42232.24017 | BC148: 83793.74641 | BD148: 100 | BE148: 180 | BF148: 0.9657636911 | BG148: 0.786866973 | BH148: 0.6209806358 | BI148: 1.577519504 | BJ148: 0.5801298055 | BK148: 0.9314784936 | BL148: 7.711523508 | BM148: 9.699842893 | BN148: 1.610356173 | BO148: 0.6339065839 | BP148: 501.3359589 | BQ148: 1215.889307 | BR148: 0.07692278923 | BS148: 0.1865607188 | BT148: 0.2634835081 | BU148: 0.2164852698 | BV148: 274.4434733 | BW148: 1.511608299 | BX148: 0.8808114647
A149: MED-1-5-M12-SW13-AW13 | B149: 1 | C149: 190 | D149: 157.5018784 | E149: 87.79767255 | F149: 27.71363461 | G149: 38.92041963 | H149: 26.65365169 | I149: 30.64514192 | J149: 9.557048572 | K149: 10.99810119 | L149: 103.559566 | M149: 139.3659395 | N149: 0.9617522951 | O149: 0.7873795353 | P149: 32.66382238 | Q149: 242.9255054 | R149: 20.55514976 | S149: 245.299551 | T149: 28.08228681 | U149: 31.72476972 | V149: 157.5018784 | W149: 87.79767255 | X149: 27.31046212 | Y149: 30.64514192 | Z149: 29.14392237 | AA149: 10.65693194 | AB149: 18.48699043 | AC149: 3.46106828 | AD149: 0.6280644944 | AE149: 2.833003785 | AF149: 43.27322012 | AG149: 6.747053972 | AH149: 36.52616615 | AI149: 0.9518868558 | AJ149: 0.402501376 | AK149: 0.5493854798 | AL149: 13.88589975 | AM149: 5.845260698 | AN149: 8.040639049 | AO149: 80202.20862 | AP149: 14194.41081 | AQ149: 12444.66839 | AR149: 4224.789912 | AS149: 111066.0777 | AT149: 29930.31414 | AU149: 50271.89448 | AV149: 3863.179889 | AW149: 10331.23092 | AX149: 4529.78402 | AY149: 7914.884369 | AZ149: 3303.606355 | BA149: 921.1835565 | BB149: 41626.88441 | BC149: 69439.19332 | BD149: 100 | BE149: 190 | BF149: 0.9617522951 | BG149: 0.7873795353 | BH149: 0.6575132118 | BI149: 1.587353462 | BJ149: 0.5450503471 | BK149: 0.7335049447 | BL149: 7.968143213 | BM149: 10.67231164 | BN149: 1.520881987 | BO149: 0.6299794115 | BP149: 512.7513039 | BQ149: 1012.937393 | BR149: 0.04829920141 | BS149: 0.0954148079 | BT149: 0.1437140093 | BU149: 0.2273626659 | BV149: 245.299551 | BW149: 1.278555292 | BX149: 0.8851848903
A150: MED-1-5-M12-SW13-AW13 | B150: 1 | C150: 200 | D150: 147.7756186 | E150: 72.7658828 | F150: 28.24055735 | G150: 38.9662123 | H150: 27.06823051 | I150: 30.71573356 | J150: 9.310308076 | K150: 9.114737664 | L150: 102.2411206 | M150: 115.7153076 | N150: 0.9584878291 | O150: 0.7882658269 | P150: 32.61475971 | Q150: 217.9564282 | R150: 18.42504574 | S150: 220.5415014 | T150: 28.27169461 | U150: 31.77940036 | V150: 147.7756186 | W150: 72.7658828 | X150: 27.66323969 | Y150: 30.71573356 | Z150: 24.75804953 | AA150: 9.726259781 | AB150: 15.03178975 | AC150: 2.912969056 | AD150: 0.5968145166 | AE150: 2.31615454 | AF150: 36.48514491 | AG150: 6.502363057 | AH150: 29.98278185 | AI150: 0.7712107567 | AJ150: 0.3478664395 | AK150: 0.4233443172 | AL150: 11.34314357 | AM150: 5.151298258 | AN150: 6.191845313 | AO150: 71083.8268 | AP150: 12337.96874 | AQ150: 10969.80911 | AR150: 3950.315716 | AS150: 98341.92036 | AT150: 29473.93482 | AU150: 41609.89199 | AV150: 3784.766563 | AW150: 8553.202173 | AX150: 4419.634575 | AY150: 6550.174534 | AZ150: 3186.343445 | BA150: 763.9722715 | BB150: 40864.6794 | BC150: 57477.24096 | BD150: 100 | BE150: 200 | BF150: 0.9584878291 | BG150: 0.7882658269 | BH150: 0.6918673159 | BI150: 1.590241239 | BJ150: 0.5112056032 | BK150: 0.578576538 | BL150: 8.226187552 | BM150: 11.72292803 | BN150: 1.445363839 | BO150: 0.6288354091 | BP150: 519.9116788 | BQ150: 841.5931275 | BR150: 0.03006559196 | BS150: 0.04866787303 | BT150: 0.07873346499 | BU150: 0.2381787412 | BV150: 220.5415014 | BW150: 1.089782141 | BX150: 0.889623287
A153: ELAPSED TIME | B153: 00:00:07 | C153: Distribution Example CP
A155: ELAPSED TIME | B155: 00:00:08 | C155: For All CP

Sheet Yields
A1: YIELDS | C1: Distribution Example CP | E1: 12:52 18 Dec 2024 | G1: Distribution Example CP | BF1: Taper | BH1: Vol/tree | BJ1: Volume Mai | BL1: Spacing (m) | BN1: Trees/Vol
A2: stID | B2: stWT | C2: Age | D2: C_Den | E2: D_Den | F2: C_AvDbh | G2: D_AvDbh | H2: C_AvHt | I2: D_AvHt | J2: C_Ba | K2: D_Ba | L2: C_Vol | M2: D_Vol | N2: C_Slndr | O2: D_Slndr | P2: stQMD | Q2: StVol | R2: stBa | S2: stDensity | T2: stavHt | U2: stavDbh | V2: C_Tden | W2: D_Tden | X2: C_TopHt | Y2: D_TopHt | Z2: stDenDead | AA2: C_DenDead | AB2: D_DenDead | AC2: stBaDead | AD2: C_BaDead | AE2: D_BaDead | AF2: stVolDead | AG2: C_VolDead | AH2: D_VolDead | AI2: stBaSurvGrowth | AJ2: C_BaSurvGrowth | AK2: D_BaSurvGrowth | AL2: stVolSurvGrowth | AM2: C_VolSurvGrowth | AN2: D_VolSurvGrowth | AO2: stBWood | AP2: stBBark | AQ2: stBBranch | AR2: stBFoliage | AS2: stBTotal | AT2: C_stBWood | AU2: D_stBWood | AV2: C_stBBark | AW2: D_stBBark | AX2: C_stBBranch | AY2: D_stBBranch | AZ2: C_stBFoliage | BA2: D_stBFoliage | BB2: C_stBTotal | BC2: D_stBTotal | BD2: stCC | BE2: Age2 | BF2: C_Tapr | BG2: D_Tapr | BH2: C_VPT | BI2: D_VPT | BJ2: C_Mai | BK2: D_Mai | BL2: C_space | BM2: D_space | BN2: C_TPM | BO2: D_TPM | BP2: C_netvalue | BQ2: D_netvalue | BR2: C_NPV | BS2: D_NPV | BT2: stNPV | BU2: SF | BV2: st_TDen | BW2: stMAI | BX2: stSlndr
A3: MED-1-5-M12-SW13-AW13 | B3: 1 | C3: 13 | D3: 901.875 | E3: 4425 | F3: 1.150938851 | G3: 4.903108457 | H3: 2.003041902 | I3: 7.311244392 | J3: 0.1363113642 | K3: 9.195146277 | L3: 0.1515307035 | M3: 33.16098298 | N3: 1.740354755 | O3: 1.491144742 | P3: 4.722734713 | Q3: 33.31251368 | R3: 9.331457641 | S3: 5326.875 | T3: 6.352818943 | U3: 4.225633389 | V3: 975 | W3: 4425 | X3: 2.637344426 | Y3: 10.04491043 | Z3: 0 | AA3: 0 | AB3: 0 | AC3: 0 | AD3: 0 | AE3: 0 | AF3: 0 | AG3: 0 | AH3: 0 | AI3: 0 | AJ3: 0 | AK3: 0 | AL3: 0 | AM3: 0 | AN3: 0 | AO3: 13771.15513 | AP3: 2760.639027 | AQ3: 3798.019109 | AR3: 7186.231894 | AS3: 27516.04516 | AT3: 104.3871418 | AU3: 13666.76799 | AV3: 33.38595346 | AW3: 2727.253073 | AX3: 36.26667157 | AY3: 3761.752437 | AZ3: 66.89188728 | BA3: 7119.340007 | BB3: 240.9316542 | BC3: 27275.1135 | BD3: 100 | BE3: =C3 -> 13 | BF3: =H3/(F3) -> 1.740354755 | BG3: =I3/(G3) -> 1.491144742 | BH3: =L3/D3 -> 0.000168017412 | BI3: =M3/E3 -> 0.007494007453 | BJ3: =IF(L3 > 0, L3/$C3,0) -> 0.01165620796 | BK3: =IF(M3 > 0, M3/$C3,0) -> 2.550844845 | BL3: =SQRT(10000/D3) -> 3.329866527 | BM3: =SQRT(10000/E3) -> 1.503292056 | BN3: =D3/L3 -> 5951.764094 | BO3: =E3/M3 -> 133.4399527 | BP3: =(35 - (8.9465 - 2.6288 * LN($BH3)) - 20) * $L3 -> -2.544892279 | BQ3: =(35 - (8.9465 - 2.6288 * LN($BI3)) - 20) * $M3 -> -225.8571764 | BR3: =$BP3/(1+0.05)^$C3 -> -1.349610711 | BS3: =$BQ3/(1+0.05)^$C3 -> -119.7768828 | BT3: =SUM(BR3:BS3) -> -121.1264935 | BU3: =SQRT(10000/S3)/T3 -> 0.2156737398 | BV3: =V3+W3 -> 5400 | BW3: =Q3/C3 -> 2.562501053 | BX3: =IF(T3=0, 0,T3/U3) -> 1.503400404
A4: MED-1-5-M12-SW13-AW13 | B4: 1 | C4: 20 | D4: 860.5489684 | E4: 3294.285046 | F4: 4.929938636 | G4: 8.488926103 | H4: 4.26246193 | I4: 11.0703095 | J4: 1.659480171 | K4: 20.03259772 | L4: 3.32485845 | M4: 104.80576 | N4: 0.8646075021 | O4: 1.304088334 | P4: 8.153213178 | Q4: 108.1306185 | R4: 21.6920779 | S4: 4154.834014 | T4: 9.660268524 | U4: 7.751788835 | V4: 860.5489684 | W4: 3294.285046 | X4: 5.114021509 | Y4: 14.11435091 | Z4: 1245.083742 | AA4: 114.3687883 | AB4: 1130.714954 | AC4: 3.964461398 | AD4: 0.1068997766 | AE4: 3.857561621 | AF4: 17.43276065 | AG4: 0.1861454475 | AH4: 17.2466152 | AI4: 15.78488362 | AJ4: 1.598987693 | AK4: 14.18589593 | AL4: 89.26756113 | AM4: 3.301991538 | AN4: 85.9655696 | AO4: 46903.58939 | AP4: 10819.05618 | AQ4: 7289.385553 | AR4: 4355.837183 | AS4: 69367.86831 | AT4: 1924.721345 | AU4: 44978.86805 | AV4: 398.8490922 | AW4: 10420.20709 | AX4: 682.6947929 | AY4: 6606.69076 | AZ4: 1435.918103 | BA4: 2919.919079 | BB4: 4442.183334 | BC4: 64925.68497 | BD4: 100 | BE4: =C4 -> 20 | BF4: =H4/(F4) -> 0.8646075021 | BG4: =I4/(G4) -> 1.304088334 | BH4: =L4/D4 -> 0.003863648174 | BI4: =M4/E4 -> 0.03181441756 | BJ4: =IF(L4 > 0, L4/$C4,0) -> 0.1662429225 | BK4: =IF(M4 > 0, M4/$C4,0) -> 5.240288 | BL4: =SQRT(10000/D4) -> 3.408883865 | BM4: =SQRT(10000/E4) -> 1.742285862 | BN4: =D4/L4 -> 258.8227383 | BO4: =E4/M4 -> 31.43229004 | BP4: =(35 - (8.9465 - 2.6288 * LN($BH4)) - 20) * $L4 -> -28.43581805 | BQ4: =(35 - (8.9465 - 2.6288 * LN($BI4)) - 20) * $M4 -> -315.4832084 | BR4: =$BP4/(1+0.05)^$C4 -> -10.71716076 | BS4: =$BQ4/(1+0.05)^$C4 -> -118.9023033 | BT4: =SUM(BR4:BS4) -> -129.619464 | BU4: =SQRT(10000/S4)/T4 -> 0.1605957183 | BV4: =V4+W4 -> 4154.834014 | BW4: =Q4/C4 -> 5.406530923 | BX4: =IF(T4=0, 0,T4/U4) -> 1.246198617
A5: MED-1-5-M12-SW13-AW13 | B5: 1 | C5: 30 | D5: 736.4860258 | E5: 2000.097118 | F5: 8.191391316 | G5: 13.32780066 | H5: 7.425318796 | I5: 15.16144063 | J5: 3.893122475 | K5: 29.08023376 | L5: 12.99100067 | M5: 201.5024783 | N5: 0.9064783392 | O5: 1.137580086 | P5: 12.38603528 | Q5: 214.493479 | R5: 32.97335623 | S5: 2736.583144 | T5: 13.07944811 | U5: 11.9454587 | V5: 736.4860258 | W5: 2000.097118 | X5: 8.318394099 | Y5: 18.36826366 | Z5: 1418.25087 | AA5: 124.0629426 | AB5: 1294.187928 | AC5: 8.924219281 | AD5: 0.4543994106 | AE5: 8.46981987 | AF5: 48.66223625 | AG5: 1.27590961 | AH5: 47.38632664 | AI5: 19.59282465 | AJ5: 2.646590791 | AK5: 16.94623386 | AL5: 150.7548856 | AM5: 10.77475869 | AN5: 139.9801269 | AO5: 85202.57765 | AP5: 18849.76434 | AQ5: 13519.42173 | AR5: 6219.748758 | AS5: 123791.5125 | AT5: 6013.414456 | AU5: 79189.1632 | AV5: 1087.273559 | AW5: 17762.49078 | AX5: 1668.518566 | AY5: 11850.90317 | AZ5: 2581.720904 | BA5: 3638.027854 | BB5: 11350.92749 | BC5: 112440.585 | BD5: 100 | BE5: 30 | BF5: 0.9064783392 | BG5: 1.137580086 | BH5: 0.01763916791 | BI5: 0.100746347 | BJ5: 0.4330333557 | BK5: 6.716749278 | BL5: 3.684832445 | BM5: 2.236013689 | BN5: 56.69201661 | BO5: 9.925918205 | BP5: -59.24715626 | BQ5: 4.032351474 | BR5: -13.70845586 | BS5: 0.932995196 | BT5: -12.77546066 | BU5: 0.1461525028 | BV5: 2736.583144 | BW5: 7.149782634 | BX5: 1.094930587
A6: MED-1-5-M12-SW13-AW13 | B6: 1 | C6: 40 | D6: 638.7952036 | E6: 1437.811663 | F6: 10.56486735 | G6: 17.11631353 | H6: 10.2499429 | I6: 18.23169634 | J6: 5.615397862 | K6: 34.27607031 | L6: 25.39722188 | M6: 279.9641796 | N6: 0.9701913487 | O6: 1.065164897 | P6: 15.63932219 | Q6: 305.3614015 | R6: 39.89146817 | S6: 2076.606866 | T6: 15.77639009 | U6: 15.1009911 | V6: 638.7952036 | W6: 1437.811663 | X6: 10.98196811 | Y6: 21.47115151 | Z6: 659.9762779 | AA6: 97.69082223 | AB6: 562.2854557 | AC6: 8.687267631 | AD6: 0.6947798271 | AE6: 7.992487804 | AF6: 58.34516812 | AG6: 2.793817253 | AH6: 55.55135086 | AI6: 15.25944249 | AJ6: 2.38302182 | AK6: 12.87642067 | AL6: 146.1421005 | AM6: 14.98688169 | AN6: 131.1552188 | AO6: 114737.2323 | AP6: 24727.26 | AQ6: 18301.42056 | AR6: 7171.922539 | AS6: 164937.8354 | AT6: 10043.78706 | AU6: 104693.4453 | AV6: 1693.385677 | AW6: 23033.87432 | AX6: 2457.495147 | AY6: 15843.92542 | AZ6: 3252.178253 | BA6: 3919.744285 | BB6: 17446.84614 | BC6: 147490.9893 | BD6: 100 | BE6: 40 | BF6: 0.9701913487 | BG6: 1.065164897 | BH6: 0.03975800341 | BI6: 0.1947154742 | BJ6: 0.634930547 | BK6: 6.999104491 | BL6: 3.956572943 | BM6: 2.637236021 | BN6: 25.15216848 | BO6: 5.135698661 | BP6: -61.56878564 | BQ6: 490.5576201 | BR6: -8.745580164 | BS6: 69.68159185 | BT6: 60.93601169 | BU6: 0.1390961857 | BV6: 2076.606866 | BW6: 7.634035038 | BX6: 1.044725475
A7: MED-1-5-M12-SW13-AW13 | B7: 1 | C7: 50 | D7: 559.3886636 | E7: 1135.598471 | F7: 12.49803819 | G7: 20.15553283 | H7: 12.67909319 | I7: 20.50581868 | J7: 6.8827144 | K7: 37.57523846 | L7: 38.04628509 | M7: 341.2049324 | N7: 1.014486674 | O7: 1.017379141 | P7: 18.27454559 | Q7: 379.2512175 | R7: 44.45795286 | S7: 1694.987135 | T7: 17.92280113 | U7: 17.62836575 | V7: 559.3886636 | W7: 1135.598471 | X7: 13.51731623 | Y7: 23.82505649 | Z7: 381.6197314 | AA7: 79.40654 | AB7: 302.2131914 | AC7: 7.892638662 | AD7: 0.8423594251 | AE7: 7.050279237 | AF7: 61.71877181 | AG7: 4.286944675 | AH7: 57.43182713 | AI7: 12.23946741 | AJ7: 2.08200571 | AK7: 10.1574617 | AL7: 133.3234689 | AM7: 16.71449751 | AN7: 116.6089714 | AO7: 137711.4722 | AP7: 29137.39481 | AQ7: 21986.5455 | AR7: 7687.402396 | AS7: 196522.8149 | AT7: 13567.40908 | AU7: 124144.0631 | AV7: 2183.862696 | AW7: 26953.53211 | AX7: 3054.127528 | AY7: 18932.41797 | AZ7: 3644.257486 | BA7: 4043.14491 | BB7: 22449.65679 | BC7: 174073.1581 | BD7: 100 | BE7: 50 | BF7: 1.014486674 | BG7: 1.017379141 | BH7: 0.06801404384 | BI7: 0.3004626556 | BJ7: 0.7609257017 | BK7: 6.824098647 | BL7: 4.228079742 | BM7: 2.967478632 | BN7: 14.70284582 | BO7: 3.328200631 | BP7: -38.53412825 | BQ7: 986.9513943 | BR7: -3.360319599 | BS7: 86.06583992 | BT7: 82.70552033 | BU7: 0.135522346 | BV7: 1694.987135 | BW7: 7.585024349 | BX7: 1.016702364
A8: MED-1-5-M12-SW13-AW13 | B8: 1 | C8: 60 | D8: 493.5361102 | E8: 942.0353589 | F8: 14.15332184 | G8: 22.67036341 | H8: 14.7426691 | I8: 22.21176413 | J8: 7.789654037 | K8: 39.56161539 | L8: 49.61100629 | M8: 386.4417058 | N8: 1.041640207 | O8: 0.979770978 | P8: 20.49313794 | Q8: 436.0527121 | R8: 47.35126943 | S8: 1435.571469 | T8: 19.64395877 | U8: 19.74228379 | V8: 493.5361102 | W8: 942.0353589 | X8: 15.70340745 | Y8: 25.67136902 | Z8: 259.4156657 | AA8: 65.8525534 | AB8: 193.5631123 | AC8: 7.351347432 | AD8: 0.9268872641 | AE8: 6.424460167 | AF8: 64.18742012 | AG8: 5.554483311 | AH8: 58.63293681 | AI8: 10.08915027 | AJ8: 1.811163912 | AK8: 8.277986357 | AL8: 119.1887625 | AM8: 16.90811659 | AN8: 102.2806459 | AO8: 155069.6777 | AP8: 32355.44734 | AQ8: 24745.65605 | AR8: 7928.75848 | AS8: 220099.5395 | AT8: 16503.4278 | AU8: 138566.2499 | AV8: 2566.65538 | AW8: 29788.79196 | AX8: 3492.258648 | AY8: 21253.3974 | AZ8: 3859.203352 | BA8: 4069.555129 | BB8: 26421.54518 | BC8: 193677.9943 | BD8: 100 | BE8: 60 | BF8: 1.041640207 | BG8: 0.979770978 | BH8: 0.1005215328 | BI8: 0.4102199584 | BJ8: 0.8268501049 | BK8: 6.440695096 | BL8: 4.501326684 | BM8: 3.258114915 | BN8: 9.948117304 | BO8: 2.437716594 | BP8: 0.7014368537 | BQ8: 1434.114847 | BR8: 0.03755178934 | BS8: 76.77608944 | BT8: 76.81364123 | BU8: 0.1343564675 | BV8: 1435.571469 | BW8: 7.267545201 | BX8: 0.9950195724
A9: MED-1-5-M12-SW13-AW13 | B9: 1 | C9: 70 | D9: 438.3430011 | E9: 785.5472693 | F9: 15.62600682 | G9: 24.96651452 | H9: 16.50163964 | I9: 23.68419565 | J9: 8.43599722 | K9: 40.10895836 | L9: 59.68346117 | M9: 414.42157 | N9: 1.05603689 | O9: 0.9486384505 | P9: 22.47273198 | Q9: 474.1050312 | R9: 48.54495558 | S9: 1223.89027 | T9: 21.11172389 | U9: 21.62116055 | V9: 438.3430011 | W9: 785.5472693 | X9: 17.52020203 | Y9: 27.15702891 | Z9: 211.6807669 | AA9: 55.19310908 | AB9: 156.4876578 | AC9: 7.368707109 | AD9: 0.9661230416 | AE9: 6.402584068 | AF9: 68.76579709 | AG9: 6.52246674 | AH9: 62.24333035 | AI9: 8.437726082 | AJ9: 1.593623632 | AK9: 6.84410245 | AL9: 105.2882455 | AM9: 16.40137776 | AN9: 88.88686777 | AO9: 166280.5417 | AP9: 34286.7712 | AQ9: 26519.84903 | AR9: 7940.460547 | AS9: 235027.6225 | AT9: 18930.72641 | AU9: 147349.8153 | AV9: 2864.50101 | AW9: 31422.27019 | AX9: 3813.124079 | AY9: 22706.72495 | AZ9: 3963.764892 | BA9: 3976.695655 | BB9: 29572.11639 | BC9: 205455.5061 | BD9: 100 | BE9: 70 | BF9: 1.05603689 | BG9: 0.9486384505 | BH9: 0.1361569844 | BI9: 0.5275577756 | BJ9: 0.8526208739 | BK9: 5.920308143 | BL9: 4.776315008 | BM9: 3.567909569 | BN9: 7.344463483 | BO9: 1.895526985 | BP9: 48.45179491 | BQ9: 1812.012965 | BR9: 1.59242481 | BS9: 59.55392172 | BT9: 61.14634653 | BU9: 0.1353957591 | BV9: 1223.89027 | BW9: 6.772929017 | BX9: 0.9764380521
A10: MED-1-5-M12-SW13-AW13 | B10: 1 | C10: 80 | D10: 391.8288629 | E10: 659.2074498 | F10: 16.97916203 | G10: 27.06993761 | H10: 18.01533134 | I10: 24.95619705 | J10: 8.906803687 | K10: 39.64740723 | L10: 68.34117784 | M10: 428.1206173 | N10: 1.061025939 | O10: 0.9219155735 | P10: 24.25267512 | Q10: 496.4617952 | R10: 48.55421092 | S10: 1051.036313 | T10: 22.36862564 | U10: 23.30807222 | V10: 391.8288629 | W10: 659.2074498 | X10: 19.05020778 | Y10: 28.36419017 | Z10: 172.8536018 | AA10: 46.51413822 | AB10: 126.3394636 | AC10: 7.209657927 | AD10: 0.9736421086 | AE10: 6.236015819 | AF10: 71.25187781 | AG10: 7.197381761 | AH10: 64.05449605 | AI10: 7.116801366 | AJ10: 1.428505784 | AK10: 5.688295583 | AL10: 92.29785811 | AM10: 15.680393 | AN10: 76.61746511 | AO10: 172569.0167 | AP10: 35210.82379 | AQ10: 27505.87324 | AR10: 7814.305839 | AS10: 243100.0196 | AT10: 20977.50138 | AU10: 151591.5154 | AV10: 3101.824442 | AW10: 32108.99935 | AX10: 4053.740143 | AY10: 23452.1331 | AZ10: 4002.759282 | BA10: 3811.546557 | BB10: 32135.82524 | BC10: 210964.1944 | BD10: 100 | BE10: 80 | BF10: 1.061025939 | BG10: 0.9219155735 | BH10: 0.1744158849 | BI10: 0.6494474805 | BJ10: 0.8542647229 | BK10: 5.351507717 | BL10: 5.0518656 | BM10: 3.894833947 | BN10: 5.733422737 | BO10: 1.53977039 | BP10: 99.96901049 | BQ10: 2105.849266 | BR10: 2.017072311 | BS10: 42.4896698 | BT10: 44.50674211 | BU10: 0.1378960539 | BV10: 1051.036313 | BW10: 6.20577244 | BX10: 0.9596943679
A11: MED-1-5-M12-SW13-AW13 | B11: 1 | C11: 90 | D11: 352.3972491 | E11: 549.0174871 | F11: 18.25408076 | G11: 29.14505363 | H11: 19.32938984 | I11: 26.15605029 | J11: 9.262853853 | K11: 38.33288047 | L11: 75.80340067 | M11: 429.4885782 | N11: 1.058907874 | O11: 0.8974438897 | P11: 25.92846152 | Q11: 505.2919788 | R11: 47.59573433 | S11: 901.4147361 | T11: 23.4872495 | U11: 24.88735878 | V11: 352.3972491 | W11: 549.0174871 | X11: 20.35051267 | Y11: 29.37854082 | Z11: 149.6212389 | AA11: 39.43161382 | AB11: 110.1896251 | AC11: 7.225744919 | AD11: 0.9620157011 | AE11: 6.263729218 | AF11: 74.34963361 | AG11: 7.636328814 | AH11: 66.7133048 | AI11: 6.178056189 | AJ11: 1.304335222 | AK11: 4.873720967 | AL11: 82.00470728 | AM11: 14.94148326 | AN11: 67.06322403 | AO11: 174732.6612 | AP11: 35291.29262 | AQ11: 27836.29793 | AR11: 7587.392164 | AS11: 245447.6439 | AT11: 22758.35568 | AU11: 151974.3055 | AV11: 3297.932362 | AW11: 31993.36026 | AX11: 4241.230854 | AY11: 23595.06708 | AZ11: 4003.979547 | BA11: 3583.412617 | BB11: 34301.49844 | BC11: 211146.1455 | BD11: 100 | BE11: 90 | BF11: 1.058907874 | BG11: 0.8974438897 | BH11: 0.2151078105 | BI11: 0.7822857892 | BJ11: 0.8422600074 | BK11: 4.772095313 | BL11: 5.32701286 | BM11: 4.267828028 | BN11: 4.648831661 | BO11: 1.27830521 | BP11: 152.6713871 | BQ11: 2322.690211 | BR11: 1.891127174 | BS11: 28.77096133 | BT11: 30.66208851 | BU11: 0.1418095608 | BV11: 901.4147361 | BW11: 5.61435532 | BX11: 0.9437421507
A12: MED-1-5-M12-SW13-AW13 | B12: 1 | C12: 100 | D12: 318.7304859 | E12: 457.578591 | F12: 19.48390133 | G12: 31.27116586 | H12: 20.48020065 | I12: 27.20403875 | J12: 9.550293669 | K12: 36.89432682 | L12: 82.35074992 | M12: 425.72705 | N12: 1.051134488 | O12: 0.869940023 | P12: 27.59976832 | Q12: 508.0777999 | R12: 46.44462049 | S12: 776.3090769 | T12: 24.44342156 | U12: 26.43164941 | V12: 318.7304859 | W12: 457.578591 | X12: 21.52254629 | Y12: 30.24032549 | Z12: 125.1052087 | AA12: 33.6667632 | AB12: 91.43844554 | AC12: 7.111892478 | AD12: 0.9410396833 | AE12: 6.170852794 | AF12: 76.44816548 | AG12: 7.910603429 | AH12: 68.53756206 | AI12: 5.875043269 | AJ12: 1.216391161 | AK12: 4.658652108 | AL12: 78.09407173 | AM12: 14.31582691 | AN12: 63.77824482 | AO12: 175993.2244 | AP12: 35192.68771 | AQ12: 28019.1145 | AR12: 7341.074234 | AS12: 246546.1009 | AT12: 24379.34683 | AU12: 151613.8776 | AV12: 3468.924454 | AW12: 31723.76326 | AX12: 4396.689391 | AY12: 23622.42511 | AZ12: 3985.728553 | BA12: 3355.34568 | BB12: 36230.68923 | BC12: 210315.4116 | BD12: 100 | BE12: 100 | BF12: 1.051134488 | BG12: 0.869940023 | BH12: 0.2583711116 | BI12: 0.9303911029 | BJ12: 0.8235074992 | BK12: 4.2572705 | BL12: 5.601291797 | BM12: 4.674844308 | BN12: 3.870401741 | BO12: 1.074816813 | BP12: 205.5303159 | BQ12: 2496.391664 | BR12: 1.562953232 | BS12: 18.98378544 | BT12: 20.54673867 | BU12: 0.146831985 | BV12: 776.3090769 | BW12: 5.080777999 | BX12: 0.9247785177
A13: MED-1-5-M12-SW13-AW13 | B13: 1 | C13: 110 | D13: 289.7589142 | E13: 386.8794161 | F13: 20.69842165 | G13: 33.06014705 | H13: 21.4942712 | I13: 27.97536841 | J13: 9.805859616 | K13: 34.9787764 | L13: 88.27302341 | M13: 412.4948179 | N13: 1.038449769 | O13: 0.8461961276 | P13: 29.02961564 | Q13: 500.7678413 | R13: 44.78463601 | S13: 676.6383303 | T13: 25.19994821 | U13: 27.76644734 | V13: 289.7589142 | W13: 386.8794161 | X13: 22.51492986 | Y13: 30.95913587 | Z13: 99.67074661 | AA13: 28.97157165 | AB13: 70.69917496 | AC13: 6.853984303 | AD13: 0.917105126 | AE13: 5.936879177 | AF13: 77.04376304 | AG13: 8.079631895 | AH13: 68.96413115 | AI13: 5.118329138 | AJ13: 1.161754076 | AK13: 3.956575062 | AL13: 68.70791061 | AM13: 13.87161981 | AN13: 54.8362908 | AO13: 173890.2377 | AP13: 34434.44312 | AQ13: 27654.21457 | AR13: 7072.235472 | AS13: 243051.1309 | AT13: 25941.83934 | AU13: 147948.3984 | AV13: 3628.825717 | AW13: 30805.61741 | AX13: 4537.308237 | AY13: 23116.90633 | AZ13: 3960.594141 | BA13: 3111.641331 | BB13: 38068.56744 | BC13: 204982.5635 | BD13: 100 | BE13: 110 | BF13: 1.038449769 | BG13: 0.8461961276 | BH13: 0.3046429949 | BI13: 1.066210299 | BJ13: 0.802482031 | BK13: 3.74995289 | BL13: 5.874644588 | BM13: 5.084077804 | BN13: 3.282530755 | BO13: 0.937901276 | BP13: 258.5401823 | BQ13: 2566.556743 | BR13: 1.206994116 | BS13: 11.98196296 | BT13: 13.18895707 | BU13: 0.1525534571 | BV13: 676.6383303 | BW13: 4.552434921 | BX13: 0.9075683286
A14: MED-1-5-M12-SW13-AW13 | B14: 1 | C14: 120 | D14: 264.7459895 | E14: 326.1032735 | F14: 21.88244548 | G14: 34.59288523 | H14: 22.39427042 | I14: 28.61327059 | J14: 10.01958237 | K14: 32.35395109 | L14: 93.49114131 | M14: 388.2385668 | N14: 1.023389751 | O14: 0.8271432233 | P14: 30.21788406 | Q14: 481.7297081 | R14: 42.37353345 | S14: 590.849263 | T14: 25.8266794 | U14: 28.89762899 | V14: 264.7459895 | W14: 326.1032735 | X14: 23.41207147 | Y14: 31.57143373 | Z14: 85.78906728 | AA14: 25.01292468 | AB14: 60.7761426 | AC14: 6.789655982 | AD14: 0.8886287944 | AE14: 5.901027188 | AF14: 78.43072375 | AG14: 8.139212191 | AH14: 70.29151156 | AI14: 4.312391022 | AJ14: 1.092623312 | AK14: 3.21976771 | AL14: 58.48200731 | AM14: 13.23956766 | AN14: 45.24243965 | AO14: 167441.859 | AP14: 32819.25633 | AQ14: 26590.95886 | AR14: 6754.555947 | AS14: 233606.6301 | AT14: 27388.86098 | AU14: 140052.998 | AV14: 3771.861656 | AW14: 29047.39467 | AX14: 4657.816217 | AY14: 21933.14264 | AZ14: 3927.185044 | BA14: 2827.370903 | BB14: 39745.7239 | BC14: 193860.9062 | BD14: 100 | BE14: 120 | BF14: 1.023389751 | BG14: 0.8271432233 | BH14: 0.3531352504 | BI14: 1.190538699 | BJ14: 0.7790928442 | BK14: 3.23532139 | BL14: 6.145897388 | BM14: 5.537610696 | BN14: 2.831776207 | BO14: 0.8399558966 | BP14: 310.1261187 | BQ14: 2528.201087 | BR14: 0.8888376767 | BS14: 7.245956549 | BT14: 8.134794225 | BU14: 0.1592916752 | BV14: 590.849263 | BW14: 4.014414234 | BX14: 0.8937300496
A15: MED-1-5-M12-SW13-AW13 | B15: 1 | C15: 130 | D15: 243.0770836 | E15: 273.3363591 | F15: 22.99726329 | G15: 35.87136082 | H15: 23.19877481 | I15: 29.14515163 | J15: 10.16235369 | K15: 29.19661317 | L15: 97.75286839 | M15: 355.3426693 | N15: 1.008762413 | O15: 0.8124908274 | P15: 31.15144057 | Q15: 453.0955377 | R15: 39.35896686 | S15: 516.4134426 | T15: 26.34617737 | U15: 29.8114913 | V15: 243.0770836 | W15: 273.3363591 | X15: 24.19912677 | Y15: 32.06834092 | Z15: 74.43582036 | AA15: 21.66890595 | AB15: 52.76691441 | AC15: 6.621202788 | AD15: 0.8548727315 | AE15: 5.766330057 | AF15: 78.10790499 | AG15: 8.090931074 | AH15: 70.01697392 | AI15: 3.550235923 | AJ15: 0.9892841579 | AK15: 2.560951765 | AL15: 48.6859376 | AM15: 12.249364 | AN15: 36.4365736 | AO15: 157291.0732 | AP15: 30494.48323 | AQ15: 24934.55367 | AR15: 6394.643248 | AS15: 219114.7533 | AT15: 28592.25021 | AU15: 128698.823 | AV15: 3883.78209 | AW15: 26610.70113 | AX15: 4743.637928 | AY15: 20190.91574 | AZ15: 3878.634113 | BA15: 2516.009135 | BB15: 41098.30434 | BC15: 178016.449 | BD15: 100 | BE15: 130 | BF15: 1.008762413 | BG15: 0.8124908274 | BH15: 0.4021476108 | BI15: 1.300019765 | BJ15: 0.7519451415 | BK15: 2.733405148 | BL15: 6.413985761 | BM15: 6.048550311 | BN15: 2.486649114 | BO15: 0.7692190742 | BP15: 357.6612514 | BQ15: 2396.162019 | BR15: 0.6293076521 | BS15: 4.216065029 | BT15: 4.845372681 | BU15: 0.1670258226 | BV15: 516.4134426 | BW15: 3.48535029 | BX15: 0.8837591218
A16: MED-1-5-M12-SW13-AW13 | B16: 1 | C16: 140 | D16: 224.2033732 | E16: 227.8710821 | F16: 24.01501481 | G16: 36.87180402 | H16: 23.9222195 | I16: 29.58042593 | J16: 10.22076147 | K16: 25.73706524 | L16: 100.9351735 | M16: 316.8731752 | N16: 0.9961359462 | O16: 0.8022505737 | P16: 31.82341578 | Q16: 417.8083487 | R16: 35.9578267 | S16: 452.0744554 | T16: 26.77427541 | U16: 30.49556339 | V16: 224.2033732 | W16: 227.8710821 | X16: 24.86939579 | Y16: 32.42185526 | Z16: 64.33898728 | AA16: 18.87371034 | AB16: 45.46527694 | AC16: 6.297010831 | AD16: 0.8168466004 | AE16: 5.48016423 | AF16: 75.54897392 | AG16: 7.951853654 | AH16: 67.59712027 | AI16: 2.84928373 | AJ16: 0.8682934901 | AK16: 1.98099024 | AL16: 39.60079342 | AM16: 11.04584474 | AN16: 28.55494868 | AO16: 144495.9692 | AP16: 27683.25211 | AQ16: 22855.98305 | AR16: 6006.674201 | AS16: 201041.8786 | AT16: 29483.13248 | AU16: 115012.8368 | AV16: 3957.450104 | AW16: 23725.80201 | AX16: 4787.902626 | AY16: 18068.08042 | AZ16: 3812.052152 | BA16: 2194.622049 | BB16: 42040.53736 | BC16: 159001.3412 | BD16: 100 | BE16: 140 | BF16: 0.9961359462 | BG16: 0.8022505737 | BH16: 0.4501947141 | BI16: 1.390580903 | BJ16: 0.7209655251 | BK16: 2.263379823 | BL16: 6.678499976 | BM16: 6.624534903 | BN16: 2.221261087 | BO16: 0.7191239271 | BP16: 399.2511176 | BQ16: 2192.848587 | BR16: 0.4312650566 | BS16: 2.368682085 | BT16: 2.799947142 | BU16: 0.1756617843 | BV16: 452.0744554 | BW16: 2.984345348 | BX16: 0.8779728076
A17: MED-1-5-M12-SW13-AW13 | B17: 1 | C17: 150 | D17: 207.6425282 | E17: 189.0650162 | F17: 24.93672767 | G17: 37.66034215 | H17: 24.57588542 | I17: 29.92808346 | J17: 10.2051632 | K17: 22.2785573 | L17: 103.1289669 | M17: 276.8186974 | N17: 0.985529687 | O17: 0.7946843218 | P17: 32.28886 | Q17: 379.9476643 | R17: 32.4837205 | S17: 396.7075444 | T17: 27.12666476 | U17: 31.00061633 | V17: 207.6425282 | W17: 189.0650162 | X17: 25.460553 | Y17: 32.55929168 | Z17: 55.36691096 | AA17: 16.56084505 | AB17: 38.80606592 | AC17: 5.843795196 | AD17: 0.777074467 | AE17: 5.066720729 | AF17: 71.06251975 | AG17: 7.752862334 | AH17: 63.30965741 | AI17: 2.330866188 | AJ17: 0.7557172951 | AK17: 1.575148893 | AL17: 32.64620409 | AM17: 9.871641443 | AN17: 22.77456265 | AO17: 130656.1668 | AP17: 24708.08562 | AQ17: 20610.96851 | AR17: 5615.709276 | AS17: 181590.9302 | AT17: 30081.84019 | AU17: 100574.3266 | AV17: 3996.409753 | AW17: 20711.67587 | AX17: 4795.366089 | AY17: 15815.60242 | AZ17: 3730.875154 | BA17: 1884.834122 | BB17: 42604.49118 | BC17: 138986.439 | BD17: 100 | BE17: 150 | BF17: 0.985529687 | BG17: 0.7946843218 | BH17: 0.4966659179 | BI17: 1.464145525 | BJ17: 0.6875264457 | BK17: 1.845457983 | BL17: 6.939718367 | BM17: 7.272678877 | BN17: 2.013425854 | BO17: 0.6829922183 | BP17: 434.5614081 | BQ17: 1953.173861 | BR17: 0.2881749955 | BS17: 1.295227459 | BT17: 1.583402455 | BU17: 0.1850837839 | BV17: 396.7075444 | BW17: 2.532984428 | BX17: 0.8750363049
A18: MED-1-5-M12-SW13-AW13 | B18: 1 | C18: 160 | D18: 192.9894127 | E18: 156.2740715 | F18: 25.75638675 | G18: 38.23086564 | H18: 25.16892558 | I18: 30.1973014 | J18: 10.11764426 | K18: 18.97030971 | L18: 104.3534506 | M18: 237.4167604 | N18: 0.977191631 | O18: 0.7898670588 | P18: 32.56379825 | Q18: 341.7702109 | R18: 29.08795397 | S18: 349.2634841 | T18: 27.41881656 | U18: 31.33795395 | V18: 192.9894127 | W18: 156.2740715 | X18: 26.00478888 | Y18: 32.39479802 | Z18: 47.44406027 | AA18: 14.65311553 | AB18: 32.79094474 | AC18: 5.300577638 | AD18: 0.7374432332 | AE18: 4.563134405 | AF18: 65.13873761 | AG18: 7.518651935 | AH18: 57.62008568 | AI18: 1.873224476 | AJ18: 0.645232091 | AK18: 1.227992385 | AL18: 26.50515253 | AM18: 8.680185352 | AN18: 17.82496718 | AO18: 116622.3212 | AP18: 21739.55231 | AQ18: 18337.57785 | AR18: 5232.208287 | AS18: 161931.6596 | AT18: 30382.63004 | AU18: 86239.69113 | AV18: 4000.828326 | AW18: 17738.72398 | AX18: 4766.844964 | AY18: 13570.73288 | AZ18: 3635.932889 | BA18: 1596.275398 | BB18: 42786.23621 | BC18: 119145.4234 | BD18: 100 | BE18: 160 | BF18: 0.977191631 | BG18: 0.7898670588 | BH18: 0.5407211158 | BI18: 1.519233217 | BJ18: 0.652209066 | BK18: 1.483854752 | BL18: 7.198354949 | BM18: 7.999383842 | BN18: 1.849382187 | BO18: 0.6582267875 | BP18: 463.0348385 | BQ18: 1698.213422 | BR18: 0.1885062774 | BS18: 0.6913602688 | BT18: 0.8798665463 | BU18: 0.1951527623 | BV18: 349.2634841 | BW18: 2.136063818 | BX18: 0.8749395894
A19: MED-1-5-M12-SW13-AW13 | B19: 1 | C19: 170 | D19: 179.9173322 | E19: 128.8893123 | F19: 26.48259216 | G19: 38.59947886 | H19: 25.70891969 | I19: 30.39844244 | J19: 9.970692993 | K19: 15.93566815 | L19: 104.730933 | M19: 200.5437629 | N19: 0.9707856214 | O19: 0.7875350482 | P19: 32.68247585 | Q19: 305.2746959 | R19: 25.90636115 | S19: 308.8066445 | T19: 27.66622655 | U19: 31.53992244 | V19: 179.9173322 | W19: 128.8893123 | X19: 26.48562825 | Y19: 31.91511772 | Z19: 40.45683961 | AA19: 13.07208041 | AB19: 27.38475921 | AC19: 4.693579454 | AD19: 0.6986451141 | AE19: 3.99493434 | AF19: 58.14165123 | AG19: 7.262096691 | AH19: 50.87955453 | AI19: 1.486983316 | AJ19: 0.5478737064 | AK19: 0.9391096095 | AL19: 21.28168597 | AM19: 7.586816043 | AN19: 13.69486992 | AO19: 103159.5263 | AP19: 18926.91698 | AQ19: 16158.71284 | AR19: 4867.329264 | AS19: 143112.4854 | AT19: 30422.80263 | AU19: 72736.72371 | AV19: 3975.785598 | AW19: 14951.13138 | AX19: 4708.311081 | AY19: 11450.40176 | AZ19: 3530.65147 | BA19: 1336.677794 | BB19: 42637.55078 | BC19: 100474.9346 | BD19: 100 | BE19: 170 | BF19: 0.9707856214 | BG19: 0.7875350482 | BH19: 0.5821058576 | BI19: 1.555937877 | BJ19: 0.6160643117 | BK19: 1.179669193 | BL19: 7.455272095 | BM19: 8.808288826 | BN19: 1.717900596 | BO19: 0.6426991816 | BP19: 485.0140337 | BQ19: 1447.050787 | BR19: 0.1212197721 | BS19: 0.3616620435 | BT19: 0.4828818156 | BU19: 0.2056869569 | BV19: 308.8066445 | BW19: 1.795733505 | BX19: 0.8771811852
A20: MED-1-5-M12-SW13-AW13 | B20: 1 | C20: 180 | D20: 168.1588104 | E20: 106.284663 | F20: 27.13091648 | G20: 38.81655027 | H20: 26.20205404 | I20: 30.54346141 | J20: 9.779989382 | K20: 13.26922201 | L20: 104.423365 | M20: 167.6661289 | N20: 0.9657636911 | O20: 0.786866973 | P20: 32.70066927 | Q20: 272.0894938 | R20: 23.0492114 | S20: 274.4434733 | T20: 27.88336573 | U20: 31.65645186 | V20: 168.1588104 | W20: 106.284663 | X20: 26.90749105 | Y20: 30.97661785 | Z20: 34.36317116 | AA20: 11.75852187 | AB20: 22.60464929 | AC20: 4.066048982 | AD20: 0.6620718576 | AE20: 3.403977124 | AF20: 50.65454356 | AG20: 7.002278981 | AH20: 43.65226458 | AI20: 1.189316299 | AJ20: 0.4682206253 | AK20: 0.7210956734 | AL20: 17.18193089 | AM20: 6.650114794 | AN20: 10.5318161 | AO20: 90922.18321 | AP20: 16394.53161 | AQ20: 14178.81643 | AR20: 4530.455333 | AS20: 126025.9866 | AT20: 30257.69142 | AU20: 60664.49179 | AV20: 3928.164964 | AW20: 12466.36665 | AX20: 4627.404093 | AY20: 9551.412337 | AZ20: 3418.979701 | BA20: 1111.475632 | BB20: 42232.24017 | BC20: 83793.74641 | BD20: 100 | BE20: 180 | BF20: 0.9657636911 | BG20: 0.786866973 | BH20: 0.6209806358 | BI20: 1.577519504 | BJ20: 0.5801298055 | BK20: 0.9314784936 | BL20: 7.711523508 | BM20: 9.699842893 | BN20: 1.610356173 | BO20: 0.6339065839 | BP20: 501.3359589 | BQ20: 1215.889307 | BR20: 0.07692278923 | BS20: 0.1865607188 | BT20: 0.2634835081 | BU20: 0.2164852698 | BV20: 274.4434733 | BW20: 1.511608299 | BX20: 0.8808114647
A21: MED-1-5-M12-SW13-AW13 | B21: 1 | C21: 190 | D21: 157.5018784 | E21: 87.79767255 | F21: 27.71363461 | G21: 38.92041963 | H21: 26.65365169 | I21: 30.64514192 | J21: 9.557048572 | K21: 10.99810119 | L21: 103.559566 | M21: 139.3659395 | N21: 0.9617522951 | O21: 0.7873795353 | P21: 32.66382238 | Q21: 242.9255054 | R21: 20.55514976 | S21: 245.299551 | T21: 28.08228681 | U21: 31.72476972 | V21: 157.5018784 | W21: 87.79767255 | X21: 27.31046212 | Y21: 30.64514192 | Z21: 29.14392237 | AA21: 10.65693194 | AB21: 18.48699043 | AC21: 3.46106828 | AD21: 0.6280644944 | AE21: 2.833003785 | AF21: 43.27322012 | AG21: 6.747053972 | AH21: 36.52616615 | AI21: 0.9518868558 | AJ21: 0.402501376 | AK21: 0.5493854798 | AL21: 13.88589975 | AM21: 5.845260698 | AN21: 8.040639049 | AO21: 80202.20862 | AP21: 14194.41081 | AQ21: 12444.66839 | AR21: 4224.789912 | AS21: 111066.0777 | AT21: 29930.31414 | AU21: 50271.89448 | AV21: 3863.179889 | AW21: 10331.23092 | AX21: 4529.78402 | AY21: 7914.884369 | AZ21: 3303.606355 | BA21: 921.1835565 | BB21: 41626.88441 | BC21: 69439.19332 | BD21: 100 | BE21: 190 | BF21: 0.9617522951 | BG21: 0.7873795353 | BH21: 0.6575132118 | BI21: 1.587353462 | BJ21: 0.5450503471 | BK21: 0.7335049447 | BL21: 7.968143213 | BM21: 10.67231164 | BN21: 1.520881987 | BO21: 0.6299794115 | BP21: 512.7513039 | BQ21: 1012.937393 | BR21: 0.04829920141 | BS21: 0.0954148079 | BT21: 0.1437140093 | BU21: 0.2273626659 | BV21: 245.299551 | BW21: 1.278555292 | BX21: 0.8851848903
A22: MED-1-5-M12-SW13-AW13 | B22: 1 | C22: 200 | D22: 147.7756186 | E22: 72.7658828 | F22: 28.24055735 | G22: 38.9662123 | H22: 27.06823051 | I22: 30.71573356 | J22: 9.310308076 | K22: 9.114737664 | L22: 102.2411206 | M22: 115.7153076 | N22: 0.9584878291 | O22: 0.7882658269 | P22: 32.61475971 | Q22: 217.9564282 | R22: 18.42504574 | S22: 220.5415014 | T22: 28.27169461 | U22: 31.77940036 | V22: 147.7756186 | W22: 72.7658828 | X22: 27.66323969 | Y22: 30.71573356 | Z22: 24.75804953 | AA22: 9.726259781 | AB22: 15.03178975 | AC22: 2.912969056 | AD22: 0.5968145166 | AE22: 2.31615454 | AF22: 36.48514491 | AG22: 6.502363057 | AH22: 29.98278185 | AI22: 0.7712107567 | AJ22: 0.3478664395 | AK22: 0.4233443172 | AL22: 11.34314357 | AM22: 5.151298258 | AN22: 6.191845313 | AO22: 71083.8268 | AP22: 12337.96874 | AQ22: 10969.80911 | AR22: 3950.315716 | AS22: 98341.92036 | AT22: 29473.93482 | AU22: 41609.89199 | AV22: 3784.766563 | AW22: 8553.202173 | AX22: 4419.634575 | AY22: 6550.174534 | AZ22: 3186.343445 | BA22: 763.9722715 | BB22: 40864.6794 | BC22: 57477.24096 | BD22: 100 | BE22: 200 | BF22: 0.9584878291 | BG22: 0.7882658269 | BH22: 0.6918673159 | BI22: 1.590241239 | BJ22: 0.5112056032 | BK22: 0.578576538 | BL22: 8.226187552 | BM22: 11.72292803 | BN22: 1.445363839 | BO22: 0.6288354091 | BP22: 519.9116788 | BQ22: 841.5931275 | BR22: 0.03006559196 | BS22: 0.04866787303 | BT22: 0.07873346499 | BU22: 0.2381787412 | BV22: 220.5415014 | BW22: 1.089782141 | BX22: 0.889623287

Sheet YieldTables

Sheet Charts
A1: Charts include only utilized trees (except for the st_Tden/stQMD where total density is used)

Sheet MyCharts
A1: Charts include only utilized trees except for C_Tden and D_Tden

Sheet Graphs
A1: YIELDS | C1: Distribution Example CP | E1: 12:52 18 Dec 2024 | G1: Distribution Example CP

Sheet Stand
A1: STAND | B1: Stand ID | C1: MED-1-5-M12-SW13-AW13 | D1: Stand WT | E1: 1
B2: DateRun | C2: 2024-12-18T12:52:00 | D2: Gap Area PC | E2: 0 | AA2: This Range of cells is reserved for internal use! DO NOT modify it!
B3: standAge | C3: 200 | D3: TopLight | E3: -1
B4: Year | C4: 2191 | D4: CMI | E4: 6.5
B5: Region | C5: 1
B6: SubRegion | C6: 1
B7: CropPlanID | C7: Distribution Example CP
B8: CropPlansID | C8: Distribution Example CP
A10: YearsToBH | B10: Stand summary | C10: Site | D10: stAvD | E10: stQMD | F10: stmaxD | G10: stAvDIncr | H10: stAvH | I10: stTopH | J10: stTopHIncr | K10: stmaxH | L10: stAvAge | M10: stAvBHAge | N10: stBa | O10: stDen | P10: stNuDen | Q10: stTotDen | R10: strelBa | S10: strelDen | T10: strelTotDen | U10: stSF | V10: stVol | W10: stGrVol | X10: stMatDen | Y10: stJuvDen | Z10: stAvJvHt | AA10: stTopD | AB10: stDenDead | AC10: stBaDead | AD10: stVolDead | AE10: stBaSurvGrowth | AF10: stVolSurvGrowth | AG10: stMAI | AH10: stMaxMAI | AI10: stBWood | AJ10: stBBark | AK10: stBBranch | AL10: stBFoliage | AM10: stBTotal | AN10: stCC
B11: All | D11: =IF($Q11>0,SUM(trDbh*trpha)/$Q11,0) -> 31.77940036 | E11: =IF($O11>0,200*SQRT(($N11/$O11)/PI()),0) -> 32.61475971 | F11: =IF(ISERROR(trpha),0,MAX(IF(trUtil,trDbh,0))) -> 59.01921308 | G11: =IF(ISERROR(trpha),0,IF(SUM(IF(trUtil*trDbhIncr>0,trpha,0))>0,SUM(IF(trUtil*trDbhIncr>0,trDbhIncr*trpha,0))/SUM(IF(trUtil*trDbhIncr>0,trpha,0)),0)) -> 0.05950043759 | H11: =IF($Q11>0,SUM(trHt* trpha)/$Q11,0) -> 28.27169461 | I11: =IF($Q11>0,toptreesav(trList,$B11),0) -> 30.49934457 | J11: =IF($Q11>0,toptreesav(trList,$B11,13),0) -> 0.0334911923 | K11: =IF(ISERROR(trpha),0,MAX(IF(trUtil,trHt,0))) -> 35.04420982 | L11: =IF($O11>0,SUM(IF(trUtil,trAge* trpha),0)/$O11,0) -> 196.2488731 | M11: =IF($O11>0,SUM(IF(trUtil,trBHAge* trpha),0)/$O11,0) -> 191.1395667 | N11: =IF(ISERROR(trpha),0,SUM(IF(trUtil,trBaHa,0))) -> 18.42504574 | O11: =IF(ISERROR(trpha),0,SUM(IF(trUtil,trpha,0))) -> 220.5415014 | P11: =IF(ISERROR(trpha),0,SUM(IF(NOT(trUtil),trpha,0))) -> 0 | Q11: =IF(ISERROR(trpha),0,SUM(trpha)) -> 220.5415014 | R11: =SUM(R12:R13) -> 1 | S11: =SUM(S12:S13) -> 1 | T11: =SUM(T12:T13) -> 1 | U11: =IF($O11>0,SQRT(10000/$O11)/$H11,1) -> 0.2381787412 | V11: =IF(ISERROR(trpha),0,SUM(IF(NAErr<>trVol,trUtil*trpha*trVol*trVRF,0))) -> 217.9564282 | W11: =IF(ISERROR(trpha),0,SUM(IF(NAErr<>trVol,trUtil*trpha*trVol,0))) -> 217.9564282 | X11: =IF(ISERROR(trpha),0,SUM(IF(NOT(trJuv),trpha,0))) -> 220.5415014 | Y11: =IF(ISERROR(trpha),0,SUM(IF(trJuv,trpha,0))) -> 0 | Z11: =IF($Y11>0,SUM(IF(trJuv,trHt* trpha),0)/$Y11,0) -> 0 | AA11: =IF($O11>0,toptreesav(trList,$B11,colTrDbh),0) -> 37.21098356 | AB11: =IF(COUNT(trpha)=0,0,SUMPRODUCT((trPsurv>0)*trpha*(1/trPsurv-1))) -> 2.300884847 | AC11: =IF(COUNT(trpha)=0,0,SUMPRODUCT((trBaHa>0)*(trPsurv>0)*trBaHa*(1/trPsurv-1))) -> 0.2687189457 | AD11: =IF(COUNT(trpha)=0,0,SUMPRODUCT((trPsurv>0)*(trVol>0)*trUtil*trVol*(trpha/trPsurv-trpha))) -> 3.366904532 | AE11: =IF(AD11=0,0,$N11-SUMPRODUCT(trUtil*(trHtIncr>0)*trpha*PI()*((trDbh-trDbhIncr)/200)^2)) -> 0.06997286808 | AF11: =IF(COUNT(trpha)=0,0,SUMPRODUCT(trUtil*(trHtIncr>0)*trpha*trVolSurvGrth)) -> 1.03383204 | AG11: =W11/nwsStandAge -> 1.089782141 | AH11: 0 | AI11: =IF(COUNT(trpha)=0,0,SUMPRODUCT(trUtil*trpha*trBWood)) -> 71083.8268 | AJ11: =IF(COUNT(trpha)=0,0,SUMPRODUCT(trUtil*trpha*trBBark)) -> 12337.96874 | AK11: =IF(COUNT(trpha)=0,0,SUMPRODUCT(trUtil*trpha*trBBranch)) -> 10969.80911 | AL11: =IF(COUNT(trpha)=0,0,SUMPRODUCT(trUtil*trpha*trBFoliage)) -> 3950.315716 | AM11: =IF(COUNT(trpha)=0,0,SUMPRODUCT(trUtil*trpha*trBTotal)) -> 98341.92036 | AN11: =IF(COUNT(trpha)=0,0,100*(1-EXP(-SUMPRODUCT((trDbh>0)*trpha,PI()*(trCWidth/2)^2)/10000))) -> 100
B12: Con | D12: =IF($Q12>0,SUM(trDbh* trpha*(trSppgrp=$B12))/$Q12,0) -> 28.24055735 | E12: =IF($O12>0,200*SQRT(($N12/$O12)/PI()),0) -> 28.32276782 | F12: =IF(ISERROR(trpha),0,MAX(IF(trUtil,trDbh*(trSppgrp=$B12),0))) -> 31.7165077 | G12: =IF(ISERROR(trpha),0,IF(SUM(IF(trUtil*trDbhIncr>0,trpha*(trSppgrp=$B12),0))>0,SUM(IF(trUtil*trDbhIncr>0,trDbhIncr*trpha*(trSppgrp=$B12),0))/SUM(IF(trUtil*trDbhIncr>0,trpha*(trSppgrp=$B12),0)),0)) -> 0.04958653627 | H12: =IF($Q12>0,SUM(trHt*trpha*(trSppgrp=$B12))/$Q12,0) -> 27.06823051 | I12: =IF($Q12>0,toptreesav(trList,$B12),0) -> 27.66323969 | J12: =IF($Q12>0,toptreesav(trList,$B12,13),0) -> 0.04005106815 | K12: =IF(ISERROR(trpha),0,MAX(IF(trUtil,trHt*(trSppgrp=$B12),0))) -> 29.11514238 | L12: =IF($O12>0,SUM(IF(trUtil,trAge* trpha*(trSppgrp=$B12),0))/$O12,0) -> 195.5417828 | M12: =IF($O12>0,SUM(IF(trUtil,trBHAge* trpha*(trSppgrp=$B12),0))/$O12,0) -> 188.880082 | N12: =IF(ISERROR(trpha),0,SUM(IF(trUtil,trBaHa*(trSppgrp=$B12)))) -> 9.310308076 | O12: =IF(ISERROR(trpha),0,SUM(IF(trUtil,trpha*(trSppgrp=$B12),0))) -> 147.7756186 | P12: =IF(ISERROR(trpha),0,SUM(IF(NOT(trUtil),trpha*(trSppgrp=$B12),0))) -> 0 | Q12: =IF(ISERROR(trpha),0,SUM(trpha*(trSppgrp=$B12))) -> 147.7756186 | R12: =IF($N12>0,$N12/stBa,0) -> 0.5053071893 | S12: =IF($O12>0,$O12/stDen,0) -> 0.6700580965 | T12: =IF($O12>0,$O12/stDen,0) -> 0.6700580965 | U12: 0.3039056265 | V12: =IF(ISERROR(trpha),0,SUM(IF(NAErr<>trVol,trUtil*trVol*trVRF*trpha*(trSppgrp=$B12),0))) -> 102.2411206 | W12: =IF(ISERROR(trpha),0,SUM(IF(NAErr<>trVol,trUtil*trVol*trpha*(trSppgrp=$B12),0))) -> 102.2411206 | X12: =IF(ISERROR(trpha),0,SUM(IF(NOT(trJuv),trpha*(trSppgrp=$B12),0))) -> 147.7756186 | Y12: =IF(ISERROR(trpha),0,SUM(IF(trJuv,trpha*(trSppgrp=$B12),0))) -> 0 | Z12: =IF($Y12>0,SUM(IF(trJuv,trHt*trpha*(trSppgrp=$B12),0))/$Y12,0) -> 0 | AA12: =IF($O12>0,toptreesav(trList,$B12,colTrDbh),0) -> 29.46181968 | AB12: =IF(COUNT(trpha)=0,0,SUMPRODUCT((trPsurv>0)*trpha*(trSppgrp=$B12)*(1/trPsurv-1))) -> 0.9347913721 | AC12: =IF(COUNT(trpha)=0,0,SUMPRODUCT((trPsurv>0)*(trBaHa>0)*trBaHa*(trSppgrp=$B12)*(1/trPsurv-1))) -> 0.05834532151 | AD12: =IF(COUNT(trpha)=0,0,SUMPRODUCT((trPsurv>0)*(trVol>0)*(trSppgrp=$B12)*trUtil*trVol*(trpha/trPsurv-trpha))) -> 0.6395042302 | AE12: =IF(AD12=0,0,$N12-SUMPRODUCT(trUtil*(trHtIncr>0)*(trSppgrp=$B12)*trpha*PI()*((trDbh-trDbhIncr)/200)^2)) -> 0.03259565133 | AF12: =IF(COUNT(trpha)=0,0,SUMPRODUCT(trUtil*(trHtIncr>0)*(trSppgrp=$B12)*trpha*trVolSurvGrth)) -> 0.4866950983 | AG12: 0.5112056032 | AH12: 0 | AI12: =IF(COUNT(trpha)=0,0,SUMPRODUCT(trUtil*(trSppgrp=$B12)*trpha*trBWood)) -> 29473.93482 | AJ12: =IF(COUNT(trpha)=0,0,SUMPRODUCT(trUtil*(trSppgrp=$B12)*trpha*trBBark)) -> 3784.766563 | AK12: =IF(COUNT(trpha)=0,0,SUMPRODUCT(trUtil*(trSppgrp=$B12)*trpha*trBBranch)) -> 4419.634575 | AL12: =IF(COUNT(trpha)=0,0,SUMPRODUCT(trUtil*(trSppgrp=$B12)*trpha*trBFoliage)) -> 3186.343445 | AM12: =IF(COUNT(trpha)=0,0,SUMPRODUCT(trUtil*(trSppgrp=$B12)*trpha*trBTotal)) -> 40864.6794 | AN12: =IF(COUNT(trpha)=0,0,100*(1-EXP(-SUMPRODUCT((trDbh>0)*trpha*(trSppgrp=$B12),PI()*(trCWidth/2)^2)/10000))) -> 100
B13: Dec | D13: =IF($Q13>0,SUM(trDbh* trpha*(trSppgrp=$B13))/$Q13,0) -> 38.9662123 | E13: =IF($O13>0,200*SQRT(($N13/$O13)/PI()),0) -> 39.93587872 | F13: =IF(ISERROR(trpha),0,MAX(IF(trUtil,trDbh*(trSppgrp=$B13),0))) -> 59.01921308 | G13: =IF(ISERROR(trpha),0,IF(SUM(IF(trUtil*trDbhIncr>0,trpha*(trSppgrp=$B13),0))>0,SUM(IF(trUtil*trDbhIncr>0,trDbhIncr*trpha*(trSppgrp=$B13),0))/SUM(IF(trUtil*trDbhIncr>0,trpha*(trSppgrp=$B13),0)),0)) -> 0.07963395133 | H13: =IF($Q13>0,SUM(trHt*trpha*(trSppgrp=$B13))/$Q13,0) -> 30.71573356 | I13: =IF($Q13>0,toptreesav(trList,$B13),0) -> 30.71573356 | J13: =IF($Q13>0,toptreesav(trList,$B13,13),0) -> 0.02788178959 | K13: =IF(ISERROR(trpha),0,MAX(IF(trUtil,trHt*(trSppgrp=$B13),0))) -> 35.04420982 | L13: =IF($O13>0,SUM(IF(trUtil,trAge* trpha*(trSppgrp=$B13),0))/$O13,0) -> 197.684858 | M13: =IF($O13>0,SUM(IF(trUtil,trBHAge* trpha*(trSppgrp=$B13),0))/$O13,0) -> 195.728211 | N13: =IF(ISERROR(trpha),0,SUM(IF(trUtil,trBaHa*(trSppgrp=$B13)))) -> 9.114737664 | O13: =IF(ISERROR(trpha),0,SUM(IF(trUtil,trpha*(trSppgrp=$B13),0))) -> 72.7658828 | P13: =IF(ISERROR(trpha),0,SUM(IF(NOT(trUtil),trpha*(trSppgrp=$B13),0))) -> 0 | Q13: =IF(ISERROR(trpha),0,SUM(trpha*(trSppgrp=$B13))) -> 72.7658828 | R13: 0.4946928107 | S13: =IF($O13>0,$O13/stDen,0) -> 0.3299419035 | T13: =IF($O13>0,$O13/stDen,0) -> 0.3299419035 | U13: 0.3816587354 | V13: =IF(ISERROR(trpha),0,SUM(IF(NAErr<>trVol,trUtil*trVol*trVRF*trpha*(trSppgrp=$B13),0))) -> 115.7153076 | W13: =IF(ISERROR(trpha),0,SUM(IF(NAErr<>trVol,trUtil*trVol*trpha*(trSppgrp=$B13),0))) -> 115.7153076 | X13: =IF(ISERROR(trpha),0,SUM(IF(NOT(trJuv),trpha*(trSppgrp=$B13),0))) -> 72.7658828 | Y13: =IF(ISERROR(trpha),0,SUM(IF(trJuv,trpha*(trSppgrp=$B13),0))) -> 0 | Z13: =IF($Y13>0,SUM(IF(trJuv,trHt*trpha*(trSppgrp=$B13),0))/$Y13,0) -> 0 | AA13: =IF($O13>0,toptreesav(trList,$B13,colTrDbh),0) -> 38.9662123 | AB13: =IF(COUNT(trpha)=0,0,SUMPRODUCT((trPsurv>0)*trpha*(trSppgrp=$B13)*(1/trPsurv-1))) -> 1.366093475 | AC13: =IF(COUNT(trpha)=0,0,SUMPRODUCT((trPsurv>0)*(trBaHa>0)*trBaHa*(trSppgrp=$B13)*(1/trPsurv-1))) -> 0.2103736242 | AD13: =IF(COUNT(trpha)=0,0,SUMPRODUCT((trPsurv>0)*(trVol>0)*(trSppgrp=$B13)*trUtil*trVol*(trpha/trPsurv-trpha))) -> 2.727400302 | AE13: =IF(AD13=0,0,$N13-SUMPRODUCT(trUtil*(trHtIncr>0)*(trSppgrp=$B13)*trpha*PI()*((trDbh-trDbhIncr)/200)^2)) -> 0.03737721676 | AF13: =IF(COUNT(trpha)=0,0,SUMPRODUCT(trUtil*(trHtIncr>0)*(trSppgrp=$B13)*trpha*trVolSurvGrth)) -> 0.5471369421 | AG13: 0.578576538 | AH13: 0 | AI13: =IF(COUNT(trpha)=0,0,SUMPRODUCT(trUtil*(trSppgrp=$B13)*trpha*trBWood)) -> 41609.89199 | AJ13: =IF(COUNT(trpha)=0,0,SUMPRODUCT(trUtil*(trSppgrp=$B13)*trpha*trBBark)) -> 8553.202173 | AK13: =IF(COUNT(trpha)=0,0,SUMPRODUCT(trUtil*(trSppgrp=$B13)*trpha*trBBranch)) -> 6550.174534 | AL13: =IF(COUNT(trpha)=0,0,SUMPRODUCT(trUtil*(trSppgrp=$B13)*trpha*trBFoliage)) -> 763.9722715 | AM13: =IF(COUNT(trpha)=0,0,SUMPRODUCT(trUtil*(trSppgrp=$B13)*trpha*trBTotal)) -> 57477.24096 | AN13: =IF(COUNT(trpha)=0,0,100*(1-EXP(-SUMPRODUCT((trDbh>0)*trpha*(trSppgrp=$B13),PI()*(trCWidth/2)^2)/10000))) -> 100
A14: 6.662660626 | B14: Sw | C14: 20.55999947 | D14: =IF($Q14>0,SUM(trDbh* trpha*(trMGMSpp=$B14))/$Q14,0) -> 28.24055735 | E14: =IF($O14>0,200*SQRT(($N14/$O14)/PI()),0) -> 28.32276782 | F14: =IF(ISERROR(trpha),0,MAX(IF(trUtil,trDbh*(trMGMSpp=$B14),0))) -> 31.7165077 | G14: =IF(ISERROR(trpha),0,IF(SUM(IF(trUtil*trDbhIncr>0,trpha*(trMGMSpp=$B14),0))>0,SUM(IF(trUtil*trDbhIncr>0,trDbhIncr*trpha*(trMGMSpp=$B14),0))/SUM(IF(trUtil*trDbhIncr>0,trpha*(trMGMSpp=$B14),0)),0)) -> 0.04958653627 | H14: =IF($Q14>0,SUM(trHt*trpha*(trMGMSpp=$B14))/$Q14,0) -> 27.06823051 | I14: =IF($Q14>0,toptreesav(trList,$B14),0) -> 27.66323969 | J14: =IF($Q14>0,toptreesav(trList,$B14,13),0) -> 0.04005106815 | K14: =IF(ISERROR(trpha),0,MAX(IF(trUtil,trHt*(trMGMSpp=$B14),0))) -> 29.11514238 | L14: =IF($O14>0,SUM(IF(trUtil,trAge* trpha*(trMGMSpp=$B14),0))/$O14,0) -> 195.5417828 | M14: =IF($O14>0,SUM(IF(trUtil,trBHAge* trpha*(trMGMSpp=$B14),0))/$O14,0) -> 188.880082 | N14: =IF(ISERROR(trpha),0,SUM(IF(trUtil,trBaHa*(trMGMSpp=$B14)))) -> 9.310308076 | O14: =IF(ISERROR(trpha),0,SUM(IF(trUtil,trpha*(trMGMSpp=$B14),0))) -> 147.7756186 | P14: =IF(ISERROR(trpha),0,SUM(IF(NOT(trUtil),trpha*(trMGMSpp=$B14),0))) -> 0 | Q14: =IF(ISERROR(trpha),0,SUM(trpha*(trMGMSpp=$B14))) -> 147.7756186 | R14: 0.5053071893 | S14: =IF($O14>0,$O14/stDen,0) -> 0.6700580965 | T14: =IF($Q14>0,$Q14/stTotDen,0) -> 0.6700580965 | U14: 0.3039056265 | V14: =IF(ISERROR(trpha),0,SUM(IF(NAErr<>trVol,trUtil*trVol*trVRF*trpha*(trMGMSpp=$B14),0))) -> 102.2411206 | W14: =IF(ISERROR(trpha),0,SUM(IF(NAErr<>trVol,trUtil*trVol*trpha*(trMGMSpp=$B14),0))) -> 102.2411206 | X14: =IF(ISERROR(trpha),0,SUM(IF(NOT(trJuv),trpha*(trMGMSpp=$B14),0))) -> 147.7756186 | Y14: =IF(ISERROR(trpha),0,SUM(IF(trJuv,trpha*(trMGMSpp=$B14),0))) -> 0 | Z14: =IF($Y14>0,SUM(IF(trJuv,trHt*trpha*(trMGMSpp=$B14),0))/$Y14,0) -> 0 | AA14: =IF($O14>0,toptreesav(trList,$B14,colTrDbh),0) -> 29.46181968 | AB14: =IF(COUNT(trpha)=0,0,SUMPRODUCT((trPsurv>0)*trpha*(trMGMSpp=$B14)*(1/trPsurv-1))) -> 0.9347913721 | AC14: =IF(COUNT(trpha)=0,0,SUMPRODUCT((trPsurv>0)*(trBaHa>0)*trBaHa*(trMGMSpp=$B14)*(1/trPsurv-1))) -> 0.05834532151 | AD14: =IF(COUNT(trpha)=0,0,SUMPRODUCT((trPsurv>0)*(trVol>0)*(trMGMSpp=$B14)*trUtil*trVol*(trpha/trPsurv-trpha))) -> 0.6395042302 | AE14: =IF(AD14=0,0,$N14-SUMPRODUCT(trUtil*(trHtIncr>0)*(trMGMSpp=$B14)*trpha*PI()*((trDbh-trDbhIncr)/200)^2)) -> 0.03259565133 | AF14: =IF(COUNT(trpha)=0,0,SUMPRODUCT(trUtil*(trHtIncr>0)*(trMGMSpp=$B14)*trpha*trVolSurvGrth)) -> 0.4866950983 | AG14: 0.5112056032 | AH14: 0 | AI14: =IF(COUNT(trpha)=0,0,SUMPRODUCT(trUtil*(trMGMSpp=$B14)*trpha*trBWood)) -> 29473.93482 | AJ14: =IF(COUNT(trpha)=0,0,SUMPRODUCT(trUtil*(trMGMSpp=$B14)*trpha*trBBark)) -> 3784.766563 | AK14: =IF(COUNT(trpha)=0,0,SUMPRODUCT(trUtil*(trMGMSpp=$B14)*trpha*trBBranch)) -> 4419.634575 | AL14: =IF(COUNT(trpha)=0,0,SUMPRODUCT(trUtil*(trMGMSpp=$B14)*trpha*trBFoliage)) -> 3186.343445 | AM14: =IF(COUNT(trpha)=0,0,SUMPRODUCT(trUtil*(trMGMSpp=$B14)*trpha*trBTotal)) -> 40864.6794 | AN14: =IF(COUNT(trpha)=0,0,100*(1-EXP(-SUMPRODUCT((trDbh>0)*trpha*(trMGMSpp=$B14),PI()*(trCWidth/2)^2)/10000))) -> 100
A15: 8 | B15: Pl | C15: 19.29999924 | D15: =IF($Q15>0,SUM(trDbh* trpha*(trMGMSpp=$B15))/$Q15,0) -> 0 | E15: =IF($O15>0,200*SQRT(($N15/$O15)/PI()),0) -> 0 | F15: =IF(ISERROR(trpha),0,MAX(IF(trUtil,trDbh*(trMGMSpp=$B15),0))) -> 0 | G15: =IF(ISERROR(trpha),0,IF(SUM(IF(trUtil*trDbhIncr>0,trpha*(trMGMSpp=$B15),0))>0,SUM(IF(trUtil*trDbhIncr>0,trDbhIncr*trpha*(trMGMSpp=$B15),0))/SUM(IF(trUtil*trDbhIncr>0,trpha*(trMGMSpp=$B15),0)),0)) -> 0 | H15: =IF($Q15>0,SUM(trHt*trpha*(trMGMSpp=$B15))/$Q15,0) -> 0 | I15: =IF($Q15>0,toptreesav(trList,$B15),0) -> 0 | J15: =IF($Q15>0,toptreesav(trList,$B15,13),0) -> 0 | K15: =IF(ISERROR(trpha),0,MAX(IF(trUtil,trHt*(trMGMSpp=$B15),0))) -> 0 | L15: =IF($O15>0,SUM(IF(trUtil,trAge* trpha*(trMGMSpp=$B15),0))/$O15,0) -> 0 | M15: =IF($O15>0,SUM(IF(trUtil,trBHAge* trpha*(trMGMSpp=$B15),0))/$O15,0) -> 0 | N15: =IF(ISERROR(trpha),0,SUM(IF(trUtil,trBaHa*(trMGMSpp=$B15)))) -> 0 | O15: =IF(ISERROR(trpha),0,SUM(IF(trUtil,trpha*(trMGMSpp=$B15),0))) -> 0 | P15: =IF(ISERROR(trpha),0,SUM(IF(NOT(trUtil),trpha*(trMGMSpp=$B15),0))) -> 0 | Q15: =IF(ISERROR(trpha),0,SUM(trpha*(trMGMSpp=$B15))) -> 0 | R15: 0 | S15: =IF($O15>0,$O15/stDen,0) -> 0 | T15: =IF($Q15>0,$Q15/stTotDen,0) -> 0 | U15: 1 | V15: =IF(ISERROR(trpha),0,SUM(IF(NAErr<>trVol,trUtil*trVol*trVRF*trpha*(trMGMSpp=$B15),0))) -> 0 | W15: =IF(ISERROR(trpha),0,SUM(IF(NAErr<>trVol,trUtil*trVol*trpha*(trMGMSpp=$B15),0))) -> 0 | X15: =IF(ISERROR(trpha),0,SUM(IF(NOT(trJuv),trpha*(trMGMSpp=$B15),0))) -> 0 | Y15: =IF(ISERROR(trpha),0,SUM(IF(trJuv,trpha*(trMGMSpp=$B15),0))) -> 0 | Z15: =IF($Y15>0,SUM(IF(trJuv,trHt*trpha*(trMGMSpp=$B15),0))/$Y15,0) -> 0 | AA15: =IF($O15>0,toptreesav(trList,$B15,colTrDbh),0) -> 0 | AB15: =IF(COUNT(trpha)=0,0,SUMPRODUCT((trPsurv>0)*trpha*(trMGMSpp=$B15)*(1/trPsurv-1))) -> 0 | AC15: =IF(COUNT(trpha)=0,0,SUMPRODUCT((trPsurv>0)*(trBaHa>0)*trBaHa*(trMGMSpp=$B15)*(1/trPsurv-1))) -> 0 | AD15: =IF(COUNT(trpha)=0,0,SUMPRODUCT((trPsurv>0)*(trVol>0)*(trMGMSpp=$B15)*trUtil*trVol*(trpha/trPsurv-trpha))) -> 0 | AE15: =IF(AD15=0,0,$N15-SUMPRODUCT(trUtil*(trHtIncr>0)*(trMGMSpp=$B15)*trpha*PI()*((trDbh-trDbhIncr)/200)^2)) -> 0 | AF15: =IF(COUNT(trpha)=0,0,SUMPRODUCT(trUtil*(trHtIncr>0)*(trMGMSpp=$B15)*trpha*trVolSurvGrth)) -> 0 | AG15: 0 | AH15: 0 | AI15: =IF(COUNT(trpha)=0,0,SUMPRODUCT(trUtil*(trMGMSpp=$B15)*trpha*trBWood)) -> 0 | AJ15: =IF(COUNT(trpha)=0,0,SUMPRODUCT(trUtil*(trMGMSpp=$B15)*trpha*trBBark)) -> 0 | AK15: =IF(COUNT(trpha)=0,0,SUMPRODUCT(trUtil*(trMGMSpp=$B15)*trpha*trBBranch)) -> 0 | AL15: =IF(COUNT(trpha)=0,0,SUMPRODUCT(trUtil*(trMGMSpp=$B15)*trpha*trBFoliage)) -> 0 | AM15: =IF(COUNT(trpha)=0,0,SUMPRODUCT(trUtil*(trMGMSpp=$B15)*trpha*trBTotal)) -> 0 | AN15: =IF(COUNT(trpha)=0,0,100*(1-EXP(-SUMPRODUCT((trDbh>0)*trpha*(trMGMSpp=$B15),PI()*(trCWidth/2)^2)/10000))) -> 0
A16: 1.956647027 | B16: Aw | C16: 24.32999992 | D16: =IF($Q16>0,SUM(trDbh* trpha*(trMGMSpp=$B16))/$Q16,0) -> 38.9662123 | E16: =IF($O16>0,200*SQRT(($N16/$O16)/PI()),0) -> 39.93587872 | F16: =IF(ISERROR(trpha),0,MAX(IF(trUtil,trDbh*(trMGMSpp=$B16),0))) -> 59.01921308 | G16: =IF(ISERROR(trpha),0,IF(SUM(IF(trUtil*trDbhIncr>0,trpha*(trMGMSpp=$B16),0))>0,SUM(IF(trUtil*trDbhIncr>0,trDbhIncr*trpha*(trMGMSpp=$B16),0))/SUM(IF(trUtil*trDbhIncr>0,trpha*(trMGMSpp=$B16),0)),0)) -> 0.07963395133 | H16: =IF($Q16>0,SUM(trHt*trpha*(trMGMSpp=$B16))/$Q16,0) -> 30.71573356 | I16: =IF($Q16>0,toptreesav(trList,$B16),0) -> 30.71573356 | J16: =IF($Q16>0,toptreesav(trList,$B16,13),0) -> 0.02788178959 | K16: =IF(ISERROR(trpha),0,MAX(IF(trUtil,trHt*(trMGMSpp=$B16),0))) -> 35.04420982 | L16: =IF($O16>0,SUM(IF(trUtil,trAge* trpha*(trMGMSpp=$B16),0))/$O16,0) -> 197.684858 | M16: =IF($O16>0,SUM(IF(trUtil,trBHAge* trpha*(trMGMSpp=$B16),0))/$O16,0) -> 195.728211 | N16: =IF(ISERROR(trpha),0,SUM(IF(trUtil,trBaHa*(trMGMSpp=$B16)))) -> 9.114737664 | O16: =IF(ISERROR(trpha),0,SUM(IF(trUtil,trpha*(trMGMSpp=$B16),0))) -> 72.7658828 | P16: =IF(ISERROR(trpha),0,SUM(IF(NOT(trUtil),trpha*(trMGMSpp=$B16),0))) -> 0 | Q16: =IF(ISERROR(trpha),0,SUM(trpha*(trMGMSpp=$B16))) -> 72.7658828 | R16: 0.4946928107 | S16: =IF($O16>0,$O16/stDen,0) -> 0.3299419035 | T16: =IF($Q16>0,$Q16/stTotDen,0) -> 0.3299419035 | U16: 0.3816587354 | V16: =IF(ISERROR(trpha),0,SUM(IF(NAErr<>trVol,trUtil*trVol*trVRF*trpha*(trMGMSpp=$B16),0))) -> 115.7153076 | W16: =IF(ISERROR(trpha),0,SUM(IF(NAErr<>trVol,trUtil*trVol*trpha*(trMGMSpp=$B16),0))) -> 115.7153076 | X16: =IF(ISERROR(trpha),0,SUM(IF(NOT(trJuv),trpha*(trMGMSpp=$B16),0))) -> 72.7658828 | Y16: =IF(ISERROR(trpha),0,SUM(IF(trJuv,trpha*(trMGMSpp=$B16),0))) -> 0 | Z16: =IF($Y16>0,SUM(IF(trJuv,trHt*trpha*(trMGMSpp=$B16),0))/$Y16,0) -> 0 | AA16: =IF($O16>0,toptreesav(trList,$B16,colTrDbh),0) -> 38.9662123 | AB16: =IF(COUNT(trpha)=0,0,SUMPRODUCT((trPsurv>0)*trpha*(trMGMSpp=$B16)*(1/trPsurv-1))) -> 1.366093475 | AC16: =IF(COUNT(trpha)=0,0,SUMPRODUCT((trPsurv>0)*(trBaHa>0)*trBaHa*(trMGMSpp=$B16)*(1/trPsurv-1))) -> 0.2103736242 | AD16: =IF(COUNT(trpha)=0,0,SUMPRODUCT((trPsurv>0)*(trVol>0)*(trMGMSpp=$B16)*trUtil*trVol*(trpha/trPsurv-trpha))) -> 2.727400302 | AE16: =IF(AD16=0,0,$N16-SUMPRODUCT(trUtil*(trHtIncr>0)*(trMGMSpp=$B16)*trpha*PI()*((trDbh-trDbhIncr)/200)^2)) -> 0.03737721676 | AF16: =IF(COUNT(trpha)=0,0,SUMPRODUCT(trUtil*(trHtIncr>0)*(trMGMSpp=$B16)*trpha*trVolSurvGrth)) -> 0.5471369421 | AG16: 0.578576538 | AH16: 0 | AI16: =IF(COUNT(trpha)=0,0,SUMPRODUCT(trUtil*(trMGMSpp=$B16)*trpha*trBWood)) -> 41609.89199 | AJ16: =IF(COUNT(trpha)=0,0,SUMPRODUCT(trUtil*(trMGMSpp=$B16)*trpha*trBBark)) -> 8553.202173 | AK16: =IF(COUNT(trpha)=0,0,SUMPRODUCT(trUtil*(trMGMSpp=$B16)*trpha*trBBranch)) -> 6550.174534 | AL16: =IF(COUNT(trpha)=0,0,SUMPRODUCT(trUtil*(trMGMSpp=$B16)*trpha*trBFoliage)) -> 763.9722715 | AM16: =IF(COUNT(trpha)=0,0,SUMPRODUCT(trUtil*(trMGMSpp=$B16)*trpha*trBTotal)) -> 57477.24096 | AN16: =IF(COUNT(trpha)=0,0,100*(1-EXP(-SUMPRODUCT((trDbh>0)*trpha*(trMGMSpp=$B16),PI()*(trCWidth/2)^2)/10000))) -> 100
A17: 15 | B17: Sb | C17: 15.69999981 | D17: =IF($Q17>0,SUM(trDbh* trpha*(trMGMSpp=$B17))/$Q17,0) -> 0 | E17: =IF($O17>0,200*SQRT(($N17/$O17)/PI()),0) -> 0 | F17: =IF(ISERROR(trpha),0,MAX(IF(trUtil,trDbh*(trMGMSpp=$B17),0))) -> 0 | G17: =IF(ISERROR(trpha),0,IF(SUM(IF(trUtil*trDbhIncr>0,trpha*(trMGMSpp=$B17),0))>0,SUM(IF(trUtil*trDbhIncr>0,trDbhIncr*trpha*(trMGMSpp=$B17),0))/SUM(IF(trUtil*trDbhIncr>0,trpha*(trMGMSpp=$B17),0)),0)) -> 0 | H17: =IF($Q17>0,SUM(trHt*trpha*(trMGMSpp=$B17))/$Q17,0) -> 0 | I17: =IF($Q17>0,toptreesav(trList,$B17),0) -> 0 | J17: =IF($Q17>0,toptreesav(trList,$B17,13),0) -> 0 | K17: =IF(ISERROR(trpha),0,MAX(IF(trUtil,trHt*(trMGMSpp=$B17),0))) -> 0 | L17: =IF($O17>0,SUM(IF(trUtil,trAge* trpha*(trMGMSpp=$B17),0))/$O17,0) -> 0 | M17: =IF($O17>0,SUM(IF(trUtil,trBHAge* trpha*(trMGMSpp=$B17),0))/$O17,0) -> 0 | N17: =IF(ISERROR(trpha),0,SUM(IF(trUtil,trBaHa*(trMGMSpp=$B17)))) -> 0 | O17: =IF(ISERROR(trpha),0,SUM(IF(trUtil,trpha*(trMGMSpp=$B17),0))) -> 0 | P17: =IF(ISERROR(trpha),0,SUM(IF(NOT(trUtil),trpha*(trMGMSpp=$B17),0))) -> 0 | Q17: =IF(ISERROR(trpha),0,SUM(trpha*(trMGMSpp=$B17))) -> 0 | R17: 0 | S17: =IF($O17>0,$O17/stDen,0) -> 0 | T17: =IF($Q17>0,$Q17/stTotDen,0) -> 0 | U17: 1 | V17: =IF(ISERROR(trpha),0,SUM(IF(NAErr<>trVol,trUtil*trVol*trVRF*trpha*(trMGMSpp=$B17),0))) -> 0 | W17: =IF(ISERROR(trpha),0,SUM(IF(NAErr<>trVol,trUtil*trVol*trpha*(trMGMSpp=$B17),0))) -> 0 | X17: =IF(ISERROR(trpha),0,SUM(IF(NOT(trJuv),trpha*(trMGMSpp=$B17),0))) -> 0 | Y17: =IF(ISERROR(trpha),0,SUM(IF(trJuv,trpha*(trMGMSpp=$B17),0))) -> 0 | Z17: =IF($Y17>0,SUM(IF(trJuv,trHt*trpha*(trMGMSpp=$B17),0))/$Y17,0) -> 0 | AA17: =IF($O17>0,toptreesav(trList,$B17,colTrDbh),0) -> 0 | AB17: =IF(COUNT(trpha)=0,0,SUMPRODUCT((trPsurv>0)*trpha*(trMGMSpp=$B17)*(1/trPsurv-1))) -> 0 | AC17: =IF(COUNT(trpha)=0,0,SUMPRODUCT((trPsurv>0)*(trBaHa>0)*trBaHa*(trMGMSpp=$B17)*(1/trPsurv-1))) -> 0 | AD17: =IF(COUNT(trpha)=0,0,SUMPRODUCT((trPsurv>0)*(trVol>0)*(trMGMSpp=$B17)*trUtil*trVol*(trpha/trPsurv-trpha))) -> 0 | AE17: =IF(AD17=0,0,$N17-SUMPRODUCT(trUtil*(trHtIncr>0)*(trMGMSpp=$B17)*trpha*PI()*((trDbh-trDbhIncr)/200)^2)) -> 0 | AF17: =IF(COUNT(trpha)=0,0,SUMPRODUCT(trUtil*(trHtIncr>0)*(trMGMSpp=$B17)*trpha*trVolSurvGrth)) -> 0 | AG17: 0 | AH17: 0 | AI17: =IF(COUNT(trpha)=0,0,SUMPRODUCT(trUtil*(trMGMSpp=$B17)*trpha*trBWood)) -> 0 | AJ17: =IF(COUNT(trpha)=0,0,SUMPRODUCT(trUtil*(trMGMSpp=$B17)*trpha*trBBark)) -> 0 | AK17: =IF(COUNT(trpha)=0,0,SUMPRODUCT(trUtil*(trMGMSpp=$B17)*trpha*trBBranch)) -> 0 | AL17: =IF(COUNT(trpha)=0,0,SUMPRODUCT(trUtil*(trMGMSpp=$B17)*trpha*trBFoliage)) -> 0 | AM17: =IF(COUNT(trpha)=0,0,SUMPRODUCT(trUtil*(trMGMSpp=$B17)*trpha*trBTotal)) -> 0 | AN17: =IF(COUNT(trpha)=0,0,100*(1-EXP(-SUMPRODUCT((trDbh>0)*trpha*(trMGMSpp=$B17),PI()*(trCWidth/2)^2)/10000))) -> 0
A20: trNum | B20: trSpp | C20: trDbh | D20: trPha | E20: trHt | F20: trAge | G20: trBHAge | H20: trCratio | I20: trCwidth | J20: x | K20: y | L20: trDbhIncr | M20: trHtIncr | N20: trPsurv | O20: trSppIdx | P20: trMGMSppIdx | Q20: trBWood | R20: trBBark | S20: trBBranch | T20: trBFoliage | U20: trBTotal | V20: HIDIratio | W20: Hdratio | X20: trBaHa | Y20: stBagt | Z20: stCbagt | AA20: stDbagt | AB20: trSppgrp | AC20: trMGMspp | AD20: PctRank | AE20: trVol | AF20: trUtil | AG20: trVRF | AH20: trJuv | AI20: trSWGGR | AJ20: trPLGGR | AK20: trDECDBHGR | AL20: trSWDBHGR | AM20: trPLDBHGR | AN20: trSBDBHGR | AO20: trVolSurvGrth | AP20: trChar01 | AQ20: trChar02 | AR20: trChar03 | AS20: trChar04 | AT20: trChar05 | AU20: trChar06 | AV20: trChar07 | AW20: trChar08 | AX20: trChar09 | AY20: trChar10 | AZ20: trChar11 | BA20: trChar12 | BB20: trChar13 | BC20: trChar14 | BD20: trChar15 | BE20: trChar16 | BF20: trChar17 | BG20: trChar18 | BH20: trChar19 | BI20: tmpKey
A21: 34 | B21: AW | C21: 59.01921308 | D21: 0.7655976935 | E21: 35.04420982 | F21: 199.89198 | G21: 197.935333 | H21: 0.238764884 | I21: 6.836306929 | J21: 94 | K21: 4 | L21: 0.09708803807 | M21: 0.02760254456 | N21: 0.9322202311 | O21: 3 | P21: 3 | Q21: 1462.056231 | R21: 292.860912 | S21: 233.59997 | T21: 20.14040366 | U21: 2008.657516 | V21: =IF(AND(NAErr<>$L21,NAErr<>$M21),$M21/$L21,NAErr) -> 0.284304278 | W21: =IF(AND($E21<>NAErr,$C21<>NAErr),$E21/$C21,NAErr) -> 0.5937762974 | X21: =IF(AND($E21<>NAErr,$C21<>NAErr),$D21*PI()*($C21/200)^2,NAErr) -> 0.209448535 | Y21: =IF($C21=NAErr,NAErr,SUM(IF(trUtil,(trDbh>$C21)*trBaHa,0))) -> 0 | Z21: =IF($C21=NAErr,NAErr,SUM(IF(trUtil,(trDbh>$C21)*trBaHa*(trSppgrp="Con"),0))) -> 0 | AA21: =IF($C21=NAErr,NAErr,SUM(IF(trUtil,(trDbh>$C21)*trBaHa*(trSppgrp="Dec"),0))) -> 0 | AB21: =IF(ISERROR($O21),NAErr,INDEX(INDIRECT("SpeciesList!SppGrp"),$O21)) -> Dec | AC21: =IF(ISERROR($O21),NAErr,INDEX(INDIRECT("SpeciesList!MGM"),$O21)) -> Aw | AD21: =IF($C21<>NAErr,PERCENTRANK(trDbh,$C21),NAErr) -> 1 | AE21: =volest($O21 - 1, $C21, $E21) -> 3.624870528 | AF21: =isutilized($O21, $C21) -> TRUE | AG21: =ROUND(VRF($B21),3) -> 1 | AH21: =isjuveniletree($C21) -> FALSE | AI21: =SUM(IF(trUtil,(trDbh>$C21)*trBaHa*(trMGMSpp="Sw"),0)) -> 0 | AJ21: =SUM(IF(trUtil,(trDbh>$C21)*trBaHa*(trMGMSpp="Pl"),0)) -> 0 | AK21: =SUM(IF(trUtil,(trDbh>$C21)*trDbh*trpha*(trSppgrp="Dec"),0)) -> 0 | AL21: =SUM(IF(trUtil,(trDbh>$C21)*trDbh*trpha*(trMGMSpp="Sw"),0)) -> 0 | AM21: =SUM(IF(trUtil,(trDbh>$C21)*trDbh*trpha*(trMGMSpp="Pl"),0)) -> 0 | AN21: =SUM(IF(trUtil,(trDbh>$C21)*trDbh*trpha*(trMGMSpp="Sb"),0)) -> 0 | AO21: =IF(AND(($C21-$L21)>0,$L21>0),$AE21-MAX(0,volest($O21-1,$C21-$L21,$E21-$M21)),0) -> 0.01376577724 | AP21: -1 | AQ21: -1 | AR21: -1 | AS21: -1 | AT21: -1 | AU21: -1 | AV21: -1 | AW21: -1 | AX21: -1 | AY21: -1 | AZ21: -1 | BA21: -1 | BB21: -1 | BC21: -1 | BD21: -1 | BE21: -1 | BF21: -1 | BG21: -1 | BH21: -1 | BI21: 34
A22: 3 | B22: AW | C22: 57.03509797 | D22: 1.352494446 | E22: 35.00581724 | F22: 198.7727907 | G22: 196.8161436 | H22: 0.2412912158 | I22: 6.818247037 | J22: 99 | K22: 64 | L22: 0.0978434435 | M22: 0.0278557533 | N22: 0.9461994916 | O22: 3 | P22: 3 | Q22: 1343.406049 | R22: 269.8324751 | S22: 214.3023382 | T22: 19.04823485 | U22: 1846.589097 | V22: =IF(AND(NAErr<>$L22,NAErr<>$M22),$M22/$L22,NAErr) -> 0.2846971887 | W22: =IF(AND($E22<>NAErr,$C22<>NAErr),$E22/$C22,NAErr) -> 0.6137592199 | X22: =IF(AND($E22<>NAErr,$C22<>NAErr),$D22*PI()*($C22/200)^2,NAErr) -> 0.3455490916 | Y22: =IF($C22=NAErr,NAErr,SUM(IF(trUtil,(trDbh>$C22)*trBaHa,0))) -> 0.209448535 | Z22: =IF($C22=NAErr,NAErr,SUM(IF(trUtil,(trDbh>$C22)*trBaHa*(trSppgrp="Con"),0))) -> 0 | AA22: =IF($C22=NAErr,NAErr,SUM(IF(trUtil,(trDbh>$C22)*trBaHa*(trSppgrp="Dec"),0))) -> 0.209448535 | AB22: =IF(ISERROR($O22),NAErr,INDEX(INDIRECT("SpeciesList!SppGrp"),$O22)) -> Dec | AC22: =IF(ISERROR($O22),NAErr,INDEX(INDIRECT("SpeciesList!MGM"),$O22)) -> Aw | AD22: =IF($C22<>NAErr,PERCENTRANK(trDbh,$C22),NAErr) -> 0.984 | AE22: =volest($O22 - 1, $C22, $E22) -> 3.401634909 | AF22: =isutilized($O22, $C22) -> TRUE | AG22: =ROUND(VRF($B22),3) -> 1 | AH22: =isjuveniletree($C22) -> FALSE | AI22: =SUM(IF(trUtil,(trDbh>$C22)*trBaHa*(trMGMSpp="Sw"),0)) -> 0 | AJ22: =SUM(IF(trUtil,(trDbh>$C22)*trBaHa*(trMGMSpp="Pl"),0)) -> 0 | AK22: =SUM(IF(trUtil,(trDbh>$C22)*trDbh*trpha*(trSppgrp="Dec"),0)) -> 45.18497341 | AL22: =SUM(IF(trUtil,(trDbh>$C22)*trDbh*trpha*(trMGMSpp="Sw"),0)) -> 0 | AM22: =SUM(IF(trUtil,(trDbh>$C22)*trDbh*trpha*(trMGMSpp="Pl"),0)) -> 0 | AN22: =SUM(IF(trUtil,(trDbh>$C22)*trDbh*trpha*(trMGMSpp="Sb"),0)) -> 0 | AO22: =IF(AND(($C22-$L22)>0,$L22>0),$AE22-MAX(0,volest($O22-1,$C22-$L22,$E22-$M22)),0) -> 0.01341347839 | AP22: -1 | AQ22: -1 | AR22: -1 | AS22: -1 | AT22: -1 | AU22: -1 | AV22: -1 | AW22: -1 | AX22: -1 | AY22: -1 | AZ22: -1 | BA22: -1 | BB22: -1 | BC22: -1 | BD22: -1 | BE22: -1 | BF22: -1 | BG22: -1 | BH22: -1 | BI22: 3
A23: 25 | B23: AW | C23: 56.30620154 | D23: 1.480634664 | E23: 34.92398369 | F23: 197.5983684 | G23: 195.6417214 | H23: 0.2425318997 | I23: 6.808052938 | J23: 95 | K23: 80 | L23: 0.09856126216 | M23: 0.02812536042 | N23: 0.9502229537 | O23: 3 | P23: 3 | Q23: 1301.313829 | R23: 261.6473847 | S23: 207.463866 | T23: 18.65294396 | U23: 1789.078024 | V23: =IF(AND(NAErr<>$L23,NAErr<>$M23),$M23/$L23,NAErr) -> 0.2853591746 | W23: =IF(AND($E23<>NAErr,$C23<>NAErr),$E23/$C23,NAErr) -> 0.6202511044 | X23: =IF(AND($E23<>NAErr,$C23<>NAErr),$D23*PI()*($C23/200)^2,NAErr) -> 0.3686805742 | Y23: =IF($C23=NAErr,NAErr,SUM(IF(trUtil,(trDbh>$C23)*trBaHa,0))) -> 0.5549976266 | Z23: =IF($C23=NAErr,NAErr,SUM(IF(trUtil,(trDbh>$C23)*trBaHa*(trSppgrp="Con"),0))) -> 0 | AA23: =IF($C23=NAErr,NAErr,SUM(IF(trUtil,(trDbh>$C23)*trBaHa*(trSppgrp="Dec"),0))) -> 0.5549976266 | AB23: =IF(ISERROR($O23),NAErr,INDEX(INDIRECT("SpeciesList!SppGrp"),$O23)) -> Dec | AC23: =IF(ISERROR($O23),NAErr,INDEX(INDIRECT("SpeciesList!MGM"),$O23)) -> Aw | AD23: =IF($C23<>NAErr,PERCENTRANK(trDbh,$C23),NAErr) -> 0.969 | AE23: =volest($O23 - 1, $C23, $E23) -> 3.314597752 | AF23: =isutilized($O23, $C23) -> TRUE | AG23: =ROUND(VRF($B23),3) -> 1 | AH23: =isjuveniletree($C23) -> FALSE | AI23: =SUM(IF(trUtil,(trDbh>$C23)*trBaHa*(trMGMSpp="Sw"),0)) -> 0 | AJ23: =SUM(IF(trUtil,(trDbh>$C23)*trBaHa*(trMGMSpp="Pl"),0)) -> 0 | AK23: =SUM(IF(trUtil,(trDbh>$C23)*trDbh*trpha*(trSppgrp="Dec"),0)) -> 122.3246266 | AL23: =SUM(IF(trUtil,(trDbh>$C23)*trDbh*trpha*(trMGMSpp="Sw"),0)) -> 0 | AM23: =SUM(IF(trUtil,(trDbh>$C23)*trDbh*trpha*(trMGMSpp="Pl"),0)) -> 0 | AN23: =SUM(IF(trUtil,(trDbh>$C23)*trDbh*trpha*(trMGMSpp="Sb"),0)) -> 0 | AO23: =IF(AND(($C23-$L23)>0,$L23>0),$AE23-MAX(0,volest($O23-1,$C23-$L23,$E23-$M23)),0) -> 0.01332532804 | AP23: -1 | AQ23: -1 | AR23: -1 | AS23: -1 | AT23: -1 | AU23: -1 | AV23: -1 | AW23: -1 | AX23: -1 | AY23: -1 | AZ23: -1 | BA23: -1 | BB23: -1 | BC23: -1 | BD23: -1 | BE23: -1 | BF23: -1 | BG23: -1 | BH23: -1 | BI23: 25
A24: 17 | B24: AW | C24: 55.00249287 | D24: 1.851724757 | E24: 34.77418838 | F24: 196.7901231 | G24: 194.8334761 | H24: 0.2445763091 | I24: 6.785049846 | J24: 79 | K24: 42 | L24: 0.09897208843 | M24: 0.02831325225 | N24: 0.9566313844 | O24: 3 | P24: 3 | Q24: 1228.009563 | R24: 247.3722776 | S24: 195.5645366 | T24: 17.95394659 | U24: 1688.900324 | V24: =IF(AND(NAErr<>$L24,NAErr<>$M24),$M24/$L24,NAErr) -> 0.286073101 | W24: =IF(AND($E24<>NAErr,$C24<>NAErr),$E24/$C24,NAErr) -> 0.6322293148 | X24: =IF(AND($E24<>NAErr,$C24<>NAErr),$D24*PI()*($C24/200)^2,NAErr) -> 0.4399781012 | Y24: =IF($C24=NAErr,NAErr,SUM(IF(trUtil,(trDbh>$C24)*trBaHa,0))) -> 0.9236782007 | Z24: =IF($C24=NAErr,NAErr,SUM(IF(trUtil,(trDbh>$C24)*trBaHa*(trSppgrp="Con"),0))) -> 0 | AA24: =IF($C24=NAErr,NAErr,SUM(IF(trUtil,(trDbh>$C24)*trBaHa*(trSppgrp="Dec"),0))) -> 0.9236782007 | AB24: =IF(ISERROR($O24),NAErr,INDEX(INDIRECT("SpeciesList!SppGrp"),$O24)) -> Dec | AC24: =IF(ISERROR($O24),NAErr,INDEX(INDIRECT("SpeciesList!MGM"),$O24)) -> Aw | AD24: =IF($C24<>NAErr,PERCENTRANK(trDbh,$C24),NAErr) -> 0.953 | AE24: =volest($O24 - 1, $C24, $E24) -> 3.161433649 | AF24: =isutilized($O24, $C24) -> TRUE | AG24: =ROUND(VRF($B24),3) -> 1 | AH24: =isjuveniletree($C24) -> FALSE | AI24: =SUM(IF(trUtil,(trDbh>$C24)*trBaHa*(trMGMSpp="Sw"),0)) -> 0 | AJ24: =SUM(IF(trUtil,(trDbh>$C24)*trBaHa*(trMGMSpp="Pl"),0)) -> 0 | AK24: =SUM(IF(trUtil,(trDbh>$C24)*trDbh*trpha*(trSppgrp="Dec"),0)) -> 205.6935405 | AL24: =SUM(IF(trUtil,(trDbh>$C24)*trDbh*trpha*(trMGMSpp="Sw"),0)) -> 0 | AM24: =SUM(IF(trUtil,(trDbh>$C24)*trDbh*trpha*(trMGMSpp="Pl"),0)) -> 0 | AN24: =SUM(IF(trUtil,(trDbh>$C24)*trDbh*trpha*(trMGMSpp="Sb"),0)) -> 0 | AO24: =IF(AND(($C24-$L24)>0,$L24>0),$AE24-MAX(0,volest($O24-1,$C24-$L24,$E24-$M24)),0) -> 0.01304075569 | AP24: -1 | AQ24: -1 | AR24: -1 | AS24: -1 | AT24: -1 | AU24: -1 | AV24: -1 | AW24: -1 | AX24: -1 | AY24: -1 | AZ24: -1 | BA24: -1 | BB24: -1 | BC24: -1 | BD24: -1 | BE24: -1 | BF24: -1 | BG24: -1 | BH24: -1 | BI24: 17
A25: 38 | B25: AW | C25: 50.96938299 | D25: 3.485365786 | E25: 34.59074614 | F25: 197.8712165 | G25: 195.9145695 | H25: 0.2472399905 | I25: 6.675145088 | J25: 37 | K25: 68 | L25: 0.09779790462 | M25: 0.02806226447 | N25: 0.9707999125 | O25: 3 | P25: 3 | Q25: 1017.058845 | R25: 206.1315681 | S25: 161.3986316 | T25: 15.85760933 | U25: 1400.446654 | V25: =IF(AND(NAErr<>$L25,NAErr<>$M25),$M25/$L25,NAErr) -> 0.2869413673 | W25: =IF(AND($E25<>NAErr,$C25<>NAErr),$E25/$C25,NAErr) -> 0.678657345 | X25: =IF(AND($E25<>NAErr,$C25<>NAErr),$D25*PI()*($C25/200)^2,NAErr) -> 0.7111430951 | Y25: =IF($C25=NAErr,NAErr,SUM(IF(trUtil,(trDbh>$C25)*trBaHa,0))) -> 1.363656302 | Z25: =IF($C25=NAErr,NAErr,SUM(IF(trUtil,(trDbh>$C25)*trBaHa*(trSppgrp="Con"),0))) -> 0 | AA25: =IF($C25=NAErr,NAErr,SUM(IF(trUtil,(trDbh>$C25)*trBaHa*(trSppgrp="Dec"),0))) -> 1.363656302 | AB25: =IF(ISERROR($O25),NAErr,INDEX(INDIRECT("SpeciesList!SppGrp"),$O25)) -> Dec | AC25: =IF(ISERROR($O25),NAErr,INDEX(INDIRECT("SpeciesList!MGM"),$O25)) -> Aw | AD25: =IF($C25<>NAErr,PERCENTRANK(trDbh,$C25),NAErr) -> 0.938 | AE25: =volest($O25 - 1, $C25, $E25) -> 2.733257044 | AF25: =isutilized($O25, $C25) -> TRUE | AG25: =ROUND(VRF($B25),3) -> 1 | AH25: =isjuveniletree($C25) -> FALSE | AI25: =SUM(IF(trUtil,(trDbh>$C25)*trBaHa*(trMGMSpp="Sw"),0)) -> 0 | AJ25: =SUM(IF(trUtil,(trDbh>$C25)*trBaHa*(trMGMSpp="Pl"),0)) -> 0 | AK25: =SUM(IF(trUtil,(trDbh>$C25)*trDbh*trpha*(trSppgrp="Dec"),0)) -> 307.5430182 | AL25: =SUM(IF(trUtil,(trDbh>$C25)*trDbh*trpha*(trMGMSpp="Sw"),0)) -> 0 | AM25: =SUM(IF(trUtil,(trDbh>$C25)*trDbh*trpha*(trMGMSpp="Pl"),0)) -> 0 | AN25: =SUM(IF(trUtil,(trDbh>$C25)*trDbh*trpha*(trMGMSpp="Sb"),0)) -> 0 | AO25: =IF(AND(($C25-$L25)>0,$L25>0),$AE25-MAX(0,volest($O25-1,$C25-$L25,$E25-$M25)),0) -> 0.01192091316 | AP25: -1 | AQ25: -1 | AR25: -1 | AS25: -1 | AT25: -1 | AU25: -1 | AV25: -1 | AW25: -1 | AX25: -1 | AY25: -1 | AZ25: -1 | BA25: -1 | BB25: -1 | BC25: -1 | BD25: -1 | BE25: -1 | BF25: -1 | BG25: -1 | BH25: -1 | BI25: 38
A26: 40 | B26: AW | C26: 48.41812041 | D26: 4.274506528 | E26: 34.30565485 | F26: 198.2829855 | G26: 196.3263384 | H26: 0.248795252 | I26: 6.575384358 | J26: 18 | K26: 94 | L26: 0.09696127955 | M26: 0.02796731288 | N26: 0.9763457198 | O26: 3 | P26: 3 | Q26: 895.67405 | R26: 182.2782137 | S26: 141.7976299 | T26: 14.58402601 | U26: 1234.33392 | V26: =IF(AND(NAErr<>$L26,NAErr<>$M26),$M26/$L26,NAErr) -> 0.2884379519 | W26: =IF(AND($E26<>NAErr,$C26<>NAErr),$E26/$C26,NAErr) -> 0.7085292564 | X26: =IF(AND($E26<>NAErr,$C26<>NAErr),$D26*PI()*($C26/200)^2,NAErr) -> 0.7870307813 | Y26: =IF($C26=NAErr,NAErr,SUM(IF(trUtil,(trDbh>$C26)*trBaHa,0))) -> 2.074799397 | Z26: =IF($C26=NAErr,NAErr,SUM(IF(trUtil,(trDbh>$C26)*trBaHa*(trSppgrp="Con"),0))) -> 0 | AA26: =IF($C26=NAErr,NAErr,SUM(IF(trUtil,(trDbh>$C26)*trBaHa*(trSppgrp="Dec"),0))) -> 2.074799397 | AB26: =IF(ISERROR($O26),NAErr,INDEX(INDIRECT("SpeciesList!SppGrp"),$O26)) -> Dec | AC26: =IF(ISERROR($O26),NAErr,INDEX(INDIRECT("SpeciesList!MGM"),$O26)) -> Aw | AD26: =IF($C26<>NAErr,PERCENTRANK(trDbh,$C26),NAErr) -> 0.923 | AE26: =volest($O26 - 1, $C26, $E26) -> 2.464774678 | AF26: =isutilized($O26, $C26) -> TRUE | AG26: =ROUND(VRF($B26),3) -> 1 | AH26: =isjuveniletree($C26) -> FALSE | AI26: =SUM(IF(trUtil,(trDbh>$C26)*trBaHa*(trMGMSpp="Sw"),0)) -> 0 | AJ26: =SUM(IF(trUtil,(trDbh>$C26)*trBaHa*(trMGMSpp="Pl"),0)) -> 0 | AK26: =SUM(IF(trUtil,(trDbh>$C26)*trDbh*trpha*(trSppgrp="Dec"),0)) -> 485.1899618 | AL26: =SUM(IF(trUtil,(trDbh>$C26)*trDbh*trpha*(trMGMSpp="Sw"),0)) -> 0 | AM26: =SUM(IF(trUtil,(trDbh>$C26)*trDbh*trpha*(trMGMSpp="Pl"),0)) -> 0 | AN26: =SUM(IF(trUtil,(trDbh>$C26)*trDbh*trpha*(trMGMSpp="Sb"),0)) -> 0 | AO26: =IF(AND(($C26-$L26)>0,$L26>0),$AE26-MAX(0,volest($O26-1,$C26-$L26,$E26-$M26)),0) -> 0.0111744505 | AP26: -1 | AQ26: -1 | AR26: -1 | AS26: -1 | AT26: -1 | AU26: -1 | AV26: -1 | AW26: -1 | AX26: -1 | AY26: -1 | AZ26: -1 | BA26: -1 | BB26: -1 | BC26: -1 | BD26: -1 | BE26: -1 | BF26: -1 | BG26: -1 | BH26: -1 | BI26: 40
A27: 14 | B27: AW | C27: 46.2354425 | D27: 4.723221806 | E27: 33.93621833 | F27: 198.5777245 | G27: 196.6210775 | H27: 0.2502192739 | I27: 6.471437407 | J27: 74 | K27: 97 | L27: 0.09614517621 | M27: 0.02789913318 | N27: 0.9797685174 | O27: 3 | P27: 3 | Q27: 799.0400453 | R27: 163.2142048 | S27: 126.2286677 | T27: 13.52744502 | U27: 1102.010363 | V27: =IF(AND(NAErr<>$L27,NAErr<>$M27),$M27/$L27,NAErr) -> 0.2901771496 | W27: =IF(AND($E27<>NAErr,$C27<>NAErr),$E27/$C27,NAErr) -> 0.7339870995 | X27: =IF(AND($E27<>NAErr,$C27<>NAErr),$D27*PI()*($C27/200)^2,NAErr) -> 0.7930092609 | Y27: =IF($C27=NAErr,NAErr,SUM(IF(trUtil,(trDbh>$C27)*trBaHa,0))) -> 2.861830178 | Z27: =IF($C27=NAErr,NAErr,SUM(IF(trUtil,(trDbh>$C27)*trBaHa*(trSppgrp="Con"),0))) -> 0 | AA27: =IF($C27=NAErr,NAErr,SUM(IF(trUtil,(trDbh>$C27)*trBaHa*(trSppgrp="Dec"),0))) -> 2.861830178 | AB27: =IF(ISERROR($O27),NAErr,INDEX(INDIRECT("SpeciesList!SppGrp"),$O27)) -> Dec | AC27: =IF(ISERROR($O27),NAErr,INDEX(INDIRECT("SpeciesList!MGM"),$O27)) -> Aw | AD27: =IF($C27<>NAErr,PERCENTRANK(trDbh,$C27),NAErr) -> 0.907 | AE27: =volest($O27 - 1, $C27, $E27) -> 2.237758375 | AF27: =isutilized($O27, $C27) -> TRUE | AG27: =ROUND(VRF($B27),3) -> 1 | AH27: =isjuveniletree($C27) -> FALSE | AI27: =SUM(IF(trUtil,(trDbh>$C27)*trBaHa*(trMGMSpp="Sw"),0)) -> 0 | AJ27: =SUM(IF(trUtil,(trDbh>$C27)*trBaHa*(trMGMSpp="Pl"),0)) -> 0 | AK27: =SUM(IF(trUtil,(trDbh>$C27)*trDbh*trpha*(trSppgrp="Dec"),0)) -> 692.1535335 | AL27: =SUM(IF(trUtil,(trDbh>$C27)*trDbh*trpha*(trMGMSpp="Sw"),0)) -> 0 | AM27: =SUM(IF(trUtil,(trDbh>$C27)*trDbh*trpha*(trMGMSpp="Pl"),0)) -> 0 | AN27: =SUM(IF(trUtil,(trDbh>$C27)*trDbh*trpha*(trMGMSpp="Sb"),0)) -> 0 | AO27: =IF(AND(($C27-$L27)>0,$L27>0),$AE27-MAX(0,volest($O27-1,$C27-$L27,$E27-$M27)),0) -> 0.01050626938 | AP27: -1 | AQ27: -1 | AR27: -1 | AS27: -1 | AT27: -1 | AU27: -1 | AV27: -1 | AW27: -1 | AX27: -1 | AY27: -1 | AZ27: -1 | BA27: -1 | BB27: -1 | BC27: -1 | BD27: -1 | BE27: -1 | BF27: -1 | BG27: -1 | BH27: -1 | BI27: 14
A28: 15 | B28: AW | C28: 44.39594899 | D28: 4.886894981 | E28: 33.45254223 | F28: 198.2640726 | G28: 196.3074256 | H28: 0.2521196924 | I28: 6.370516364 | J28: 24 | K28: 44 | L28: 0.09578259652 | M28: 0.02796951503 | N28: 0.9819543387 | O28: 3 | P28: 3 | Q28: 722.6535665 | R28: 148.0920877 | S28: 113.9466322 | T28: 12.66103166 | U28: 997.3533181 | V28: =IF(AND(NAErr<>$L28,NAErr<>$M28),$M28/$L28,NAErr) -> 0.2920104074 | W28: =IF(AND($E28<>NAErr,$C28<>NAErr),$E28/$C28,NAErr) -> 0.7535043848 | X28: =IF(AND($E28<>NAErr,$C28<>NAErr),$D28*PI()*($C28/200)^2,NAErr) -> 0.7565011194 | Y28: =IF($C28=NAErr,NAErr,SUM(IF(trUtil,(trDbh>$C28)*trBaHa,0))) -> 3.654839439 | Z28: =IF($C28=NAErr,NAErr,SUM(IF(trUtil,(trDbh>$C28)*trBaHa*(trSppgrp="Con"),0))) -> 0 | AA28: =IF($C28=NAErr,NAErr,SUM(IF(trUtil,(trDbh>$C28)*trBaHa*(trSppgrp="Dec"),0))) -> 3.654839439 | AB28: =IF(ISERROR($O28),NAErr,INDEX(INDIRECT("SpeciesList!SppGrp"),$O28)) -> Dec | AC28: =IF(ISERROR($O28),NAErr,INDEX(INDIRECT("SpeciesList!MGM"),$O28)) -> Aw | AD28: =IF($C28<>NAErr,PERCENTRANK(trDbh,$C28),NAErr) -> 0.892 | AE28: =volest($O28 - 1, $C28, $E28) -> 2.044814762 | AF28: =isutilized($O28, $C28) -> TRUE | AG28: =ROUND(VRF($B28),3) -> 1 | AH28: =isjuveniletree($C28) -> FALSE | AI28: =SUM(IF(trUtil,(trDbh>$C28)*trBaHa*(trMGMSpp="Sw"),0)) -> 0 | AJ28: =SUM(IF(trUtil,(trDbh>$C28)*trBaHa*(trMGMSpp="Pl"),0)) -> 0 | AK28: =SUM(IF(trUtil,(trDbh>$C28)*trDbh*trpha*(trSppgrp="Dec"),0)) -> 910.5337838 | AL28: =SUM(IF(trUtil,(trDbh>$C28)*trDbh*trpha*(trMGMSpp="Sw"),0)) -> 0 | AM28: =SUM(IF(trUtil,(trDbh>$C28)*trDbh*trpha*(trMGMSpp="Pl"),0)) -> 0 | AN28: =SUM(IF(trUtil,(trDbh>$C28)*trDbh*trpha*(trMGMSpp="Sb"),0)) -> 0 | AO28: =IF(AND(($C28-$L28)>0,$L28>0),$AE28-MAX(0,volest($O28-1,$C28-$L28,$E28-$M28)),0) -> 0.009946876722 | AP28: -1 | AQ28: -1 | AR28: -1 | AS28: -1 | AT28: -1 | AU28: -1 | AV28: -1 | AW28: -1 | AX28: -1 | AY28: -1 | AZ28: -1 | BA28: -1 | BB28: -1 | BC28: -1 | BD28: -1 | BE28: -1 | BF28: -1 | BG28: -1 | BH28: -1 | BI28: 15
A29: 29 | B29: AW | C29: 43.17450743 | D29: 4.884685597 | E29: 32.87505029 | F29: 197.7357952 | G29: 195.7791482 | H29: 0.2550696619 | I29: 6.296774054 | J29: 6 | K29: 70 | L29: 0.09559545864 | M29: 0.02808882926 | N29: 0.9830854303 | O29: 3 | P29: 3 | Q29: 674.4397651 | R29: 138.5209182 | S29: 106.206802 | T29: 12.09804641 | U29: 931.2655317 | V29: =IF(AND(NAErr<>$L29,NAErr<>$M29),$M29/$L29,NAErr) -> 0.2938301637 | W29: =IF(AND($E29<>NAErr,$C29<>NAErr),$E29/$C29,NAErr) -> 0.7614458681 | X29: =IF(AND($E29<>NAErr,$C29<>NAErr),$D29*PI()*($C29/200)^2,NAErr) -> 0.7151238787 | Y29: =IF($C29=NAErr,NAErr,SUM(IF(trUtil,(trDbh>$C29)*trBaHa,0))) -> 4.411340559 | Z29: =IF($C29=NAErr,NAErr,SUM(IF(trUtil,(trDbh>$C29)*trBaHa*(trSppgrp="Con"),0))) -> 0 | AA29: =IF($C29=NAErr,NAErr,SUM(IF(trUtil,(trDbh>$C29)*trBaHa*(trSppgrp="Dec"),0))) -> 4.411340559 | AB29: =IF(ISERROR($O29),NAErr,INDEX(INDIRECT("SpeciesList!SppGrp"),$O29)) -> Dec | AC29: =IF(ISERROR($O29),NAErr,INDEX(INDIRECT("SpeciesList!MGM"),$O29)) -> Aw | AD29: =IF($C29<>NAErr,PERCENTRANK(trDbh,$C29),NAErr) -> 0.876 | AE29: =volest($O29 - 1, $C29, $E29) -> 1.907069423 | AF29: =isutilized($O29, $C29) -> TRUE | AG29: =ROUND(VRF($B29),3) -> 1 | AH29: =isjuveniletree($C29) -> FALSE | AI29: =SUM(IF(trUtil,(trDbh>$C29)*trBaHa*(trMGMSpp="Sw"),0)) -> 0 | AJ29: =SUM(IF(trUtil,(trDbh>$C29)*trBaHa*(trMGMSpp="Pl"),0)) -> 0 | AK29: =SUM(IF(trUtil,(trDbh>$C29)*trDbh*trpha*(trSppgrp="Dec"),0)) -> 1127.492124 | AL29: =SUM(IF(trUtil,(trDbh>$C29)*trDbh*trpha*(trMGMSpp="Sw"),0)) -> 0 | AM29: =SUM(IF(trUtil,(trDbh>$C29)*trDbh*trpha*(trMGMSpp="Pl"),0)) -> 0 | AN29: =SUM(IF(trUtil,(trDbh>$C29)*trDbh*trpha*(trMGMSpp="Sb"),0)) -> 0 | AO29: =IF(AND(($C29-$L29)>0,$L29>0),$AE29-MAX(0,volest($O29-1,$C29-$L29,$E29-$M29)),0) -> 0.009526805461 | AP29: -1 | AQ29: -1 | AR29: -1 | AS29: -1 | AT29: -1 | AU29: -1 | AV29: -1 | AW29: -1 | AX29: -1 | AY29: -1 | AZ29: -1 | BA29: -1 | BB29: -1 | BC29: -1 | BD29: -1 | BE29: -1 | BF29: -1 | BG29: -1 | BH29: -1 | BI29: 29
A30: 21 | B30: AW | C30: 40.5223613 | D30: 4.906605406 | E30: 32.32631196 | F30: 198.3880543 | G30: 196.4314073 | H30: 0.2552440884 | I30: 6.118163586 | J30: 91 | K30: 55 | L30: 0.0945060347 | M30: 0.02793573562 | N30: 0.9851725443 | O30: 3 | P30: 3 | Q30: 576.5007375 | R30: 119.0083476 | S30: 90.51728429 | T30: 10.91003186 | U30: 796.9364013 | V30: =IF(AND(NAErr<>$L30,NAErr<>$M30),$M30/$L30,NAErr) -> 0.2955973733 | W30: =IF(AND($E30<>NAErr,$C30<>NAErr),$E30/$C30,NAErr) -> 0.7977400853 | X30: =IF(AND($E30<>NAErr,$C30<>NAErr),$D30*PI()*($C30/200)^2,NAErr) -> 0.6327913054 | Y30: =IF($C30=NAErr,NAErr,SUM(IF(trUtil,(trDbh>$C30)*trBaHa,0))) -> 5.126464437 | Z30: =IF($C30=NAErr,NAErr,SUM(IF(trUtil,(trDbh>$C30)*trBaHa*(trSppgrp="Con"),0))) -> 0 | AA30: =IF($C30=NAErr,NAErr,SUM(IF(trUtil,(trDbh>$C30)*trBaHa*(trSppgrp="Dec"),0))) -> 5.126464437 | AB30: =IF(ISERROR($O30),NAErr,INDEX(INDIRECT("SpeciesList!SppGrp"),$O30)) -> Dec | AC30: =IF(ISERROR($O30),NAErr,INDEX(INDIRECT("SpeciesList!MGM"),$O30)) -> Aw | AD30: =IF($C30<>NAErr,PERCENTRANK(trDbh,$C30),NAErr) -> 0.861 | AE30: =volest($O30 - 1, $C30, $E30) -> 1.665026817 | AF30: =isutilized($O30, $C30) -> TRUE | AG30: =ROUND(VRF($B30),3) -> 1 | AH30: =isjuveniletree($C30) -> FALSE | AI30: =SUM(IF(trUtil,(trDbh>$C30)*trBaHa*(trMGMSpp="Sw"),0)) -> 0 | AJ30: =SUM(IF(trUtil,(trDbh>$C30)*trBaHa*(trMGMSpp="Pl"),0)) -> 0 | AK30: =SUM(IF(trUtil,(trDbh>$C30)*trDbh*trpha*(trSppgrp="Dec"),0)) -> 1338.386019 | AL30: =SUM(IF(trUtil,(trDbh>$C30)*trDbh*trpha*(trMGMSpp="Sw"),0)) -> 0 | AM30: =SUM(IF(trUtil,(trDbh>$C30)*trDbh*trpha*(trMGMSpp="Pl"),0)) -> 0 | AN30: =SUM(IF(trUtil,(trDbh>$C30)*trDbh*trpha*(trMGMSpp="Sb"),0)) -> 0 | AO30: =IF(AND(($C30-$L30)>0,$L30>0),$AE30-MAX(0,volest($O30-1,$C30-$L30,$E30-$M30)),0) -> 0.008728039129 | AP30: -1 | AQ30: -1 | AR30: -1 | AS30: -1 | AT30: -1 | AU30: -1 | AV30: -1 | AW30: -1 | AX30: -1 | AY30: -1 | AZ30: -1 | BA30: -1 | BB30: -1 | BC30: -1 | BD30: -1 | BE30: -1 | BF30: -1 | BG30: -1 | BH30: -1 | BI30: 21
A31: 9 | B31: AW | C31: 39.04425391 | D31: 4.780361842 | E31: 31.20502747 | F31: 197.0662764 | G31: 195.1096293 | H31: 0.2614688237 | I31: 6.007630579 | J31: 2 | K31: 70 | L31: 0.09499087896 | M31: 0.02823682961 | N31: 0.9859936222 | O31: 3 | P31: 3 | Q31: 525.8468389 | R31: 108.875321 | S31: 82.4218068 | T31: 10.26869488 | U31: 727.4126616 | V31: =IF(AND(NAErr<>$L31,NAErr<>$M31),$M31/$L31,NAErr) -> 0.2972583255 | W31: =IF(AND($E31<>NAErr,$C31<>NAErr),$E31/$C31,NAErr) -> 0.7992220197 | X31: =IF(AND($E31<>NAErr,$C31<>NAErr),$D31*PI()*($C31/200)^2,NAErr) -> 0.5723542465 | Y31: =IF($C31=NAErr,NAErr,SUM(IF(trUtil,(trDbh>$C31)*trBaHa,0))) -> 5.759255743 | Z31: =IF($C31=NAErr,NAErr,SUM(IF(trUtil,(trDbh>$C31)*trBaHa*(trSppgrp="Con"),0))) -> 0 | AA31: =IF($C31=NAErr,NAErr,SUM(IF(trUtil,(trDbh>$C31)*trBaHa*(trSppgrp="Dec"),0))) -> 5.759255743 | AB31: =IF(ISERROR($O31),NAErr,INDEX(INDIRECT("SpeciesList!SppGrp"),$O31)) -> Dec | AC31: =IF(ISERROR($O31),NAErr,INDEX(INDIRECT("SpeciesList!MGM"),$O31)) -> Aw | AD31: =IF($C31<>NAErr,PERCENTRANK(trDbh,$C31),NAErr) -> 0.846 | AE31: =volest($O31 - 1, $C31, $E31) -> 1.498215734 | AF31: =isutilized($O31, $C31) -> TRUE | AG31: =ROUND(VRF($B31),3) -> 1 | AH31: =isjuveniletree($C31) -> FALSE | AI31: =SUM(IF(trUtil,(trDbh>$C31)*trBaHa*(trMGMSpp="Sw"),0)) -> 0 | AJ31: =SUM(IF(trUtil,(trDbh>$C31)*trBaHa*(trMGMSpp="Pl"),0)) -> 0 | AK31: =SUM(IF(trUtil,(trDbh>$C31)*trDbh*trpha*(trSppgrp="Dec"),0)) -> 1537.213256 | AL31: =SUM(IF(trUtil,(trDbh>$C31)*trDbh*trpha*(trMGMSpp="Sw"),0)) -> 0 | AM31: =SUM(IF(trUtil,(trDbh>$C31)*trDbh*trpha*(trMGMSpp="Pl"),0)) -> 0 | AN31: =SUM(IF(trUtil,(trDbh>$C31)*trDbh*trpha*(trMGMSpp="Sb"),0)) -> 0 | AO31: =IF(AND(($C31-$L31)>0,$L31>0),$AE31-MAX(0,volest($O31-1,$C31-$L31,$E31-$M31)),0) -> 0.008211188186 | AP31: -1 | AQ31: -1 | AR31: -1 | AS31: -1 | AT31: -1 | AU31: -1 | AV31: -1 | AW31: -1 | AX31: -1 | AY31: -1 | AZ31: -1 | BA31: -1 | BB31: -1 | BC31: -1 | BD31: -1 | BE31: -1 | BF31: -1 | BG31: -1 | BH31: -1 | BI31: 8
A32: 8 | B32: AW | C32: 38.15757758 | D32: 4.67257293 | E32: 31.29812318 | F32: 198.0932432 | G32: 196.1365962 | H32: 0.2587409963 | I32: 5.937550604 | J32: 46 | K32: 90 | L32: 0.09368566277 | M32: 0.02799451741 | N32: 0.9863657252 | O32: 3 | P32: 3 | Q32: 496.7842797 | R32: 103.0474217 | S32: 77.78355815 | T32: 9.891219441 | U32: 687.5064789 | V32: =IF(AND(NAErr<>$L32,NAErr<>$M32),$M32/$L32,NAErr) -> 0.2988132504 | W32: =IF(AND($E32<>NAErr,$C32<>NAErr),$E32/$C32,NAErr) -> 0.8202334941 | X32: =IF(AND($E32<>NAErr,$C32<>NAErr),$D32*PI()*($C32/200)^2,NAErr) -> 0.5343275435 | Y32: =IF($C32=NAErr,NAErr,SUM(IF(trUtil,(trDbh>$C32)*trBaHa,0))) -> 6.331609989 | Z32: =IF($C32=NAErr,NAErr,SUM(IF(trUtil,(trDbh>$C32)*trBaHa*(trSppgrp="Con"),0))) -> 0 | AA32: =IF($C32=NAErr,NAErr,SUM(IF(trUtil,(trDbh>$C32)*trBaHa*(trSppgrp="Dec"),0))) -> 6.331609989 | AB32: =IF(ISERROR($O32),NAErr,INDEX(INDIRECT("SpeciesList!SppGrp"),$O32)) -> Dec | AC32: =IF(ISERROR($O32),NAErr,INDEX(INDIRECT("SpeciesList!MGM"),$O32)) -> Aw | AD32: =IF($C32<>NAErr,PERCENTRANK(trDbh,$C32),NAErr) -> 0.83 | AE32: =volest($O32 - 1, $C32, $E32) -> 1.439224557 | AF32: =isutilized($O32, $C32) -> TRUE | AG32: =ROUND(VRF($B32),3) -> 1 | AH32: =isjuveniletree($C32) -> FALSE | AI32: =SUM(IF(trUtil,(trDbh>$C32)*trBaHa*(trMGMSpp="Sw"),0)) -> 0 | AJ32: =SUM(IF(trUtil,(trDbh>$C32)*trBaHa*(trMGMSpp="Pl"),0)) -> 0 | AK32: =SUM(IF(trUtil,(trDbh>$C32)*trDbh*trpha*(trSppgrp="Dec"),0)) -> 1723.858917 | AL32: =SUM(IF(trUtil,(trDbh>$C32)*trDbh*trpha*(trMGMSpp="Sw"),0)) -> 0 | AM32: =SUM(IF(trUtil,(trDbh>$C32)*trDbh*trpha*(trMGMSpp="Pl"),0)) -> 0 | AN32: =SUM(IF(trUtil,(trDbh>$C32)*trDbh*trpha*(trMGMSpp="Sb"),0)) -> 0 | AO32: =IF(AND(($C32-$L32)>0,$L32>0),$AE32-MAX(0,volest($O32-1,$C32-$L32,$E32-$M32)),0) -> 0.007941680182 | AP32: -1 | AQ32: -1 | AR32: -1 | AS32: -1 | AT32: -1 | AU32: -1 | AV32: -1 | AW32: -1 | AX32: -1 | AY32: -1 | AZ32: -1 | BA32: -1 | BB32: -1 | BC32: -1 | BD32: -1 | BE32: -1 | BF32: -1 | BG32: -1 | BH32: -1 | BI32: 9
A33: 22 | B33: AW | C33: 35.14364546 | D33: 4.271253771 | E33: 30.18520407 | F33: 197.6448893 | G33: 195.6882423 | H33: 0.2603171625 | I33: 5.678178241 | J33: 34 | K33: 56 | L33: 0.09354864801 | M33: 0.02809210797 | N33: 0.9874896805 | O33: 3 | P33: 3 | Q33: 405.2529892 | R33: 84.61703522 | S33: 63.21034071 | T33: 8.64946299 | U33: 561.7298281 | V33: =IF(AND(NAErr<>$L33,NAErr<>$M33),$M33/$L33,NAErr) -> 0.3002941097 | W33: =IF(AND($E33<>NAErr,$C33<>NAErr),$E33/$C33,NAErr) -> 0.8589093041 | X33: =IF(AND($E33<>NAErr,$C33<>NAErr),$D33*PI()*($C33/200)^2,NAErr) -> 0.4143228397 | Y33: =IF($C33=NAErr,NAErr,SUM(IF(trUtil,(trDbh>$C33)*trBaHa,0))) -> 6.865937533 | Z33: =IF($C33=NAErr,NAErr,SUM(IF(trUtil,(trDbh>$C33)*trBaHa*(trSppgrp="Con"),0))) -> 0 | AA33: =IF($C33=NAErr,NAErr,SUM(IF(trUtil,(trDbh>$C33)*trBaHa*(trSppgrp="Dec"),0))) -> 6.865937533 | AB33: =IF(ISERROR($O33),NAErr,INDEX(INDIRECT("SpeciesList!SppGrp"),$O33)) -> Dec | AC33: =IF(ISERROR($O33),NAErr,INDEX(INDIRECT("SpeciesList!MGM"),$O33)) -> Aw | AD33: =IF($C33<>NAErr,PERCENTRANK(trDbh,$C33),NAErr) -> 0.815 | AE33: =volest($O33 - 1, $C33, $E33) -> 1.187948221 | AF33: =isutilized($O33, $C33) -> TRUE | AG33: =ROUND(VRF($B33),3) -> 1 | AH33: =isjuveniletree($C33) -> FALSE | AI33: =SUM(IF(trUtil,(trDbh>$C33)*trBaHa*(trMGMSpp="Sw"),0)) -> 0 | AJ33: =SUM(IF(trUtil,(trDbh>$C33)*trBaHa*(trMGMSpp="Pl"),0)) -> 0 | AK33: =SUM(IF(trUtil,(trDbh>$C33)*trDbh*trpha*(trSppgrp="Dec"),0)) -> 1902.152981 | AL33: =SUM(IF(trUtil,(trDbh>$C33)*trDbh*trpha*(trMGMSpp="Sw"),0)) -> 0 | AM33: =SUM(IF(trUtil,(trDbh>$C33)*trDbh*trpha*(trMGMSpp="Pl"),0)) -> 0 | AN33: =SUM(IF(trUtil,(trDbh>$C33)*trDbh*trpha*(trMGMSpp="Sb"),0)) -> 0 | AO33: =IF(AND(($C33-$L33)>0,$L33>0),$AE33-MAX(0,volest($O33-1,$C33-$L33,$E33-$M33)),0) -> 0.007084651035 | AP33: -1 | AQ33: -1 | AR33: -1 | AS33: -1 | AT33: -1 | AU33: -1 | AV33: -1 | AW33: -1 | AX33: -1 | AY33: -1 | AZ33: -1 | BA33: -1 | BB33: -1 | BC33: -1 | BD33: -1 | BE33: -1 | BF33: -1 | BG33: -1 | BH33: -1 | BI33: 22
A34: 28 | B34: AW | C34: 33.14618973 | D34: 3.94198605 | E34: 29.48298749 | F34: 197.6247625 | G34: 195.6681154 | H34: 0.2601632 | I34: 5.488263553 | J34: 24 | K34: 38 | L34: 0.09316017289 | M34: 0.02809107917 | N34: 0.9879135382 | O34: 3 | P34: 3 | Q34: 350.6134436 | R34: 73.55221215 | S34: 54.53951809 | T34: 7.862406038 | U34: 486.5675799 | V34: =IF(AND(NAErr<>$L34,NAErr<>$M34),$M34/$L34,NAErr) -> 0.3015352838 | W34: =IF(AND($E34<>NAErr,$C34<>NAErr),$E34/$C34,NAErr) -> 0.8894834588 | X34: =IF(AND($E34<>NAErr,$C34<>NAErr),$D34*PI()*($C34/200)^2,NAErr) -> 0.3401513417 | Y34: =IF($C34=NAErr,NAErr,SUM(IF(trUtil,(trDbh>$C34)*trBaHa,0))) -> 7.280260372 | Z34: =IF($C34=NAErr,NAErr,SUM(IF(trUtil,(trDbh>$C34)*trBaHa*(trSppgrp="Con"),0))) -> 0 | AA34: =IF($C34=NAErr,NAErr,SUM(IF(trUtil,(trDbh>$C34)*trBaHa*(trSppgrp="Dec"),0))) -> 7.280260372 | AB34: =IF(ISERROR($O34),NAErr,INDEX(INDIRECT("SpeciesList!SppGrp"),$O34)) -> Dec | AC34: =IF(ISERROR($O34),NAErr,INDEX(INDIRECT("SpeciesList!MGM"),$O34)) -> Aw | AD34: =IF($C34<>NAErr,PERCENTRANK(trDbh,$C34),NAErr) -> 0.8 | AE34: =volest($O34 - 1, $C34, $E34) -> 1.038333924 | AF34: =isutilized($O34, $C34) -> TRUE | AG34: =ROUND(VRF($B34),3) -> 1 | AH34: =isjuveniletree($C34) -> FALSE | AI34: =SUM(IF(trUtil,(trDbh>$C34)*trBaHa*(trMGMSpp="Sw"),0)) -> 0 | AJ34: =SUM(IF(trUtil,(trDbh>$C34)*trBaHa*(trMGMSpp="Pl"),0)) -> 0 | AK34: =SUM(IF(trUtil,(trDbh>$C34)*trDbh*trpha*(trSppgrp="Dec"),0)) -> 2052.26041 | AL34: =SUM(IF(trUtil,(trDbh>$C34)*trDbh*trpha*(trMGMSpp="Sw"),0)) -> 0 | AM34: =SUM(IF(trUtil,(trDbh>$C34)*trDbh*trpha*(trMGMSpp="Pl"),0)) -> 0 | AN34: =SUM(IF(trUtil,(trDbh>$C34)*trDbh*trpha*(trMGMSpp="Sb"),0)) -> 0 | AO34: =IF(AND(($C34-$L34)>0,$L34>0),$AE34-MAX(0,volest($O34-1,$C34-$L34,$E34-$M34)),0) -> 0.006522121651 | AP34: -1 | AQ34: -1 | AR34: -1 | AS34: -1 | AT34: -1 | AU34: -1 | AV34: -1 | AW34: -1 | AX34: -1 | AY34: -1 | AZ34: -1 | BA34: -1 | BB34: -1 | BC34: -1 | BD34: -1 | BE34: -1 | BF34: -1 | BG34: -1 | BH34: -1 | BI34: 28
A35: 73 | B35: SW | C35: 31.7165077 | D35: 4.496611251 | E35: 29.11514238 | F35: 197.7008184 | G35: 191.0381578 | H35: 0.4792348068 | I35: 3.921351724 | J35: 1 | K35: 22 | L35: 0.05327721789 | M35: 0.04084302721 | N35: 0.9943122591 | O35: 1 | P35: 1 | Q35: 265.8627344 | R35: 33.1678368 | S35: 37.83667313 | T35: 25.51390633 | U35: 362.3811506 | V35: =IF(AND(NAErr<>$L35,NAErr<>$M35),$M35/$L35,NAErr) -> 0.7666133636 | W35: =IF(AND($E35<>NAErr,$C35<>NAErr),$E35/$C35,NAErr) -> 0.9179807137 | X35: =IF(AND($E35<>NAErr,$C35<>NAErr),$D35*PI()*($C35/200)^2,NAErr) -> 0.3552597015 | Y35: =IF($C35=NAErr,NAErr,SUM(IF(trUtil,(trDbh>$C35)*trBaHa,0))) -> 7.620411714 | Z35: =IF($C35=NAErr,NAErr,SUM(IF(trUtil,(trDbh>$C35)*trBaHa*(trSppgrp="Con"),0))) -> 0 | AA35: =IF($C35=NAErr,NAErr,SUM(IF(trUtil,(trDbh>$C35)*trBaHa*(trSppgrp="Dec"),0))) -> 7.620411714 | AB35: =IF(ISERROR($O35),NAErr,INDEX(INDIRECT("SpeciesList!SppGrp"),$O35)) -> Con | AC35: =IF(ISERROR($O35),NAErr,INDEX(INDIRECT("SpeciesList!MGM"),$O35)) -> Sw | AD35: =IF($C35<>NAErr,PERCENTRANK(trDbh,$C35),NAErr) -> 0.784 | AE35: =volest($O35 - 1, $C35, $E35) -> 0.9167656743 | AF35: =isutilized($O35, $C35) -> TRUE | AG35: =ROUND(VRF($B35),3) -> 1 | AH35: =isjuveniletree($C35) -> FALSE | AI35: =SUM(IF(trUtil,(trDbh>$C35)*trBaHa*(trMGMSpp="Sw"),0)) -> 0 | AJ35: =SUM(IF(trUtil,(trDbh>$C35)*trBaHa*(trMGMSpp="Pl"),0)) -> 0 | AK35: =SUM(IF(trUtil,(trDbh>$C35)*trDbh*trpha*(trSppgrp="Dec"),0)) -> 2182.922227 | AL35: =SUM(IF(trUtil,(trDbh>$C35)*trDbh*trpha*(trMGMSpp="Sw"),0)) -> 0 | AM35: =SUM(IF(trUtil,(trDbh>$C35)*trDbh*trpha*(trMGMSpp="Pl"),0)) -> 0 | AN35: =SUM(IF(trUtil,(trDbh>$C35)*trDbh*trpha*(trMGMSpp="Sb"),0)) -> 0 | AO35: =IF(AND(($C35-$L35)>0,$L35>0),$AE35-MAX(0,volest($O35-1,$C35-$L35,$E35-$M35)),0) -> 0.004183917324 | AP35: -1 | AQ35: -1 | AR35: -1 | AS35: -1 | AT35: -1 | AU35: -1 | AV35: -1 | AW35: -1 | AX35: -1 | AY35: -1 | AZ35: -1 | BA35: -1 | BB35: -1 | BC35: -1 | BD35: -1 | BE35: -1 | BF35: -1 | BG35: -1 | BH35: -1 | BI35: 35
A36: 62 | B36: SW | C36: 31.56223741 | D36: 4.453581761 | E36: 28.97707501 | F36: 197.3516614 | G36: 190.6890008 | H36: 0.4795959547 | I36: 3.906850317 | J36: 29 | K36: 31 | L36: 0.05312615826 | M36: 0.04083869485 | N36: 0.9942857469 | O36: 1 | P36: 1 | Q36: 262.5423737 | R36: 32.79759945 | S36: 37.45445729 | T36: 25.3320577 | U36: 358.1264881 | V36: =IF(AND(NAErr<>$L36,NAErr<>$M36),$M36/$L36,NAErr) -> 0.7687116139 | W36: =IF(AND($E36<>NAErr,$C36<>NAErr),$E36/$C36,NAErr) -> 0.918093183 | X36: =IF(AND($E36<>NAErr,$C36<>NAErr),$D36*PI()*($C36/200)^2,NAErr) -> 0.3484455124 | Y36: =IF($C36=NAErr,NAErr,SUM(IF(trUtil,(trDbh>$C36)*trBaHa,0))) -> 7.975671416 | Z36: =IF($C36=NAErr,NAErr,SUM(IF(trUtil,(trDbh>$C36)*trBaHa*(trSppgrp="Con"),0))) -> 0.3552597015 | AA36: =IF($C36=NAErr,NAErr,SUM(IF(trUtil,(trDbh>$C36)*trBaHa*(trSppgrp="Dec"),0))) -> 7.620411714 | AB36: =IF(ISERROR($O36),NAErr,INDEX(INDIRECT("SpeciesList!SppGrp"),$O36)) -> Con | AC36: =IF(ISERROR($O36),NAErr,INDEX(INDIRECT("SpeciesList!MGM"),$O36)) -> Sw | AD36: =IF($C36<>NAErr,PERCENTRANK(trDbh,$C36),NAErr) -> 0.769 | AE36: =volest($O36 - 1, $C36, $E36) -> 0.904058376 | AF36: =isutilized($O36, $C36) -> TRUE | AG36: =ROUND(VRF($B36),3) -> 1 | AH36: =isjuveniletree($C36) -> FALSE | AI36: =SUM(IF(trUtil,(trDbh>$C36)*trBaHa*(trMGMSpp="Sw"),0)) -> 0.3552597015 | AJ36: =SUM(IF(trUtil,(trDbh>$C36)*trBaHa*(trMGMSpp="Pl"),0)) -> 0 | AK36: =SUM(IF(trUtil,(trDbh>$C36)*trDbh*trpha*(trSppgrp="Dec"),0)) -> 2182.922227 | AL36: =SUM(IF(trUtil,(trDbh>$C36)*trDbh*trpha*(trMGMSpp="Sw"),0)) -> 142.6168054 | AM36: =SUM(IF(trUtil,(trDbh>$C36)*trDbh*trpha*(trMGMSpp="Pl"),0)) -> 0 | AN36: =SUM(IF(trUtil,(trDbh>$C36)*trDbh*trpha*(trMGMSpp="Sb"),0)) -> 0 | AO36: =IF(AND(($C36-$L36)>0,$L36>0),$AE36-MAX(0,volest($O36-1,$C36-$L36,$E36-$M36)),0) -> 0.004138137922 | AP36: -1 | AQ36: -1 | AR36: -1 | AS36: -1 | AT36: -1 | AU36: -1 | AV36: -1 | AW36: -1 | AX36: -1 | AY36: -1 | AZ36: -1 | BA36: -1 | BB36: -1 | BC36: -1 | BD36: -1 | BE36: -1 | BF36: -1 | BG36: -1 | BH36: -1 | BI36: 26
A37: 72 | B37: SW | C37: 31.36758195 | D37: 4.395584149 | E37: 28.7221896 | F37: 196.6264628 | G37: 189.9638021 | H37: 0.4814021239 | I37: 3.888552704 | J37: 31 | K37: 100 | L37: 0.05316227291 | M37: 0.040976671 | N37: 0.9942580533 | O37: 1 | P37: 1 | Q37: 258.3891853 | R37: 32.33379217 | S37: 36.97506174 | T37: 25.10319615 | U37: 352.8012354 | V37: =IF(AND(NAErr<>$L37,NAErr<>$M37),$M37/$L37,NAErr) -> 0.7707847831 | W37: =IF(AND($E37<>NAErr,$C37<>NAErr),$E37/$C37,NAErr) -> 0.9156647664 | X37: =IF(AND($E37<>NAErr,$C37<>NAErr),$D37*PI()*($C37/200)^2,NAErr) -> 0.3396788939 | Y37: =IF($C37=NAErr,NAErr,SUM(IF(trUtil,(trDbh>$C37)*trBaHa,0))) -> 8.324116928 | Z37: =IF($C37=NAErr,NAErr,SUM(IF(trUtil,(trDbh>$C37)*trBaHa*(trSppgrp="Con"),0))) -> 0.7037052138 | AA37: =IF($C37=NAErr,NAErr,SUM(IF(trUtil,(trDbh>$C37)*trBaHa*(trSppgrp="Dec"),0))) -> 7.620411714 | AB37: =IF(ISERROR($O37),NAErr,INDEX(INDIRECT("SpeciesList!SppGrp"),$O37)) -> Con | AC37: =IF(ISERROR($O37),NAErr,INDEX(INDIRECT("SpeciesList!MGM"),$O37)) -> Sw | AD37: =IF($C37<>NAErr,PERCENTRANK(trDbh,$C37),NAErr) -> 0.753 | AE37: =volest($O37 - 1, $C37, $E37) -> 0.8856668431 | AF37: =isutilized($O37, $C37) -> TRUE | AG37: =ROUND(VRF($B37),3) -> 1 | AH37: =isjuveniletree($C37) -> FALSE | AI37: =SUM(IF(trUtil,(trDbh>$C37)*trBaHa*(trMGMSpp="Sw"),0)) -> 0.7037052138 | AJ37: =SUM(IF(trUtil,(trDbh>$C37)*trBaHa*(trMGMSpp="Pl"),0)) -> 0 | AK37: =SUM(IF(trUtil,(trDbh>$C37)*trDbh*trpha*(trSppgrp="Dec"),0)) -> 2182.922227 | AL37: =SUM(IF(trUtil,(trDbh>$C37)*trDbh*trpha*(trMGMSpp="Sw"),0)) -> 283.1818102 | AM37: =SUM(IF(trUtil,(trDbh>$C37)*trDbh*trpha*(trMGMSpp="Pl"),0)) -> 0 | AN37: =SUM(IF(trUtil,(trDbh>$C37)*trDbh*trpha*(trMGMSpp="Sb"),0)) -> 0 | AO37: =IF(AND(($C37-$L37)>0,$L37>0),$AE37-MAX(0,volest($O37-1,$C37-$L37,$E37-$M37)),0) -> 0.004089207382 | AP37: -1 | AQ37: -1 | AR37: -1 | AS37: -1 | AT37: -1 | AU37: -1 | AV37: -1 | AW37: -1 | AX37: -1 | AY37: -1 | AZ37: -1 | BA37: -1 | BB37: -1 | BC37: -1 | BD37: -1 | BE37: -1 | BF37: -1 | BG37: -1 | BH37: -1 | BI37: 16
A38: 26 | B38: AW | C38: 31.34961075 | D38: 3.551253868 | E38: 28.4834363 | F38: 197.534833 | G38: 195.5781859 | H38: 0.2627072212 | I38: 5.305178574 | J38: 74 | K38: 20 | L38: 0.05438223003 | M38: 0.02806273598 | N38: 0.9880120569 | O38: 3 | P38: 3 | Q38: 305.4428428 | R38: 64.36290901 | S38: 47.39033048 | T38: 7.179553059 | U38: 424.3756353 | V38: =IF(AND(NAErr<>$L38,NAErr<>$M38),$M38/$L38,NAErr) -> 0.5160276797 | W38: =IF(AND($E38<>NAErr,$C38<>NAErr),$E38/$C38,NAErr) -> 0.9085738423 | X38: =IF(AND($E38<>NAErr,$C38<>NAErr),$D38*PI()*($C38/200)^2,NAErr) -> 0.2741169601 | Y38: =IF($C38=NAErr,NAErr,SUM(IF(trUtil,(trDbh>$C38)*trBaHa,0))) -> 8.663795822 | Z38: =IF($C38=NAErr,NAErr,SUM(IF(trUtil,(trDbh>$C38)*trBaHa*(trSppgrp="Con"),0))) -> 1.043384108 | AA38: =IF($C38=NAErr,NAErr,SUM(IF(trUtil,(trDbh>$C38)*trBaHa*(trSppgrp="Dec"),0))) -> 7.620411714 | AB38: =IF(ISERROR($O38),NAErr,INDEX(INDIRECT("SpeciesList!SppGrp"),$O38)) -> Dec | AC38: =IF(ISERROR($O38),NAErr,INDEX(INDIRECT("SpeciesList!MGM"),$O38)) -> Aw | AD38: =IF($C38<>NAErr,PERCENTRANK(trDbh,$C38),NAErr) -> 0.738 | AE38: =volest($O38 - 1, $C38, $E38) -> 0.9020448703 | AF38: =isutilized($O38, $C38) -> TRUE | AG38: =ROUND(VRF($B38),3) -> 1 | AH38: =isjuveniletree($C38) -> FALSE | AI38: =SUM(IF(trUtil,(trDbh>$C38)*trBaHa*(trMGMSpp="Sw"),0)) -> 1.043384108 | AJ38: =SUM(IF(trUtil,(trDbh>$C38)*trBaHa*(trMGMSpp="Pl"),0)) -> 0 | AK38: =SUM(IF(trUtil,(trDbh>$C38)*trDbh*trpha*(trSppgrp="Dec"),0)) -> 2182.922227 | AL38: =SUM(IF(trUtil,(trDbh>$C38)*trDbh*trpha*(trMGMSpp="Sw"),0)) -> 421.0606562 | AM38: =SUM(IF(trUtil,(trDbh>$C38)*trDbh*trpha*(trMGMSpp="Pl"),0)) -> 0 | AN38: =SUM(IF(trUtil,(trDbh>$C38)*trDbh*trpha*(trMGMSpp="Sb"),0)) -> 0 | AO38: =IF(AND(($C38-$L38)>0,$L38>0),$AE38-MAX(0,volest($O38-1,$C38-$L38,$E38-$M38)),0) -> 0.003868747386 | AP38: -1 | AQ38: -1 | AR38: -1 | AS38: -1 | AT38: -1 | AU38: -1 | AV38: -1 | AW38: -1 | AX38: -1 | AY38: -1 | AZ38: -1 | BA38: -1 | BB38: -1 | BC38: -1 | BD38: -1 | BE38: -1 | BF38: -1 | BG38: -1 | BH38: -1 | BI38: 2
A39: 58 | B39: SW | C39: 31.2803379 | D39: 4.298408905 | E39: 27.93083133 | F39: 194.0323445 | G39: 187.3696839 | H39: 0.4939114076 | I39: 3.880351763 | J39: 13 | K39: 7 | L39: 0.05408143146 | M39: 0.04177434262 | N39: 0.994219982 | O39: 1 | P39: 1 | Q39: 256.5408767 | R39: 32.12712691 | S39: 36.76123951 | T39: 25.00083583 | U39: 350.4300789 | V39: =IF(AND(NAErr<>$L39,NAErr<>$M39),$M39/$L39,NAErr) -> 0.7724341145 | W39: =IF(AND($E39<>NAErr,$C39<>NAErr),$E39/$C39,NAErr) -> 0.8929197446 | X39: =IF(AND($E39<>NAErr,$C39<>NAErr),$D39*PI()*($C39/200)^2,NAErr) -> 0.3303242673 | Y39: =IF($C39=NAErr,NAErr,SUM(IF(trUtil,(trDbh>$C39)*trBaHa,0))) -> 8.937912782 | Z39: =IF($C39=NAErr,NAErr,SUM(IF(trUtil,(trDbh>$C39)*trBaHa*(trSppgrp="Con"),0))) -> 1.043384108 | AA39: =IF($C39=NAErr,NAErr,SUM(IF(trUtil,(trDbh>$C39)*trBaHa*(trSppgrp="Dec"),0))) -> 7.894528674 | AB39: =IF(ISERROR($O39),NAErr,INDEX(INDIRECT("SpeciesList!SppGrp"),$O39)) -> Con | AC39: =IF(ISERROR($O39),NAErr,INDEX(INDIRECT("SpeciesList!MGM"),$O39)) -> Sw | AD39: =IF($C39<>NAErr,PERCENTRANK(trDbh,$C39),NAErr) -> 0.723 | AE39: =volest($O39 - 1, $C39, $E39) -> 0.8564556229 | AF39: =isutilized($O39, $C39) -> TRUE | AG39: =ROUND(VRF($B39),3) -> 1 | AH39: =isjuveniletree($C39) -> FALSE | AI39: =SUM(IF(trUtil,(trDbh>$C39)*trBaHa*(trMGMSpp="Sw"),0)) -> 1.043384108 | AJ39: =SUM(IF(trUtil,(trDbh>$C39)*trBaHa*(trMGMSpp="Pl"),0)) -> 0 | AK39: =SUM(IF(trUtil,(trDbh>$C39)*trDbh*trpha*(trSppgrp="Dec"),0)) -> 2294.252654 | AL39: =SUM(IF(trUtil,(trDbh>$C39)*trDbh*trpha*(trMGMSpp="Sw"),0)) -> 421.0606562 | AM39: =SUM(IF(trUtil,(trDbh>$C39)*trDbh*trpha*(trMGMSpp="Pl"),0)) -> 0 | AN39: =SUM(IF(trUtil,(trDbh>$C39)*trDbh*trpha*(trMGMSpp="Sb"),0)) -> 0 | AO39: =IF(AND(($C39-$L39)>0,$L39>0),$AE39-MAX(0,volest($O39-1,$C39-$L39,$E39-$M39)),0) -> 0.004068833322 | AP39: -1 | AQ39: -1 | AR39: -1 | AS39: -1 | AT39: -1 | AU39: -1 | AV39: -1 | AW39: -1 | AX39: -1 | AY39: -1 | AZ39: -1 | BA39: -1 | BB39: -1 | BC39: -1 | BD39: -1 | BE39: -1 | BF39: -1 | BG39: -1 | BH39: -1 | BI39: 6
A40: 6 | B40: AW | C40: 31.18991749 | D40: 3.36092064 | E40: 27.29755818 | F40: 196.4300877 | G40: 194.4734407 | H40: 0.2734770548 | I40: 5.288342297 | J40: 39 | K40: 77 | L40: 0.05362413397 | M40: 0.02828946122 | N40: 0.9879479589 | O40: 3 | P40: 3 | Q40: 301.6064213 | R40: 63.58050179 | S40: 46.78401132 | T40: 7.120021435 | U40: 419.0909558 | V40: =IF(AND(NAErr<>$L40,NAErr<>$M40),$M40/$L40,NAErr) -> 0.5275509202 | W40: =IF(AND($E40<>NAErr,$C40<>NAErr),$E40/$C40,NAErr) -> 0.8752045655 | X40: =IF(AND($E40<>NAErr,$C40<>NAErr),$D40*PI()*($C40/200)^2,NAErr) -> 0.2567891033 | Y40: =IF($C40=NAErr,NAErr,SUM(IF(trUtil,(trDbh>$C40)*trBaHa,0))) -> 9.268237049 | Z40: =IF($C40=NAErr,NAErr,SUM(IF(trUtil,(trDbh>$C40)*trBaHa*(trSppgrp="Con"),0))) -> 1.373708375 | AA40: =IF($C40=NAErr,NAErr,SUM(IF(trUtil,(trDbh>$C40)*trBaHa*(trSppgrp="Dec"),0))) -> 7.894528674 | AB40: =IF(ISERROR($O40),NAErr,INDEX(INDIRECT("SpeciesList!SppGrp"),$O40)) -> Dec | AC40: =IF(ISERROR($O40),NAErr,INDEX(INDIRECT("SpeciesList!MGM"),$O40)) -> Aw | AD40: =IF($C40<>NAErr,PERCENTRANK(trDbh,$C40),NAErr) -> 0.707 | AE40: =volest($O40 - 1, $C40, $E40) -> 0.8556574634 | AF40: =isutilized($O40, $C40) -> TRUE | AG40: =ROUND(VRF($B40),3) -> 1 | AH40: =isjuveniletree($C40) -> FALSE | AI40: =SUM(IF(trUtil,(trDbh>$C40)*trBaHa*(trMGMSpp="Sw"),0)) -> 1.373708375 | AJ40: =SUM(IF(trUtil,(trDbh>$C40)*trBaHa*(trMGMSpp="Pl"),0)) -> 0 | AK40: =SUM(IF(trUtil,(trDbh>$C40)*trDbh*trpha*(trSppgrp="Dec"),0)) -> 2294.252654 | AL40: =SUM(IF(trUtil,(trDbh>$C40)*trDbh*trpha*(trMGMSpp="Sw"),0)) -> 555.5163392 | AM40: =SUM(IF(trUtil,(trDbh>$C40)*trDbh*trpha*(trMGMSpp="Pl"),0)) -> 0 | AN40: =SUM(IF(trUtil,(trDbh>$C40)*trDbh*trpha*(trMGMSpp="Sb"),0)) -> 0 | AO40: =IF(AND(($C40-$L40)>0,$L40>0),$AE40-MAX(0,volest($O40-1,$C40-$L40,$E40-$M40)),0) -> 0.003689279048 | AP40: -1 | AQ40: -1 | AR40: -1 | AS40: -1 | AT40: -1 | AU40: -1 | AV40: -1 | AW40: -1 | AX40: -1 | AY40: -1 | AZ40: -1 | BA40: -1 | BB40: -1 | BC40: -1 | BD40: -1 | BE40: -1 | BF40: -1 | BG40: -1 | BH40: -1 | BI40: 19
A41: 79 | B41: SW | C41: 31.05599331 | D41: 4.306760644 | E41: 28.38898426 | F41: 195.7865603 | G41: 189.1238996 | H41: 0.4830781999 | I41: 3.859263371 | J41: 2 | K41: 43 | L41: 0.05287417913 | M41: 0.04092807001 | N41: 0.9941785083 | O41: 1 | P41: 1 | Q41: 251.8252537 | R41: 31.59913435 | S41: 36.2143632 | T41: 24.73823266 | U41: 344.3769839 | V41: =IF(AND(NAErr<>$L41,NAErr<>$M41),$M41/$L41,NAErr) -> 0.7740653506 | W41: =IF(AND($E41<>NAErr,$C41<>NAErr),$E41/$C41,NAErr) -> 0.9141225649 | X41: =IF(AND($E41<>NAErr,$C41<>NAErr),$D41*PI()*($C41/200)^2,NAErr) -> 0.3262356864 | Y41: =IF($C41=NAErr,NAErr,SUM(IF(trUtil,(trDbh>$C41)*trBaHa,0))) -> 9.525026152 | Z41: =IF($C41=NAErr,NAErr,SUM(IF(trUtil,(trDbh>$C41)*trBaHa*(trSppgrp="Con"),0))) -> 1.373708375 | AA41: =IF($C41=NAErr,NAErr,SUM(IF(trUtil,(trDbh>$C41)*trBaHa*(trSppgrp="Dec"),0))) -> 8.151317777 | AB41: =IF(ISERROR($O41),NAErr,INDEX(INDIRECT("SpeciesList!SppGrp"),$O41)) -> Con | AC41: =IF(ISERROR($O41),NAErr,INDEX(INDIRECT("SpeciesList!MGM"),$O41)) -> Sw | AD41: =IF($C41<>NAErr,PERCENTRANK(trDbh,$C41),NAErr) -> 0.692 | AE41: =volest($O41 - 1, $C41, $E41) -> 0.8590198377 | AF41: =isutilized($O41, $C41) -> TRUE | AG41: =ROUND(VRF($B41),3) -> 1 | AH41: =isjuveniletree($C41) -> FALSE | AI41: =SUM(IF(trUtil,(trDbh>$C41)*trBaHa*(trMGMSpp="Sw"),0)) -> 1.373708375 | AJ41: =SUM(IF(trUtil,(trDbh>$C41)*trBaHa*(trMGMSpp="Pl"),0)) -> 0 | AK41: =SUM(IF(trUtil,(trDbh>$C41)*trDbh*trpha*(trSppgrp="Dec"),0)) -> 2399.079491 | AL41: =SUM(IF(trUtil,(trDbh>$C41)*trDbh*trpha*(trMGMSpp="Sw"),0)) -> 555.5163392 | AM41: =SUM(IF(trUtil,(trDbh>$C41)*trDbh*trpha*(trMGMSpp="Pl"),0)) -> 0 | AN41: =SUM(IF(trUtil,(trDbh>$C41)*trDbh*trpha*(trMGMSpp="Sb"),0)) -> 0 | AO41: =IF(AND(($C41-$L41)>0,$L41>0),$AE41-MAX(0,volest($O41-1,$C41-$L41,$E41-$M41)),0) -> 0.003992519457 | AP41: -1 | AQ41: -1 | AR41: -1 | AS41: -1 | AT41: -1 | AU41: -1 | AV41: -1 | AW41: -1 | AX41: -1 | AY41: -1 | AZ41: -1 | BA41: -1 | BB41: -1 | BC41: -1 | BD41: -1 | BE41: -1 | BF41: -1 | BG41: -1 | BH41: -1 | BI41: 1
A42: 44 | B42: SW | C42: 30.71316332 | D42: 4.261523836 | E42: 28.41436122 | F42: 196.4472996 | G42: 189.784639 | H42: 0.4782685131 | I42: 3.827037352 | J42: 8 | K42: 37 | L42: 0.05226017485 | M42: 0.0405567076 | N42: 0.9941447584 | O42: 1 | P42: 1 | Q42: 244.7222596 | R42: 30.80183331 | S42: 35.38688577 | T42: 24.33864776 | U42: 335.2496264 | V42: =IF(AND(NAErr<>$L42,NAErr<>$M42),$M42/$L42,NAErr) -> 0.7760538062 | W42: =IF(AND($E42<>NAErr,$C42<>NAErr),$E42/$C42,NAErr) -> 0.9251525452 | X42: =IF(AND($E42<>NAErr,$C42<>NAErr),$D42*PI()*($C42/200)^2,NAErr) -> 0.3157213139 | Y42: =IF($C42=NAErr,NAErr,SUM(IF(trUtil,(trDbh>$C42)*trBaHa,0))) -> 9.851261839 | Z42: =IF($C42=NAErr,NAErr,SUM(IF(trUtil,(trDbh>$C42)*trBaHa*(trSppgrp="Con"),0))) -> 1.699944061 | AA42: =IF($C42=NAErr,NAErr,SUM(IF(trUtil,(trDbh>$C42)*trBaHa*(trSppgrp="Dec"),0))) -> 8.151317777 | AB42: =IF(ISERROR($O42),NAErr,INDEX(INDIRECT("SpeciesList!SppGrp"),$O42)) -> Con | AC42: =IF(ISERROR($O42),NAErr,INDEX(INDIRECT("SpeciesList!MGM"),$O42)) -> Sw | AD42: =IF($C42<>NAErr,PERCENTRANK(trDbh,$C42),NAErr) -> 0.676 | AE42: =volest($O42 - 1, $C42, $E42) -> 0.8420754621 | AF42: =isutilized($O42, $C42) -> TRUE | AG42: =ROUND(VRF($B42),3) -> 1 | AH42: =isjuveniletree($C42) -> FALSE | AI42: =SUM(IF(trUtil,(trDbh>$C42)*trBaHa*(trMGMSpp="Sw"),0)) -> 1.699944061 | AJ42: =SUM(IF(trUtil,(trDbh>$C42)*trBaHa*(trMGMSpp="Pl"),0)) -> 0 | AK42: =SUM(IF(trUtil,(trDbh>$C42)*trDbh*trpha*(trSppgrp="Dec"),0)) -> 2399.079491 | AL42: =SUM(IF(trUtil,(trDbh>$C42)*trDbh*trpha*(trMGMSpp="Sw"),0)) -> 689.267069 | AM42: =SUM(IF(trUtil,(trDbh>$C42)*trDbh*trpha*(trMGMSpp="Pl"),0)) -> 0 | AN42: =SUM(IF(trUtil,(trDbh>$C42)*trDbh*trpha*(trMGMSpp="Sb"),0)) -> 0 | AO42: =IF(AND(($C42-$L42)>0,$L42>0),$AE42-MAX(0,volest($O42-1,$C42-$L42,$E42-$M42)),0) -> 0.003900990242 | AP42: -1 | AQ42: -1 | AR42: -1 | AS42: -1 | AT42: -1 | AU42: -1 | AV42: -1 | AW42: -1 | AX42: -1 | AY42: -1 | AZ42: -1 | BA42: -1 | BB42: -1 | BC42: -1 | BD42: -1 | BE42: -1 | BF42: -1 | BG42: -1 | BH42: -1 | BI42: 18
A43: 59 | B43: SW | C43: 30.58821767 | D43: 4.221281157 | E43: 28.23799883 | F43: 195.9854018 | G43: 189.3227412 | H43: 0.4796474542 | I43: 3.815292461 | J43: 68 | K43: 95 | L43: 0.05219237698 | M43: 0.04060582646 | N43: 0.9941190949 | O43: 1 | P43: 1 | Q43: 242.1644157 | R43: 30.51411679 | S43: 35.08777973 | T43: 24.1935335 | U43: 331.9598457 | V43: =IF(AND(NAErr<>$L43,NAErr<>$M43),$M43/$L43,NAErr) -> 0.7780030114 | W43: =IF(AND($E43<>NAErr,$C43<>NAErr),$E43/$C43,NAErr) -> 0.9231658781 | X43: =IF(AND($E43<>NAErr,$C43<>NAErr),$D43*PI()*($C43/200)^2,NAErr) -> 0.310200508 | Y43: =IF($C43=NAErr,NAErr,SUM(IF(trUtil,(trDbh>$C43)*trBaHa,0))) -> 10.16698315 | Z43: =IF($C43=NAErr,NAErr,SUM(IF(trUtil,(trDbh>$C43)*trBaHa*(trSppgrp="Con"),0))) -> 2.015665375 | AA43: =IF($C43=NAErr,NAErr,SUM(IF(trUtil,(trDbh>$C43)*trBaHa*(trSppgrp="Dec"),0))) -> 8.151317777 | AB43: =IF(ISERROR($O43),NAErr,INDEX(INDIRECT("SpeciesList!SppGrp"),$O43)) -> Con | AC43: =IF(ISERROR($O43),NAErr,INDEX(INDIRECT("SpeciesList!MGM"),$O43)) -> Sw | AD43: =IF($C43<>NAErr,PERCENTRANK(trDbh,$C43),NAErr) -> 0.661 | AE43: =volest($O43 - 1, $C43, $E43) -> 0.8304023726 | AF43: =isutilized($O43, $C43) -> TRUE | AG43: =ROUND(VRF($B43),3) -> 1 | AH43: =isjuveniletree($C43) -> FALSE | AI43: =SUM(IF(trUtil,(trDbh>$C43)*trBaHa*(trMGMSpp="Sw"),0)) -> 2.015665375 | AJ43: =SUM(IF(trUtil,(trDbh>$C43)*trBaHa*(trMGMSpp="Pl"),0)) -> 0 | AK43: =SUM(IF(trUtil,(trDbh>$C43)*trDbh*trpha*(trSppgrp="Dec"),0)) -> 2399.079491 | AL43: =SUM(IF(trUtil,(trDbh>$C43)*trDbh*trpha*(trMGMSpp="Sw"),0)) -> 820.1519465 | AM43: =SUM(IF(trUtil,(trDbh>$C43)*trDbh*trpha*(trMGMSpp="Pl"),0)) -> 0 | AN43: =SUM(IF(trUtil,(trDbh>$C43)*trDbh*trpha*(trMGMSpp="Sb"),0)) -> 0 | AO43: =IF(AND(($C43-$L43)>0,$L43>0),$AE43-MAX(0,volest($O43-1,$C43-$L43,$E43-$M43)),0) -> 0.00386354607 | AP43: -1 | AQ43: -1 | AR43: -1 | AS43: -1 | AT43: -1 | AU43: -1 | AV43: -1 | AW43: -1 | AX43: -1 | AY43: -1 | AZ43: -1 | BA43: -1 | BB43: -1 | BC43: -1 | BD43: -1 | BE43: -1 | BF43: -1 | BG43: -1 | BH43: -1 | BI43: 27
A44: 74 | B44: SW | C44: 30.30121081 | D44: 4.185814199 | E44: 28.36893017 | F44: 196.9212462 | G44: 190.2585856 | H44: 0.4737518472 | I44: 3.788313816 | J44: 93 | K44: 52 | L44: 0.05146734771 | M44: 0.04014107634 | N44: 0.9940863387 | O44: 1 | P44: 1 | Q44: 236.3510601 | R44: 29.85899334 | S44: 34.40571266 | T44: 23.86124648 | U44: 324.4770126 | V44: =IF(AND(NAErr<>$L44,NAErr<>$M44),$M44/$L44,NAErr) -> 0.7799328725 | W44: =IF(AND($E44<>NAErr,$C44<>NAErr),$E44/$C44,NAErr) -> 0.93623091 | X44: =IF(AND($E44<>NAErr,$C44<>NAErr),$D44*PI()*($C44/200)^2,NAErr) -> 0.3018490366 | Y44: =IF($C44=NAErr,NAErr,SUM(IF(trUtil,(trDbh>$C44)*trBaHa,0))) -> 10.47718366 | Z44: =IF($C44=NAErr,NAErr,SUM(IF(trUtil,(trDbh>$C44)*trBaHa*(trSppgrp="Con"),0))) -> 2.325865883 | AA44: =IF($C44=NAErr,NAErr,SUM(IF(trUtil,(trDbh>$C44)*trBaHa*(trSppgrp="Dec"),0))) -> 8.151317777 | AB44: =IF(ISERROR($O44),NAErr,INDEX(INDIRECT("SpeciesList!SppGrp"),$O44)) -> Con | AC44: =IF(ISERROR($O44),NAErr,INDEX(INDIRECT("SpeciesList!MGM"),$O44)) -> Sw | AD44: =IF($C44<>NAErr,PERCENTRANK(trDbh,$C44),NAErr) -> 0.646 | AE44: =volest($O44 - 1, $C44, $E44) -> 0.8196683339 | AF44: =isutilized($O44, $C44) -> TRUE | AG44: =ROUND(VRF($B44),3) -> 1 | AH44: =isjuveniletree($C44) -> FALSE | AI44: =SUM(IF(trUtil,(trDbh>$C44)*trBaHa*(trMGMSpp="Sw"),0)) -> 2.325865883 | AJ44: =SUM(IF(trUtil,(trDbh>$C44)*trBaHa*(trMGMSpp="Pl"),0)) -> 0 | AK44: =SUM(IF(trUtil,(trDbh>$C44)*trDbh*trpha*(trSppgrp="Dec"),0)) -> 2399.079491 | AL44: =SUM(IF(trUtil,(trDbh>$C44)*trDbh*trpha*(trMGMSpp="Sw"),0)) -> 949.2734134 | AM44: =SUM(IF(trUtil,(trDbh>$C44)*trDbh*trpha*(trMGMSpp="Pl"),0)) -> 0 | AN44: =SUM(IF(trUtil,(trDbh>$C44)*trDbh*trpha*(trMGMSpp="Sb"),0)) -> 0 | AO44: =IF(AND(($C44-$L44)>0,$L44>0),$AE44-MAX(0,volest($O44-1,$C44-$L44,$E44-$M44)),0) -> 0.003783452348 | AP44: -1 | AQ44: -1 | AR44: -1 | AS44: -1 | AT44: -1 | AU44: -1 | AV44: -1 | AW44: -1 | AX44: -1 | AY44: -1 | AZ44: -1 | BA44: -1 | BB44: -1 | BC44: -1 | BD44: -1 | BE44: -1 | BF44: -1 | BG44: -1 | BH44: -1 | BI44: 30
A45: 48 | B45: SW | C45: 30.13122082 | D45: 4.131390441 | E45: 28.00815686 | F45: 195.8953913 | G45: 189.2327307 | H45: 0.4776421028 | I45: 3.772334757 | J45: 29 | K45: 70 | L45: 0.05167459156 | M45: 0.04040076605 | N45: 0.9940584734 | O45: 1 | P45: 1 | Q45: 232.9485791 | R45: 29.4747616 | S45: 34.00501485 | T45: 23.66512879 | U45: 320.0934843 | V45: =IF(AND(NAErr<>$L45,NAErr<>$M45),$M45/$L45,NAErr) -> 0.7818303894 | W45: =IF(AND($E45<>NAErr,$C45<>NAErr),$E45/$C45,NAErr) -> 0.9295393979 | X45: =IF(AND($E45<>NAErr,$C45<>NAErr),$D45*PI()*($C45/200)^2,NAErr) -> 0.2945910702 | Y45: =IF($C45=NAErr,NAErr,SUM(IF(trUtil,(trDbh>$C45)*trBaHa,0))) -> 10.7790327 | Z45: =IF($C45=NAErr,NAErr,SUM(IF(trUtil,(trDbh>$C45)*trBaHa*(trSppgrp="Con"),0))) -> 2.62771492 | AA45: =IF($C45=NAErr,NAErr,SUM(IF(trUtil,(trDbh>$C45)*trBaHa*(trSppgrp="Dec"),0))) -> 8.151317777 | AB45: =IF(ISERROR($O45),NAErr,INDEX(INDIRECT("SpeciesList!SppGrp"),$O45)) -> Con | AC45: =IF(ISERROR($O45),NAErr,INDEX(INDIRECT("SpeciesList!MGM"),$O45)) -> Sw | AD45: =IF($C45<>NAErr,PERCENTRANK(trDbh,$C45),NAErr) -> 0.63 | AE45: =volest($O45 - 1, $C45, $E45) -> 0.8006060482 | AF45: =isutilized($O45, $C45) -> TRUE | AG45: =ROUND(VRF($B45),3) -> 1 | AH45: =isjuveniletree($C45) -> FALSE | AI45: =SUM(IF(trUtil,(trDbh>$C45)*trBaHa*(trMGMSpp="Sw"),0)) -> 2.62771492 | AJ45: =SUM(IF(trUtil,(trDbh>$C45)*trBaHa*(trMGMSpp="Pl"),0)) -> 0 | AK45: =SUM(IF(trUtil,(trDbh>$C45)*trDbh*trpha*(trSppgrp="Dec"),0)) -> 2399.079491 | AL45: =SUM(IF(trUtil,(trDbh>$C45)*trDbh*trpha*(trMGMSpp="Sw"),0)) -> 1076.108652 | AM45: =SUM(IF(trUtil,(trDbh>$C45)*trDbh*trpha*(trMGMSpp="Pl"),0)) -> 0 | AN45: =SUM(IF(trUtil,(trDbh>$C45)*trDbh*trpha*(trMGMSpp="Sb"),0)) -> 0 | AO45: =IF(AND(($C45-$L45)>0,$L45>0),$AE45-MAX(0,volest($O45-1,$C45-$L45,$E45-$M45)),0) -> 0.003742807847 | AP45: -1 | AQ45: -1 | AR45: -1 | AS45: -1 | AT45: -1 | AU45: -1 | AV45: -1 | AW45: -1 | AX45: -1 | AY45: -1 | AZ45: -1 | BA45: -1 | BB45: -1 | BC45: -1 | BD45: -1 | BE45: -1 | BF45: -1 | BG45: -1 | BH45: -1 | BI45: 33
A46: 55 | B46: SW | C46: 29.91561601 | D46: 4.079213283 | E46: 27.77503053 | F46: 195.4076157 | G46: 188.7449551 | H46: 0.4788182424 | I46: 3.752067905 | J46: 89 | K46: 30 | L46: 0.05163421031 | M46: 0.0404656279 | N46: 0.9940282357 | O46: 1 | P46: 1 | Q46: 228.6764359 | R46: 28.99147088 | S46: 33.50030314 | T46: 23.41712772 | U46: 314.5853377 | V46: =IF(AND(NAErr<>$L46,NAErr<>$M46),$M46/$L46,NAErr) -> 0.7836980105 | W46: =IF(AND($E46<>NAErr,$C46<>NAErr),$E46/$C46,NAErr) -> 0.9284458832 | X46: =IF(AND($E46<>NAErr,$C46<>NAErr),$D46*PI()*($C46/200)^2,NAErr) -> 0.2867227772 | Y46: =IF($C46=NAErr,NAErr,SUM(IF(trUtil,(trDbh>$C46)*trBaHa,0))) -> 11.07362377 | Z46: =IF($C46=NAErr,NAErr,SUM(IF(trUtil,(trDbh>$C46)*trBaHa*(trSppgrp="Con"),0))) -> 2.92230599 | AA46: =IF($C46=NAErr,NAErr,SUM(IF(trUtil,(trDbh>$C46)*trBaHa*(trSppgrp="Dec"),0))) -> 8.151317777 | AB46: =IF(ISERROR($O46),NAErr,INDEX(INDIRECT("SpeciesList!SppGrp"),$O46)) -> Con | AC46: =IF(ISERROR($O46),NAErr,INDEX(INDIRECT("SpeciesList!MGM"),$O46)) -> Sw | AD46: =IF($C46<>NAErr,PERCENTRANK(trDbh,$C46),NAErr) -> 0.615 | AE46: =volest($O46 - 1, $C46, $E46) -> 0.7832198207 | AF46: =isutilized($O46, $C46) -> TRUE | AG46: =ROUND(VRF($B46),3) -> 1 | AH46: =isjuveniletree($C46) -> FALSE | AI46: =SUM(IF(trUtil,(trDbh>$C46)*trBaHa*(trMGMSpp="Sw"),0)) -> 2.92230599 | AJ46: =SUM(IF(trUtil,(trDbh>$C46)*trBaHa*(trMGMSpp="Pl"),0)) -> 0 | AK46: =SUM(IF(trUtil,(trDbh>$C46)*trDbh*trpha*(trSppgrp="Dec"),0)) -> 2399.079491 | AL46: =SUM(IF(trUtil,(trDbh>$C46)*trDbh*trpha*(trMGMSpp="Sw"),0)) -> 1200.59249 | AM46: =SUM(IF(trUtil,(trDbh>$C46)*trDbh*trpha*(trMGMSpp="Pl"),0)) -> 0 | AN46: =SUM(IF(trUtil,(trDbh>$C46)*trDbh*trpha*(trMGMSpp="Sb"),0)) -> 0 | AO46: =IF(AND(($C46-$L46)>0,$L46>0),$AE46-MAX(0,volest($O46-1,$C46-$L46,$E46-$M46)),0) -> 0.003689664994 | AP46: -1 | AQ46: -1 | AR46: -1 | AS46: -1 | AT46: -1 | AU46: -1 | AV46: -1 | AW46: -1 | AX46: -1 | AY46: -1 | AZ46: -1 | BA46: -1 | BB46: -1 | BC46: -1 | BD46: -1 | BE46: -1 | BF46: -1 | BG46: -1 | BH46: -1 | BI46: 7
A47: 35 | B47: AW | C47: 29.89160329 | D47: 3.238197783 | E47: 28.33075443 | F47: 198.511759 | G47: 196.555112 | H47: 0.2582806153 | I47: 5.148055213 | J47: 45 | K47: 84 | L47: 0.04629990297 | M47: 0.02760878495 | N47: 0.9877943553 | O47: 3 | P47: 3 | Q47: 271.4811431 | R47: 57.42514289 | S47: 42.02810076 | T47: 6.643178763 | U47: 377.5775655 | V47: =IF(AND(NAErr<>$L47,NAErr<>$M47),$M47/$L47,NAErr) -> 0.5963033005 | W47: =IF(AND($E47<>NAErr,$C47<>NAErr),$E47/$C47,NAErr) -> 0.9477830329 | X47: =IF(AND($E47<>NAErr,$C47<>NAErr),$D47*PI()*($C47/200)^2,NAErr) -> 0.227243606 | Y47: =IF($C47=NAErr,NAErr,SUM(IF(trUtil,(trDbh>$C47)*trBaHa,0))) -> 11.36034654 | Z47: =IF($C47=NAErr,NAErr,SUM(IF(trUtil,(trDbh>$C47)*trBaHa*(trSppgrp="Con"),0))) -> 3.209028767 | AA47: =IF($C47=NAErr,NAErr,SUM(IF(trUtil,(trDbh>$C47)*trBaHa*(trSppgrp="Dec"),0))) -> 8.151317777 | AB47: =IF(ISERROR($O47),NAErr,INDEX(INDIRECT("SpeciesList!SppGrp"),$O47)) -> Dec | AC47: =IF(ISERROR($O47),NAErr,INDEX(INDIRECT("SpeciesList!MGM"),$O47)) -> Aw | AD47: =IF($C47<>NAErr,PERCENTRANK(trDbh,$C47),NAErr) -> 0.6 | AE47: =volest($O47 - 1, $C47, $E47) -> 0.8194361203 | AF47: =isutilized($O47, $C47) -> TRUE | AG47: =ROUND(VRF($B47),3) -> 1 | AH47: =isjuveniletree($C47) -> FALSE | AI47: =SUM(IF(trUtil,(trDbh>$C47)*trBaHa*(trMGMSpp="Sw"),0)) -> 3.209028767 | AJ47: =SUM(IF(trUtil,(trDbh>$C47)*trBaHa*(trMGMSpp="Pl"),0)) -> 0 | AK47: =SUM(IF(trUtil,(trDbh>$C47)*trDbh*trpha*(trSppgrp="Dec"),0)) -> 2399.079491 | AL47: =SUM(IF(trUtil,(trDbh>$C47)*trDbh*trpha*(trMGMSpp="Sw"),0)) -> 1322.624668 | AM47: =SUM(IF(trUtil,(trDbh>$C47)*trDbh*trpha*(trMGMSpp="Pl"),0)) -> 0 | AN47: =SUM(IF(trUtil,(trDbh>$C47)*trDbh*trpha*(trMGMSpp="Sb"),0)) -> 0 | AO47: =IF(AND(($C47-$L47)>0,$L47>0),$AE47-MAX(0,volest($O47-1,$C47-$L47,$E47-$M47)),0) -> 0.003221960823 | AP47: -1 | AQ47: -1 | AR47: -1 | AS47: -1 | AT47: -1 | AU47: -1 | AV47: -1 | AW47: -1 | AX47: -1 | AY47: -1 | AZ47: -1 | BA47: -1 | BB47: -1 | BC47: -1 | BD47: -1 | BE47: -1 | BF47: -1 | BG47: -1 | BH47: -1 | BI47: 39
A48: 50 | B48: SW | C48: 29.62828453 | D48: 4.048320337 | E48: 27.90773045 | F48: 196.3617154 | G48: 189.6990547 | H48: 0.4727778946 | I48: 3.725058746 | J48: 69 | K48: 79 | L48: 0.05088551428 | M48: 0.03995496873 | N48: 0.9939819789 | O48: 1 | P48: 1 | Q48: 223.0580851 | R48: 28.35441614 | S48: 32.83378079 | T48: 23.08791831 | U48: 307.3342003 | V48: =IF(AND(NAErr<>$L48,NAErr<>$M48),$M48/$L48,NAErr) -> 0.7851933756 | W48: =IF(AND($E48<>NAErr,$C48<>NAErr),$E48/$C48,NAErr) -> 0.9419286635 | X48: =IF(AND($E48<>NAErr,$C48<>NAErr),$D48*PI()*($C48/200)^2,NAErr) -> 0.2791115219 | Y48: =IF($C48=NAErr,NAErr,SUM(IF(trUtil,(trDbh>$C48)*trBaHa,0))) -> 11.58759015 | Z48: =IF($C48=NAErr,NAErr,SUM(IF(trUtil,(trDbh>$C48)*trBaHa*(trSppgrp="Con"),0))) -> 3.209028767 | AA48: =IF($C48=NAErr,NAErr,SUM(IF(trUtil,(trDbh>$C48)*trBaHa*(trSppgrp="Dec"),0))) -> 8.378561383 | AB48: =IF(ISERROR($O48),NAErr,INDEX(INDIRECT("SpeciesList!SppGrp"),$O48)) -> Con | AC48: =IF(ISERROR($O48),NAErr,INDEX(INDIRECT("SpeciesList!MGM"),$O48)) -> Sw | AD48: =IF($C48<>NAErr,PERCENTRANK(trDbh,$C48),NAErr) -> 0.584 | AE48: =volest($O48 - 1, $C48, $E48) -> 0.7728700264 | AF48: =isutilized($O48, $C48) -> TRUE | AG48: =ROUND(VRF($B48),3) -> 1 | AH48: =isjuveniletree($C48) -> FALSE | AI48: =SUM(IF(trUtil,(trDbh>$C48)*trBaHa*(trMGMSpp="Sw"),0)) -> 3.209028767 | AJ48: =SUM(IF(trUtil,(trDbh>$C48)*trBaHa*(trMGMSpp="Pl"),0)) -> 0 | AK48: =SUM(IF(trUtil,(trDbh>$C48)*trDbh*trpha*(trSppgrp="Dec"),0)) -> 2495.874414 | AL48: =SUM(IF(trUtil,(trDbh>$C48)*trDbh*trpha*(trMGMSpp="Sw"),0)) -> 1322.624668 | AM48: =SUM(IF(trUtil,(trDbh>$C48)*trDbh*trpha*(trMGMSpp="Pl"),0)) -> 0 | AN48: =SUM(IF(trUtil,(trDbh>$C48)*trDbh*trpha*(trMGMSpp="Sb"),0)) -> 0 | AO48: =IF(AND(($C48-$L48)>0,$L48>0),$AE48-MAX(0,volest($O48-1,$C48-$L48,$E48-$M48)),0) -> 0.003609651321 | AP48: -1 | AQ48: -1 | AR48: -1 | AS48: -1 | AT48: -1 | AU48: -1 | AV48: -1 | AW48: -1 | AX48: -1 | AY48: -1 | AZ48: -1 | BA48: -1 | BB48: -1 | BC48: -1 | BD48: -1 | BE48: -1 | BF48: -1 | BG48: -1 | BH48: -1 | BI48: 20
A49: 69 | B49: SW | C49: 29.57782345 | D49: 3.996881128 | E49: 27.46746169 | F49: 194.8869962 | G49: 188.2243356 | H49: 0.479683628 | I49: 3.720315404 | J49: 24 | K49: 28 | L49: 0.0513173708 | M49: 0.0403867279 | N49: 0.9939603693 | O49: 1 | P49: 1 | Q49: 222.0802106 | R49: 28.24336269 | S49: 32.71744487 | T49: 23.03025599 | U49: 306.0712742 | V49: =IF(AND(NAErr<>$L49,NAErr<>$M49),$M49/$L49,NAErr) -> 0.7869991637 | W49: =IF(AND($E49<>NAErr,$C49<>NAErr),$E49/$C49,NAErr) -> 0.9286505393 | X49: =IF(AND($E49<>NAErr,$C49<>NAErr),$D49*PI()*($C49/200)^2,NAErr) -> 0.274627193 | Y49: =IF($C49=NAErr,NAErr,SUM(IF(trUtil,(trDbh>$C49)*trBaHa,0))) -> 11.86670167 | Z49: =IF($C49=NAErr,NAErr,SUM(IF(trUtil,(trDbh>$C49)*trBaHa*(trSppgrp="Con"),0))) -> 3.488140289 | AA49: =IF($C49=NAErr,NAErr,SUM(IF(trUtil,(trDbh>$C49)*trBaHa*(trSppgrp="Dec"),0))) -> 8.378561383 | AB49: =IF(ISERROR($O49),NAErr,INDEX(INDIRECT("SpeciesList!SppGrp"),$O49)) -> Con | AC49: =IF(ISERROR($O49),NAErr,INDEX(INDIRECT("SpeciesList!MGM"),$O49)) -> Sw | AD49: =IF($C49<>NAErr,PERCENTRANK(trDbh,$C49),NAErr) -> 0.569 | AE49: =volest($O49 - 1, $C49, $E49) -> 0.7580868219 | AF49: =isutilized($O49, $C49) -> TRUE | AG49: =ROUND(VRF($B49),3) -> 1 | AH49: =isjuveniletree($C49) -> FALSE | AI49: =SUM(IF(trUtil,(trDbh>$C49)*trBaHa*(trMGMSpp="Sw"),0)) -> 3.488140289 | AJ49: =SUM(IF(trUtil,(trDbh>$C49)*trBaHa*(trMGMSpp="Pl"),0)) -> 0 | AK49: =SUM(IF(trUtil,(trDbh>$C49)*trDbh*trpha*(trSppgrp="Dec"),0)) -> 2495.874414 | AL49: =SUM(IF(trUtil,(trDbh>$C49)*trDbh*trpha*(trMGMSpp="Sw"),0)) -> 1442.569455 | AM49: =SUM(IF(trUtil,(trDbh>$C49)*trDbh*trpha*(trMGMSpp="Pl"),0)) -> 0 | AN49: =SUM(IF(trUtil,(trDbh>$C49)*trDbh*trpha*(trMGMSpp="Sb"),0)) -> 0 | AO49: =IF(AND(($C49-$L49)>0,$L49>0),$AE49-MAX(0,volest($O49-1,$C49-$L49,$E49-$M49)),0) -> 0.003595202719 | AP49: -1 | AQ49: -1 | AR49: -1 | AS49: -1 | AT49: -1 | AU49: -1 | AV49: -1 | AW49: -1 | AX49: -1 | AY49: -1 | AZ49: -1 | BA49: -1 | BB49: -1 | BC49: -1 | BD49: -1 | BE49: -1 | BF49: -1 | BG49: -1 | BH49: -1 | BI49: 31
A50: 43 | B50: SW | C50: 29.29531299 | D50: 3.95951943 | E50: 27.51580364 | F50: 195.4890809 | G50: 188.8264203 | H50: 0.4750794675 | I50: 3.693759421 | J50: 24 | K50: 86 | L50: 0.05078077914 | M50: 0.04005517705 | N50: 0.9939252162 | O50: 1 | P50: 1 | Q50: 216.6539745 | R50: 27.62616953 | S50: 32.07009211 | T50: 22.70827823 | U50: 299.0585143 | V50: =IF(AND(NAErr<>$L50,NAErr<>$M50),$M50/$L50,NAErr) -> 0.7887861851 | W50: =IF(AND($E50<>NAErr,$C50<>NAErr),$E50/$C50,NAErr) -> 0.9392561755 | X50: =IF(AND($E50<>NAErr,$C50<>NAErr),$D50*PI()*($C50/200)^2,NAErr) -> 0.2668877526 | Y50: =IF($C50=NAErr,NAErr,SUM(IF(trUtil,(trDbh>$C50)*trBaHa,0))) -> 12.14132887 | Z50: =IF($C50=NAErr,NAErr,SUM(IF(trUtil,(trDbh>$C50)*trBaHa*(trSppgrp="Con"),0))) -> 3.762767482 | AA50: =IF($C50=NAErr,NAErr,SUM(IF(trUtil,(trDbh>$C50)*trBaHa*(trSppgrp="Dec"),0))) -> 8.378561383 | AB50: =IF(ISERROR($O50),NAErr,INDEX(INDIRECT("SpeciesList!SppGrp"),$O50)) -> Con | AC50: =IF(ISERROR($O50),NAErr,INDEX(INDIRECT("SpeciesList!MGM"),$O50)) -> Sw | AD50: =IF($C50<>NAErr,PERCENTRANK(trDbh,$C50),NAErr) -> 0.553 | AE50: =volest($O50 - 1, $C50, $E50) -> 0.7458638407 | AF50: =isutilized($O50, $C50) -> TRUE | AG50: =ROUND(VRF($B50),3) -> 1 | AH50: =isjuveniletree($C50) -> FALSE | AI50: =SUM(IF(trUtil,(trDbh>$C50)*trBaHa*(trMGMSpp="Sw"),0)) -> 3.762767482 | AJ50: =SUM(IF(trUtil,(trDbh>$C50)*trBaHa*(trMGMSpp="Pl"),0)) -> 0 | AK50: =SUM(IF(trUtil,(trDbh>$C50)*trDbh*trpha*(trSppgrp="Dec"),0)) -> 2495.874414 | AL50: =SUM(IF(trUtil,(trDbh>$C50)*trDbh*trpha*(trMGMSpp="Sw"),0)) -> 1560.788499 | AM50: =SUM(IF(trUtil,(trDbh>$C50)*trDbh*trpha*(trMGMSpp="Pl"),0)) -> 0 | AN50: =SUM(IF(trUtil,(trDbh>$C50)*trDbh*trpha*(trMGMSpp="Sb"),0)) -> 0 | AO50: =IF(AND(($C50-$L50)>0,$L50>0),$AE50-MAX(0,volest($O50-1,$C50-$L50,$E50-$M50)),0) -> 0.003524738855 | AP50: -1 | AQ50: -1 | AR50: -1 | AS50: -1 | AT50: -1 | AU50: -1 | AV50: -1 | AW50: -1 | AX50: -1 | AY50: -1 | AZ50: -1 | BA50: -1 | BB50: -1 | BC50: -1 | BD50: -1 | BE50: -1 | BF50: -1 | BG50: -1 | BH50: -1 | BI50: 32
A51: 78 | B51: SW | C51: 29.10929232 | D51: 3.941223886 | E51: 27.71345823 | F51: 196.4108403 | G51: 189.7481797 | H51: 0.4692283279 | I51: 3.676273478 | J51: 17 | K51: 78 | L51: 0.0501086126 | M51: 0.03961306789 | N51: 0.9938954636 | O51: 1 | P51: 1 | Q51: 213.1257967 | R51: 27.22398194 | S51: 31.64750921 | T51: 22.49705959 | U51: 294.4943474 | V51: =IF(AND(NAErr<>$L51,NAErr<>$M51),$M51/$L51,NAErr) -> 0.7905440968 | W51: =IF(AND($E51<>NAErr,$C51<>NAErr),$E51/$C51,NAErr) -> 0.9520485048 | X51: =IF(AND($E51<>NAErr,$C51<>NAErr),$D51*PI()*($C51/200)^2,NAErr) -> 0.2622915396 | Y51: =IF($C51=NAErr,NAErr,SUM(IF(trUtil,(trDbh>$C51)*trBaHa,0))) -> 12.40821662 | Z51: =IF($C51=NAErr,NAErr,SUM(IF(trUtil,(trDbh>$C51)*trBaHa*(trSppgrp="Con"),0))) -> 4.029655235 | AA51: =IF($C51=NAErr,NAErr,SUM(IF(trUtil,(trDbh>$C51)*trBaHa*(trSppgrp="Dec"),0))) -> 8.378561383 | AB51: =IF(ISERROR($O51),NAErr,INDEX(INDIRECT("SpeciesList!SppGrp"),$O51)) -> Con | AC51: =IF(ISERROR($O51),NAErr,INDEX(INDIRECT("SpeciesList!MGM"),$O51)) -> Sw | AD51: =IF($C51<>NAErr,PERCENTRANK(trDbh,$C51),NAErr) -> 0.538 | AE51: =volest($O51 - 1, $C51, $E51) -> 0.7423482725 | AF51: =isutilized($O51, $C51) -> TRUE | AG51: =ROUND(VRF($B51),3) -> 1 | AH51: =isjuveniletree($C51) -> FALSE | AI51: =SUM(IF(trUtil,(trDbh>$C51)*trBaHa*(trMGMSpp="Sw"),0)) -> 4.029655235 | AJ51: =SUM(IF(trUtil,(trDbh>$C51)*trBaHa*(trMGMSpp="Pl"),0)) -> 0 | AK51: =SUM(IF(trUtil,(trDbh>$C51)*trDbh*trpha*(trSppgrp="Dec"),0)) -> 2495.874414 | AL51: =SUM(IF(trUtil,(trDbh>$C51)*trDbh*trpha*(trMGMSpp="Sw"),0)) -> 1676.78386 | AM51: =SUM(IF(trUtil,(trDbh>$C51)*trDbh*trpha*(trMGMSpp="Pl"),0)) -> 0 | AN51: =SUM(IF(trUtil,(trDbh>$C51)*trDbh*trpha*(trMGMSpp="Sb"),0)) -> 0 | AO51: =IF(AND(($C51-$L51)>0,$L51>0),$AE51-MAX(0,volest($O51-1,$C51-$L51,$E51-$M51)),0) -> 0.003472166661 | AP51: -1 | AQ51: -1 | AR51: -1 | AS51: -1 | AT51: -1 | AU51: -1 | AV51: -1 | AW51: -1 | AX51: -1 | AY51: -1 | AZ51: -1 | BA51: -1 | BB51: -1 | BC51: -1 | BD51: -1 | BE51: -1 | BF51: -1 | BG51: -1 | BH51: -1 | BI51: 13
A52: 19 | B52: AW | C52: 29.0834879 | D52: 2.738256403 | E52: 25.32045746 | F52: 195.719134 | G52: 193.762487 | H52: 0.2851613606 | I52: 5.057671679 | J52: 87 | K52: 88 | L52: 0.04371227565 | M52: 0.02804023761 | N52: 0.9876463349 | O52: 3 | P52: 3 | Q52: 253.6766156 | R52: 53.77696127 | S52: 39.22186535 | T52: 6.352866704 | U52: 353.0283089 | V52: =IF(AND(NAErr<>$L52,NAErr<>$M52),$M52/$L52,NAErr) -> 0.6414728401 | W52: =IF(AND($E52<>NAErr,$C52<>NAErr),$E52/$C52,NAErr) -> 0.8706128214 | X52: =IF(AND($E52<>NAErr,$C52<>NAErr),$D52*PI()*($C52/200)^2,NAErr) -> 0.1819101664 | Y52: =IF($C52=NAErr,NAErr,SUM(IF(trUtil,(trDbh>$C52)*trBaHa,0))) -> 12.67050816 | Z52: =IF($C52=NAErr,NAErr,SUM(IF(trUtil,(trDbh>$C52)*trBaHa*(trSppgrp="Con"),0))) -> 4.291946774 | AA52: =IF($C52=NAErr,NAErr,SUM(IF(trUtil,(trDbh>$C52)*trBaHa*(trSppgrp="Dec"),0))) -> 8.378561383 | AB52: =IF(ISERROR($O52),NAErr,INDEX(INDIRECT("SpeciesList!SppGrp"),$O52)) -> Dec | AC52: =IF(ISERROR($O52),NAErr,INDEX(INDIRECT("SpeciesList!MGM"),$O52)) -> Aw | AD52: =IF($C52<>NAErr,PERCENTRANK(trDbh,$C52),NAErr) -> 0.523 | AE52: =volest($O52 - 1, $C52, $E52) -> 0.6940901993 | AF52: =isutilized($O52, $C52) -> TRUE | AG52: =ROUND(VRF($B52),3) -> 1 | AH52: =isjuveniletree($C52) -> FALSE | AI52: =SUM(IF(trUtil,(trDbh>$C52)*trBaHa*(trMGMSpp="Sw"),0)) -> 4.291946774 | AJ52: =SUM(IF(trUtil,(trDbh>$C52)*trBaHa*(trMGMSpp="Pl"),0)) -> 0 | AK52: =SUM(IF(trUtil,(trDbh>$C52)*trDbh*trpha*(trSppgrp="Dec"),0)) -> 2495.874414 | AL52: =SUM(IF(trUtil,(trDbh>$C52)*trDbh*trpha*(trMGMSpp="Sw"),0)) -> 1791.510098 | AM52: =SUM(IF(trUtil,(trDbh>$C52)*trDbh*trpha*(trMGMSpp="Pl"),0)) -> 0 | AN52: =SUM(IF(trUtil,(trDbh>$C52)*trDbh*trpha*(trMGMSpp="Sb"),0)) -> 0 | AO52: =IF(AND(($C52-$L52)>0,$L52>0),$AE52-MAX(0,volest($O52-1,$C52-$L52,$E52-$M52)),0) -> 0.002763551194 | AP52: -1 | AQ52: -1 | AR52: -1 | AS52: -1 | AT52: -1 | AU52: -1 | AV52: -1 | AW52: -1 | AX52: -1 | AY52: -1 | AZ52: -1 | BA52: -1 | BB52: -1 | BC52: -1 | BD52: -1 | BE52: -1 | BF52: -1 | BG52: -1 | BH52: -1 | BI52: 36
A53: 2 | B53: AW | C53: 29.05792292 | D53: 2.900162677 | E53: 26.71912684 | F53: 197.3779983 | G53: 195.4213513 | H53: 0.2701170588 | I53: 5.054774005 | J53: 44 | K53: 18 | L53: 0.04298216406 | M53: 0.02763598572 | N53: 0.9876138885 | O53: 3 | P53: 3 | Q53: 253.1250807 | R53: 53.66382124 | S53: 39.13499362 | T53: 6.343764585 | U53: 352.2676602 | V53: =IF(AND(NAErr<>$L53,NAErr<>$M53),$M53/$L53,NAErr) -> 0.642964037 | W53: =IF(AND($E53<>NAErr,$C53<>NAErr),$E53/$C53,NAErr) -> 0.9195126201 | X53: =IF(AND($E53<>NAErr,$C53<>NAErr),$D53*PI()*($C53/200)^2,NAErr) -> 0.1923274952 | Y53: =IF($C53=NAErr,NAErr,SUM(IF(trUtil,(trDbh>$C53)*trBaHa,0))) -> 12.85241832 | Z53: =IF($C53=NAErr,NAErr,SUM(IF(trUtil,(trDbh>$C53)*trBaHa*(trSppgrp="Con"),0))) -> 4.291946774 | AA53: =IF($C53=NAErr,NAErr,SUM(IF(trUtil,(trDbh>$C53)*trBaHa*(trSppgrp="Dec"),0))) -> 8.56047155 | AB53: =IF(ISERROR($O53),NAErr,INDEX(INDIRECT("SpeciesList!SppGrp"),$O53)) -> Dec | AC53: =IF(ISERROR($O53),NAErr,INDEX(INDIRECT("SpeciesList!MGM"),$O53)) -> Aw | AD53: =IF($C53<>NAErr,PERCENTRANK(trDbh,$C53),NAErr) -> 0.507 | AE53: =volest($O53 - 1, $C53, $E53) -> 0.7317239927 | AF53: =isutilized($O53, $C53) -> TRUE | AG53: =ROUND(VRF($B53),3) -> 1 | AH53: =isjuveniletree($C53) -> FALSE | AI53: =SUM(IF(trUtil,(trDbh>$C53)*trBaHa*(trMGMSpp="Sw"),0)) -> 4.291946774 | AJ53: =SUM(IF(trUtil,(trDbh>$C53)*trBaHa*(trMGMSpp="Pl"),0)) -> 0 | AK53: =SUM(IF(trUtil,(trDbh>$C53)*trDbh*trpha*(trSppgrp="Dec"),0)) -> 2575.512461 | AL53: =SUM(IF(trUtil,(trDbh>$C53)*trDbh*trpha*(trMGMSpp="Sw"),0)) -> 1791.510098 | AM53: =SUM(IF(trUtil,(trDbh>$C53)*trDbh*trpha*(trMGMSpp="Pl"),0)) -> 0 | AN53: =SUM(IF(trUtil,(trDbh>$C53)*trDbh*trpha*(trMGMSpp="Sb"),0)) -> 0 | AO53: =IF(AND(($C53-$L53)>0,$L53>0),$AE53-MAX(0,volest($O53-1,$C53-$L53,$E53-$M53)),0) -> 0.002826500039 | AP53: -1 | AQ53: -1 | AR53: -1 | AS53: -1 | AT53: -1 | AU53: -1 | AV53: -1 | AW53: -1 | AX53: -1 | AY53: -1 | AZ53: -1 | BA53: -1 | BB53: -1 | BC53: -1 | BD53: -1 | BE53: -1 | BF53: -1 | BG53: -1 | BH53: -1 | BI53: 5
A54: 56 | B54: SW | C54: 28.9691042 | D54: 3.908784098 | E54: 27.54074094 | F54: 196.0858929 | G54: 189.4232323 | H54: 0.4703013534 | I54: 3.663095795 | J54: 86 | K54: 9 | L54: 0.04995330543 | M54: 0.03954806383 | N54: 0.9938485954 | O54: 1 | P54: 1 | Q54: 210.4902971 | R54: 26.92308969 | S54: 31.33096874 | T54: 22.33829766 | U54: 291.0826531 | V54: =IF(AND(NAErr<>$L54,NAErr<>$M54),$M54/$L54,NAErr) -> 0.7917006391 | W54: =IF(AND($E54<>NAErr,$C54<>NAErr),$E54/$C54,NAErr) -> 0.9506935648 | X54: =IF(AND($E54<>NAErr,$C54<>NAErr),$D54*PI()*($C54/200)^2,NAErr) -> 0.2576331218 | Y54: =IF($C54=NAErr,NAErr,SUM(IF(trUtil,(trDbh>$C54)*trBaHa,0))) -> 13.04474582 | Z54: =IF($C54=NAErr,NAErr,SUM(IF(trUtil,(trDbh>$C54)*trBaHa*(trSppgrp="Con"),0))) -> 4.291946774 | AA54: =IF($C54=NAErr,NAErr,SUM(IF(trUtil,(trDbh>$C54)*trBaHa*(trSppgrp="Dec"),0))) -> 8.752799045 | AB54: =IF(ISERROR($O54),NAErr,INDEX(INDIRECT("SpeciesList!SppGrp"),$O54)) -> Con | AC54: =IF(ISERROR($O54),NAErr,INDEX(INDIRECT("SpeciesList!MGM"),$O54)) -> Sw | AD54: =IF($C54<>NAErr,PERCENTRANK(trDbh,$C54),NAErr) -> 0.492 | AE54: =volest($O54 - 1, $C54, $E54) -> 0.7309965644 | AF54: =isutilized($O54, $C54) -> TRUE | AG54: =ROUND(VRF($B54),3) -> 1 | AH54: =isjuveniletree($C54) -> FALSE | AI54: =SUM(IF(trUtil,(trDbh>$C54)*trBaHa*(trMGMSpp="Sw"),0)) -> 4.291946774 | AJ54: =SUM(IF(trUtil,(trDbh>$C54)*trBaHa*(trMGMSpp="Pl"),0)) -> 0 | AK54: =SUM(IF(trUtil,(trDbh>$C54)*trDbh*trpha*(trSppgrp="Dec"),0)) -> 2659.785165 | AL54: =SUM(IF(trUtil,(trDbh>$C54)*trDbh*trpha*(trMGMSpp="Sw"),0)) -> 1791.510098 | AM54: =SUM(IF(trUtil,(trDbh>$C54)*trDbh*trpha*(trMGMSpp="Pl"),0)) -> 0 | AN54: =SUM(IF(trUtil,(trDbh>$C54)*trDbh*trpha*(trMGMSpp="Sb"),0)) -> 0 | AO54: =IF(AND(($C54-$L54)>0,$L54>0),$AE54-MAX(0,volest($O54-1,$C54-$L54,$E54-$M54)),0) -> 0.003428356588 | AP54: -1 | AQ54: -1 | AR54: -1 | AS54: -1 | AT54: -1 | AU54: -1 | AV54: -1 | AW54: -1 | AX54: -1 | AY54: -1 | AZ54: -1 | BA54: -1 | BB54: -1 | BC54: -1 | BD54: -1 | BE54: -1 | BF54: -1 | BG54: -1 | BH54: -1 | BI54: 10
A55: 67 | B55: SW | C55: 28.81541596 | D55: 3.858487418 | E55: 27.23797941 | F55: 195.26744 | G55: 188.6047793 | H55: 0.4734544638 | I55: 3.6486491 | J55: 45 | K55: 65 | L55: 0.05008935641 | M55: 0.0397419229 | N55: 0.9938204526 | O55: 1 | P55: 1 | Q55: 207.6240271 | R55: 26.59539336 | S55: 30.98584545 | T55: 22.16465879 | U55: 287.3699247 | V55: =IF(AND(NAErr<>$L55,NAErr<>$M55),$M55/$L55,NAErr) -> 0.7934205137 | W55: =IF(AND($E55<>NAErr,$C55<>NAErr),$E55/$C55,NAErr) -> 0.9452572003 | X55: =IF(AND($E55<>NAErr,$C55<>NAErr),$D55*PI()*($C55/200)^2,NAErr) -> 0.2516267197 | Y55: =IF($C55=NAErr,NAErr,SUM(IF(trUtil,(trDbh>$C55)*trBaHa,0))) -> 13.30237894 | Z55: =IF($C55=NAErr,NAErr,SUM(IF(trUtil,(trDbh>$C55)*trBaHa*(trSppgrp="Con"),0))) -> 4.549579896 | AA55: =IF($C55=NAErr,NAErr,SUM(IF(trUtil,(trDbh>$C55)*trBaHa*(trSppgrp="Dec"),0))) -> 8.752799045 | AB55: =IF(ISERROR($O55),NAErr,INDEX(INDIRECT("SpeciesList!SppGrp"),$O55)) -> Con | AC55: =IF(ISERROR($O55),NAErr,INDEX(INDIRECT("SpeciesList!MGM"),$O55)) -> Sw | AD55: =IF($C55<>NAErr,PERCENTRANK(trDbh,$C55),NAErr) -> 0.476 | AE55: =volest($O55 - 1, $C55, $E55) -> 0.7156620894 | AF55: =isutilized($O55, $C55) -> TRUE | AG55: =ROUND(VRF($B55),3) -> 1 | AH55: =isjuveniletree($C55) -> FALSE | AI55: =SUM(IF(trUtil,(trDbh>$C55)*trBaHa*(trMGMSpp="Sw"),0)) -> 4.549579896 | AJ55: =SUM(IF(trUtil,(trDbh>$C55)*trBaHa*(trMGMSpp="Pl"),0)) -> 0 | AK55: =SUM(IF(trUtil,(trDbh>$C55)*trDbh*trpha*(trSppgrp="Dec"),0)) -> 2659.785165 | AL55: =SUM(IF(trUtil,(trDbh>$C55)*trDbh*trpha*(trMGMSpp="Sw"),0)) -> 1904.744072 | AM55: =SUM(IF(trUtil,(trDbh>$C55)*trDbh*trpha*(trMGMSpp="Pl"),0)) -> 0 | AN55: =SUM(IF(trUtil,(trDbh>$C55)*trDbh*trpha*(trMGMSpp="Sb"),0)) -> 0 | AO55: =IF(AND(($C55-$L55)>0,$L55>0),$AE55-MAX(0,volest($O55-1,$C55-$L55,$E55-$M55)),0) -> 0.003392150927 | AP55: -1 | AQ55: -1 | AR55: -1 | AS55: -1 | AT55: -1 | AU55: -1 | AV55: -1 | AW55: -1 | AX55: -1 | AY55: -1 | AZ55: -1 | BA55: -1 | BB55: -1 | BC55: -1 | BD55: -1 | BE55: -1 | BF55: -1 | BG55: -1 | BH55: -1 | BI55: 4
A56: 65 | B56: SW | C56: 28.61553279 | D56: 3.788852348 | E56: 26.65066769 | F56: 193.747979 | G56: 187.0853184 | H56: 0.4811275094 | I56: 3.629860083 | J56: 71 | K56: 79 | L56: 0.05055705888 | M56: 0.04019851272 | N56: 0.9937889222 | O56: 1 | P56: 1 | Q56: 203.9321426 | R56: 26.17259212 | S56: 30.53995829 | T56: 21.93947475 | U56: 282.5841677 | V56: =IF(AND(NAErr<>$L56,NAErr<>$M56),$M56/$L56,NAErr) -> 0.7951117731 | W56: =IF(AND($E56<>NAErr,$C56<>NAErr),$E56/$C56,NAErr) -> 0.931335715 | X56: =IF(AND($E56<>NAErr,$C56<>NAErr),$D56*PI()*($C56/200)^2,NAErr) -> 0.2436695355 | Y56: =IF($C56=NAErr,NAErr,SUM(IF(trUtil,(trDbh>$C56)*trBaHa,0))) -> 13.55400566 | Z56: =IF($C56=NAErr,NAErr,SUM(IF(trUtil,(trDbh>$C56)*trBaHa*(trSppgrp="Con"),0))) -> 4.801206616 | AA56: =IF($C56=NAErr,NAErr,SUM(IF(trUtil,(trDbh>$C56)*trBaHa*(trSppgrp="Dec"),0))) -> 8.752799045 | AB56: =IF(ISERROR($O56),NAErr,INDEX(INDIRECT("SpeciesList!SppGrp"),$O56)) -> Con | AC56: =IF(ISERROR($O56),NAErr,INDEX(INDIRECT("SpeciesList!MGM"),$O56)) -> Sw | AD56: =IF($C56<>NAErr,PERCENTRANK(trDbh,$C56),NAErr) -> 0.461 | AE56: =volest($O56 - 1, $C56, $E56) -> 0.6909263877 | AF56: =isutilized($O56, $C56) -> TRUE | AG56: =ROUND(VRF($B56),3) -> 1 | AH56: =isjuveniletree($C56) -> FALSE | AI56: =SUM(IF(trUtil,(trDbh>$C56)*trBaHa*(trMGMSpp="Sw"),0)) -> 4.801206616 | AJ56: =SUM(IF(trUtil,(trDbh>$C56)*trBaHa*(trMGMSpp="Pl"),0)) -> 0 | AK56: =SUM(IF(trUtil,(trDbh>$C56)*trDbh*trpha*(trSppgrp="Dec"),0)) -> 2659.785165 | AL56: =SUM(IF(trUtil,(trDbh>$C56)*trDbh*trpha*(trMGMSpp="Sw"),0)) -> 2015.927992 | AM56: =SUM(IF(trUtil,(trDbh>$C56)*trDbh*trpha*(trMGMSpp="Pl"),0)) -> 0 | AN56: =SUM(IF(trUtil,(trDbh>$C56)*trDbh*trpha*(trMGMSpp="Sb"),0)) -> 0 | AO56: =IF(AND(($C56-$L56)>0,$L56>0),$AE56-MAX(0,volest($O56-1,$C56-$L56,$E56-$M56)),0) -> 0.003346641049 | AP56: -1 | AQ56: -1 | AR56: -1 | AS56: -1 | AT56: -1 | AU56: -1 | AV56: -1 | AW56: -1 | AX56: -1 | AY56: -1 | AZ56: -1 | BA56: -1 | BB56: -1 | BC56: -1 | BD56: -1 | BE56: -1 | BF56: -1 | BG56: -1 | BH56: -1 | BI56: 11
A57: 68 | B57: SW | C57: 28.33081601 | D57: 3.773658433 | E57: 27.14706583 | F57: 195.6661143 | G57: 189.0034536 | H57: 0.4684633143 | I57: 3.603096705 | J57: 99 | K57: 16 | L57: 0.04944648303 | M57: 0.0393974634 | N57: 0.993750713 | O57: 1 | P57: 1 | Q57: 198.743181 | R57: 25.57695572 | S57: 29.91062757 | T57: 21.61998596 | U57: 275.8507502 | V57: =IF(AND(NAErr<>$L57,NAErr<>$M57),$M57/$L57,NAErr) -> 0.79676978 | W57: =IF(AND($E57<>NAErr,$C57<>NAErr),$E57/$C57,NAErr) -> 0.9582168696 | X57: =IF(AND($E57<>NAErr,$C57<>NAErr),$D57*PI()*($C57/200)^2,NAErr) -> 0.2378869601 | Y57: =IF($C57=NAErr,NAErr,SUM(IF(trUtil,(trDbh>$C57)*trBaHa,0))) -> 13.7976752 | Z57: =IF($C57=NAErr,NAErr,SUM(IF(trUtil,(trDbh>$C57)*trBaHa*(trSppgrp="Con"),0))) -> 5.044876151 | AA57: =IF($C57=NAErr,NAErr,SUM(IF(trUtil,(trDbh>$C57)*trBaHa*(trSppgrp="Dec"),0))) -> 8.752799045 | AB57: =IF(ISERROR($O57),NAErr,INDEX(INDIRECT("SpeciesList!SppGrp"),$O57)) -> Con | AC57: =IF(ISERROR($O57),NAErr,INDEX(INDIRECT("SpeciesList!MGM"),$O57)) -> Sw | AD57: =IF($C57<>NAErr,PERCENTRANK(trDbh,$C57),NAErr) -> 0.446 | AE57: =volest($O57 - 1, $C57, $E57) -> 0.6908450162 | AF57: =isutilized($O57, $C57) -> TRUE | AG57: =ROUND(VRF($B57),3) -> 1 | AH57: =isjuveniletree($C57) -> FALSE | AI57: =SUM(IF(trUtil,(trDbh>$C57)*trBaHa*(trMGMSpp="Sw"),0)) -> 5.044876151 | AJ57: =SUM(IF(trUtil,(trDbh>$C57)*trBaHa*(trMGMSpp="Pl"),0)) -> 0 | AK57: =SUM(IF(trUtil,(trDbh>$C57)*trDbh*trpha*(trSppgrp="Dec"),0)) -> 2659.785165 | AL57: =SUM(IF(trUtil,(trDbh>$C57)*trDbh*trpha*(trMGMSpp="Sw"),0)) -> 2124.34802 | AM57: =SUM(IF(trUtil,(trDbh>$C57)*trDbh*trpha*(trMGMSpp="Pl"),0)) -> 0 | AN57: =SUM(IF(trUtil,(trDbh>$C57)*trDbh*trpha*(trMGMSpp="Sb"),0)) -> 0 | AO57: =IF(AND(($C57-$L57)>0,$L57>0),$AE57-MAX(0,volest($O57-1,$C57-$L57,$E57-$M57)),0) -> 0.003279373093 | AP57: -1 | AQ57: -1 | AR57: -1 | AS57: -1 | AT57: -1 | AU57: -1 | AV57: -1 | AW57: -1 | AX57: -1 | AY57: -1 | AZ57: -1 | BA57: -1 | BB57: -1 | BC57: -1 | BD57: -1 | BE57: -1 | BF57: -1 | BG57: -1 | BH57: -1 | BI57: 24
A58: 75 | B58: SW | C58: 28.17220302 | D58: 3.737430031 | E58: 26.95826219 | F58: 195.2722462 | G58: 188.6095855 | H58: 0.469572 | I58: 3.588187084 | J58: 72 | K58: 6 | L58: 0.04940203103 | M58: 0.03944280994 | N58: 0.9937216462 | O58: 1 | P58: 1 | Q58: 195.8878885 | R58: 25.24849272 | S58: 29.56298663 | T58: 21.44265013 | U58: 272.142018 | V58: =IF(AND(NAErr<>$L58,NAErr<>$M58),$M58/$L58,NAErr) -> 0.7984046226 | W58: =IF(AND($E58<>NAErr,$C58<>NAErr),$E58/$C58,NAErr) -> 0.9569099787 | X58: =IF(AND($E58<>NAErr,$C58<>NAErr),$D58*PI()*($C58/200)^2,NAErr) -> 0.2329724523 | Y58: =IF($C58=NAErr,NAErr,SUM(IF(trUtil,(trDbh>$C58)*trBaHa,0))) -> 14.03556216 | Z58: =IF($C58=NAErr,NAErr,SUM(IF(trUtil,(trDbh>$C58)*trBaHa*(trSppgrp="Con"),0))) -> 5.282763111 | AA58: =IF($C58=NAErr,NAErr,SUM(IF(trUtil,(trDbh>$C58)*trBaHa*(trSppgrp="Dec"),0))) -> 8.752799045 | AB58: =IF(ISERROR($O58),NAErr,INDEX(INDIRECT("SpeciesList!SppGrp"),$O58)) -> Con | AC58: =IF(ISERROR($O58),NAErr,INDEX(INDIRECT("SpeciesList!MGM"),$O58)) -> Sw | AD58: =IF($C58<>NAErr,PERCENTRANK(trDbh,$C58),NAErr) -> 0.43 | AE58: =volest($O58 - 1, $C58, $E58) -> 0.6787691041 | AF58: =isutilized($O58, $C58) -> TRUE | AG58: =ROUND(VRF($B58),3) -> 1 | AH58: =isjuveniletree($C58) -> FALSE | AI58: =SUM(IF(trUtil,(trDbh>$C58)*trBaHa*(trMGMSpp="Sw"),0)) -> 5.282763111 | AJ58: =SUM(IF(trUtil,(trDbh>$C58)*trBaHa*(trMGMSpp="Pl"),0)) -> 0 | AK58: =SUM(IF(trUtil,(trDbh>$C58)*trDbh*trpha*(trSppgrp="Dec"),0)) -> 2659.785165 | AL58: =SUM(IF(trUtil,(trDbh>$C58)*trDbh*trpha*(trMGMSpp="Sw"),0)) -> 2231.258843 | AM58: =SUM(IF(trUtil,(trDbh>$C58)*trDbh*trpha*(trMGMSpp="Pl"),0)) -> 0 | AN58: =SUM(IF(trUtil,(trDbh>$C58)*trDbh*trpha*(trMGMSpp="Sb"),0)) -> 0 | AO58: =IF(AND(($C58-$L58)>0,$L58>0),$AE58-MAX(0,volest($O58-1,$C58-$L58,$E58-$M58)),0) -> 0.003241037779 | AP58: -1 | AQ58: -1 | AR58: -1 | AS58: -1 | AT58: -1 | AU58: -1 | AV58: -1 | AW58: -1 | AX58: -1 | AY58: -1 | AZ58: -1 | BA58: -1 | BB58: -1 | BC58: -1 | BD58: -1 | BE58: -1 | BF58: -1 | BG58: -1 | BH58: -1 | BI58: 23
A59: 63 | B59: SW | C59: 28.0433716 | D59: 3.705184925 | E59: 26.85456714 | F59: 195.1187709 | G59: 188.4561103 | H59: 0.4696123565 | I59: 3.57607693 | J59: 7 | K59: 99 | L59: 0.04925241185 | M59: 0.03940283476 | N59: 0.9936948631 | O59: 1 | P59: 1 | Q59: 193.5872979 | R59: 24.98346879 | S59: 29.28217398 | T59: 21.29895395 | U59: 269.1518946 | V59: =IF(AND(NAErr<>$L59,NAErr<>$M59),$M59/$L59,NAErr) -> 0.8000183806 | W59: =IF(AND($E59<>NAErr,$C59<>NAErr),$E59/$C59,NAErr) -> 0.9576083621 | X59: =IF(AND($E59<>NAErr,$C59<>NAErr),$D59*PI()*($C59/200)^2,NAErr) -> 0.2288549041 | Y59: =IF($C59=NAErr,NAErr,SUM(IF(trUtil,(trDbh>$C59)*trBaHa,0))) -> 14.26853461 | Z59: =IF($C59=NAErr,NAErr,SUM(IF(trUtil,(trDbh>$C59)*trBaHa*(trSppgrp="Con"),0))) -> 5.515735564 | AA59: =IF($C59=NAErr,NAErr,SUM(IF(trUtil,(trDbh>$C59)*trBaHa*(trSppgrp="Dec"),0))) -> 8.752799045 | AB59: =IF(ISERROR($O59),NAErr,INDEX(INDIRECT("SpeciesList!SppGrp"),$O59)) -> Con | AC59: =IF(ISERROR($O59),NAErr,INDEX(INDIRECT("SpeciesList!MGM"),$O59)) -> Sw | AD59: =IF($C59<>NAErr,PERCENTRANK(trDbh,$C59),NAErr) -> 0.415 | AE59: =volest($O59 - 1, $C59, $E59) -> 0.6703168964 | AF59: =isutilized($O59, $C59) -> TRUE | AG59: =ROUND(VRF($B59),3) -> 1 | AH59: =isjuveniletree($C59) -> FALSE | AI59: =SUM(IF(trUtil,(trDbh>$C59)*trBaHa*(trMGMSpp="Sw"),0)) -> 5.515735564 | AJ59: =SUM(IF(trUtil,(trDbh>$C59)*trBaHa*(trMGMSpp="Pl"),0)) -> 0 | AK59: =SUM(IF(trUtil,(trDbh>$C59)*trDbh*trpha*(trSppgrp="Dec"),0)) -> 2659.785165 | AL59: =SUM(IF(trUtil,(trDbh>$C59)*trDbh*trpha*(trMGMSpp="Sw"),0)) -> 2336.550481 | AM59: =SUM(IF(trUtil,(trDbh>$C59)*trDbh*trpha*(trMGMSpp="Pl"),0)) -> 0 | AN59: =SUM(IF(trUtil,(trDbh>$C59)*trDbh*trpha*(trMGMSpp="Sb"),0)) -> 0 | AO59: =IF(AND(($C59-$L59)>0,$L59>0),$AE59-MAX(0,volest($O59-1,$C59-$L59,$E59-$M59)),0) -> 0.003207215402 | AP59: -1 | AQ59: -1 | AR59: -1 | AS59: -1 | AT59: -1 | AU59: -1 | AV59: -1 | AW59: -1 | AX59: -1 | AY59: -1 | AZ59: -1 | BA59: -1 | BB59: -1 | BC59: -1 | BD59: -1 | BE59: -1 | BF59: -1 | BG59: -1 | BH59: -1 | BI59: 73
A60: 52 | B60: SW | C60: 27.88368212 | D60: 3.669824356 | E60: 26.69741813 | F60: 194.8843931 | G60: 188.2217325 | H60: 0.4701641691 | I60: 3.56106612 | J60: 85 | K60: 98 | L60: 0.0491426679 | M60: 0.03939345086 | N60: 0.993665396 | O60: 1 | P60: 1 | Q60: 190.7587161 | R60: 24.65715939 | S60: 28.93603338 | T60: 21.1212668 | U60: 265.4731757 | V60: =IF(AND(NAErr<>$L60,NAErr<>$M60),$M60/$L60,NAErr) -> 0.8016140056 | W60: =IF(AND($E60<>NAErr,$C60<>NAErr),$E60/$C60,NAErr) -> 0.957456695 | X60: =IF(AND($E60<>NAErr,$C60<>NAErr),$D60*PI()*($C60/200)^2,NAErr) -> 0.2240966716 | Y60: =IF($C60=NAErr,NAErr,SUM(IF(trUtil,(trDbh>$C60)*trBaHa,0))) -> 14.49738951 | Z60: =IF($C60=NAErr,NAErr,SUM(IF(trUtil,(trDbh>$C60)*trBaHa*(trSppgrp="Con"),0))) -> 5.744590468 | AA60: =IF($C60=NAErr,NAErr,SUM(IF(trUtil,(trDbh>$C60)*trBaHa*(trSppgrp="Dec"),0))) -> 8.752799045 | AB60: =IF(ISERROR($O60),NAErr,INDEX(INDIRECT("SpeciesList!SppGrp"),$O60)) -> Con | AC60: =IF(ISERROR($O60),NAErr,INDEX(INDIRECT("SpeciesList!MGM"),$O60)) -> Sw | AD60: =IF($C60<>NAErr,PERCENTRANK(trDbh,$C60),NAErr) -> 0.4 | AE60: =volest($O60 - 1, $C60, $E60) -> 0.6592191082 | AF60: =isutilized($O60, $C60) -> TRUE | AG60: =ROUND(VRF($B60),3) -> 1 | AH60: =isjuveniletree($C60) -> FALSE | AI60: =SUM(IF(trUtil,(trDbh>$C60)*trBaHa*(trMGMSpp="Sw"),0)) -> 5.744590468 | AJ60: =SUM(IF(trUtil,(trDbh>$C60)*trBaHa*(trMGMSpp="Pl"),0)) -> 0 | AK60: =SUM(IF(trUtil,(trDbh>$C60)*trDbh*trpha*(trSppgrp="Dec"),0)) -> 2659.785165 | AL60: =SUM(IF(trUtil,(trDbh>$C60)*trDbh*trpha*(trMGMSpp="Sw"),0)) -> 2440.456358 | AM60: =SUM(IF(trUtil,(trDbh>$C60)*trDbh*trpha*(trMGMSpp="Pl"),0)) -> 0 | AN60: =SUM(IF(trUtil,(trDbh>$C60)*trDbh*trpha*(trMGMSpp="Sb"),0)) -> 0 | AO60: =IF(AND(($C60-$L60)>0,$L60>0),$AE60-MAX(0,volest($O60-1,$C60-$L60,$E60-$M60)),0) -> 0.00316756717 | AP60: -1 | AQ60: -1 | AR60: -1 | AS60: -1 | AT60: -1 | AU60: -1 | AV60: -1 | AW60: -1 | AX60: -1 | AY60: -1 | AZ60: -1 | BA60: -1 | BB60: -1 | BC60: -1 | BD60: -1 | BE60: -1 | BF60: -1 | BG60: -1 | BH60: -1 | BI60: 62
